{"text_format":"1","workbook":"xlsx","n_sheets":12,"sheets":["Recharge Chart","Main Menu","RKVarMap","RKCharts","Equilibration","Non Linear Melt Chart","basRKDisplayFormatting","basRKMisc","basRKChartsSecurity","RKHelp","RKPageMap","RKSyncNames"],"not_rendered":{"charts":17,"images":0,"macros":1,"external_links":0,"defined_names":346,"comments":0,"pivot_tables":0},"unopened":[{"sheet":"Recharge Chart","index":0,"reason":"not_a_worksheet"},{"sheet":"Non Linear Melt Chart","index":5,"reason":"not_a_worksheet"},{"sheet":"basRKDisplayFormatting","index":6,"reason":"part_missing"},{"sheet":"basRKMisc","index":7,"reason":"part_missing"},{"sheet":"basRKChartsSecurity","index":8,"reason":"part_missing"}],"bounds":{"document_bytes":16777216,"sheet_cells":100000,"rows_first":2000,"rows_last":500,"rows_between":2000,"halvings":0,"cell_chars":16384,"cell_head_chars":4096},"cells_cut":0,"cells_raw":0,"read":"whole","date_system":"1900"}

{"sheet":"Main Menu","index":1,"n_rows":329,"n_cols":217,"rows_kept":329,"cut":false,"hidden":false,"merged":[[1,1,1,23],[20,156,20,158],[21,156,21,158],[18,156,18,158],[19,156,19,158]]}
[null,null,null,null,null,null,null,null,null,null,null,null,null,null,null,null,null,null,null,null,null,null,null,null,null,null,"Isotope Parameters",null,null,null,null,null,null,null,null,null,null,null,null,null,null,null,null,null,null,null,null,null,null,null,null,null,"Trace Element Parameters",null,null,null,null,null,null,null,null,null,null,null,null,null,null,null,null,null,null,null,null,null,null,null,null,null,"Oxygen Isotope Parameters",null,null,null,null,null,null,null,null,null,null,null,null,null,null,null,null,null,null,null,null,null,null,null,null,null,"Thermal Parameters",null,null,null,null,null,null,null,null,null,null,null,null,null,null,null,null,null,null,null,null,null,null,null,null,null,"Linear and Non Linear Crystallization and Melting",null,null,null,null,null,null,null,null,null,null,null,null,null,null,null,null,null,null,null,null,null,null,null,null,null,"Part II  EC-RAXFC - Path Dependant Calculations ",null,null,null,null,null,null,null,null,null,null,null,null,null,null,null,null,null,null,null,null,null,null,null,null,null,"Recharge Parameters",null,null,null,null,null,null,null,null,null,null,null,null,null,null,null,null,null,null,null,null,null,null,null,null,null,"Recharge Parameters"]
[null,"Energy Constrained Recharge Assimilation Fractional Crystallization (EC-RAXFC)"]
[null,null,null,null,null,null,null,null,null,null,null,null,null,null,null,null,null,null,null,null,null,null,null,null,null,null,null,null,null,null,null,"Isotope 1",null,"Isotope 2",null,"Isotope 3",null,null,null,null,null,null,null,null,null,null,null,null,null,null,null,null,null,null,null,null,null,"Element 1",null,"Element 2",null,"Element 3",null,null,null,null,null,null,null,null,null,null,null,null,null,null,null,null,null,null,null,null,null,null,null,null,null,null,null,null,null,null,null,null,null,null,null,null,null,null,null,null,null,null,null,"tlm",null,1300,"degC",null,"liquidus T magma",null,null,null,null,null,null,null,null,null,null,null,null,null,null,null,null,null,null,null,null,null,null,null,null,null,null,"Non Linear",null,null,null,null,null,null,null,null,null,null,null,null,null,null,null,null,null,null,null,"  Starting values of initial temperature of assimilant, initial mass of magma, initial magma element concentrations,",null,null,null,null,null,null,null,null,null,null,null,null,null,null,null,null,null,null,null,null,null,null,null,null,null,null,null,null,null,null,null,null,null,null,null,null,null,null,null,null,null,null,null,null,null,null,null,null,null,null,null,"Total mass of recharge (Mro)"]
["Part 1",null,"Define Equilibration Parameters:",null,null,null,null,null,null,null,null,null,null,null,null,null,null,null,null,null,null,null,null,null,null,null,null,null,null,null,null,null,null,null,null,null,null,null,null,null,null,null,null,null,null,null,null,null,null,null,null,null,null,null,null,null,null,null,null,null,null,null,null,null,null,null,null,null,null,null,null,null,null,null,null,null,null,null,null,null,null,null,null,null,null,null,null,null,null,null,null,null,null,null,null,null,null,null,null,null,null,null,null,null,null,"tmo",null,1300,"degC",null,"initial T magma",null,null,null,null,null,null,null,null,null,null,null,null,null,null,null,null,null,null,null,null,null,null,null,null,null,null,"Logistical Parameters",null,null,null,null,null,null,null,null,null,null,null,null,null,null,null,null,null,null,null,null,null,null,null,null,"initial magma isotope ratios, initial oxygen isotope ratios, recharge and eruptive magma for the first iteration.",null,null,null,null,null,null,null,null,null,null,null,null,null,null,null,null,null,null,null,null,null,null,null,null,null,null,null,null,null,null,null,null,null,null,null,null,null,null,null,null,null,null,null,null,null,null,"per Part 1 Equilibration:",null,null,null,{"$f":"IF(ISNUMBER(Mro),IF(Mro=0,\"Recharge Not Set\",Mro),\"n/a\")","v":0.3}]
[null,null,null,null,null,null,null,null,null,null,null,null,null,null,null,null,null,null,null,null,null,null,null,null,null,null,null,"Element Name",null,null,null,"Sr",null,null,null,null,null,null,null,null,null,null,null,null,null,null,null,null,null,null,null,null,null,"Element Name",null,null,null,null,null,null,null,null,null,null,null,null,null,null,null,null,null,null,null,null,null,null,null,null,null,"18O/16O in magma",null,null,null,null,null,6.2,null,null,null,null,null,null,null,null,null,null,null,null,null,null,null,null,null,null,null,null,null,null,null,null,null,null,null,null,null,null,null,null,null,null,null,null,null,null,null,null,null,null,null,null,null,"Magma a",null,null,null,null,null,450,null,null,null,null,null,null,null,null,null,null,null,null,null,null,null,null,null,null,null,null,"Tao",{"$f":"IF(ISNUMBER(tao/tlm),(tao+273.16)/(tlm+273.16),\"\")","v":0.55503572427470826}]
[null,null,null,null,null,null,null,null,null,null,null,null,null,null,null,null,null,null,null,null,null,null,null,null,null,null,null,null,null,null,null,null,null,null,null,null,null,null,null,null,null,null,null,null,null,null,null,null,null,null,null,null,null,null,null,null,null,null,null,null,null,null,null,null,null,null,null,null,null,null,null,null,null,null,null,null,null,null,null,null,null,null,null,null,null,null,null,null,null,null,null,null,null,null,null,null,null,null,null,null,null,null,null,null,null,"tla",null,1150,"degC",null,"liquidus T assimilant",null,null,null,null,null,null,null,null,null,null,null,null,null,null,null,null,null,null,null,null,"Magma b",null,null,null,null,null,-11,null,null,null,null,null,null,null,null,null,null,null,null,null,null,null,null,null,null,null,null,"Mo",1,null,null,null,null,null,null,null,null,null,null,null,null,null,null,null,null,null,null,null,null,null,null,null,null,null,null,"Mro",null,null,0.3,null,"Mass of recharge magma (nondimensional) added during EC-RAXFC event",null,null,null,null,null,null,null,null,null,null,null,null,null,null,null,null,null,"Sum of ΔMr,i (all episodes)"]
[null,null,"Run Equilibration Series:",null,null,null,null,null,null,null,null,null,null,null,null,null,null,null,null,null,null,null,null,null,null,null,null,null,"in magma",null,null,null,null,null,null,null,null,null,null,null,null,null,null,null,null,null,null,null,null,null,null,null,null,null,"in magma",null,null,null,null,null,null,null,null,null,null,null,null,null,null,null,null,null,null,null,null,null,null,null,null,"18O/16O in assimilant",null,null,null,null,null,12,null,null,null,null,null,null,null,null,null,null,null,null,null,null,null,null,null,null,null,"tao",null,600,"degC",null,"initial T assimilant",null,null,null,null,null,null,null,null,null,null,null,null,null,null,null,null,null,null,null,null,null,null,null,null,null,null,null,null,null,null,null,null,null,null,null,null,null,null,null,null,null,null,null,null,null,null,null,null,{"$f":"IF(ISBLANK(ElemLabel1),\"\",ElemLabel1)","v":"Sr"},{"$f":"IF(ISBLANK(ElemLabel2),\"\",ElemLabel2)","v":""},{"$f":"IF(ISBLANK(ElemLabel3),\"\",ElemLabel3)","v":""},{"$f":"IF(ISBLANK(ElemLabel4),\"\",ElemLabel4)","v":""},{"$f":"IF(ISBLANK(ElemLabel5),\"\",ElemLabel5)","v":""},{"$f":"IF(ISBLANK(ElemLabel6),\"\",ElemLabel6)","v":""},null,null,null,null,null,null,null,null,null,null,null,null,null,null,null,null,null,null,null,null,null,null,null,null,null,null,"(enter 0 and recharge will not be included as EC-AXFC is implemented)"]
[null,null,null,null,null,null,null,null,null,null,null,null,null,null,null,null,null,null,null,null,null,null,null,null,null,null,null,"concentration",null,null,null,700,null,null,null,null,null,null,null,null,null,null,null,null,null,null,null,null,null,null,null,null,null,"concentration",null,null,null,null,null,null,null,null,null,null,null,null,null,null,null,null,null,null,null,null,null,null,null,null,null,null,null,null,null,null,null,null,null,null,null,null,null,null,null,null,null,null,null,null,null,null,null,null,null,null,null,null,null,null,null,null,null,null,null,null,null,null,null,null,null,null,null,null,null,null,null,null,null,null,null,null,null,"Assimilant a",null,null,null,null,null,400,null,null,null,null,null,null,null,null,null,null,null,null,null,null,null,null,null,null,null,null,"Cm",{"$f":"IF(ISBLANK(ElemLabel1),\"\",1)","v":1},{"$f":"IF(ISBLANK(ElemLabel2),\"\",1)","v":""},{"$f":"IF(ISBLANK(ElemLabel3),\"\",1)","v":""},{"$f":"IF(ISBLANK(ElemLabel4),\"\",1)","v":""},{"$f":"IF(ISBLANK(ElemLabel5),\"\",1)","v":""},{"$f":"IF(ISBLANK(ElemLabel6),\"\",1)","v":""},null,"Normalized element starting conc in magma ",null,null,null,null,null,null,null,null,null,null,null,null,null,null,null,null,null,null,null,null,null,null,null,null,null,null,null,null,null,null,null,null,null,null,null,null,null,null,null,null,null,null,"Episode Count"]
[null,null,null,null,null,null,null,null,null,null,null,null,null,null,null,null,null,null,null,null,null,null,null,null,null,null,null,"bulk Dmo",null,null,null,1.5,null,null,null,null,null,null,null,null,null,null,null,null,null,null,null,null,null,null,null,null,null,"bulk Dmo",null,null,null,null,null,null,null,null,null,null,null,null,null,null,null,null,null,null,null,null,null,null,null,null,null,"18O/16O in recharge",null,null,null,null,null,7,null,null,null,null,null,null,null,null,null,null,null,null,null,null,null,null,null,null,null,"tlr",null,1320,"degC",null,"liquidus T recharge magma",null,null,null,null,null,null,null,null,null,null,null,null,null,null,null,null,null,null,null,null,"Assimilant b",null,null,null,null,null,-11]
[null,null,"================================================================================",null,null,null,null,null,null,null,null,null,null,null,null,null,null,null,null,null,null,null,null,null,null,null,null,"enthalpy",null,null,null,0,null,null,null,null,null,"joules/kg",null,null,null,null,null,null,null,null,null,null,null,null,null,null,null,"enthalpy",null,null,null,null,null,null,null,null,null,"joules/kg",null,null,null,null,null,null,null,null,null,null,null,null,null,null,null,null,null,null,null,null,null,null,null,null,null,null,null,null,null,null,null,null,null,null,null,null,null,null,null,null,null,"tro",null,{"$f":"tlr","v":1320},"degC",null,"initial T recharge magma",null,null,null,null,null,null,null,null,null,null,null,null,null,null,null,null,null,null,null,null,null,null,null,null,null,null,null,null,null,null,null,null,null,null,null,null,null,null,null,null,null,null,null,null,null,null,null,null,{"$f":"IF(ISBLANK(IsotLabel1),\"\",IsotLabel1)","v":"87Sr/86Sr"},{"$f":"IF(ISBLANK(IsotLabel2),\"\",IsotLabel2)","v":""},{"$f":"IF(ISBLANK(IsotLabel3),\"\",IsotLabel3)","v":""},null,null,null,null,null,null,null,null,null,null,null,null,null,null,null,null,null,null,null,null,null,null,null,null,null,null,null,null,null,null,null,null,null,null,null,null,null,null,null,null,null,null,null,null,null,null,null,"i","ΔMr,i","Tm,i","mr,i","d,i"]
[null,null,null,null,null,null,null,null,null,null,null,null,null,null,null,null,null,null,null,null,null,null,null,null,null,null,null,null,null,null,null,null,null,null,null,null,null,null,null,null,null,null,null,null,null,null,null,null,null,null,null,null,null,null,null,null,null,null,null,null,null,null,null,null,null,null,null,null,null,null,null,null,null,null,null,null,null,null,null,null,null,null,null,null,null,null,null,null,null,null,null,null,null,null,null,null,null,null,null,null,null,null,null,null,null,null,null,null,null,null,null,null,null,null,null,null,null,null,null,null,null,null,null,null,null,null,null,null,null,null,null,"Recharge Magma a",null,null,null,null,null,450,null,null,null,null,null,null,null,null,null,null,null,null,null,null,null,null,null,null,null,null,"Isotope Ratio",{"$f":"IF(ISNUMBER(IsotRatioMagma1),IsotRatioMagma1,\"\")","v":0.70499999999999996},{"$f":"IF(ISNUMBER(IsotRatioMagma2),IsotRatioMagma2,\"\")","v":""},{"$f":"IF(ISNUMBER(IsotRatioMagma3),IsotRatioMagma3,\"\")","v":""},null,null,null,null,"Starting isotope ratio in magma",null,null,null,null,null,null,null,null,null,null,null,null,null,null,null,null,null,null,null,null,null,null,null,null,null,null,null,null,null,null,null,null,null,null,null,null,null,null,null,null,null,null,null,null,"degC"]
["Part 2",null,"Select Equilibration Temperature (Teq),",null,null,null,null,null,null,null,null,null,null,null,null,null,null,null,null,null,null,null,null,null,null,null,null,null,"in assimilant",null,null,null,null,null,null,null,null,null,null,null,null,null,null,null,null,null,null,null,null,null,null,null,null,null,"in assimilant",null,null,null,null,null,null,null,null,null,null,null,null,null,null,null,null,null,null,null,null,null,null,null,null,null,null,null,null,null,null,null,null,null,null,null,null,null,null,null,null,null,null,null,null,null,null,null,null,null,null,"ts",null,900,"degC",null,"solidus",null,null,null,null,null,null,null,null,null,null,null,null,null,null,null,null,null,null,null,null,"Recharge Magma b",null,null,null,null,null,-11,null,null,null,null,null,null,null,null,null,null,null,null,null,null,null,null,null,null,null,null,null,null,null,null,null,null,null,null,null,null,null,null,null,null,null,null,null,null,null,null,null,null,null,null,null,null,null,null,null,null,null,null,null,null,null,null,null,null,null,null,null,null,null,null,null,null,null,null,null,null,null,null,0.1,1250,0.3,2]
[null,null,"   and Mass of wall rock (Mao), as an ordered pair [Teq, Mao] from this list:",null,null,null,null,null,null,null,null,null,null,null,null,null,null,null,null,null,null,null,null,null,null,null,null,"concentration",null,null,null,230,null,null,null,null,null,null,null,null,null,null,null,null,null,null,null,null,null,null,null,null,null,"concentration",null,null,null,null,null,null,null,null,null,null,null,null,null,null,null,null,null,null,null,null,null,null,null,null,null,"Oxygen conc magma",null,null,null,null,null,0.47,null,null,null,null,null,null,null,null,null,null,null,null,null,null,null,null,null,null,null,null,null,null,null,null,null,null,null,null,null,null,null,null,null,null,null,null,null,null,null,null,null,null,null,null,null,null,null,null,null,null,null,null,null,null,null,null,null,null,null,null,null,null,null,null,null,null,null,null,null,null,null,null,"delta 180",{"$f":"IF(ISNUMBER(MagmaO18O16),MagmaO18O16,\"\")","v":6.2},null,null,null,null,null,null,"Starting Oxygen isotope ratio in magma",null,null,null,null,null,null,null,null,null,null,null,null,null,null,null,null,null,null,null,null,null,null,null,null,null,null,null,null,null,null,null,null,null,null,null,null,null,null,null,null,null,null,null,0.1,1175,0.3,2]
[null,null,null,null,null,null,null,null,null,null,null,null,null,null,null,null,null,null,null,null,null,null,null,null,null,null,null,"bulk Dao",null,null,null,0.05,null,null,null,null,null,null,null,null,null,null,null,null,null,null,null,null,null,null,null,null,null,"bulk Dao",null,null,null,null,null,null,null,null,null,null,null,null,null,null,null,null,null,null,null,null,null,null,null,null,null,null,null,null,null,null,null,null,null,null,null,null,null,null,null,null,null,null,null,null,null,null,null,null,null,null,null,null,null,null,null,null,null,null,null,null,null,null,null,null,null,null,null,null,null,null,null,null,null,null,null,null,null,null,null,null,null,null,null,null,null,null,null,null,null,null,null,null,null,null,null,null,null,null,null,null,null,null,null,null,null,null,null,null,null,null,null,null,null,null,null,null,null,null,null,null,null,null,null,null,null,null,null,null,null,null,null,null,null,null,null,null,null,null,null,null,null,null,null,null,null,null,null,null,null,null,null,null,null,null,null,null,0.1,1155,0.3,2,null,null,"Tmo = 1300, Tla = 1150, Tlm = 1300, Teq = 1148.98."]
[null,null,"Define Path Dependant Parameters:",null,null,null,null,null,null,null,null,null,null,null,null,null,null,null,null,null,null,null,null,null,null,null,null,"enthalpy",null,null,null,0,null,null,null,null,null,null,null,null,null,null,null,null,null,null,null,null,null,null,null,null,null,"enthalpy",null,null,null,null,null,null,null,null,null,"joules/kg",null,null,null,null,null,null,null,null,null,null,null,null,null,null,null,"Oxygen conc assimilant",null,null,null,null,null,0.5,null,null,null,null,null,null,null,null,null,null,null,null,null,null,null,null,null,null,null,"cpm",null,1484,"J/kg K",null,"specific heat of magma",null,null,null,null,null,null,null,null,null,null,null,null,null,null,null,null,null,null,null,null,null,null,null,null,null,null,null,null,null,null,null,null,null,null,null,null,null,null,null,null,null,null,null,null,null,null,null,null,0,null,null,null,null,null,null,"Initial quantity of Recharge Magma",null,null,null,null,null,null,null,null,null,null,null,null,null,null,null,null,null,null,null,null,null,null,null,null,null,null,null,null,null,null,null,null,null,null,null,null,null,null,null,null,null,null,null,0.1,1100,0.3,2]
[null,null,null,null,null,null,null,null,null,null,null,null,null,null,null,null,null,null,null,null,null,null,null,null,null,null,null,null,null,null,null,null,null,null,null,null,null,"joules/kg",null,null,null,null,null,null,null,null,null,null,null,null,null,null,null,null,null,null,null,null,null,null,null,null,null,null,null,null,null,null,null,null,null,null,null,null,null,null,null,null,null,null,null,null,null,null,null,null,null,null,null,null,null,null,null,null,null,null,null,null,null,null,null,null,null,null,null,"cpa",null,1370,"J/kg K",null,"specific heat of assimilant"]
[null,null,null,null,null,null,null,null,null,null,null,null,null,null,null,null,null,null,null,null,null,null,null,null,null,null,null,null,"in recharge",null,null,null,null,null,null,null,null,null,null,null,null,null,null,null,null,null,null,null,null,null,null,null,null,null,"in recharge magma",null,null,null,null,null,null,null,null,null,null,null,null,null,null,null,null,null,null,null,null,null,null,null,null,"Oxygen conc recharge",null,null,null,null,null,0.47,null,null,null,null,null,null,null,null,null,null,null,null,null,null,null,null,null,null,null,"cpr",null,1484,"J/kg K",null,"specific heat of recharge magma",null,null,null,null,null,null,null,null,null,null,null,null,null,null,null,null,null,null,null,null,null,null,null,null,null,null,null,null,null,null,null,null,null,null,null,null,null,null,null,null,null,null,null,null,null,null,"  Temperature range (normalized representation)"]
[null,null,"Run Path Dependant Series:",null,null,null,null,null,null,null,null,null,null,null,null,null,null,null,null,null,null,null,null,null,null,null,null,"concentration",null,null,null,1000,null,null,null,null,null,null,null,null,null,null,null,null,null,null,null,null,null,null,null,null,null,"concentration"]
[null,null,null,null,null,null,null,null,null,null,null,null,null,null,null,null,null,null,null,null,null,null,null,null,null,null,null,"bulk Dro",null,null,null,1.5,null,null,null,null,null,null,null,null,null,null,null,null,null,null,null,null,null,null,null,null,null,"bulk Dro",null,null,null,null,null,null,null,null,null,null,null,null,null,null,null,null,null,null,null,null,null,null,null,null,null,null,null,null,null,null,null,null,null,null,null,null,null,null,null,null,null,null,null,null,null,null,null,null,null,null,null,"hm",null,396000,"J/kg",null,"enthalpy of crystallization of magma",null,null,null,null,null,null,null,null,null,null,null,null,null,null,null,null,null,null,null,null,null,null,null,null,null,null,null,null,null,null,null,null,null,null,null,null,null,null,null,null,null,null,null,null,null,"T0",null,null,{"$f":"IF(ISNUMBER(tmo/tlm),(tmo+273.16)/(tlm+273.16),\"\")","v":1}]
[null,null,null,null,null,null,null,null,null,null,null,null,null,null,null,null,null,null,null,null,null,null,null,null,null,null,null,"enthalpy",null,null,null,0,null,null,null,null,null,"joules/kg",null,null,null,null,null,null,null,null,null,null,null,null,null,null,null,"enthalpy",null,null,null,null,null,null,null,null,null,"joules/kg",null,null,null,null,null,null,null,null,null,null,null,null,null,null,null,null,null,null,null,null,null,null,null,null,null,null,null,null,null,null,null,null,null,null,null,null,null,null,null,null,null,"ha",null,270000,"J/kg",null,"enthalpy of melting of assimilant",null,null,null,null,null,null,null,null,null,null,null,null,null,null,null,null,null,null,null,null,null,null,null,null,null,null,null,null,null,null,null,null,null,null,null,null,null,null,null,null,null,null,null,null,null,"Tfinal",null,null,0.90399999999999991]
[null,null,"ECRAFC version 07A 1/2007   Modified for Excel 2011 Mac 12/2014",null,null,null,null,null,null,null,null,null,null,null,null,null,null,null,null,null,null,null,null,null,null,null,null,null,null,null,null,null,null,null,null,null,null,null,null,null,null,null,null,null,null,null,null,null,null,null,null,null,null,null,null,null,null,null,null,null,null,null,null,null,null,null,null,null,null,null,null,null,null,null,null,null,null,null,null,null,null,null,null,null,null,null,null,null,null,null,null,null,null,null,null,null,null,null,null,null,null,null,null,null,null,"hr",null,396000,"J/kg",null,"enthalpy of crystallization of recharge magma",null,null,null,null,null,null,null,null,null,null,null,null,null,null,null,null,null,null,null,null,null,null,null,null,null,null,null,null,null,null,null,null,null,null,null,null,null,null,null,null,null,null,null,null,null,"deltaT",null,null,-5.0000000000000001E-4]
[null,null,"prepared by Dr. Frank J. Spera, UCSB and Dr. Wendy A. Bohrson, Central Washington Univ.",null,null,null,null,null,null,null,null,null,null,null,null,null,null,null,null,null,null,null,null,null,null,null,null,"Isotope Name",null,null,null,"87Sr/86Sr",null,null,null,null,null,null,null,null,null,null,null,null,null,null,null,null,null,null,null,null,null,null,null,null,null,null,null,null,null,null,null,null,null,null,null,null,null,null,null,null,null,null,null,null,null,null,null,null,null,null,null,null,null,null,null,null,null,null,null,null,null,null,null,null,null,null,null,null,null,null,null,null,null,null,null,null,null,null,null,null,null,null,null,null,null,null,null,null,null,null,null,null,null,null,null,null,null,null,null,null,null,null,null,null,null,null,null,null,null,null,null,null,null,null,null,null,null,null,null,null,null,null,null,null,"Iterations",null,null,{"$f":"ABS((TFinal-TZero)/deltaT)","v":192.00000000000017}]
[null,null,"for help, email ecrafc@geology.cwu.edu",null,null,null,null,null,null,null,null,null,null,null,null,null,null,null,null,null,null,null,null,null,null,null,null,"ratio in magma",null,null,null,0.70499999999999996,null,null,null,null,null,null,null,null,null,null,null,null,null,null,null,null,null,null,null,null,null,null,null,null,null,null,null,null,null,null,null,null,null,null,null,null,null,null,null,null,null,null,null,null,null,null,null,null,null,null,null,null,null,null,null,null,null,null,null,null,null,null,null,null,null,null,null,null,null,null,null,null,null,null,null,null,null,null,null,null,null,null,null,null,null,null,null,null,null,null,null,null,null,null,null,null,null,null,null,null,null,null,null,null,null,null,null,null,null,null,null,null,null,null,null,null,null,null,null,null,null,null,null,null,null,"  Name for results worksheet (new sheet always created)"]
[null,null,null,null,null,null,null,null,null,null,null,null,null,null,null,null,null,null,null,null,null,null,null,null,null,null,null,"ratio in assimilant",null,null,null,0.72,null,null,null,null,null,null,null,null,null,null,null,null,null,null,null,null,null,null,null,null,null,null,null,null,null,null,null,null,null,null,null,null,null,null,null,null,null,null,null,null,null,null,null,null,null,null,null,null,null,null,null,null,null,null,null,null,null,null,null,null,null,null,null,null,null,null,null,null,null,null,null,null,null,null,null,null,null,null,null,null,null,null,null,null,null,null,null,null,null,null,null,null,null,null,null,null,null,null,null,null,null,null,null,null,null,null,null,null,null,null,null,null,null,null,null,null,null,null,null,null,null,null,null,null,null,null,null,"RK07ATest"]
[null,null,null,null,null,null,null,null,null,null,null,null,null,null,null,null,null,null,null,null,null,null,null,null,null,null,null,"ratio in recharge",null,null,null,0.70299999999999996,null,null,null,null,null,null,null,null,null,null,null,null,null,null,null,null,null,null,null,null,null,null,null,null,null,null,null,null,null,null,null,null,null,null,null,null,null,null,null,null,null,null,null,null,null,null,null,null,null,null,null,null,null,null,null,null,null,null,null,null,null,null,null,null,null,null,null,null,null,null,null,null,null,null,null,null,null,null,null,null,null,null,null,null,null,null,null,null,null,null,null,null,null,null,null,null,null,null,null,null,null,null,null,null,null,null,null,null,null,null,null,null,null,null,null,null,null,null,null,null,null,null,null,null,null,"  Name for charts worksheet"]
[null,null,null,null,null,null,null,null,null,null,null,null,null,null,null,null,null,null,null,null,null,null,null,null,null,null,null,null,null,null,null,null,null,null,null,null,null,null,null,null,null,null,null,null,null,null,null,null,null,null,null,null,null,null,null,null,null,null,null,null,null,null,null,null,null,null,null,null,null,null,null,null,null,null,null,null,null,null,null,null,null,null,null,null,null,null,null,null,null,null,null,null,null,null,null,null,null,null,null,null,null,null,null,null,null,null,null,null,null,null,null,null,null,null,null,null,null,null,null,null,null,null,null,null,null,null,null,null,null,null,null,null,null,null,null,null,null,null,null,null,null,null,null,null,null,null,null,null,null,null,null,null,null,null,null,null,null,null,null,"RKCharts"]
[]
[]
[]
[]
[]
[]
[null,"RK Admin - do not delete ANYTHING below this line"]
[null,"Oxygen Link Cell G34",null,null,null,null,2]
[null,"Linearity Link Cell G35",null,null,null,null,2]
[null,"EMLinearity Link Cell G36",null,null,null,null,1]
[null,"Auto Chart Link G37",null,null,null,null,true]
[null,"Last Sheet Top Left G38",null,null,null,null,"A1"]
[null,"RMLinearity Link Cell G39",null,null,null,null,1]
[null,"EM Integration Mesh G40",null,null,null,null,5000]
[1,"<<A41 combo Temp Link",null,null,null,null,null,3,"<< H41 comboEpisodeCountLinkRM"]
[8,"<<A42 combo MaO Mod mesh",null,null,null,null,null,3,"<< H42comboEpisodeCountLinkEM"]
[null,null,null,null,null,null,null,96,"<< EquilibrationOffSetForCombo"]
[null,null,null,null,null,null,1,1]
[null,null,null,null,null,null,2,2]
[null,null,null,null,null,null,5,3]
[null,null,null,null,null,null,10,4]
[null,null,null,null,null,null,20,5]
[null,null,null,null,null,null,50,6]
[null,null,null,null,null,null,100,7]
[null,"1148.98 deg C, 0.466",null,null,null,null,200,8,null,null,null,null,null,null,null,null,null,null,null,null,null,null,null,null,null,null,"Normalized Fraction of Wallrock Melt that enters Magma Body",null,null,null,null,null,null,null,null,null,null,null,null,null,null,null,null,null,null,null,null,null,null,null,null,null,null,null,null,null,null,null,null,null,null,null,null,null,null,null,null,null,null,null,null,null,null,null,null,null,null,null,null,null,null,null,null,null,null,null,null,null,null,null,null,null,null,null,null,null,null,null,null,null,null,null,null,null,null,null,null,null,null,null,null,null,null,null,null,null,null,null,null,null,null,null,null,null,null,null,null,null,null,null,null,null,null,null,null,null,null,null,null,null,null,null,null,null,null,null,null,null,null,null,null,null,null,null,null,null,"Part 1 - EC-RAXFC - Integral Calculations (Run Equilibration Series)"]
[null,"1147.40 deg C, 0.475",null,null,null,null,500,9]
[null,"1145.83 deg C, 0.484",null,null,null,null,1000,10,null,null,null,null,null,null,null,null,null,null,null,null,null,null,null,null,null,null,null,null,null,null,null,null,null,null,null,null,null,null,null,null,null,null,null,null,null,null,null,null,null,null,null,null,null,null,null,null,null,null,null,null,null,null,null,null,null,null,null,null,null,null,null,null,null,null,null,null,null,null,null,null,null,null,null,null,null,null,null,null,null,null,null,null,null,null,null,null,null,null,null,null,null,null,null,null,null,null,null,null,null,null,null,null,null,null,null,null,null,null,null,null,null,null,null,null,null,null,null,null,null,null,null,null,null,null,null,null,null,null,null,null,null,null,null,null,null,null,null,null,null,null,null,null,null,null,null,null,null,"  Starting values of total mass of wallrock (Mao) and total mass of magma (Mo)"]
[null,"1144.26 deg C, 0.493",null,null,null,null,null,11,null,null,null,null,null,null,null,null,null,null,null,null,null,null,null,null,null,null,null,null,null,null,null,null,null,null,null,null,null,null,null,null,null,null,null,null,null,null,null,null,null,null,null,null,null,null,null,null,null,null,null,null,null,null,null,null,null,null,null,null,null,null,null,null,null,null,null,null,null,null,null,null,null,null,null,null,null,null,null,null,null,null,null,null,null,null,null,null,null,null,null,null,null,null,null,null,null,null,null,null,null,null,null,null,null,null,null,null,null,null,null,null,null,null,null,null,null,null,null,null,null,null,null,null,null,null,null,null,null,null,null,null,null,null,null,null,null,null,null,null,null,null,null,null,null,null,null,null,null,null,"Mao",0]
[null,"1142.68 deg C, 0.503",null,null,null,null,null,12,null,null,null,null,null,null,null,null,null,null,null,null,null,null,null,null,null,null,null,null,null,null,null,null,null,null,null,null,null,null,null,null,null,null,null,null,null,null,null,null,null,null,null,null,null,null,null,null,null,null,null,null,null,null,null,null,null,null,null,null,null,null,null,null,null,null,null,null,null,null,null,null,null,null,null,null,null,null,null,null,null,null,null,null,null,null,null,null,null,null,null,null,null,null,null,null,null,null,null,null,null,null,null,null,null,null,null,null,null,null,null,null,null,null,null,null,null,null,null,null,null,null,null,null,null,null,null,null,null,null,null,null,null,null,null,null,null,null,null,null,null,null,null,null,null,null,null,null,null,null,"Mo",1]
[null,"1141.11 deg C, 0.512",null,null,null,null,null,13,null,null,null,null,null,null,null,null,null,null,null,null,null,null,null,null,null,null,null,null,null,"X",null,1,null,"The normalized proportion of wallrock melt mixed in"]
[null,"1139.54 deg C, 0.521",null,null,null,null,null,14,null,null,null,null,null,null,null,null,null,null,null,null,null,null,null,null,null,null,null,null,null,null,null,null,null,"to the evolving magma body. Enter a number between 0 and 1."]
[null,"1137.96 deg C, 0.531",null,null,null,null,null,15,null,null,null,null,null,null,null,null,null,null,null,null,null,null,null,null,null,null,null,null,null,null,null,null,null,null,null,null,null,null,null,null,null,null,null,null,null,null,null,null,null,null,null,null,null,null,null,null,null,null,null,null,null,null,null,null,null,null,null,null,null,null,null,null,null,null,null,null,null,null,null,null,null,null,null,null,null,null,null,null,null,null,null,null,null,null,null,null,null,null,null,null,null,null,null,null,null,null,null,null,null,null,null,null,null,null,null,null,null,null,null,null,null,null,null,null,null,null,null,null,null,null,null,null,null,null,null,null,null,null,null,null,null,null,null,null,null,null,null,null,null,null,null,null,null,null,null,null,null,"  Temperature range (normalized representation)"]
[null,"1136.39 deg C, 0.540",null,null,null,null,null,16]
[null,"1134.82 deg C, 0.550",null,null,null,null,null,17,null,null,null,null,null,null,null,null,null,null,null,null,null,null,null,null,null,null,null,null,null,null,null,null,null,null,null,null,null,null,null,null,null,null,null,null,null,null,null,null,null,null,null,null,null,null,null,null,null,null,null,null,null,null,null,null,null,null,null,null,null,null,null,null,null,null,null,null,null,null,null,null,null,null,null,null,null,null,null,null,null,null,null,null,null,null,null,null,null,null,null,null,null,null,null,null,null,null,null,null,null,null,null,null,null,null,null,null,null,null,null,null,null,null,null,null,null,null,null,null,null,null,null,null,null,null,null,null,null,null,null,null,null,null,null,null,null,null,null,null,null,null,null,null,null,null,null,null,null,"T0",null,{"$f":"IF(ISNUMBER(tmo/tlm),(tmo+273.16)/(tlm+273.16),\"\")","v":1}]
[null,"1133.25 deg C, 0.560",null,null,null,null,null,18,null,null,null,null,null,null,null,null,null,null,null,null,null,null,null,null,null,null,null,null,null,null,null,null,null,null,null,null,null,null,null,null,null,null,null,null,null,null,null,null,null,null,null,null,null,null,null,null,null,null,null,null,null,null,null,null,null,null,null,null,null,null,null,null,null,null,null,null,null,null,null,null,null,null,null,null,null,null,null,null,null,null,null,null,null,null,null,null,null,null,null,null,null,null,null,null,null,null,null,null,null,null,null,null,null,null,null,null,null,null,null,null,null,null,null,null,null,null,null,null,null,null,null,null,null,null,null,null,null,null,null,null,null,null,null,null,null,null,null,null,null,null,null,null,null,null,null,null,null,"Tfinal",null,{"$f":"IF(ISNUMBER(ts/tlm),(ts+273.16)/(tlm+273.16),\"\")","v":0.74573469958554761}]
[null,"1131.67 deg C, 0.570",null,null,null,null,null,19,null,null,null,null,null,null,null,null,null,null,null,null,null,null,null,null,null,null,null,null,null,null,null,null,null,null,null,null,null,null,null,null,null,null,null,null,null,null,null,null,null,null,null,null,null,null,null,null,null,null,null,null,null,null,null,null,null,null,null,null,null,null,null,null,null,null,null,null,null,null,null,null,null,null,null,null,null,null,null,null,null,null,null,null,null,null,null,null,null,null,null,null,null,null,null,null,null,null,null,null,null,null,null,null,null,null,null,null,null,null,null,null,null,null,null,null,null,null,null,null,null,null,null,null,null,null,null,null,null,null,null,null,null,null,null,null,null,null,null,null,null,null,null,null,null,null,null,null,null,"deltaT",null,-1E-3]
[null,"1130.10 deg C, 0.580",null,null,null,null,null,20,null,null,null,null,null,null,null,null,null,null,null,null,null,null,null,null,null,null,null,null,null,null,null,null,null,null,null,null,null,null,null,null,null,null,null,null,null,null,null,null,null,null,null,null,null,null,null,null,null,null,null,null,null,null,null,null,null,null,null,null,null,null,null,null,null,null,null,null,null,null,null,null,null,null,null,null,null,null,null,null,null,null,null,null,null,null,null,null,null,null,null,null,null,null,null,null,null,null,null,null,null,null,null,null,null,null,null,null,null,null,null,null,null,null,null,null,null,null,null,null,null,null,null,null,null,null,null,null,null,null,null,null,null,null,null,null,null,null,null,null,null,null,null,null,null,null,null,null,null,"Iterations",null,{"$f":"ABS((P1TFinal-P1TZero)/P1deltaT)","v":254.26530041445238}]
[null,"1128.53 deg C, 0.590"]
[null,"1126.95 deg C, 0.600",null,null,null,null,null,null,null,null,null,null,null,null,null,null,null,null,null,null,null,null,null,null,null,null,null,null,null,null,null,null,null,null,null,null,null,null,null,null,null,null,null,null,null,null,null,null,null,null,null,null,null,null,null,null,null,null,null,null,null,null,null,null,null,null,null,null,null,null,null,null,null,null,null,null,null,null,null,null,null,null,null,null,null,null,null,null,null,null,null,null,null,null,null,null,null,null,null,null,null,null,null,null,null,null,null,null,null,null,null,null,null,null,null,null,null,null,null,null,null,null,null,null,null,null,null,null,null,null,null,null,null,null,null,null,null,null,null,null,null,null,null,null,null,null,null,null,null,null,null,null,null,null,null,null,null,null,null,null,null,null,null,null,null,null,null,null,null,null,null,null,null,null,null,null,null,null,null,null,null,null,null,null,null,null,null,null,null,null,null,null,null,null,null,null,null,null,null,null,null,null,null,null,null,null,null,null,null,null,0.2,1170,0.2,2]
[null,"1125.38 deg C, 0.610",null,null,null,null,null,null,null,null,null,null,null,null,null,null,null,null,null,null,null,null,null,null,null,null,null,null,null,null,null,null,null,null,null,null,null,null,null,null,null,null,null,null,null,null,null,null,null,null,null,null,null,null,null,null,null,null,null,null,null,null,null,null,null,null,null,null,null,null,null,null,null,null,null,null,null,null,null,null,null,null,null,null,null,null,null,null,null,null,null,null,null,null,null,null,null,null,null,null,null,null,null,null,null,null,null,null,null,null,null,null,null,null,null,null,null,null,null,null,null,null,null,null,null,null,null,null,null,null,null,null,null,null,null,null,null,null,null,null,null,null,null,null,null,null,null,null,null,null,null,null,null,null,null,null,null,null,null,null,null,null,null,null,null,null,null,null,null,null,null,null,null,null,null,null,null,null,null,null,null,null,null,null,null,null,null,null,null,null,null,null,null,null,null,null,null,null,null,null,null,null,null,null,null,null,null,null,null,null,0.4,1140,0.2,2]
[null,"1123.81 deg C, 0.620",null,null,null,null,null,null,null,null,null,null,null,null,null,null,null,null,null,null,null,null,null,null,null,null,null,null,null,null,null,null,null,null,null,null,null,null,null,null,null,null,null,null,null,null,null,null,null,null,null,null,null,null,null,null,null,null,null,null,null,null,null,null,null,null,null,null,null,null,null,null,null,null,null,null,null,null,null,null,null,null,null,null,null,null,null,null,null,null,null,null,null,null,null,null,null,null,null,null,null,null,null,null,null,null,null,null,null,null,null,null,null,null,null,null,null,null,null,null,null,null,null,null,null,null,null,null,null,null,null,null,null,null,null,null,null,null,null,null,null,null,null,null,null,null,null,null,null,null,null,null,null,null,null,null,null,null,null,null,null,null,null,null,null,null,null,null,null,null,null,null,null,null,null,null,null,null,null,null,null,null,null,null,null,null,null,null,null,null,null,null,null,null,null,null,null,null,null,null,null,null,null,null,null,null,null,null,null,null,0.2,1100,0.2,2]
[null,"1122.23 deg C, 0.631",null,null,null,null,null,null,null,null,null,null,null,null,null,null,null,null,null,null,null,null,null,null,null,null,null,null,null,null,null,null,null,null,null,null,null,null,null,null,null,null,null,null,null,null,null,null,null,null,null,null,null,null,null,null,null,null,null,null,null,null,null,null,null,null,null,null,null,null,null,null,null,null,null,null,null,null,null,null,null,null,null,null,null,null,null,null,null,null,null,null,null,null,null,null,null,null,null,null,null,null,null,null,null,null,null,null,null,null,null,null,null,null,null,null,null,null,null,null,null,null,null,null,null,null,null,null,null,null,null,null,null,null,null,null,null,null,null,null,null,null,null,null,null,null,null,null,null,null,null,null,null,null,null,null,null,null,null,null,null,null,null,null,null,null,null,null,null,null,null,null,null,null,null,null,null,null,null,null,null,null,null,null,null,null,null,null,null,null,null,null,null,null,null,null,null,null,null,null,null,null,null,null,null,null,null,null,null,null,0.1,1090,0.2,2]
[null,"1120.66 deg C, 0.641",null,null,null,null,null,null,null,null,null,null,null,null,null,null,null,null,null,null,null,null,null,null,null,null,null,null,null,null,null,null,null,null,null,null,null,null,null,null,null,null,null,null,null,null,null,null,null,null,null,null,null,null,null,null,null,null,null,null,null,null,null,null,null,null,null,null,null,null,null,null,null,null,null,null,null,null,null,null,null,null,null,null,null,null,null,null,null,null,null,null,null,null,null,null,null,null,null,null,null,null,null,null,null,null,null,null,null,null,null,null,null,null,null,null,null,null,null,null,null,null,null,null,null,null,null,null,null,null,null,null,null,null,null,null,null,null,null,null,null,null,null,null,null,null,null,null,null,null,null,null,null,null,null,null,null,null,null,null,null,null,null,null,null,null,null,null,null,null,null,null,null,null,null,null,null,null,null,null,null,null,null,null,null,null,null,null,null,null,null,null,null,null,null,null,null,null,null,null,null,null,null,null,null,null,null,null,null,null,0.04,1150,0.2,2]
[null,"1119.09 deg C, 0.651",null,null,null,null,null,null,null,null,null,null,null,null,null,null,null,null,null,null,null,null,null,null,null,null,null,null,null,null,null,null,null,null,null,null,null,null,null,null,null,null,null,null,null,null,null,null,null,null,null,null,null,null,null,null,null,null,null,null,null,null,null,null,null,null,null,null,null,null,null,null,null,null,null,null,null,null,null,null,null,null,null,null,null,null,null,null,null,null,null,null,null,null,null,null,null,null,null,null,null,null,null,null,null,null,null,null,null,null,null,null,null,null,null,null,null,null,null,null,null,null,null,null,null,null,null,null,null,null,null,null,null,null,null,null,null,null,null,null,null,null,null,null,null,null,null,null,null,null,null,null,null,null,null,null,null,null,null,null,null,null,null,null,null,null,null,null,null,null,null,null,null,null,null,null,null,null,null,null,null,null,null,null,null,null,null,null,null,null,null,null,null,null,null,null,null,null,null,null,null,null,null,null,null,null,null,null,null,null,0.04,1140,0.2,2]
[null,"1117.51 deg C, 0.662",null,null,null,null,null,null,null,null,null,null,null,null,null,null,null,null,null,null,null,null,null,null,null,null,null,null,null,null,null,null,null,null,null,null,null,null,null,null,null,null,null,null,null,null,null,null,null,null,null,null,null,null,null,null,null,null,null,null,null,null,null,null,null,null,null,null,null,null,null,null,null,null,null,null,null,null,null,null,null,null,null,null,null,null,null,null,null,null,null,null,null,null,null,null,null,null,null,null,null,null,null,null,null,null,null,null,null,null,null,null,null,null,null,null,null,null,null,null,null,null,null,null,null,null,null,null,null,null,null,null,null,null,null,null,null,null,null,null,null,null,null,null,null,null,null,null,null,null,null,null,null,null,null,null,null,null,null,null,null,null,null,null,null,null,null,null,null,null,null,null,null,null,null,null,null,null,null,null,null,null,null,null,null,null,null,null,null,null,null,null,null,null,null,null,null,null,null,null,null,null,null,null,null,null,null,null,null,null,0.04,1130,0.2,2]
[null,"1115.94 deg C, 0.672",null,null,null,null,null,null,null,null,null,null,null,null,null,null,null,null,null,null,null,null,null,null,null,null,null,null,null,null,null,null,null,null,null,null,null,null,null,null,null,null,null,null,null,null,null,null,null,null,null,null,null,null,null,null,null,null,null,null,null,null,null,null,null,null,null,null,null,null,null,null,null,null,null,null,null,null,null,null,null,null,null,null,null,null,null,null,null,null,null,null,null,null,null,null,null,null,null,null,null,null,null,null,null,null,null,null,null,null,null,null,null,null,null,null,null,null,null,null,null,null,null,null,null,null,null,null,null,null,null,null,null,null,null,null,null,null,null,null,null,null,null,null,null,null,null,null,null,null,null,null,null,null,null,null,null,null,null,null,null,null,null,null,null,null,null,null,null,null,null,null,null,null,null,null,null,null,null,null,null,null,null,null,null,null,null,null,null,null,null,null,null,null,null,null,null,null,null,null,null,null,null,null,null,null,null,null,null,null,0.04,1120,0.2,2]
[null,"1114.37 deg C, 0.683",null,null,null,null,null,null,null,null,null,null,null,null,null,null,null,null,null,null,null,null,null,null,null,null,null,null,null,null,null,null,null,null,null,null,null,null,null,null,null,null,null,null,null,null,null,null,null,null,null,null,null,null,null,null,null,null,null,null,null,null,null,null,null,null,null,null,null,null,null,null,null,null,null,null,null,null,null,null,null,null,null,null,null,null,null,null,null,null,null,null,null,null,null,null,null,null,null,null,null,null,null,null,null,null,null,null,null,null,null,null,null,null,null,null,null,null,null,null,null,null,null,null,null,null,null,null,null,null,null,null,null,null,null,null,null,null,null,null,null,null,null,null,null,null,null,null,null,null,null,null,null,null,null,null,null,null,null,null,null,null,null,null,null,null,null,null,null,null,null,null,null,null,null,null,null,null,null,null,null,null,null,null,null,null,null,null,null,null,null,null,null,null,null,null,null,null,null,null,null,null,null,null,null,null,null,null,null,null,0.04,1110,0.2,2]
[null,"1112.79 deg C, 0.694",null,null,null,null,null,null,null,null,null,null,null,null,null,null,null,null,null,null,null,null,null,null,null,null,null,null,null,null,null,null,null,null,null,null,null,null,null,null,null,null,null,null,null,null,null,null,null,null,null,null,null,null,null,null,null,null,null,null,null,null,null,null,null,null,null,null,null,null,null,null,null,null,null,null,null,null,null,null,null,null,null,null,null,null,null,null,null,null,null,null,null,null,null,null,null,null,null,null,null,null,null,null,null,null,null,null,null,null,null,null,null,null,null,null,null,null,null,null,null,null,null,null,null,null,null,null,null,null,null,null,null,null,null,null,null,null,null,null,null,null,null,null,null,null,null,null,null,null,null,null,null,null,null,null,null,null,null,null,null,null,null,null,null,null,null,null,null,null,null,null,null,null,null,null,null,null,null,null,null,null,null,null,null,null,null,null,null,null,null,null,null,null,null,null,null,null,null,null,null,null,null,null,null,null,null,null,null,null,0.04,1100,0.2,2]
[null,"1111.22 deg C, 0.704",null,null,null,null,null,null,null,null,null,null,null,null,null,null,null,null,null,null,null,null,null,null,null,null,null,null,null,null,null,null,null,null,null,null,null,null,null,null,null,null,null,null,null,null,null,null,null,null,null,null,null,null,null,null,null,null,null,null,null,null,null,null,null,null,null,null,null,null,null,null,null,null,null,null,null,null,null,null,null,null,null,null,null,null,null,null,null,null,null,null,null,null,null,null,null,null,null,null,null,null,null,null,null,null,null,null,null,null,null,null,null,null,null,null,null,null,null,null,null,null,null,null,null,null,null,null,null,null,null,null,null,null,null,null,null,null,null,null,null,null,null,null,null,null,null,null,null,null,null,null,null,null,null,null,null,null,null,null,null,null,null,null,null,null,null,null,null,null,null,null,null,null,null,null,null,null,null,null,null,null,null,null,null,null,null,null,null,null,null,null,null,null,null,null,null,null,null,null,null,null,null,null,null,null,null,null,null,null,0.04,1090,0.2,2]
[null,"1109.65 deg C, 0.715",null,null,null,null,null,null,null,null,null,null,null,null,null,null,null,null,null,null,null,null,null,null,null,null,null,null,null,null,null,null,null,null,null,null,null,null,null,null,null,null,null,null,null,null,null,null,null,null,null,null,null,null,null,null,null,null,null,null,null,null,null,null,null,null,null,null,null,null,null,null,null,null,null,null,null,null,null,null,null,null,null,null,null,null,null,null,null,null,null,null,null,null,null,null,null,null,null,null,null,null,null,null,null,null,null,null,null,null,null,null,null,null,null,null,null,null,null,null,null,null,null,null,null,null,null,null,null,null,null,null,null,null,null,null,null,null,null,null,null,null,null,null,null,null,null,null,null,null,null,null,null,null,null,null,null,null,null,null,null,null,null,null,null,null,null,null,null,null,null,null,null,null,null,null,null,null,null,null,null,null,null,null,null,null,null,null,null,null,null,null,null,null,null,null,null,null,null,null,null,null,null,null,null,null,null,null,null,null,0.04,1080,0.2,2]
[null,"1108.07 deg C, 0.726",null,null,null,null,null,null,null,null,null,null,null,null,null,null,null,null,null,null,null,null,null,null,null,null,null,null,null,null,null,null,null,null,null,null,null,null,null,null,null,null,null,null,null,null,null,null,null,null,null,null,null,null,null,null,null,null,null,null,null,null,null,null,null,null,null,null,null,null,null,null,null,null,null,null,null,null,null,null,null,null,null,null,null,null,null,null,null,null,null,null,null,null,null,null,null,null,null,null,null,null,null,null,null,null,null,null,null,null,null,null,null,null,null,null,null,null,null,null,null,null,null,null,null,null,null,null,null,null,null,null,null,null,null,null,null,null,null,null,null,null,null,null,null,null,null,null,null,null,null,null,null,null,null,null,null,null,null,null,null,null,null,null,null,null,null,null,null,null,null,null,null,null,null,null,null,null,null,null,null,null,null,null,null,null,null,null,null,null,null,null,null,null,null,null,null,null,null,null,null,null,null,null,null,null,null,null,null,null,0.04,1070,0.2,2]
[null,"1106.50 deg C, 0.737",null,null,null,null,null,null,null,null,null,null,null,null,null,null,null,null,null,null,null,null,null,null,null,null,null,null,null,null,null,null,null,null,null,null,null,null,null,null,null,null,null,null,null,null,null,null,null,null,null,null,null,null,null,null,null,null,null,null,null,null,null,null,null,null,null,null,null,null,null,null,null,null,null,null,null,null,null,null,null,null,null,null,null,null,null,null,null,null,null,null,null,null,null,null,null,null,null,null,null,null,null,null,null,null,null,null,null,null,null,null,null,null,null,null,null,null,null,null,null,null,null,null,null,null,null,null,null,null,null,null,null,null,null,null,null,null,null,null,null,null,null,null,null,null,null,null,null,null,null,null,null,null,null,null,null,null,null,null,null,null,null,null,null,null,null,null,null,null,null,null,null,null,null,null,null,null,null,null,null,null,null,null,null,null,null,null,null,null,null,null,null,null,null,null,null,null,null,null,null,null,null,null,null,null,null,null,null,null,0.04,1060,0.2,2]
[null,"1104.93 deg C, 0.748",null,null,null,null,null,null,null,null,null,null,null,null,null,null,null,null,null,null,null,null,null,null,null,null,null,null,null,null,null,null,null,null,null,null,null,null,null,null,null,null,null,null,null,null,null,null,null,null,null,null,null,null,null,null,null,null,null,null,null,null,null,null,null,null,null,null,null,null,null,null,null,null,null,null,null,null,null,null,null,null,null,null,null,null,null,null,null,null,null,null,null,null,null,null,null,null,null,null,null,null,null,null,null,null,null,null,null,null,null,null,null,null,null,null,null,null,null,null,null,null,null,null,null,null,null,null,null,null,null,null,null,null,null,null,null,null,null,null,null,null,null,null,null,null,null,null,null,null,null,null,null,null,null,null,null,null,null,null,null,null,null,null,null,null,null,null,null,null,null,null,null,null,null,null,null,null,null,null,null,null,null,null,null,null,null,null,null,null,null,null,null,null,null,null,null,null,null,null,null,null,null,null,null,null,null,null,null,null,0.04,1050,0.2,2]
[null,"1103.36 deg C, 0.759",null,null,null,null,null,null,null,null,null,null,null,null,null,null,null,null,null,null,null,null,null,null,null,null,null,null,null,null,null,null,null,null,null,null,null,null,null,null,null,null,null,null,null,null,null,null,null,null,null,null,null,null,null,null,null,null,null,null,null,null,null,null,null,null,null,null,null,null,null,null,null,null,null,null,null,null,null,null,null,null,null,null,null,null,null,null,null,null,null,null,null,null,null,null,null,null,null,null,null,null,null,null,null,null,null,null,null,null,null,null,null,null,null,null,null,null,null,null,null,null,null,null,null,null,null,null,null,null,null,null,null,null,null,null,null,null,null,null,null,null,null,null,null,null,null,null,null,null,null,null,null,null,null,null,null,null,null,null,null,null,null,null,null,null,null,null,null,null,null,null,null,null,null,null,null,null,null,null,null,null,null,null,null,null,null,null,null,null,null,null,null,null,null,null,null,null,null,null,null,null,null,null,null,null,null,null,null,null,0.04,1040,0.2,2]
[null,"1101.78 deg C, 0.770",null,null,null,null,null,null,null,null,null,null,null,null,null,null,null,null,null,null,null,null,null,null,null,null,null,null,null,null,null,null,null,null,null,null,null,null,null,null,null,null,null,null,null,null,null,null,null,null,null,null,null,null,null,null,null,null,null,null,null,null,null,null,null,null,null,null,null,null,null,null,null,null,null,null,null,null,null,null,null,null,null,null,null,null,null,null,null,null,null,null,null,null,null,null,null,null,null,null,null,null,null,null,null,null,null,null,null,null,null,null,null,null,null,null,null,null,null,null,null,null,null,null,null,null,null,null,null,null,null,null,null,null,null,null,null,null,null,null,null,null,null,null,null,null,null,null,null,null,null,null,null,null,null,null,null,null,null,null,null,null,null,null,null,null,null,null,null,null,null,null,null,null,null,null,null,null,null,null,null,null,null,null,null,null,null,null,null,null,null,null,null,null,null,null,null,null,null,null,null,null,null,null,null,null,null,null,null,null,0.04,1030,0.2,2]
[null,"1100.21 deg C, 0.781",null,null,null,null,null,null,null,null,null,null,null,null,null,null,null,null,null,null,null,null,null,null,null,null,null,null,null,null,null,null,null,null,null,null,null,null,null,null,null,null,null,null,null,null,null,null,null,null,null,null,null,null,null,null,null,null,null,null,null,null,null,null,null,null,null,null,null,null,null,null,null,null,null,null,null,null,null,null,null,null,null,null,null,null,null,null,null,null,null,null,null,null,null,null,null,null,null,null,null,null,null,null,null,null,null,null,null,null,null,null,null,null,null,null,null,null,null,null,null,null,null,null,null,null,null,null,null,null,null,null,null,null,null,null,null,null,null,null,null,null,null,null,null,null,null,null,null,null,null,null,null,null,null,null,null,null,null,null,null,null,null,null,null,null,null,null,null,null,null,null,null,null,null,null,null,null,null,null,null,null,null,null,null,null,null,null,null,null,null,null,null,null,null,null,null,null,null,null,null,null,null,null,null,null,null,null,null,null,0.04,1020,0.2,2]
[null,"1098.64 deg C, 0.792",null,null,null,null,null,null,null,null,null,null,null,null,null,null,null,null,null,null,null,null,null,null,null,null,null,null,null,null,null,null,null,null,null,null,null,null,null,null,null,null,null,null,null,null,null,null,null,null,null,null,null,null,null,null,null,null,null,null,null,null,null,null,null,null,null,null,null,null,null,null,null,null,null,null,null,null,null,null,null,null,null,null,null,null,null,null,null,null,null,null,null,null,null,null,null,null,null,null,null,null,null,null,null,null,null,null,null,null,null,null,null,null,null,null,null,null,null,null,null,null,null,null,null,null,null,null,null,null,null,null,null,null,null,null,null,null,null,null,null,null,null,null,null,null,null,null,null,null,null,null,null,null,null,null,null,null,null,null,null,null,null,null,null,null,null,null,null,null,null,null,null,null,null,null,null,null,null,null,null,null,null,null,null,null,null,null,null,null,null,null,null,null,null,null,null,null,null,null,null,null,null,null,null,null,null,null,null,null,0.04,1010,0.2,2]
[null,"1097.06 deg C, 0.803",null,null,null,null,null,null,null,null,null,null,null,null,null,null,null,null,null,null,null,null,null,null,null,null,null,null,null,null,null,null,null,null,null,null,null,null,null,null,null,null,null,null,null,null,null,null,null,null,null,null,null,null,null,null,null,null,null,null,null,null,null,null,null,null,null,null,null,null,null,null,null,null,null,null,null,null,null,null,null,null,null,null,null,null,null,null,null,null,null,null,null,null,null,null,null,null,null,null,null,null,null,null,null,null,null,null,null,null,null,null,null,null,null,null,null,null,null,null,null,null,null,null,null,null,null,null,null,null,null,null,null,null,null,null,null,null,null,null,null,null,null,null,null,null,null,null,null,null,null,null,null,null,null,null,null,null,null,null,null,null,null,null,null,null,null,null,null,null,null,null,null,null,null,null,null,null,null,null,null,null,null,null,null,null,null,null,null,null,null,null,null,null,null,null,null,null,null,null,null,null,null,null,null,null,null,null,null,null,0.04,1000,0.2,2]
[null,"1095.49 deg C, 0.814"]
[null,"1093.92 deg C, 0.826"]
[null,"1092.34 deg C, 0.837"]
[null,"1090.77 deg C, 0.848"]
[null,"1089.20 deg C, 0.860"]
[null,"1087.62 deg C, 0.872"]
[null,"1086.05 deg C, 0.883"]
[null,"1084.48 deg C, 0.895"]
[null,"1082.90 deg C, 0.907"]
[null,"1081.33 deg C, 0.919"]
[null,"1079.76 deg C, 0.931"]
[null,"1078.18 deg C, 0.943"]
[null,"1076.61 deg C, 0.956"]
[null,"1075.04 deg C, 0.968"]
[null,"1073.46 deg C, 0.981"]
[null,"1071.89 deg C, 0.994"]
[null,"1070.32 deg C, 1.007"]
[null,"1068.75 deg C, 1.020"]
[null,"1067.17 deg C, 1.033"]
[null,"1065.60 deg C, 1.047"]
[null,"1064.03 deg C, 1.061"]
[null,"1062.45 deg C, 1.075"]
[null,"1060.88 deg C, 1.089"]
[null,"1059.31 deg C, 1.104"]
[null,"1057.73 deg C, 1.118"]
[null,"1056.16 deg C, 1.134"]
[null,"1054.59 deg C, 1.149"]
[null,"1053.01 deg C, 1.165"]
[null,"1051.44 deg C, 1.181"]
[null,"1049.87 deg C, 1.197"]
[null,"1048.29 deg C, 1.213"]
[null,"1046.72 deg C, 1.230"]
[null,"1045.15 deg C, 1.248"]
[null,"1043.57 deg C, 1.265"]
[null,"1042.00 deg C, 1.283"]
[null,"1040.43 deg C, 1.301"]
[null,"1038.86 deg C, 1.319"]
[null,"1037.28 deg C, 1.338"]
[null,"1035.71 deg C, 1.357"]
[null,"1034.14 deg C, 1.376",null,null,null,null,null,null,null,null,null,null,null,null,null,null,null,null,null,null,null,null,null,null,null,null,null,null,null,null,null,null,null,null,null,null,null,null,null,null,null,null,null,null,null,null,null,null,null,null,null,null,null,null,null,null,null,null,null,null,null,null,null,null,null,null,null,null,null,null,null,null,null,null,null,null,null,null,null,null,null,null,null,null,null,null,null,null,null,null,null,null,null,null,null,null,null,null,null,null,null,null,null,null,null,null,null,null,null,null,null,null,null,null,null,null,null,null,null,null,null,null,null,null,null,null,null,null,null,null,"RK Admin - do not delete ANYTHING below this line",null,null,null,null,null,null,null,null,null,null,null,null,null,null,null,null,null,null,null,null,null,null,null,null,null,null,null,null,null,null,null,null,null,null,null,null,null,null,null,null,null,null,null,null,null,null,null,null,null,null,null,null,null,null,null,null,null,null,null,null,null,null,null,null,null,null,null,null,null,null,null,null,null,null,null,null,null,"RK Admin - do not delete ANYTHING below this line"]
[null,"1032.56 deg C, 1.396",null,null,null,null,null,null,null,null,null,null,null,null,null,null,null,null,null,null,null,null,null,null,null,null,null,null,null,null,null,null,null,null,null,null,null,null,null,null,null,null,null,null,null,null,null,null,null,null,null,null,null,null,null,null,null,null,null,null,null,null,null,null,null,null,null,null,null,null,null,null,null,null,null,null,null,null,null,null,null,null,null,null,null,null,null,null,null,null,null,null,null,null,null,null,null,null,null,null,null,null,null,null,null,null,null,null,null,null,null,null,null,null,null,null,null,null,null,null,null,null,null,null,null,null,null,null,null,null,"temp","fm","fa","fr",null,null,null,null,null,null,null,null,null,null,null,null,null,null,null,null,null,null,null,null,null,null,null,null,null,null,null,null,null,null,null,null,null,null,null,null,null,null,null,null,null,null,null,null,null,null,null,null,null,null,null,null,null,null,null,null,null,null,null,null,null,null,null,null,null,null,null,null,null,null,null,null,null,null,"temp","Mrm","temp","MeBar","temp","[A]","[B]"]
[null,"1030.99 deg C, 1.416",null,null,null,null,null,null,null,null,null,null,null,null,null,null,null,null,null,null,null,null,null,null,null,null,null,null,null,null,null,null,null,null,null,null,null,null,null,null,null,null,null,null,null,null,null,null,null,null,null,null,null,null,null,null,null,null,null,null,null,null,null,null,null,null,null,null,null,null,null,null,null,null,null,null,null,null,null,null,null,null,null,null,null,null,null,null,null,null,null,null,null,null,null,null,null,null,null,null,null,null,null,null,null,null,null,null,null,null,null,null,null,null,null,null,null,null,null,null,null,null,null,null,null,null,null,null,null,null,1320,0.98776026526858229,0.99336365498342472,0.99254029999921856,"ReqFracMeltTHigh",null,null,0.85,null,null,null,null,null,null,null,null,null,null,null,null,null,null,null,null,null,null,null,null,null,null,null,null,null,null,null,null,null,null,null,null,null,null,null,null,null,null,null,null,null,null,null,null,null,null,null,null,null,null,null,null,null,null,null,null,null,null,null,null,null,null,null,null,null,null,null,null,null,null,1300,9.3576172438061613E-15,1200,8.0000001192092902E-3,1200,0,0]
[null,"1029.42 deg C, 1.435",null,null,null,null,null,null,null,null,null,null,null,null,null,null,null,null,null,null,null,null,null,null,null,null,null,null,null,null,null,null,null,null,null,null,null,null,null,null,null,null,null,null,null,null,null,null,null,null,null,null,null,null,null,null,null,null,null,null,null,null,null,null,null,null,null,null,null,null,null,null,null,null,null,null,null,null,null,null,null,null,null,null,null,null,null,null,null,null,null,null,null,null,null,null,null,null,null,null,null,null,null,null,null,null,null,null,null,null,null,null,null,null,null,null,null,null,null,null,null,null,null,null,null,null,null,null,null,null,1315.8000000266545,0.98642359364824839,0.99259770566694472,0.99168011714510407,"ReqFracMeltTLow",null,null,0.15,null,null,null,null,null,null,null,null,null,null,null,null,null,null,null,null,null,null,null,null,null,null,null,null,null,null,null,null,null,null,null,null,null,null,null,null,null,null,null,null,null,null,null,null,null,null,null,null,null,null,null,null,null,null,null,null,null,null,null,null,null,null,null,null,null,null,null,null,null,null,1297.4672123437981,4.2771097723512597E-14,1196.9999998332746,1.600000023841858E-2,1198.5294117199676,-764.70591701184821,-235.54682665866599]
[null,"1027.84 deg C, 1.456",null,null,null,null,null,null,null,null,null,null,null,null,null,null,null,null,null,null,null,null,null,null,null,null,null,null,null,null,null,null,null,null,null,null,null,null,null,null,null,null,null,null,null,null,null,null,null,null,null,null,null,null,null,null,null,null,null,null,null,null,null,null,null,null,null,null,null,null,null,null,null,null,null,null,null,null,null,null,null,null,null,null,null,null,null,null,null,null,null,null,null,null,null,null,null,null,null,null,null,null,null,null,null,null,null,null,null,null,null,null,null,null,null,null,null,null,null,null,null,null,null,null,null,null,null,null,null,null,1311.600000053309,0.98494317252610541,0.99174408724490526,0.99072167326486871,"ReqFracAssimTHigh",null,null,0.85,null,null,null,null,null,null,null,null,null,null,null,null,null,null,null,null,null,null,null,null,null,null,null,null,null,null,null,null,null,null,null,null,null,null,null,null,null,null,null,null,null,null,null,null,null,null,null,null,null,null,null,null,null,null,null,null,null,null,null,null,null,null,null,null,null,null,null,null,null,null,1294.934424687596,1.954947828672194E-13,1193.9999996665492,2.4000000357627869E-2,1197.0588234399352,-1529.4118340236964,-326.16658751623896]
[null,"1026.27 deg C, 1.476",null,null,null,null,null,null,null,null,null,null,null,null,null,null,null,null,null,null,null,null,null,null,null,null,null,null,null,null,null,null,null,null,null,null,null,null,null,null,null,null,null,null,null,null,null,null,null,null,null,null,null,null,null,null,null,null,null,null,null,null,null,null,null,null,null,null,null,null,null,null,null,null,null,null,null,null,null,null,null,null,null,null,null,null,null,null,null,null,null,null,null,null,null,null,null,null,null,null,null,null,null,null,null,null,null,null,null,null,null,null,null,null,null,null,null,null,null,null,null,null,null,null,null,null,null,null,null,null,1307.4000000799635,0.98330405318837133,0.99079294425914755,0.98965396932218364,null,null,null,null,null,null,null,null,null,null,null,null,null,null,null,null,null,null,null,null,null,null,null,null,null,null,null,null,null,null,null,null,null,null,null,null,null,null,null,null,null,null,null,null,null,null,null,null,null,null,null,null,null,null,null,null,null,null,null,null,null,null,null,null,null,null,null,null,null,null,null,null,null,null,1292.4016370313941,8.9355072544201301E-13,1190.9999994998238,3.2000000476837161E-2,1195.588235159903,-2294.1177510355446,-422.76953127940851]
[null,"1024.70 deg C, 1.497",null,null,null,null,null,null,null,null,null,null,null,null,null,null,null,null,null,null,null,null,null,null,null,null,null,null,null,null,null,null,null,null,null,null,null,null,null,null,null,null,null,null,null,null,null,null,null,null,null,null,null,null,null,null,null,null,null,null,null,null,null,null,null,null,null,null,null,null,null,null,null,null,null,null,null,null,null,null,null,null,null,null,null,null,null,null,null,null,null,null,null,null,null,null,null,null,null,null,null,null,null,null,null,null,null,null,null,null,null,null,null,null,null,null,null,null,null,null,null,null,null,null,null,null,null,null,null,null,1303.2000001066178,0.98148984912479076,0.98973335684908625,0.98846482984587081,null,null,null,null,null,null,null,null,null,null,null,null,null,null,null,null,null,null,null,null,null,null,null,null,null,null,null,null,null,null,null,null,null,null,null,null,null,null,null,null,null,null,null,null,null,null,null,null,null,null,null,null,null,null,null,null,null,null,null,null,null,null,null,null,null,null,null,null,null,null,null,null,null,null,1289.868849375192,4.0841499509180607E-12,1187.9999993330987,4.0000000596046449E-2,1194.1176468798706,-3058.8236680473929,-525.68556729071577]
[null,"1023.12 deg C, 1.517",null,null,null,null,null,null,null,null,null,null,null,null,null,null,null,null,null,null,null,null,null,null,null,null,null,null,null,null,null,null,null,null,null,null,null,null,null,null,null,null,null,null,null,null,null,null,null,null,null,null,null,null,null,null,null,null,null,null,null,null,null,null,null,null,null,null,null,null,null,null,null,null,null,null,null,null,null,null,null,null,null,null,null,null,null,null,null,null,null,null,null,null,null,null,null,null,null,null,null,null,null,null,null,null,null,null,null,null,null,null,null,null,null,null,null,null,null,null,null,null,null,null,null,null,null,null,null,null,1299.0000001332724,0.99233390600213822,0.98855323639209502,0.98714079042166181,null,null,null,null,null,null,null,null,null,null,null,null,null,null,null,null,null,null,null,null,null,null,null,null,null,null,null,null,null,null,null,null,null,null,null,null,null,null,null,null,null,null,null,null,null,null,null,null,null,null,null,null,null,null,null,null,null,null,null,null,null,null,null,null,null,null,null,null,null,null,null,null,null,null,1287.3360617189901,1.866726893106879E-11,1184.9999991663733,4.8000000715255738E-2,1192.6470585998381,-3823.5295850592411,-635.26070721632902]
[null,"1021.55 deg C, 1.538",null,null,null,null,null,null,null,null,null,null,null,null,null,null,null,null,null,null,null,null,null,null,null,null,null,null,null,null,null,null,null,null,null,null,null,null,null,null,null,null,null,null,null,null,null,null,null,null,null,null,null,null,null,null,null,null,null,null,null,null,null,null,null,null,null,null,null,null,null,null,null,null,null,null,null,null,null,null,null,null,null,null,null,null,null,null,null,null,null,null,null,null,null,null,null,null,null,null,null,null,null,null,null,null,null,null,null,null,null,null,null,null,null,null,null,null,null,null,null,null,null,null,null,null,null,null,null,null,1294.8000001599269,0.9914033802512715,0.98723921353126121,0.98566697772081779,null,null,null,null,null,null,null,null,null,null,null,null,null,null,null,null,null,null,null,null,null,null,null,null,null,null,null,null,null,null,null,null,null,null,null,null,null,null,null,null,null,null,null,null,null,null,null,null,null,null,null,null,null,null,null,null,null,null,null,null,null,null,null,null,null,null,null,null,null,null,null,null,null,null,1284.8032740627882,8.5320364445631379E-11,1181.9999989996479,5.6000000834465026E-2,1191.1764703198057,-4588.2355020710893,-751.85769573608275]
[null,"1019.98 deg C, 1.559",null,null,null,null,null,null,null,null,null,null,null,null,null,null,null,null,null,null,null,null,null,null,null,null,null,null,null,null,null,null,null,null,null,null,null,null,null,null,null,null,null,null,null,null,null,null,null,null,null,null,null,null,null,null,null,null,null,null,null,null,null,null,null,null,null,null,null,null,null,null,null,null,null,null,null,null,null,null,null,null,null,null,null,null,null,null,null,null,null,null,null,null,null,null,null,null,null,null,null,null,null,null,null,null,null,null,null,null,null,null,null,null,null,null,null,null,null,null,null,null,null,null,null,null,null,null,null,null,1290.6000001865812,0.99036100255875748,0.9857765187226416,0.98402698244675046,null,null,null,null,null,null,null,null,null,null,null,null,null,null,null,null,null,null,null,null,null,null,null,null,null,null,null,null,null,null,null,null,null,null,null,null,null,null,null,null,null,null,null,null,null,null,null,null,null,null,null,null,null,null,null,null,null,null,null,null,null,null,null,null,null,null,null,null,null,null,null,null,null,null,1282.2704864065861,3.8995029531163301E-10,1178.9999988329225,6.4000000953674321E-2,1189.7058820397733,-5352.9414190829375,-875.856649825104]
[null,"1018.40 deg C, 1.580",null,null,null,null,null,null,null,null,null,null,null,null,null,null,null,null,null,null,null,null,null,null,null,null,null,null,null,null,null,null,null,null,null,null,null,null,null,null,null,null,null,null,null,null,null,null,null,null,null,null,null,null,null,null,null,null,null,null,null,null,null,null,null,null,null,null,null,null,null,null,null,null,null,null,null,null,null,null,null,null,null,null,null,null,null,null,null,null,null,null,null,null,null,null,null,null,null,null,null,null,null,null,null,null,null,null,null,null,null,null,null,null,null,null,null,null,null,null,null,null,null,null,null,null,null,null,null,null,1286.4000002132357,0.98919360971212644,0.98414885566447941,0.98220272588322077,null,null,null,null,null,null,null,null,null,null,null,null,null,null,null,null,null,null,null,null,null,null,null,null,null,null,null,null,null,null,null,null,null,null,null,null,null,null,null,null,null,null,null,null,null,null,null,null,null,null,null,null,null,null,null,null,null,null,null,null,null,null,null,null,null,null,null,null,null,null,null,null,null,null,1279.7376987503842,1.7821036369015698E-9,1175.9999986661971,7.200000107288361E-2,1188.2352937597409,-6117.6473360947857,-1007.6557046530744]
[null,"1016.83 deg C, 1.601",null,null,null,null,null,null,null,null,null,null,null,null,null,null,null,null,null,null,null,null,null,null,null,null,null,null,null,null,null,null,null,null,null,null,null,null,null,null,null,null,null,null,null,null,null,null,null,null,null,null,null,null,null,null,null,null,null,null,null,null,null,null,null,null,null,null,null,null,null,null,null,null,null,null,null,null,null,null,null,null,null,null,null,null,null,null,null,null,null,null,null,null,null,null,null,null,null,null,null,null,null,null,null,null,null,null,null,null,null,null,null,null,null,null,null,null,null,null,null,null,null,null,null,null,null,null,null,null,1282.2000002398902,0.98788656156136079,0.98233826826805348,0.98017432111115599,null,null,null,null,null,null,null,null,null,null,null,null,null,null,null,null,null,null,null,null,null,null,null,null,null,null,null,null,null,null,null,null,null,null,null,null,null,null,null,null,null,null,null,null,null,null,null,null,null,null,null,null,null,null,null,null,null,null,null,null,null,null,null,null,null,null,null,null,null,null,null,null,null,null,1277.2049110941821,8.1430376480097738E-9,1172.9999984994718,8.0000001192092898E-2,1186.7647054797085,-6882.3532531066339,-1147.6716638142555]
[null,"1015.26 deg C, 1.623",null,null,null,null,null,null,null,null,null,null,null,null,null,null,null,null,null,null,null,null,null,null,null,null,null,null,null,null,null,null,null,null,null,null,null,null,null,null,null,null,null,null,null,null,null,null,null,null,null,null,null,null,null,null,null,null,null,null,null,null,null,null,null,null,null,null,null,null,null,null,null,null,null,null,null,null,null,null,null,null,null,null,null,null,null,null,null,null,null,null,null,null,null,null,null,null,null,null,null,null,null,null,null,null,null,null,null,null,null,null,null,null,null,null,null,null,null,null,null,null,null,null,null,null,null,null,null,null,1278.0000002665447,0.98642359382456013,0.98032500220710805,0.97791993044033088,null,null,null,null,null,null,null,null,null,null,null,null,null,null,null,null,null,null,null,null,null,null,null,null,null,null,null,null,null,null,null,null,null,null,null,null,null,null,null,null,null,null,null,null,null,null,null,null,null,null,null,null,null,null,null,null,null,null,null,null,null,null,null,null,null,null,null,null,null,null,null,null,null,null,1274.6721234379802,3.7195453926780535E-8,1169.9999983327464,8.8000001311302187E-2,1185.2941171996761,-7647.0591701184821,-1296.3406512581482]
[null,"1013.68 deg C, 1.644",null,null,null,null,null,null,null,null,null,null,null,null,null,null,null,null,null,null,null,null,null,null,null,null,null,null,null,null,null,null,null,null,null,null,null,null,null,null,null,null,null,null,null,null,null,null,null,null,null,null,null,null,null,null,null,null,null,null,null,null,null,null,null,null,null,null,null,null,null,null,null,null,null,null,null,null,null,null,null,null,null,null,null,null,null,null,null,null,null,null,null,null,null,null,null,null,null,null,null,null,null,null,null,null,null,null,null,null,null,null,null,null,null,null,null,null,null,null,null,null,null,null,null,null,null,null,null,null,1273.800000293199,0.9847866610630478,0.97808736255472362,0.97541562119277825,null,null,null,null,null,null,null,null,null,null,null,null,null,null,null,null,null,null,null,null,null,null,null,null,null,null,null,null,null,null,null,null,null,null,null,null,null,null,null,null,null,null,null,null,null,null,null,null,null,null,null,null,null,null,null,null,null,null,null,null,null,null,null,null,null,null,null,null,null,null,null,null,null,null,1272.1393357817783,1.6977459136567039E-7,1166.999998166021,9.6000001430511475E-2,1183.8235289196439,-8411.7650871303304,-1454.1187619153523]
[null,"1012.11 deg C, 1.665",null,null,null,null,null,null,null,null,null,null,null,null,null,null,null,null,null,null,null,null,null,null,null,null,null,null,null,null,null,null,null,null,null,null,null,null,null,null,null,null,null,null,null,null,null,null,null,null,null,null,null,null,null,null,null,null,null,null,null,null,null,null,null,null,null,null,null,null,null,null,null,null,null,null,null,null,null,null,null,null,null,null,null,null,null,null,null,null,null,null,null,null,null,null,null,null,null,null,null,null,null,null,null,null,null,null,null,null,null,null,null,null,null,null,null,null,null,null,null,null,null,null,null,null,null,null,null,null,1269.6000003198535,0.9829557705334675,0.97560156959869992,0.97263522269303093,null,null,null,null,null,null,null,null,null,null,null,null,null,null,null,null,null,null,null,null,null,null,null,null,null,null,null,null,null,null,null,null,null,null,null,null,null,null,null,null,null,null,null,null,null,null,null,null,null,null,null,null,null,null,null,null,null,null,null,null,null,null,null,null,null,null,null,null,null,null,null,null,null,null,1269.6065481255762,7.736975488030875E-7,1163.9999979992956,0.10400000154972076,1182.3529406396115,-9176.4710041421786,-1621.4827076040128]
[null,"1010.54 deg C, 1.687",null,null,null,null,null,null,null,null,null,null,null,null,null,null,null,null,null,null,null,null,null,null,null,null,null,null,null,null,null,null,null,null,null,null,null,null,null,null,null,null,null,null,null,null,null,null,null,null,null,null,null,null,null,null,null,null,null,null,null,null,null,null,null,null,null,null,null,null,null,null,null,null,null,null,null,null,null,null,null,null,null,null,null,null,null,null,null,null,null,null,null,null,null,null,null,null,null,null,null,null,null,null,null,null,null,null,null,null,null,null,null,null,null,null,null,null,null,null,null,null,null,null,null,null,null,null,null,null,1265.400000346508,0.98090880812327674,0.97284161563520111,0.96955018818182537,null,null,null,null,null,null,null,null,null,null,null,null,null,null,null,null,null,null,null,null,null,null,null,null,null,null,null,null,null,null,null,null,null,null,null,null,null,null,null,null,null,null,null,null,null,null,null,null,null,null,null,null,null,null,null,null,null,null,null,null,null,null,null,null,null,null,null,null,null,null,null,null,null,null,1267.0737604693743,3.5140807414169844E-6,1160.9999978325702,0.11200000166893005,1180.882352359579,-9941.1769211540268,-1798.9304543575802]
[null,"1008.97 deg C, 1.708",null,null,null,null,null,null,null,null,null,null,null,null,null,null,null,null,null,null,null,null,null,null,null,null,null,null,null,null,null,null,null,null,null,null,null,null,null,null,null,null,null,null,null,null,null,null,null,null,null,null,null,null,null,null,null,null,null,null,null,null,null,null,null,null,null,null,null,null,null,null,null,null,null,null,null,null,null,null,null,null,null,null,null,null,null,null,null,null,null,null,null,null,null,null,null,null,null,null,null,null,null,null,null,null,null,null,null,null,null,null,null,null,null,null,null,null,null,null,null,null,null,null,null,null,null,null,null,null,1261.2000003731623,0.97862135821127072,0.96977912639131814,0.9661294663885065,null,null,null,null,null,null,null,null,null,null,null,null,null,null,null,null,null,null,null,null,null,null,null,null,null,null,null,null,null,null,null,null,null,null,null,null,null,null,null,null,null,null,null,null,null,null,null,null,null,null,null,null,null,null,null,null,null,null,null,null,null,null,null,null,null,null,null,null,null,null,null,null,null,null,1264.5409728131722,1.5847387795139505E-5,1157.9999976658448,0.12000000178813934,1179.4117640795466,-10705.882838165875,-1986.9818468329679]
[null,"1007.39 deg C, 1.729",null,null,null,null,null,null,null,null,null,null,null,null,null,null,null,null,null,null,null,null,null,null,null,null,null,null,null,null,null,null,null,null,null,null,null,null,null,null,null,null,null,null,null,null,null,null,null,null,null,null,null,null,null,null,null,null,null,null,null,null,null,null,null,null,null,null,null,null,null,null,null,null,null,null,null,null,null,null,null,null,null,null,null,null,null,null,null,null,null,null,null,null,null,null,null,null,null,null,null,null,null,null,null,null,null,null,null,null,null,null,null,null,null,null,null,null,null,null,null,null,null,null,null,null,null,null,null,null,1257.0000003998168,0.97606652009118322,0.96638323173431329,0.96233938868282443,null,null,null,null,null,null,null,null,null,null,null,null,null,null,null,null,null,null,null,null,null,null,null,null,null,null,null,null,null,null,null,null,null,null,null,null,null,null,null,null,null,null,null,null,null,null,null,null,null,null,null,null,null,null,null,null,null,null,null,null,null,null,null,null,null,null,null,null,null,null,null,null,null,null,1262.0081851569703,7.0402632020939525E-5,1154.9999974991194,0.12800000190734864,1177.9411757995142,-11470.588755177723,-2186.1792149381836]
[null,"1005.82 deg C, 1.750",null,null,null,null,null,null,null,null,null,null,null,null,null,null,null,null,null,null,null,null,null,null,null,null,null,null,null,null,null,null,null,null,null,null,null,null,null,null,null,null,null,null,null,null,null,null,null,null,null,null,null,null,null,null,null,null,null,null,null,null,null,null,null,null,null,null,null,null,null,null,null,null,null,null,null,null,null,null,null,null,null,null,null,null,null,null,null,null,null,null,null,null,null,null,null,null,null,null,null,null,null,null,null,null,null,null,null,null,null,null,null,null,null,null,null,null,null,null,null,null,null,null,null,null,null,null,null,null,1252.8000004264713,0.97321472458010005,0.96262045149875952,0.95814357908214365,null,null,null,null,null,null,null,null,null,null,null,null,null,null,null,null,null,null,null,null,null,null,null,null,null,null,null,null,null,null,null,null,null,null,null,null,null,null,null,null,null,null,null,null,null,null,null,null,null,null,null,null,null,null,null,null,null,null,null,null,null,null,null,null,null,null,null,null,null,null,null,null,null,null,1259.4753975007684,3.0320544390178693E-4,1151.9999973323943,0.13600000202655793,1176.4705875194818,-12235.294672189571,-2397.0879572591261]
[null,"1004.25 deg C, 1.772",null,null,null,null,null,null,null,null,null,null,null,null,null,null,null,null,null,null,null,null,null,null,null,null,null,null,null,null,null,null,null,null,null,null,null,null,null,null,null,null,null,null,null,null,null,null,null,null,null,null,null,null,null,null,null,null,null,null,null,null,null,null,null,null,null,null,null,null,null,null,null,null,null,null,null,null,null,null,null,null,null,null,null,null,null,null,null,null,null,null,null,null,null,null,null,null,null,null,null,null,null,null,null,null,null,null,null,null,null,null,null,null,null,null,null,null,null,null,null,null,null,null,null,null,null,null,null,null,1248.6000004531259,0.97003355563044169,0.99306720635622647,0.95350289590778514,null,null,null,null,null,null,null,null,null,null,null,null,null,null,null,null,null,null,null,null,null,null,null,null,null,null,null,null,null,null,null,null,null,null,null,null,null,null,null,null,null,null,null,null,null,null,null,null,null,null,null,null,null,null,null,null,null,null,null,null,null,null,null,null,null,null,null,null,null,null,null,null,null,null,1256.9426098445663,1.2272545999211706E-3,1148.9999971656689,0.14400000214576722,1174.9999992394494,-13000.00058920142,-2620.2970952657165]
[null,"1002.67 deg C, 1.793",null,null,null,null,null,null,null,null,null,null,null,null,null,null,null,null,null,null,null,null,null,null,null,null,null,null,null,null,null,null,null,null,null,null,null,null,null,null,null,null,null,null,null,null,null,null,null,null,null,null,null,null,null,null,null,null,null,null,null,null,null,null,null,null,null,null,null,null,null,null,null,null,null,null,null,null,null,null,null,null,null,null,null,null,null,null,null,null,null,null,null,null,null,null,null,null,null,null,null,null,null,null,null,null,null,null,null,null,null,null,null,null,null,null,null,null,null,null,null,null,null,null,null,null,null,null,null,null,1244.4000004797801,0.96648758319830042,0.99209666314867995,0.94837541554151616,null,null,null,null,null,null,null,null,null,null,null,null,null,null,null,null,null,null,null,null,null,null,null,null,null,null,null,null,null,null,null,null,null,null,null,null,null,null,null,null,null,null,null,null,null,null,null,null,null,null,null,null,null,null,null,null,null,null,null,null,null,null,null,null,null,null,null,null,null,null,null,null,null,null,1254.4098221883644,4.4238062924179377E-3,1145.9999969989435,0.15200000226497651,1173.529410959417,-13764.706506213268,-2856.4197916374742]
[null,"1001.10 deg C, 1.814",null,null,null,null,null,null,null,null,null,null,null,null,null,null,null,null,null,null,null,null,null,null,null,null,null,null,null,null,null,null,null,null,null,null,null,null,null,null,null,null,null,null,null,null,null,null,null,null,null,null,null,null,null,null,null,null,null,null,null,null,null,null,null,null,null,null,null,null,null,null,null,null,null,null,null,null,null,null,null,null,null,null,null,null,null,null,null,null,null,null,null,null,null,null,null,null,null,null,null,null,null,null,null,null,null,null,null,null,null,null,null,null,null,null,null,null,null,null,null,null,null,null,null,null,null,null,null,null,1240.2000005064347,0.96253821531013584,0.99099148312422602,0.94271647048627416,null,null,null,null,null,null,null,null,null,null,null,null,null,null,null,null,null,null,null,null,null,null,null,null,null,null,null,null,null,null,null,null,null,null,null,null,null,null,null,null,null,null,null,null,null,null,null,null,null,null,null,null,null,null,null,null,null,null,null,null,null,null,null,null,null,null,null,null,null,null,null,null,null,null,1251.8770345321623,1.316442217359454E-2,1142.9999968322181,0.1600000023841858,1172.0588226793848,-14529.412423225116,-3106.0938253683253]
[null,"999.53 deg C, 1.835",null,null,null,null,null,null,null,null,null,null,null,null,null,null,null,null,null,null,null,null,null,null,null,null,null,null,null,null,null,null,null,null,null,null,null,null,null,null,null,null,null,null,null,null,null,null,null,null,null,null,null,null,null,null,null,null,null,null,null,null,null,null,null,null,null,null,null,null,null,null,null,null,null,null,null,null,null,null,null,null,null,null,null,null,null,null,null,null,null,null,null,null,null,null,null,null,null,null,null,null,null,null,null,null,null,null,null,null,null,null,null,null,null,null,null,null,null,null,null,null,null,null,null,null,null,null,null,null,1236.0000005330892,0.9581435792221269,0.98973335718591038,0.93647875571232664,null,null,null,null,null,null,null,null,null,null,null,null,null,null,null,null,null,null,null,null,null,null,null,null,null,null,null,null,null,null,null,null,null,null,null,null,null,null,null,null,null,null,null,null,null,null,null,null,null,null,null,null,null,null,null,null,null,null,null,null,null,null,null,null,null,null,null,null,null,null,null,null,null,null,1249.3442468759604,3.014267826814504E-2,1139.9999966654927,0.16800000250339509,1170.5882343993524,-15294.118340236964,-3369.9820155904899]
[null,"997.95 deg C, 1.856",null,null,null,null,null,null,null,null,null,null,null,null,null,null,null,null,null,null,null,null,null,null,null,null,null,null,null,null,null,null,null,null,null,null,null,null,null,null,null,null,null,null,null,null,null,null,null,null,null,null,null,null,null,null,null,null,null,null,null,null,null,null,null,null,null,null,null,null,null,null,null,null,null,null,null,null,null,null,null,null,null,null,null,null,null,null,null,null,null,null,null,null,null,null,null,null,null,null,null,null,null,null,null,null,null,null,null,null,null,null,null,null,null,null,null,null,null,null,null,null,null,null,null,null,null,null,null,null,1231.8000005597435,0.95325844377334767,0.9883015960766055,0.9296125189641683,null,null,null,null,null,null,null,null,null,null,null,null,null,null,null,null,null,null,null,null,null,null,null,null,null,null,null,null,null,null,null,null,null,null,null,null,null,null,null,null,null,null,null,null,null,null,null,null,null,null,null,null,null,null,null,null,null,null,null,null,null,null,null,null,null,null,null,null,null,null,null,null,null,null,1246.8114592197585,5.2190940977303139E-2,1136.9999964987674,0.17600000262260437,1169.1176461193199,-16058.824257248813,-3648.772585299268]
[null,"996.38 deg C, 1.877",null,null,null,null,null,null,null,null,null,null,null,null,null,null,null,null,null,null,null,null,null,null,null,null,null,null,null,null,null,null,null,null,null,null,null,null,null,null,null,null,null,null,null,null,null,null,null,null,null,null,null,null,null,null,null,null,null,null,null,null,null,null,null,null,null,null,null,null,null,null,null,null,null,null,null,null,null,null,null,null,null,null,null,null,null,null,null,null,null,null,null,null,null,null,null,null,null,null,null,null,null,null,null,null,null,null,null,null,null,null,null,null,null,null,null,null,null,null,null,null,null,null,null,null,null,null,null,null,1227.600000586398,0.9478341974621457,0.98667285366879365,0.92206585216443482,null,null,null,null,null,null,null,null,null,null,null,null,null,null,null,null,null,null,null,null,null,null,null,null,null,null,null,null,null,null,null,null,null,null,null,null,null,null,null,null,null,null,null,null,null,null,null,null,null,null,null,null,null,null,null,null,null,null,null,null,null,null,null,null,null,null,null,null,null,null,null,null,null,null,1244.2786715635564,7.185348715316052E-2,1133.999996332042,0.18400000274181366,1167.6470578392875,-16823.530174260661,-3943.1794553668369]
[null,"994.81 deg C, 1.898",null,null,null,null,null,null,null,null,null,null,null,null,null,null,null,null,null,null,null,null,null,null,null,null,null,null,null,null,null,null,null,null,null,null,null,null,null,null,null,null,null,null,null,null,null,null,null,null,null,null,null,null,null,null,null,null,null,null,null,null,null,null,null,null,null,null,null,null,null,null,null,null,null,null,null,null,null,null,null,null,null,null,null,null,null,null,null,null,null,null,null,null,null,null,null,null,null,null,null,null,null,null,null,null,null,null,null,null,null,null,null,null,null,null,null,null,null,null,null,null,null,null,null,null,null,null,null,null,1223.4000006130525,0.94181889935672969,0.9848208279931665,0.91378510207931318,null,null,null,null,null,null,null,null,null,null,null,null,null,null,null,null,null,null,null,null,null,null,null,null,null,null,null,null,null,null,null,null,null,null,null,null,null,null,null,null,null,null,null,null,null,null,null,null,null,null,null,null,null,null,null,null,null,null,null,null,null,null,null,null,null,null,null,null,null,null,null,null,null,null,1241.7458839073545,8.5093043856406508E-2,1130.9999961653166,0.19200000286102295,1166.1764695592551,-17588.236091272509,-4253.9424584069757]
[null,"993.23 deg C, 1.918",null,null,null,null,null,null,null,null,null,null,null,null,null,null,null,null,null,null,null,null,null,null,null,null,null,null,null,null,null,null,null,null,null,null,null,null,null,null,null,null,null,null,null,null,null,null,null,null,null,null,null,null,null,null,null,null,null,null,null,null,null,null,null,null,null,null,null,null,null,null,null,null,null,null,null,null,null,null,null,null,null,null,null,null,null,null,null,null,null,null,null,null,null,null,null,null,null,null,null,null,null,null,null,null,null,null,null,null,null,null,null,null,null,null,null,null,null,null,null,null,null,null,null,null,null,null,null,null,1219.200000639707,0.93515742257122603,0.98271594143107877,0.90471541875181449,null,null,null,null,null,null,null,null,null,null,null,null,null,null,null,null,null,null,null,null,null,null,null,null,null,null,null,null,null,null,null,null,null,null,null,null,null,null,null,null,null,null,null,null,null,null,null,null,null,null,null,null,null,null,null,null,null,null,null,null,null,null,null,null,null,null,null,null,null,null,null,null,null,null,1239.2130962511524,9.2576987703418517E-2,1127.9999959985912,0.20000000298023224,1164.7058812792227,-18352.942008284357,-4581.8274611985798]
[null,"991.66 deg C, 1.939",null,null,null,null,null,null,null,null,null,null,null,null,null,null,null,null,null,null,null,null,null,null,null,null,null,null,null,null,null,null,null,null,null,null,null,null,null,null,null,null,null,null,null,null,null,null,null,null,null,null,null,null,null,null,null,null,null,null,null,null,null,null,null,null,null,null,null,null,null,null,null,null,null,null,null,null,null,null,null,null,null,null,null,null,null,null,null,null,null,null,null,null,null,null,null,null,null,null,null,null,null,null,null,null,null,null,null,null,null,null,null,null,null,null,null,null,null,null,null,null,null,null,null,null,null,null,null,null,1215.0000006663613,0.92779171252234893,0.98032500284646207,0.89480145955796397,null,null,null,null,null,null,null,null,null,null,null,null,null,null,null,null,null,null,null,null,null,null,null,null,null,null,null,null,null,null,null,null,null,null,null,null,null,null,null,null,null,null,null,null,null,null,null,null,null,null,null,null,null,null,null,null,null,null,null,null,null,null,null,null,null,null,null,null,null,null,null,null,null,null,1236.6803085949505,9.6420883693113343E-2,1124.9999958318658,0.20800000309944153,1163.2352929991903,-19117.647925296205,-4927.6263834996744]
[null,"990.09 deg C, 1.959",null,null,null,null,null,null,null,null,null,null,null,null,null,null,null,null,null,null,null,null,null,null,null,null,null,null,null,null,null,null,null,null,null,null,null,null,null,null,null,null,null,null,null,null,null,null,null,null,null,null,null,null,null,null,null,null,null,null,null,null,null,null,null,null,null,null,null,null,null,null,null,null,null,null,null,null,null,null,null,null,null,null,null,null,null,null,null,null,null,null,null,null,null,null,null,null,null,null,null,null,null,null,null,null,null,null,null,null,null,null,null,null,null,null,null,null,null,null,null,null,null,null,null,null,null,null,null,null,1210.8000006930158,0.91966118428067078,0.97761085621947719,0.88398826474424663,null,null,null,null,null,null,null,null,null,null,null,null,null,null,null,null,null,null,null,null,null,null,null,null,null,null,null,null,null,null,null,null,null,null,null,null,null,null,null,null,null,null,null,null,null,null,null,null,null,null,null,null,null,null,null,null,null,null,null,null,null,null,null,null,null,null,null,null,null,null,null,null,null,null,1234.1475209387486,9.8301518217118383E-2,1121.9999956651404,0.21600000321865082,1161.7647047191579,-19882.353842308054,-5292.1571001926495]
[null,"988.51 deg C, 1.980",null,null,null,null,null,null,null,null,null,null,null,null,null,null,null,null,null,null,null,null,null,null,null,null,null,null,null,null,null,null,null,null,null,null,null,null,null,null,null,null,null,null,null,null,null,null,null,null,null,null,null,null,null,null,null,null,null,null,null,null,null,null,null,null,null,null,null,null,null,null,null,null,null,null,null,null,null,null,null,null,null,null,null,null,null,null,null,null,null,null,null,null,null,null,null,null,null,null,null,null,null,null,null,null,null,null,null,null,null,null,null,null,null,null,null,null,null,null,null,null,null,null,null,null,null,null,null,null,1206.6000007196703,0.91070328471012363,0.97453202265972461,0.872222316583526,null,null,null,null,null,null,null,null,null,null,null,null,null,null,null,null,null,null,null,null,null,null,null,null,null,null,null,null,null,null,null,null,null,null,null,null,null,null,null,null,null,null,null,null,null,null,null,null,null,null,null,null,null,null,null,null,null,null,null,null,null,null,null,null,null,null,null,null,null,null,null,null,null,null,1231.6147332825465,9.9200112281476988E-2,1118.999995498415,0.2240000033378601,1160.2941164391254,-20647.059759319902,-5676.2632128047835]
[null,"986.94 deg C, 2.000",null,null,null,null,null,null,null,null,null,null,null,null,null,null,null,null,null,null,null,null,null,null,null,null,null,null,null,null,null,null,null,null,null,null,null,null,null,null,null,null,null,null,null,null,null,null,null,null,null,null,null,null,null,null,null,null,null,null,null,null,null,null,null,null,null,null,null,null,null,null,null,null,null,null,null,null,null,null,null,null,null,null,null,null,null,null,null,null,null,null,null,null,null,null,null,null,null,null,null,null,null,null,null,null,null,null,null,null,null,null,null,null,null,null,null,null,null,null,null,null,null,null,null,null,null,null,null,null,1202.4000007463248,0.90085424532365055,0.97104234561978486,0.85945278846830175,null,null,null,null,null,null,null,null,null,null,null,null,null,null,null,null,null,null,null,null,null,null,null,null,null,null,null,null,null,null,null,null,null,null,null,null,null,null,null,null,null,null,null,null,null,null,null,null,null,null,null,null,null,null,null,null,null,null,null,null,null,null,null,null,null,null,null,null,null,null,null,null,null,null,1229.0819456263446,9.9624658447765593E-2,1115.9999953316897,0.23200000345706939,1158.8235281590933,-21411.76567633175,-6080.8136755564819]
[null,"985.37 deg C, 2.020",null,null,null,null,null,null,null,null,null,null,null,null,null,null,null,null,null,null,null,null,null,null,null,null,null,null,null,null,null,null,null,null,null,null,null,null,null,null,null,null,null,null,null,null,null,null,null,null,null,null,null,null,null,null,null,null,null,null,null,null,null,null,null,null,null,null,null,null,null,null,null,null,null,null,null,null,null,null,null,null,null,null,null,null,null,null,null,null,null,null,null,null,null,null,null,null,null,null,null,null,null,null,null,null,null,null,null,null,null,null,null,null,null,null,null,null,null,null,null,null,null,null,null,null,null,null,null,null,1198.2000007729791,0.89005005035631091,0.96709065279745909,0.84563298202740234,null,null,null,null,null,null,null,null,null,null,null,null,null,null,null,null,null,null,null,null,null,null,null,null,null,null,null,null,null,null,null,null,null,null,null,null,null,null,null,null,null,null,null,null,null,null,null,null,null,null,null,null,null,null,null,null,null,null,null,null,null,null,null,null,null,null,null,null,null,null,null,null,null,null,1226.5491579701425,9.9824173050382187E-2,1112.9999951649645,0.24000000357627868,1157.3529398790608,-22176.471593343598,-6506.7022602162133]
[null,"983.79 deg C, 2.040",null,null,null,null,null,null,null,null,null,null,null,null,null,null,null,null,null,null,null,null,null,null,null,null,null,null,null,null,null,null,null,null,null,null,null,null,null,null,null,null,null,null,null,null,null,null,null,null,null,null,null,null,null,null,null,null,null,null,null,null,null,null,null,null,null,null,null,null,null,null,null,null,null,null,null,null,null,null,null,null,null,null,null,null,null,null,null,null,null,null,null,null,null,null,null,null,null,null,null,null,null,null,null,null,null,null,null,null,null,null,null,null,null,null,null,null,null,null,null,null,null,null,null,null,null,null,null,null,1194.0000007996337,0.8782276408828994,0.96262045269149932,0.83072193951115936,null,null,null,null,null,null,null,null,null,null,null,null,null,null,null,null,null,null,null,null,null,null,null,null,null,null,null,null,null,null,null,null,null,null,null,null,null,null,null,null,null,null,null,null,null,null,null,null,null,null,null,null,null,null,null,null,null,null,null,null,null,null,null,null,null,null,null,null,null,null,null,null,null,null,1224.0163703139406,9.9917700399000553E-2,1109.9999949982391,0.24800000369548797,1155.8823515990284,-22941.177510355446,-6954.8468432010495]
[null,"982.22 deg C, 2.060",null,null,null,null,null,null,null,null,null,null,null,null,null,null,null,null,null,null,null,null,null,null,null,null,null,null,null,null,null,null,null,null,null,null,null,null,null,null,null,null,null,null,null,null,null,null,null,null,null,null,null,null,null,null,null,null,null,null,null,null,null,null,null,null,null,null,null,null,null,null,null,null,null,null,null,null,null,null,null,null,null,null,null,null,null,null,null,null,null,null,null,null,null,null,null,null,null,null,null,null,null,null,null,null,null,null,null,null,null,null,null,null,null,null,null,null,null,null,null,null,null,null,null,null,null,null,null,null,1189.8000008262882,0.86532636926668749,0.95756968911385953,0.81468620525359448,null,null,null,null,null,null,null,null,null,null,null,null,null,null,null,null,null,null,null,null,null,null,null,null,null,null,null,null,null,null,null,null,null,null,null,null,null,null,null,null,null,null,null,null,null,null,null,null,null,null,null,null,null,null,null,null,null,null,null,null,null,null,null,null,null,null,null,null,null,null,null,null,null,null,1221.4835826577387,9.9961492286109815E-2,1106.9999948315137,0.25600000381469729,1154.411763318996,-23705.883427367295,-7426.1884975727371]
[null,"980.65 deg C, 2.080",null,null,null,null,null,null,null,null,null,null,null,null,null,null,null,null,null,null,null,null,null,null,null,null,null,null,null,null,null,null,null,null,null,null,null,null,null,null,null,null,null,null,null,null,null,null,null,null,null,null,null,null,null,null,null,null,null,null,null,null,null,null,null,null,null,null,null,null,null,null,null,null,null,null,null,null,null,null,null,null,null,null,null,null,null,null,null,null,null,null,null,null,null,null,null,null,null,null,null,null,null,null,null,null,null,null,null,null,null,null,null,null,null,null,null,null,null,null,null,null,null,null,null,null,null,null,null,null,1185.6000008529425,0.85128970823693517,0.9518705831570009,0.79750169430028273,null,null,null,null,null,null,null,null,null,null,null,null,null,null,null,null,null,null,null,null,null,null,null,null,null,null,null,null,null,null,null,null,null,null,null,null,null,null,null,null,null,null,null,null,null,null,null,null,null,null,null,null,null,null,null,null,null,null,null,null,null,null,null,null,null,null,null,null,null,null,null,null,null,null,1218.9507950015366,9.9981985517699809E-2,1103.9999946647883,0.26400000393390655,1152.9411750389636,-24470.589344379143,-7921.6903718617377]
[null,"979.08 deg C, 2.100",null,null,null,null,null,null,null,null,null,null,null,null,null,null,null,null,null,null,null,null,null,null,null,null,null,null,null,null,null,null,null,null,null,null,null,null,null,null,null,null,null,null,null,null,null,null,null,null,null,null,null,null,null,null,null,null,null,null,null,null,null,null,null,null,null,null,null,null,null,null,null,null,null,null,null,null,null,null,null,null,null,null,null,null,null,null,null,null,null,null,null,null,null,null,null,null,null,null,null,null,null,null,null,null,null,null,null,null,null,null,null,null,null,null,null,null,null,null,null,null,null,null,null,null,null,null,null,null,1181.400000879597,0.83606720500935039,0.94544959906914017,0.7791556089875975,null,null,null,null,null,null,null,null,null,null,null,null,null,null,null,null,null,null,null,null,null,null,null,null,null,null,null,null,null,null,null,null,null,null,null,null,null,null,null,null,null,null,null,null,null,null,null,null,null,null,null,null,null,null,null,null,null,null,null,null,null,null,null,null,null,null,null,null,null,null,null,null,null,null,1216.4180073453347,9.9991573247599122E-2,1100.999994498063,0.27200000405311586,1151.4705867589312,-25235.295261390991,-8442.336337028928]
[null,"977.50 deg C, 2.120",null,null,null,null,null,null,null,null,null,null,null,null,null,null,null,null,null,null,null,null,null,null,null,null,null,null,null,null,null,null,null,null,null,null,null,null,null,null,null,null,null,null,null,null,null,null,null,null,null,null,null,null,null,null,null,null,null,null,null,null,null,null,null,null,null,null,null,null,null,null,null,null,null,null,null,null,null,null,null,null,null,null,null,null,null,null,null,null,null,null,null,null,null,null,null,null,null,null,null,null,null,null,null,null,null,null,null,null,null,null,null,null,null,null,null,null,null,null,null,null,null,null,null,null,null,null,null,null,1177.2000009062515,0.81961665290963748,0.99259770336398911,0.75964832652739045,null,null,null,null,null,null,null,null,null,null,null,null,null,null,null,null,null,null,null,null,null,null,null,null,null,null,null,null,null,null,null,null,null,null,null,null,null,null,null,null,null,null,null,null,null,null,null,null,null,null,null,null,null,null,null,null,null,null,null,null,null,null,null,null,null,null,null,null,null,null,null,null,null,null,1213.8852196891326,9.9996058319640549E-2,1097.9999943313376,0.28000000417232512,1149.9999984788988,-26000.001178402839,-8989.1293823725191]
[null,"975.93 deg C, 2.140",null,null,null,null,null,null,null,null,null,null,null,null,null,null,null,null,null,null,null,null,null,null,null,null,null,null,null,null,null,null,null,null,null,null,null,null,null,null,null,null,null,null,null,null,null,null,null,null,null,null,null,null,null,null,null,null,null,null,null,null,null,null,null,null,null,null,null,null,null,null,null,null,null,null,null,null,null,null,null,null,null,null,null,null,null,null,null,null,null,null,null,null,null,null,null,null,null,null,null,null,null,null,null,null,null,null,null,null,null,null,null,null,null,null,null,null,null,null,null,null,null,null,null,null,null,null,null,null,1173.000000932906,0.80190643118772265,0.99128135987147936,0.73899516411709909,null,null,null,null,null,null,null,null,null,null,null,null,null,null,null,null,null,null,null,null,null,null,null,null,null,null,null,null,null,null,null,null,null,null,null,null,null,null,null,null,null,null,null,null,null,null,null,null,null,null,null,null,null,null,null,null,null,null,null,null,null,null,null,null,null,null,null,null,null,null,null,null,null,null,1211.3524320329307,9.9998156307859534E-2,1094.9999941646122,0.28800000429153444,1148.5294101988663,-26764.707095414688,-9563.0897408355559]
[null,"974.36 deg C, 2.159",null,null,null,null,null,null,null,null,null,null,null,null,null,null,null,null,null,null,null,null,null,null,null,null,null,null,null,null,null,null,null,null,null,null,null,null,null,null,null,null,null,null,null,null,null,null,null,null,null,null,null,null,null,null,null,null,null,null,null,null,null,null,null,null,null,null,null,null,null,null,null,null,null,null,null,null,null,null,null,null,null,null,null,null,null,null,null,null,null,null,null,null,null,null,null,null,null,null,null,null,null,null,null,null,null,null,null,null,null,null,null,null,null,null,null,null,null,null,null,null,null,null,null,null,null,null,null,null,1168.8000009595603,0.78291793896454043,0.98973335342733093,0.71722791479944126,null,null,null,null,null,null,null,null,null,null,null,null,null,null,null,null,null,null,null,null,null,null,null,null,null,null,null,null,null,null,null,null,null,null,null,null,null,null,null,null,null,null,null,null,null,null,null,null,null,null,null,null,null,null,null,null,null,null,null,null,null,null,null,null,null,null,null,null,null,null,null,null,null,null,1208.8196443767288,9.9999137757762216E-2,1091.9999939978868,0.2960000044107437,1147.0588219188342,-27529.413012426536,-10165.252723998834]
[null,"972.78 deg C, 2.179",null,null,null,null,null,null,null,null,null,null,null,null,null,null,null,null,null,null,null,null,null,null,null,null,null,null,null,null,null,null,null,null,null,null,null,null,null,null,null,null,null,null,null,null,null,null,null,null,null,null,null,null,null,null,null,null,null,null,null,null,null,null,null,null,null,null,null,null,null,null,null,null,null,null,null,null,null,null,null,null,null,null,null,null,null,null,null,null,null,null,null,null,null,null,null,null,null,null,null,null,null,null,null,null,null,null,null,null,null,null,null,null,null,null,null,null,null,null,null,null,null,null,null,null,null,null,null,null,1164.6000009862148,0.76264802311309099,0.98791384743207844,0.69439603953817708,null,null,null,null,null,null,null,null,null,null,null,null,null,null,null,null,null,null,null,null,null,null,null,null,null,null,null,null,null,null,null,null,null,null,null,null,null,null,null,null,null,null,null,null,null,null,null,null,null,null,null,null,null,null,null,null,null,null,null,null,null,null,null,null,null,null,null,null,null,null,null,null,null,null,1206.2868567205267,9.9999597322403239E-2,1088.9999938311614,0.30400000452995302,1145.5882336388017,-28294.118929438384,-10796.666247090343]
[null,"971.21 deg C, 2.198",null,null,null,null,null,null,null,null,null,null,null,null,null,null,null,null,null,null,null,null,null,null,null,null,null,null,null,null,null,null,null,null,null,null,null,null,null,null,null,null,null,null,null,null,null,null,null,null,null,null,null,null,null,null,null,null,null,null,null,null,null,null,null,null,null,null,null,null,null,null,null,null,null,null,null,null,null,null,null,null,null,null,null,null,null,null,null,null,null,null,null,null,null,null,null,null,null,null,null,null,null,null,null,null,null,null,null,null,null,null,null,null,null,null,null,null,null,null,null,null,null,null,null,null,null,null,null,null,1160.4000010128693,0.74111127472233018,0.98577651367420771,0.67056740105189949,null,null,null,null,null,null,null,null,null,null,null,null,null,null,null,null,null,null,null,null,null,null,null,null,null,null,null,null,null,null,null,null,null,null,null,null,null,null,null,null,null,null,null,null,null,null,null,null,null,null,null,null,null,null,null,null,null,null,null,null,null,null,null,null,null,null,null,null,null,null,null,null,null,null,1203.7540690643248,9.999981453615811E-2,1085.999993664436,0.31200000464916228,1144.1176453587693,-29058.824846450232,-11458.388024642989]
[null,"969.64 deg C, 2.218",null,null,null,null,null,null,null,null,null,null,null,null,null,null,null,null,null,null,null,null,null,null,null,null,null,null,null,null,null,null,null,null,null,null,null,null,null,null,null,null,null,null,null,null,null,null,null,null,null,null,null,null,null,null,null,null,null,null,null,null,null,null,null,null,null,null,null,null,null,null,null,null,null,null,null,null,null,null,null,null,null,null,null,null,null,null,null,null,null,null,null,null,null,null,null,null,null,null,null,null,null,null,null,null,null,null,null,null,null,null,null,null,null,null,null,null,null,null,null,null,null,null,null,null,null,null,null,null,1156.2000010395236,0.71834204775827648,0.98326761223852654,0.64582843478723073,null,null,null,null,null,null,null,null,null,null,null,null,null,null,null,null,null,null,null,null,null,null,null,null,null,null,null,null,null,null,null,null,null,null,null,null,null,null,null,null,null,null,null,null,null,null,null,null,null,null,null,null,null,null,null,null,null,null,null,null,null,null,null,null,null,null,null,null,null,null,null,null,null,null,1201.2212814081226,9.9999926436327449E-2,1082.9999934977106,0.32000000476837159,1142.6470570787369,-29823.53076346208,-12151.482418027412]
[null,"968.06 deg C, 2.237",null,null,null,null,null,null,null,null,null,null,null,null,null,null,null,null,null,null,null,null,null,null,null,null,null,null,null,null,null,null,null,null,null,null,null,null,null,null,null,null,null,null,null,null,null,null,null,null,null,null,null,null,null,null,null,null,null,null,null,null,null,null,null,null,null,null,null,null,null,null,null,null,null,null,null,null,null,null,null,null,null,null,null,null,null,null,null,null,null,null,null,null,null,null,null,null,null,null,null,null,null,null,null,null,null,null,null,null,null,null,null,null,null,null,null,null,null,null,null,null,null,null,null,null,null,null,null,null,1152.0000010661781,0.69439604027888879,0.98032499481271174,0.62028367316758881,null,null,null,null,null,null,null,null,null,null,null,null,null,null,null,null,null,null,null,null,null,null,null,null,null,null,null,null,null,null,null,null,null,null,null,null,null,null,null,null,null,null,null,null,null,null,null,null,null,null,null,null,null,null,null,null,null,null,null,null,null,null,null,null,null,null,null,null,null,null,null,null,null,null,1198.6884937519208,0.10000002580410898,1079.9999933309853,0.32800000488758085,1141.1764687987045,-30588.236680473929,-12877.016917018402]
[null,"966.49 deg C, 2.257",null,null,null,null,null,null,null,null,null,null,null,null,null,null,null,null,null,null,null,null,null,null,null,null,null,null,null,null,null,null,null,null,null,null,null,null,null,null,null,null,null,null,null,null,null,null,null,null,null,null,null,null,null,null,null,null,null,null,null,null,null,null,null,null,null,null,null,null,null,null,null,null,null,null,null,null,null,null,null,null,null,null,null,null,null,null,null,null,null,null,null,null,null,null,null,null,null,null,null,null,null,null,null,null,null,null,null,null,null,null,null,null,null,null,null,null,null,null,null,null,null,null,null,null,null,null,null,null,1147.8000010928326,0.66935127683640072,0.99269406505496927,0.5940545708991759,null,null,null,null,null,null,null,null,null,null,null,null,null,null,null,null,null,null,null,null,null,null,null,null,null,null,null,null,null,null,null,null,null,null,null,null,null,null,null,null,null,null,null,null,null,null,null,null,null,null,null,null,null,null,null,null,null,null,null,null,null,null,null,null,null,null,null,null,null,null,null,null,null,null,1196.1557060957189,0.10000028674365238,1076.9999931642601,0.33600000500679017,1139.7058805186721,-31352.942597485777,-13636.058238865291]
[null,"964.92 deg C, 2.276",null,null,null,null,null,null,null,null,null,null,null,null,null,null,null,null,null,null,null,null,null,null,null,null,null,null,null,null,null,null,null,null,null,null,null,null,null,null,null,null,null,null,null,null,null,null,null,null,null,null,null,null,null,null,null,null,null,null,null,null,null,null,null,null,null,null,null,null,null,null,null,null,null,null,null,null,null,null,null,null,null,null,null,null,null,null,null,null,null,null,null,null,null,null,null,null,null,null,null,null,null,null,null,null,null,null,null,null,null,null,null,null,null,null,null,null,null,null,null,null,null,null,null,null,null,null,null,null,1143.6000011194872,0.64330834375983303,0.99122413641660378,0.56727762016400141,null,null,null,null,null,null,null,null,null,null,null,null,null,null,null,null,null,null,null,null,null,null,null,null,null,null,null,null,null,null,null,null,null,null,null,null,null,null,null,null,null,null,null,null,null,null,null,null,null,null,null,null,null,null,null,null,null,null,null,null,null,null,null,null,null,null,null,null,null,null,null,null,null,null,1193.6229184395168,0.10000138429641586,1073.9999929975347,0.34400000512599943,1138.2352922386397,-32117.648514497625,-14429.668030073024]
[null,"963.34 deg C, 2.296",null,null,null,null,null,null,null,null,null,null,null,null,null,null,null,null,null,null,null,null,null,null,null,null,null,null,null,null,null,null,null,null,null,null,null,null,null,null,null,null,null,null,null,null,null,null,null,null,null,null,null,null,null,null,null,null,null,null,null,null,null,null,null,null,null,null,null,null,null,null,null,null,null,null,null,null,null,null,null,null,null,null,null,null,null,null,null,null,null,null,null,null,null,null,null,null,null,null,null,null,null,null,null,null,null,null,null,null,null,null,null,null,null,null,null,null,null,null,null,null,null,null,null,null,null,null,null,null,1139.4000011461414,0.61638975885607916,0.98946160287215501,0.5401017919491361,null,null,null,null,null,null,null,null,null,null,null,null,null,null,null,null,null,null,null,null,null,null,null,null,null,null,null,null,null,null,null,null,null,null,null,null,null,null,null,null,null,null,null,null,null,null,null,null,null,null,null,null,null,null,null,null,null,null,null,null,null,null,null,null,null,null,null,null,null,null,null,null,null,null,1191.0901307833149,0.10000631053982537,1070.9999928308093,0.35200000524520875,1136.7647039586072,-32882.354431509477,-15258.898158305428]
[null,"961.77 deg C, 2.315",null,null,null,null,null,null,null,null,null,null,null,null,null,null,null,null,null,null,null,null,null,null,null,null,null,null,null,null,null,null,null,null,null,null,null,null,null,null,null,null,null,null,null,null,null,null,null,null,null,null,null,null,null,null,null,null,null,null,null,null,null,null,null,null,null,null,null,null,null,null,null,null,null,null,null,null,null,null,null,null,null,null,null,null,null,null,null,null,null,null,null,null,null,null,null,null,null,null,null,null,null,null,null,null,null,null,null,null,null,null,null,null,null,null,null,null,null,null,null,null,null,null,null,null,null,null,null,null,1135.200001172796,0.58873840374804975,0.98734960197776944,0.51268538917442963,null,null,null,null,null,null,null,null,null,null,null,null,null,null,null,null,null,null,null,null,null,null,null,null,null,null,null,null,null,null,null,null,null,null,null,null,null,null,null,null,null,null,null,null,null,null,null,null,null,null,null,null,null,null,null,null,null,null,null,null,null,null,null,null,null,null,null,null,null,null,null,null,null,null,1188.5573431271127,0.10002834609868114,1067.9999926640839,0.36000000536441801,1135.2941156785751,-33647.060348521321,-16124.785584538413]
[null,"960.20 deg C, 2.334",null,null,null,null,null,null,null,null,null,null,null,null,null,null,null,null,null,null,null,null,null,null,null,null,null,null,null,null,null,null,null,null,null,null,null,null,null,null,null,null,null,null,null,null,null,null,null,null,null,null,null,null,null,null,null,null,null,null,null,null,null,null,null,null,null,null,null,null,null,null,null,null,null,null,null,null,null,null,null,null,null,null,null,null,null,null,null,null,null,null,null,null,null,null,null,null,null,null,null,null,null,null,null,null,null,null,null,null,null,null,null,null,null,null,null,null,null,null,null,null,null,null,null,null,null,null,null,null,1131.0000011994505,0.56051500815293631,0.9848208280982812,0.48519244345540474,null,null,null,null,null,null,null,null,null,null,null,null,null,null,null,null,null,null,null,null,null,null,null,null,null,null,null,null,null,null,null,null,null,null,null,null,null,null,null,null,null,null,null,null,null,null,null,null,null,null,null,null,null,null,null,null,null,null,null,null,null,null,null,null,null,null,null,null,null,null,null,null,null,null,1186.0245554709109,0.10012474460394487,1064.9999924973586,0.36800000548362732,1133.8235273985426,-34411.766265533173,-17028.346808857921]
[null,"958.62 deg C, 2.354",null,null,null,null,null,null,null,null,null,null,null,null,null,null,null,null,null,null,null,null,null,null,null,null,null,null,null,null,null,null,null,null,null,null,null,null,null,null,null,null,null,null,null,null,null,null,null,null,null,null,null,null,null,null,null,null,null,null,null,null,null,null,null,null,null,null,null,null,null,null,null,null,null,null,null,null,null,null,null,null,null,null,null,null,null,null,null,null,null,null,null,null,null,null,null,null,null,null,null,null,null,null,null,null,null,null,null,null,null,null,null,null,null,null,null,null,null,null,null,null,null,null,null,null,null,null,null,null,1126.8000012261048,0.53189474584838103,0.98179588042340415,0.4577888249201173,null,null,null,null,null,null,null,null,null,null,null,null,null,null,null,null,null,null,null,null,null,null,null,null,null,null,null,null,null,null,null,null,null,null,null,null,null,null,null,null,null,null,null,null,null,null,null,null,null,null,null,null,null,null,null,null,null,null,null,null,null,null,null,null,null,null,null,null,null,null,null,null,null,null,1183.491767814709,0.10052696775233728,1061.9999923306332,0.37600000560283658,1132.3529391185102,-35176.472182545018,-17970.571887151666]
[null,"957.05 deg C, 2.373",null,null,null,null,null,null,null,null,null,null,null,null,null,null,null,null,null,null,null,null,null,null,null,null,null,null,null,null,null,null,null,null,null,null,null,null,null,null,null,null,null,null,null,null,null,null,null,null,null,null,null,null,null,null,null,null,null,null,null,null,null,null,null,null,null,null,null,null,null,null,null,null,null,null,null,null,null,null,null,null,null,null,null,null,null,null,null,null,null,null,null,null,null,null,null,null,null,null,null,null,null,null,null,null,null,null,null,null,null,null,null,null,null,null,null,null,null,null,null,null,null,null,null,null,null,null,null,null,1122.6000012527593,0.50306307460200173,0.97818146811745743,0.43063825885952906,null,null,null,null,null,null,null,null,null,null,null,null,null,null,null,null,null,null,null,null,null,null,null,null,null,null,null,null,null,null,null,null,null,null,null,null,null,null,null,null,null,null,null,null,null,null,null,null,null,null,null,null,null,null,null,null,null,null,null,null,null,null,null,null,null,null,null,null,null,null,null,null,null,null,1180.9589801585068,0.10205508468846956,1058.9999921639078,0.3840000057220459,1130.8823508384778,-35941.17809955687,-18952.418020413763]
[null,"955.48 deg C, 2.393",null,null,null,null,null,null,null,null,null,null,null,null,null,null,null,null,null,null,null,null,null,null,null,null,null,null,null,null,null,null,null,null,null,null,null,null,null,null,null,null,null,null,null,null,null,null,null,null,null,null,null,null,null,null,null,null,null,null,null,null,null,null,null,null,null,null,null,null,null,null,null,null,null,null,null,null,null,null,null,null,null,null,null,null,null,null,null,null,null,null,null,null,null,null,null,null,null,null,null,null,null,null,null,null,null,null,null,null,null,null,null,null,null,null,null,null,null,null,null,null,null,null,null,null,null,null,null,null,1118.4000012794138,0.47421101836820212,0.9738685180199631,0.40389845101674771,null,null,null,null,null,null,null,null,null,null,null,null,null,null,null,null,null,null,null,null,null,null,null,null,null,null,null,null,null,null,null,null,null,null,null,null,null,null,null,null,null,null,null,null,null,null,null,null,null,null,null,null,null,null,null,null,null,null,null,null,null,null,null,null,null,null,null,null,null,null,null,null,null,null,1178.426192502305,0.106943205649654,1055.9999919971824,0.39200000584125516,1129.4117625584454,-36705.884016568714,-19974.802723489051]
[null,"953.90 deg C, 2.412",null,null,null,null,null,null,null,null,null,null,null,null,null,null,null,null,null,null,null,null,null,null,null,null,null,null,null,null,null,null,null,null,null,null,null,null,null,null,null,null,null,null,null,null,null,null,null,null,null,null,null,null,null,null,null,null,null,null,null,null,null,null,null,null,null,null,null,null,null,null,null,null,null,null,null,null,null,null,null,null,null,null,null,null,null,null,null,null,null,null,null,null,null,null,null,null,null,null,null,null,null,null,null,null,null,null,null,null,null,null,null,null,null,null,null,null,null,null,null,null,null,null,null,null,null,null,null,null,1114.2000013060683,0.44553014104919841,0.96873026495060677,0.37771751396730946,null,null,null,null,null,null,null,null,null,null,null,null,null,null,null,null,null,null,null,null,null,null,null,null,null,null,null,null,null,null,null,null,null,null,null,null,null,null,null,null,null,null,null,null,null,null,null,null,null,null,null,null,null,null,null,null,null,null,null,null,null,null,null,null,null,null,null,null,null,null,null,null,null,null,1175.8934048461028,0.11878293962818624,1052.999991830457,0.40000000596046448,1127.941174278413,-37470.589933580566,-21038.596585839899]
[null,"952.33 deg C, 2.432",null,null,null,null,null,null,null,null,null,null,null,null,null,null,null,null,null,null,null,null,null,null,null,null,null,null,null,null,null,null,null,null,null,null,null,null,null,null,null,null,null,null,null,null,null,null,null,null,null,null,null,null,null,null,null,null,null,null,null,null,null,null,null,null,null,null,null,null,null,null,null,null,null,null,null,null,null,null,null,null,null,null,null,null,null,null,null,null,null,null,null,null,null,null,null,null,null,null,null,null,null,null,null,null,null,null,null,null,null,null,null,null,null,null,null,null,null,null,null,null,null,null,null,null,null,null,null,null,1110.0000013327226,0.4172074900943869,0.96262045265456331,0.35223086152621857,null,null,null,null,null,null,null,null,null,null,null,null,null,null,null,null,null,null,null,null,null,null,null,null,null,null,null,null,null,null,null,null,null,null,null,null,null,null,null,null,null,null,null,null,null,null,null,null,null,null,null,null,null,null,null,null,null,null,null,null,null,null,null,null,null,null,null,null,null,null,null,null,null,null,1173.3606171899009,0.13850622832313891,1049.9999916637316,0.40800000607967379,1126.4705859983806,-38235.295850592411,-22144.615643320296]
[null,"950.76 deg C, 2.451",null,null,null,null,null,null,null,null,null,null,null,null,null,null,null,null,null,null,null,null,null,null,null,null,null,null,null,null,null,null,null,null,null,null,null,null,null,null,null,null,null,null,null,null,null,null,null,null,null,null,null,null,null,null,null,null,null,null,null,null,null,null,null,null,null,null,null,null,null,null,null,null,null,null,null,null,null,null,null,null,null,null,null,null,null,null,null,null,null,null,null,null,null,null,null,null,null,null,null,null,null,null,null,null,null,null,null,null,null,null,null,null,null,null,null,null,null,null,null,null,null,null,null,null,null,null,null,null,1105.8000013593771,0.38942079107455951,0.95537183729967767,0.32755869969246149,null,null,null,null,null,null,null,null,null,null,null,null,null,null,null,null,null,null,null,null,null,null,null,null,null,null,null,null,null,null,null,null,null,null,null,null,null,null,null,null,null,null,null,null,null,null,null,null,null,null,null,null,null,null,null,null,null,null,null,null,null,null,null,null,null,null,null,null,null,null,null,null,null,null,1170.8278295336991,0.16046392882850838,1046.9999914970062,0.41600000619888305,1124.9999977183481,-39000.001767604263,-23293.613386973106]
[null,"949.19 deg C, 2.471",null,null,null,null,null,null,null,null,null,null,null,null,null,null,null,null,null,null,null,null,null,null,null,null,null,null,null,null,null,null,null,null,null,null,null,null,null,null,null,null,null,null,null,null,null,null,null,null,null,null,null,null,null,null,null,null,null,null,null,null,null,null,null,null,null,null,null,null,null,null,null,null,null,null,null,null,null,null,null,null,null,null,null,null,null,null,null,null,null,null,null,null,null,null,null,null,null,null,null,null,null,null,null,null,null,null,null,null,null,null,null,null,null,null,null,null,null,null,null,null,null,null,null,null,null,null,null,null,1101.6000013860316,0.36233415070504077,0.94679526668514391,0.30380419602270897,null,null,null,null,null,null,null,null,null,null,null,null,null,null,null,null,null,null,null,null,null,null,null,null,null,null,null,null,null,null,null,null,null,null,null,null,null,null,null,null,null,null,null,null,null,null,null,null,null,null,null,null,null,null,null,null,null,null,null,null,null,null,null,null,null,null,null,null,null,null,null,null,null,null,1168.2950418774969,0.17779203290862058,1043.9999913302809,0.42400000631809237,1123.5294094383157,-39764.707684616107,-24486.272442491623]
[null,"947.61 deg C, 2.490",null,null,null,null,null,null,null,null,null,null,null,null,null,null,null,null,null,null,null,null,null,null,null,null,null,null,null,null,null,null,null,null,null,null,null,null,null,null,null,null,null,null,null,null,null,null,null,null,null,null,null,null,null,null,null,null,null,null,null,null,null,null,null,null,null,null,null,null,null,null,null,null,null,null,null,null,null,null,null,null,null,null,null,null,null,null,null,null,null,null,null,null,null,null,null,null,null,null,null,null,null,null,null,null,null,null,null,null,null,null,null,null,null,null,null,null,null,null,null,null,null,null,null,null,null,null,null,null,1097.4000014126859,0.33609447896632039,0.9366797059155263,0.28105235988742205,null,null,null,null,null,null,null,null,null,null,null,null,null,null,null,null,null,null,null,null,null,null,null,null,null,null,null,null,null,null,null,null,null,null,null,null,null,null,null,null,null,null,null,null,null,null,null,null,null,null,null,null,null,null,null,null,null,null,null,null,null,null,null,null,null,null,null,null,null,null,null,null,null,null,1165.7622542212951,0.18856812514290244,1040.9999911635555,0.43200000643730163,1122.0588211582835,-40529.413601627959,-25723.19596215005]
[null,"946.04 deg C, 2.510",null,null,null,null,null,null,null,null,null,null,null,null,null,null,null,null,null,null,null,null,null,null,null,null,null,null,null,null,null,null,null,null,null,null,null,null,null,null,null,null,null,null,null,null,null,null,null,null,null,null,null,null,null,null,null,null,null,null,null,null,null,null,null,null,null,null,null,null,null,null,null,null,null,null,null,null,null,null,null,null,null,null,null,null,null,null,null,null,null,null,null,null,null,null,null,null,null,null,null,null,null,null,null,null,null,null,null,null,null,null,null,null,null,null,null,null,null,null,null,null,null,null,null,null,null,null,null,null,1093.2000014393404,0.31082877744864351,0.92479368850015298,0.25936961899410388,null,null,null,null,null,null,null,null,null,null,null,null,null,null,null,null,null,null,null,null,null,null,null,null,null,null,null,null,null,null,null,null,null,null,null,null,null,null,null,null,null,null,null,null,null,null,null,null,null,null,null,null,null,null,null,null,null,null,null,null,null,null,null,null,null,null,null,null,null,null,null,null,null,null,1163.2294665650929,0.19439317117869045,1037.9999909968303,0.44000000655651095,1120.5882328782511,-41294.119518639804,-27004.898779632411]
[null,"944.47 deg C, 2.530",null,null,null,null,null,null,null,null,null,null,null,null,null,null,null,null,null,null,null,null,null,null,null,null,null,null,null,null,null,null,null,null,null,null,null,null,null,null,null,null,null,null,null,null,null,null,null,null,null,null,null,null,null,null,null,null,null,null,null,null,null,null,null,null,null,null,null,null,null,null,null,null,null,null,null,null,null,null,null,null,null,null,null,null,null,null,null,null,null,null,null,null,null,null,null,null,null,null,null,null,null,null,null,null,null,null,null,null,null,null,null,null,null,null,null,null,null,null,null,null,null,null,null,null,null,null,null,null,1089.000001465995,0.2866423691600779,0.91088877721453687,0.2388040371517412,null,null,null,null,null,null,null,null,null,null,null,null,null,null,null,null,null,null,null,null,null,null,null,null,null,null,null,null,null,null,null,null,null,null,null,null,null,null,null,null,null,null,null,null,null,null,null,null,null,null,null,null,null,null,null,null,null,null,null,null,null,null,null,null,null,null,null,null,null,null,null,null,null,null,1160.696678908891,0.19731697052926847,1034.9999908301049,0.44800000667572021,1119.1176445982187,-42058.825435651655,-28331.798387173076]
[null,"942.89 deg C, 2.550",null,null,null,null,null,null,null,null,null,null,null,null,null,null,null,null,null,null,null,null,null,null,null,null,null,null,null,null,null,null,null,null,null,null,null,null,null,null,null,null,null,null,null,null,null,null,null,null,null,null,null,null,null,null,null,null,null,null,null,null,null,null,null,null,null,null,null,null,null,null,null,null,null,null,null,null,null,null,null,null,null,null,null,null,null,null,null,null,null,null,null,null,null,null,null,null,null,null,null,null,null,null,null,null,null,null,null,null,null,null,null,null,null,null,null,null,null,null,null,null,null,null,null,null,null,null,null,null,1084.8000014926495,0.26361807348131255,0.89470569696703195,0.21938608741293469,null,null,null,null,null,null,null,null,null,null,null,null,null,null,null,null,null,null,null,null,null,null,null,null,null,null,null,null,null,null,null,null,null,null,null,null,null,null,null,null,null,null,null,null,null,null,null,null,null,null,null,null,null,null,null,null,null,null,null,null,null,null,null,null,null,null,null,null,null,null,null,null,null,null,1158.1638912526892,0.19873139932114264,1031.9999906633795,0.45600000679492952,1117.6470563181863,-42823.5313526635,-29704.205803636778]
[null,"941.32 deg C, 2.570",null,null,null,null,null,null,null,null,null,null,null,null,null,null,null,null,null,null,null,null,null,null,null,null,null,null,null,null,null,null,null,null,null,null,null,null,null,null,null,null,null,null,null,null,null,null,null,null,null,null,null,null,null,null,null,null,null,null,null,null,null,null,null,null,null,null,null,null,null,null,null,null,null,null,null,null,null,null,null,null,null,null,null,null,null,null,null,null,null,null,null,null,null,null,null,null,null,null,null,null,null,null,null,null,null,null,null,null,null,null,null,null,null,null,null,null,null,null,null,null,null,null,null,null,null,null,null,null,1080.6000015193038,0.24181626637339659,0.87598381350995735,0.20112987483466227,null,null,null,null,null,null,null,null,null,null,null,null,null,null,null,null,null,null,null,null,null,null,null,null,null,null,null,null,null,null,null,null,null,null,null,null,null,null,null,null,null,null,null,null,null,null,null,null,null,null,null,null,null,null,null,null,null,null,null,null,null,null,null,null,null,null,null,null,null,null,null,null,null,null,1155.631103596487,0.19940359592213014,1028.9999904966542,0.46400000691413879,1116.1764680381539,-43588.237269675352,-31122.316411456915]
[null,"939.75 deg C, 2.590",null,null,null,null,null,null,null,null,null,null,null,null,null,null,null,null,null,null,null,null,null,null,null,null,null,null,null,null,null,null,null,null,null,null,null,null,null,null,null,null,null,null,null,null,null,null,null,null,null,null,null,null,null,null,null,null,null,null,null,null,null,null,null,null,null,null,null,null,null,null,null,null,null,null,null,null,null,null,null,null,null,null,null,null,null,null,null,null,null,null,null,null,null,null,null,null,null,null,null,null,null,null,null,null,null,null,null,null,null,null,null,null,null,null,null,null,null,null,null,null,null,null,null,null,null,null,null,null,1076.4000015459583,0.22127571591603959,0.85447452360175613,0.18403469406692882,null,null,null,null,null,null,null,null,null,null,null,null,null,null,null,null,null,null,null,null,null,null,null,null,null,null,null,null,null,null,null,null,null,null,null,null,null,null,null,null,null,null,null,null,null,null,null,null,null,null,null,null,null,null,null,null,null,null,null,null,null,null,null,null,null,null,null,null,null,null,null,null,null,null,1153.0983159402851,0.1997203699415783,1025.9999903299288,0.4720000070333481,1114.7058797581215,-44352.943186687196,-32586.200849536908]
[null,"938.17 deg C, 2.610",null,null,null,null,null,null,null,null,null,null,null,null,null,null,null,null,null,null,null,null,null,null,null,null,null,null,null,null,null,null,null,null,null,null,null,null,null,null,null,null,null,null,null,null,null,null,null,null,null,null,null,null,null,null,null,null,null,null,null,null,null,null,null,null,null,null,null,null,null,null,null,null,null,null,null,null,null,null,null,null,null,null,null,null,null,null,null,null,null,null,null,null,null,null,null,null,null,null,null,null,null,null,null,null,null,null,null,null,null,null,null,null,null,null,null,null,null,null,null,null,null,null,null,null,null,null,null,null,1072.2000015726128,0.20201504976286327,0.829958831289488,0.16808680758389716,null,null,null,null,null,null,null,null,null,null,null,null,null,null,null,null,null,null,null,null,null,null,null,null,null,null,null,null,null,null,null,null,null,null,null,null,null,null,null,null,null,null,null,null,null,null,null,null,null,null,null,null,null,null,null,null,null,null,null,null,null,null,null,null,null,null,null,null,null,null,null,null,null,null,1150.565528284083,0.19986905878501829,1022.9999901632034,0.48000000715255736,1113.235291478089,-45117.649103699048,-34095.796058092506]
[null,"936.60 deg C, 2.630",null,null,null,null,null,null,null,null,null,null,null,null,null,null,null,null,null,null,null,null,null,null,null,null,null,null,null,null,null,null,null,null,null,null,null,null,null,null,null,null,null,null,null,null,null,null,null,null,null,null,null,null,null,null,null,null,null,null,null,null,null,null,null,null,null,null,null,null,null,null,null,null,null,null,null,null,null,null,null,null,null,null,null,null,null,null,null,null,null,null,null,null,null,null,null,null,null,null,null,null,null,null,null,null,null,null,null,null,null,null,null,null,null,null,null,null,null,null,null,null,null,null,null,null,null,null,null,null,1068.0000015992673,0.18403469459107807,0.80226885426043137,0.1532613386413757,null,null,null,null,null,null,null,null,null,null,null,null,null,null,null,null,null,null,null,null,null,null,null,null,null,null,null,null,null,null,null,null,null,null,null,null,null,null,null,null,null,null,null,null,null,null,null,null,null,null,null,null,null,null,null,null,null,null,null,null,null,null,null,null,null,null,null,null,null,null,null,null,null,null,1148.0327406278811,0.19993872112830979,1019.999989996478,0.48800000727176668,1111.7647031980566,-45882.355020710893,-35650.896579742192]
[null,"935.03 deg C, 2.651",null,null,null,null,null,null,null,null,null,null,null,null,null,null,null,null,null,null,null,null,null,null,null,null,null,null,null,null,null,null,null,null,null,null,null,null,null,null,null,null,null,null,null,null,null,null,null,null,null,null,null,null,null,null,null,null,null,null,null,null,null,null,null,null,null,null,null,null,null,null,null,null,null,null,null,null,null,null,null,null,null,null,null,null,null,null,null,null,null,null,null,null,null,null,null,null,null,null,null,null,null,null,null,null,null,null,null,null,null,null,null,null,null,null,null,null,null,null,null,null,null,null,null,null,null,null,null,null,1063.8000016259216,0.16731912645053196,0.77131221036801612,0.1395241866703664,null,null,null,null,null,null,null,null,null,null,null,null,null,null,null,null,null,null,null,null,null,null,null,null,null,null,null,null,null,null,null,null,null,null,null,null,null,null,null,null,null,null,null,null,null,null,null,null,null,null,null,null,null,null,null,null,null,null,null,null,null,null,null,null,null,null,null,null,null,null,null,null,null,null,1145.4999529716792,0.19997133022360031,1016.9999898297526,0.49600000739097594,1110.2941149180244,-46647.060937722745,-37251.146228686201]
[null,"933.45 deg C, 2.671",null,null,null,null,null,null,null,null,null,null,null,null,null,null,null,null,null,null,null,null,null,null,null,null,null,null,null,null,null,null,null,null,null,null,null,null,null,null,null,null,null,null,null,null,null,null,null,null,null,null,null,null,null,null,null,null,null,null,null,null,null,null,null,null,null,null,null,null,null,null,null,null,null,null,null,null,null,null,null,null,null,null,null,null,null,null,null,null,null,null,null,null,null,null,null,null,null,null,null,null,null,null,null,null,null,null,null,null,null,null,null,null,null,null,null,null,null,null,null,null,null,null,null,null,null,null,null,null,1059.6000016525761,0.15183928203481131,0.73709722678191592,0.12683388951107458,null,null,null,null,null,null,null,null,null,null,null,null,null,null,null,null,null,null,null,null,null,null,null,null,null,null,null,null,null,null,null,null,null,null,null,null,null,null,null,null,null,null,null,null,null,null,null,null,null,null,null,null,null,null,null,null,null,null,null,null,null,null,null,null,null,null,null,null,null,null,null,null,null,null,1142.9671653154771,0.19998658837860289,1013.9999896630272,0.50400000751018526,1108.823526637992,-47411.766854734589,-38896.030246283161]
[null,"931.88 deg C, 2.692",null,null,null,null,null,null,null,null,null,null,null,null,null,null,null,null,null,null,null,null,null,null,null,null,null,null,null,null,null,null,null,null,null,null,null,null,null,null,null,null,null,null,null,null,null,null,null,null,null,null,null,null,null,null,null,null,null,null,null,null,null,null,null,null,null,null,null,null,null,null,null,null,null,null,null,null,null,null,null,null,null,null,null,null,null,null,null,null,null,null,null,null,null,null,null,null,null,null,null,null,null,null,null,null,null,null,null,null,null,null,null,null,null,null,null,null,null,null,null,null,null,null,null,null,null,null,null,null,1055.4000016792306,0.13755500059824755,0.69975585321358347,0.11514337464233595,null,null,null,null,null,null,null,null,null,null,null,null,null,null,null,null,null,null,null,null,null,null,null,null,null,null,null,null,null,null,null,null,null,null,null,null,null,null,null,null,null,null,null,null,null,null,null,null,null,null,null,null,null,null,null,null,null,null,null,null,null,null,null,null,null,null,null,null,null,null,null,null,null,null,1140.4343776592752,0.19999372647481586,1010.9999894963019,0.51200000762939457,1107.3529383579596,-48176.472771746441,-40584.868066460105]
[null,"930.31 deg C, 2.712",null,null,null,null,null,null,null,null,null,null,null,null,null,null,null,null,null,null,null,null,null,null,null,null,null,null,null,null,null,null,null,null,null,null,null,null,null,null,null,null,null,null,null,null,null,null,null,null,null,null,null,null,null,null,null,null,null,null,null,null,null,null,null,null,null,null,null,null,null,null,null,null,null,null,null,null,null,null,null,null,null,null,null,null,null,null,null,null,null,null,null,null,null,null,null,null,null,null,null,null,null,null,null,null,null,null,null,null,null,null,null,null,null,null,null,null,null,null,null,null,null,null,null,null,null,null,null,null,1051.2000017058849,0.12441739080613473,0.65956033243833723,0.10440155877717996,null,null,null,null,null,null,null,null,null,null,null,null,null,null,null,null,null,null,null,null,null,null,null,null,null,null,null,null,null,null,null,null,null,null,null,null,null,null,null,null,null,null,null,null,null,null,null,null,null,null,null,null,null,null,null,null,null,null,null,null,null,null,null,null,null,null,null,null,null,null,null,null,null,null,1137.9015900030731,0.19999706554100702,1007.9999893295766,0.52000000774860378,1105.8823500779272,-48941.178688758286,-42316.806817893761]
[null,"928.73 deg C, 2.733",null,null,null,null,null,null,null,null,null,null,null,null,null,null,null,null,null,null,null,null,null,null,null,null,null,null,null,null,null,null,null,null,null,null,null,null,null,null,null,null,null,null,null,null,null,null,null,null,null,null,null,null,null,null,null,null,null,null,null,null,null,null,null,null,null,null,null,null,null,null,null,null,null,null,null,null,null,null,null,null,null,null,null,null,null,null,null,null,null,null,null,null,null,null,null,null,null,null,null,null,null,null,null,null,null,null,null,null,null,null,null,null,null,null,null,null,null,null,null,null,null,null,null,null,null,null,null,null,1047.0000017325394,0.11237104296238912,0.61692945737973393,9.4554770758271525E-2,null,null,null,null,null,null,null,null,null,null,null,null,null,null,null,null,null,null,null,null,null,null,null,null,null,null,null,null,null,null,null,null,null,null,null,null,null,null,null,null,null,null,null,null,null,null,null,null,null,null,null,null,null,null,null,null,null,null,null,null,null,null,null,null,null,null,null,null,null,null,null,null,null,null,1135.3688023468712,0.19999862746584401,1004.9999891628512,0.52800000786781309,1104.4117617978948,-49705.884605770138,-44090.815691505173]
[null,"927.16 deg C, 2.754",null,null,null,null,null,null,null,null,null,null,null,null,null,null,null,null,null,null,null,null,null,null,null,null,null,null,null,null,null,null,null,null,null,null,null,null,null,null,null,null,null,null,null,null,null,null,null,null,null,null,null,null,null,null,null,null,null,null,null,null,null,null,null,null,null,null,null,null,null,null,null,null,null,null,null,null,null,null,null,null,null,null,null,null,null,null,null,null,null,null,null,null,null,null,null,null,null,null,null,null,null,null,null,null,null,null,null,null,null,null,null,null,null,null,null,null,null,null,null,null,null,null,null,null,null,null,null,null,1042.8000017591939,0.10135603225908196,0.57242096629282557,8.5547985929750311E-2,null,null,null,null,null,null,null,null,null,null,null,null,null,null,null,null,null,null,null,null,null,null,null,null,null,null,null,null,null,null,null,null,null,null,null,null,null,null,null,null,null,null,null,null,null,null,null,null,null,null,null,null,null,null,null,null,null,null,null,null,null,null,null,null,null,null,null,null,null,null,null,null,null,null,1132.8360146906693,0.19999935825257492,1001.9999889961258,0.53600000798702241,1102.9411735178624,-50470.590522781982,-45905.681301256009]
[null,"925.59 deg C, 2.775",null,null,null,null,null,null,null,null,null,null,null,null,null,null,null,null,null,null,null,null,null,null,null,null,null,null,null,null,null,null,null,null,null,null,null,null,null,null,null,null,null,null,null,null,null,null,null,null,null,null,null,null,null,null,null,null,null,null,null,null,null,null,null,null,null,null,null,null,null,null,null,null,null,null,null,null,null,null,null,null,null,null,null,null,null,null,null,null,null,null,null,null,null,null,null,null,null,null,null,null,null,null,null,null,null,null,null,null,null,null,null,null,null,null,null,null,null,null,null,null,null,null,null,null,null,null,null,null,1038.6000017858485,9.1309681189262554E-2,0.52670843633987929,7.7325870798879315E-2,null,null,null,null,null,null,null,null,null,null,null,null,null,null,null,null,null,null,null,null,null,null,null,null,null,null,null,null,null,null,null,null,null,null,null,null,null,null,null,null,null,null,null,null,null,null,null,null,null,null,null,null,null,null,null,null,null,null,null,null,null,null,null,null,null,null,null,null,null,null,null,null,null,null,1130.3032270344672,0.1999997009658222,998.99998882940042,0.54400000810623172,1101.4705852378299,-51235.296439793834,-47760.004163291494]
[null,"924.01 deg C, 2.797",null,null,null,null,null,null,null,null,null,null,null,null,null,null,null,null,null,null,null,null,null,null,null,null,null,null,null,null,null,null,null,null,null,null,null,null,null,null,null,null,null,null,null,null,null,null,null,null,null,null,null,null,null,null,null,null,null,null,null,null,null,null,null,null,null,null,null,null,null,null,null,null,null,null,null,null,null,null,null,null,null,null,null,null,null,null,null,null,null,null,null,null,null,null,null,null,null,null,null,null,null,null,null,null,null,null,null,null,null,null,null,null,null,null,null,null,null,null,null,null,null,null,null,null,null,null,null,null,1034.4000018125028,8.2168068067323005E-2,0.4805437122545283,6.9833644838229819E-2,null,null,null,null,null,null,null,null,null,null,null,null,null,null,null,null,null,null,null,null,null,null,null,null,null,null,null,null,null,null,null,null,null,null,null,null,null,null,null,null,null,null,null,null,null,null,null,null,null,null,null,null,null,null,null,null,null,null,null,null,null,null,null,null,null,null,null,null,null,null,null,null,null,null,1127.7704393782653,0.1999998653354019,995.99998866267504,0.55200000822544093,1099.9999969577975,-52000.002356805679,-49652.196412947975]
[null,"922.44 deg C, 2.818",null,null,null,null,null,null,null,null,null,null,null,null,null,null,null,null,null,null,null,null,null,null,null,null,null,null,null,null,null,null,null,null,null,null,null,null,null,null,null,null,null,null,null,null,null,null,null,null,null,null,null,null,null,null,null,null,null,null,null,null,null,null,null,null,null,null,null,null,null,null,null,null,null,null,null,null,null,null,null,null,null,null,null,null,null,null,null,null,null,null,null,null,null,null,null,null,null,null,null,null,null,null,null,null,null,null,null,null,null,null,null,null,null,null,null,null,null,null,null,null,null,null,null,null,null,null,null,null,1030.2000018391573,7.3867283345477208E-2,0.43470883656155468,6.301777192315948E-2,null,null,null,null,null,null,null,null,null,null,null,null,null,null,null,null,null,null,null,null,null,null,null,null,null,null,null,null,null,null,null,null,null,null,null,null,null,null,null,null,null,null,null,null,null,null,null,null,null,null,null,null,null,null,null,null,null,null,null,null,null,null,null,null,null,null,null,null,null,null,null,null,null,null,1125.2376517220632,0.19999996079617444,992.99998849594965,0.56000000834465025,1098.5294086777653,-52764.70827381753,-51580.480870888903]
[null,"920.87 deg C, 2.840",null,null,null,null,null,null,null,null,null,null,null,null,null,null,null,null,null,null,null,null,null,null,null,null,null,null,null,null,null,null,null,null,null,null,null,null,null,null,null,null,null,null,null,null,null,null,null,null,null,null,null,null,null,null,null,null,null,null,null,null,null,null,null,null,null,null,null,null,null,null,null,null,null,null,null,null,null,null,null,null,null,null,null,null,null,null,null,null,null,null,null,null,null,null,null,null,null,null,null,null,null,null,null,null,null,null,null,null,null,null,null,null,null,null,null,null,null,null,null,null,null,null,null,null,null,null,null,null,1026.0000018658118,6.6344446199792961E-2,0.38996378105280255,5.6826497473643371E-2,null,null,null,null,null,null,null,null,null,null,null,null,null,null,null,null,null,null,null,null,null,null,null,null,null,null,null,null,null,null,null,null,null,null,null,null,null,null,null,null,null,null,null,null,null,null,null,null,null,null,null,null,null,null,null,null,null,null,null,null,null,null,null,null,null,null,null,null,null,null,null,null,null,null,1122.7048640658613,0.20000009024080914,989.99998832922438,0.56800000846385956,1097.0588203977329,-53529.414190829375,-53542.891558568124]
[null,"919.30 deg C, 2.862",null,null,null,null,null,null,null,null,null,null,null,null,null,null,null,null,null,null,null,null,null,null,null,null,null,null,null,null,null,null,null,null,null,null,null,null,null,null,null,null,null,null,null,null,null,null,null,null,null,null,null,null,null,null,null,null,null,null,null,null,null,null,null,null,null,null,null,null,null,null,null,null,null,null,null,null,null,null,null,null,null,null,null,null,null,null,null,null,null,null,null,null,null,null,null,null,null,null,null,null,null,null,null,null,null,null,null,null,null,null,null,null,null,null,null,null,null,null,null,null,null,null,null,null,null,null,null,null,1021.8000018924661,5.9538501085510856E-2,0.34699725496617234,5.1210249249029435E-2,null,null,null,null,null,null,null,null,null,null,null,null,null,null,null,null,null,null,null,null,null,null,null,null,null,null,null,null,null,null,null,null,null,null,null,null,null,null,null,null,null,null,null,null,null,null,null,null,null,null,null,null,null,null,null,null,null,null,null,null,null,null,null,null,null,null,null,null,null,null,null,null,null,null,1120.1720764096594,0.20000053717549426,986.99998816249899,0.57600000858306888,1095.5882321177005,-54294.120107841227,-55537.275749333414]
[null,"917.72 deg C, 2.883",null,null,null,null,null,null,null,null,null,null,null,null,null,null,null,null,null,null,null,null,null,null,null,null,null,null,null,null,null,null,null,null,null,null,null,null,null,null,null,null,null,null,null,null,null,null,null,null,null,null,null,null,null,null,null,null,null,null,null,null,null,null,null,null,null,null,null,null,null,null,null,null,null,null,null,null,null,null,null,null,null,null,null,null,null,null,null,null,null,null,null,null,null,null,null,null,null,null,null,null,null,null,null,null,null,null,null,null,null,null,null,null,null,null,null,null,null,null,null,null,null,null,null,null,null,null,null,null,1017.6000019191206,5.3390818192027185E-2,0.30638714804733613,4.6121920306824132E-2,null,null,null,null,null,null,null,null,null,null,null,null,null,null,null,null,null,null,null,null,null,null,null,null,null,null,null,null,null,null,null,null,null,null,null,null,null,null,null,null,null,null,null,null,null,null,null,null,null,null,null,null,null,null,null,null,null,null,null,null,null,null,null,null,null,null,null,null,null,null,null,null,null,null,1117.6392887534573,0.20000250084089294,983.99998799577361,0.58400000870227808,1094.1176438376681,-55058.826024853071,-57561.297624843224]
[null,"916.15 deg C, 2.906",null,null,null,null,null,null,null,null,null,null,null,null,null,null,null,null,null,null,null,null,null,null,null,null,null,null,null,null,null,null,null,null,null,null,null,null,null,null,null,null,null,null,null,null,null,null,null,null,null,null,null,null,null,null,null,null,null,null,null,null,null,null,null,null,null,null,null,null,null,null,null,null,null,null,null,null,null,null,null,null,null,null,null,null,null,null,null,null,null,null,null,null,null,null,null,null,null,null,null,null,null,null,null,null,null,null,null,null,null,null,null,null,null,null,null,null,null,null,null,null,null,null,null,null,null,null,null,null,1013.4000019457751,4.7845623580510838E-2,0.26857500394993289,4.1517052231455104E-2,null,null,null,null,null,null,null,null,null,null,null,null,null,null,null,null,null,null,null,null,null,null,null,null,null,null,null,null,null,null,null,null,null,null,null,null,null,null,null,null,null,null,null,null,null,null,null,null,null,null,null,null,null,null,null,null,null,null,null,null,null,null,null,null,null,null,null,null,null,null,null,null,null,null,1115.1065010972554,0.2000113287398661,980.99998782904822,0.5920000088214874,1092.6470555576357,-55823.531941864923,-59612.44358723201]
[null,"914.58 deg C, 2.928",null,null,null,null,null,null,null,null,null,null,null,null,null,null,null,null,null,null,null,null,null,null,null,null,null,null,null,null,null,null,null,null,null,null,null,null,null,null,null,null,null,null,null,null,null,null,null,null,null,null,null,null,null,null,null,null,null,null,null,null,null,null,null,null,null,null,null,null,null,null,null,null,null,null,null,null,null,null,null,null,null,null,null,null,null,null,null,null,null,null,null,null,null,null,null,null,null,null,null,null,null,null,null,null,null,null,null,null,null,null,null,null,null,null,null,null,null,null,null,null,null,null,null,null,null,null,null,null,1009.2000019724296,4.2850284859350406E-2,0.23385602508205872,3.7353935669013523E-2,null,null,null,null,null,null,null,null,null,null,null,null,null,null,null,null,null,null,null,null,null,null,null,null,null,null,null,null,null,null,null,null,null,null,null,null,null,null,null,null,null,null,null,null,null,null,null,null,null,null,null,null,null,null,null,null,null,null,null,null,null,null,null,null,null,null,null,null,null,null,null,null,null,null,1112.5737134410533,0.20005056111089956,977.99998766232284,0.60000000894069672,1091.1764672776033,-56588.237858876768,-61688.029255868249]
[null,"913.00 deg C, 2.950",null,null,null,null,null,null,null,null,null,null,null,null,null,null,null,null,null,null,null,null,null,null,null,null,null,null,null,null,null,null,null,null,null,null,null,null,null,null,null,null,null,null,null,null,null,null,null,null,null,null,null,null,null,null,null,null,null,null,null,null,null,null,null,null,null,null,null,null,null,null,null,null,null,null,null,null,null,null,null,null,null,null,null,null,null,null,null,null,null,null,null,null,null,null,null,null,null,null,null,null,null,null,null,null,null,null,null,null,null,null,null,null,null,null,null,null,null,null,null,null,null,null,null,null,null,null,null,null,1005.0000019990839,3.8355477077212589E-2,0.20238334406331954,3.3593643718528937E-2,null,null,null,null,null,null,null,null,null,null,null,null,null,null,null,null,null,null,null,null,null,null,null,null,null,null,null,null,null,null,null,null,null,null,null,null,null,null,null,null,null,null,null,null,null,null,null,null,null,null,null,null,null,null,null,null,null,null,null,null,null,null,null,null,null,null,null,null,null,null,null,null,null,null,1110.0409257848514,0.20021971910589617,974.99998749559745,0.60800000905990603,1089.7058789975708,-57352.94377588862,-63785.20815394025]
[null,"911.43 deg C, 2.973",null,null,null,null,null,null,null,null,null,null,null,null,null,null,null,null,null,null,null,null,null,null,null,null,null,null,null,null,null,null,null,null,null,null,null,null,null,null,null,null,null,null,null,null,null,null,null,null,null,null,null,null,null,null,null,null,null,null,null,null,null,null,null,null,null,null,null,null,null,null,null,null,null,null,null,null,null,null,null,null,null,null,null,null,null,null,null,null,null,null,null,null,null,null,null,null,null,null,null,null,null,null,null,null,null,null,null,null,null,null,null,null,null,null,null,null,null,null,null,null,null,null,null,null,null,null,null,null,1000.8000020257384,3.4315251536269513E-2,0.17418332662300059,3.0200012025085501E-2,null,null,null,null,null,null,null,null,null,null,null,null,null,null,null,null,null,null,null,null,null,null,null,null,null,null,null,null,null,null,null,null,null,null,null,null,null,null,null,null,null,null,null,null,null,null,null,null,null,null,null,null,null,null,null,null,null,null,null,null,null,null,null,null,null,null,null,null,null,null,null,null,null,null,1107.5081381286495,0.20090514412060165,971.99998732887218,0.61600000917911535,1088.2352907175384,-58117.649692900464,-65900.982064900469]
[null,"909.86 deg C, 2.996",null,null,null,null,null,null,null,null,null,null,null,null,null,null,null,null,null,null,null,null,null,null,null,null,null,null,null,null,null,null,null,null,null,null,null,null,null,null,null,null,null,null,null,null,null,null,null,null,null,null,null,null,null,null,null,null,null,null,null,null,null,null,null,null,null,null,null,null,null,null,null,null,null,null,null,null,null,null,null,null,null,null,null,null,null,null,null,null,null,null,null,null,null,null,null,null,null,null,null,null,null,null,null,null,null,null,null,null,null,null,null,null,null,null,null,null,null,null,null,null,null,null,null,null,null,null,null,null,996.60000205239294,3.0687027802431439E-2,0.14917777920210551,2.7139577641502134E-2,null,null,null,null,null,null,null,null,null,null,null,null,null,null,null,null,null,null,null,null,null,null,null,null,null,null,null,null,null,null,null,null,null,null,null,null,null,null,null,null,null,null,null,null,null,null,null,null,null,null,null,null,null,null,null,null,null,null,null,null,null,null,null,null,null,null,null,null,null,null,null,null,null,null,1104.9753504724474,0.20336836381420709,968.99998716214679,0.62400000929832455,1086.764702437506,-58882.355609912316,-68032.213012500841]
[null,"908.28 deg C, 3.019",null,null,null,null,null,null,null,null,null,null,null,null,null,null,null,null,null,null,null,null,null,null,null,null,null,null,null,null,null,null,null,null,null,null,null,null,null,null,null,null,null,null,null,null,null,null,null,null,null,null,null,null,null,null,null,null,null,null,null,null,null,null,null,null,null,null,null,null,null,null,null,null,null,null,null,null,null,null,null,null,null,null,null,null,null,null,null,null,null,null,null,null,null,null,null,null,null,null,null,null,null,null,null,null,null,null,null,null,null,null,null,null,null,null,null,null,null,null,null,null,null,null,null,null,null,null,null,null,992.40000207904723,2.7431526581200131E-2,0.12720902931943268,2.4381486977480805E-2,null,null,null,null,null,null,null,null,null,null,null,null,null,null,null,null,null,null,null,null,null,null,null,null,null,null,null,null,null,null,null,null,null,null,null,null,null,null,null,null,null,null,null,null,null,null,null,null,null,null,null,null,null,null,null,null,null,null,null,null,null,null,null,null,null,null,null,null,null,null,null,null,null,null,1102.4425628162455,0.21053569910900496,965.99998699542141,0.63200000941753387,1085.2941141574738,-59647.061526924161,-70175.636791330035]
[null,"906.71 deg C, 3.042",null,null,null,null,null,null,null,null,null,null,null,null,null,null,null,null,null,null,null,null,null,null,null,null,null,null,null,null,null,null,null,null,null,null,null,null,null,null,null,null,null,null,null,null,null,null,null,null,null,null,null,null,null,null,null,null,null,null,null,null,null,null,null,null,null,null,null,null,null,null,null,null,null,null,null,null,null,null,null,null,null,null,null,null,null,null,null,null,null,null,null,null,null,null,null,null,null,null,null,null,null,null,null,null,null,null,null,null,null,null,null,null,null,null,null,null,null,null,null,null,null,null,null,null,null,null,null,null,988.20000210570174,2.4512658526512486E-2,0.1080646055444104,2.1897381507349614E-2,null,null,null,null,null,null,null,null,null,null,null,null,null,null,null,null,null,null,null,null,null,null,null,null,null,null,null,null,null,null,null,null,null,null,null,null,null,null,null,null,null,null,null,null,null,null,null,null,null,null,null,null,null,null,null,null,null,null,null,null,null,null,null,null,null,null,null,null,null,null,null,null,null,null,1099.9097751600434,0.22568122343982289,962.99998682869602,0.64000000953674319,1083.8235258774414,-60411.767443936013,-72327.877948041642]
[null,"905.14 deg C, 3.066",null,null,null,null,null,null,null,null,null,null,null,null,null,null,null,null,null,null,null,null,null,null,null,null,null,null,null,null,null,null,null,null,null,null,null,null,null,null,null,null,null,null,null,null,null,null,null,null,null,null,null,null,null,null,null,null,null,null,null,null,null,null,null,null,null,null,null,null,null,null,null,null,null,null,null,null,null,null,null,null,null,null,null,null,null,null,null,null,null,null,null,null,null,null,null,null,null,null,null,null,null,null,null,null,null,null,null,null,null,null,null,null,null,null,null,null,null,null,null,null,null,null,null,null,null,null,null,null,984.00000213235626,2.1897381582108008E-2,9.1499290280226547E-2,1.966126840179103E-2,null,null,null,null,null,null,null,null,null,null,null,null,null,null,null,null,null,null,null,null,null,null,null,null,null,null,null,null,null,null,null,null,null,null,null,null,null,null,null,null,null,null,null,null,null,null,null,null,null,null,null,null,null,null,null,null,null,null,null,null,null,null,null,null,null,null,null,null,null,null,null,null,null,null,1097.3769875038415,0.24721972750610335,959.99998666197064,0.6480000096559525,1082.352937597409,-61176.473360947857,-74485.466087497392]
[null,"903.56 deg C, 3.089",null,null,null,null,null,null,null,null,null,null,null,null,null,null,null,null,null,null,null,null,null,null,null,null,null,null,null,null,null,null,null,null,null,null,null,null,null,null,null,null,null,null,null,null,null,null,null,null,null,null,null,null,null,null,null,null,null,null,null,null,null,null,null,null,null,null,null,null,null,null,null,null,null,null,null,null,null,null,null,null,null,null,null,null,null,null,null,null,null,null,null,null,null,null,null,null,null,null,null,null,null,null,null,null,null,null,null,null,null,null,null,null,null,null,null,null,null,null,null,null,null,null,null,null,null,null,null,null,979.80000215901077,1.9555537197355748E-2,7.7253348489191992E-2,1.764938190663231E-2,null,null,null,null,null,null,null,null,null,null,null,null,null,null,null,null,null,null,null,null,null,null,null,null,null,null,null,null,null,null,null,null,null,null,null,null,null,null,null,null,null,null,null,null,null,null,null,null,null,null,null,null,null,null,null,null,null,null,null,null,null,null,null,null,null,null,null,null,null,null,null,null,null,null,1094.8441998476396,0.26797052615040257,956.99998649524525,0.65600000977516171,1080.8823493173766,-61941.179277959709,-76644.853353511382]
[null,"901.99 deg C, 3.113",null,null,null,null,null,null,null,null,null,null,null,null,null,null,null,null,null,null,null,null,null,null,null,null,null,null,null,null,null,null,null,null,null,null,null,null,null,null,null,null,null,null,null,null,null,null,null,null,null,null,null,null,null,null,null,null,null,null,null,null,null,null,null,null,null,null,null,null,null,null,null,null,null,null,null,null,null,null,null,null,null,null,null,null,null,null,null,null,null,null,null,null,null,null,null,null,null,null,null,null,null,null,null,null,null,null,null,null,null,null,null,null,null,null,null,null,null,null,null,null,null,null,null,null,null,null,null,null,975.60000218566506,1.7459673751748526E-2,6.506656867994226E-2,1.5840040119410925E-2,null,null,null,null,null,null,null,null,null,null,null,null,null,null,null,null,null,null,null,null,null,null,null,null,null,null,null,null,null,null,null,null,null,null,null,null,null,null,null,null,null,null,null,null,null,null,null,null,null,null,null,null,null,null,null,null,null,null,null,null,null,null,null,null,null,null,null,null,null,null,null,null,null,null,1092.3114121914375,0.28270451479455944,953.99998632851998,0.66400000989437102,1079.4117610373441,-62705.885194971554,-78802.432911431621]
[null,null,null,null,null,null,null,null,null,null,null,null,null,null,null,null,null,null,null,null,null,null,null,null,null,null,null,null,null,null,null,null,null,null,null,null,null,null,null,null,null,null,null,null,null,null,null,null,null,null,null,null,null,null,null,null,null,null,null,null,null,null,null,null,null,null,null,null,null,null,null,null,null,null,null,null,null,null,null,null,null,null,null,null,null,null,null,null,null,null,null,null,null,null,null,null,null,null,null,null,null,null,null,null,null,null,null,null,null,null,null,null,null,null,null,null,null,null,null,null,null,null,null,null,null,null,null,null,null,null,971.40000221231958,1.5584863777461362E-2,5.4688324402756762E-2,1.4213500808377607E-2,null,null,null,null,null,null,null,null,null,null,null,null,null,null,null,null,null,null,null,null,null,null,null,null,null,null,null,null,null,null,null,null,null,null,null,null,null,null,null,null,null,null,null,null,null,null,null,null,null,null,null,null,null,null,null,null,null,null,null,null,null,null,null,null,null,null,null,null,null,null,null,null,null,null,1089.7786245352356,0.29129531933612446,950.9999861617946,0.67200001001358034,1077.9411727573117,-63470.591111983405,-80954.558240057406]
[null,null,null,null,null,null,null,null,null,null,null,null,null,null,null,null,null,null,null,null,null,null,null,null,null,null,null,null,null,null,null,null,null,null,null,null,null,null,null,null,null,null,null,null,null,null,null,null,null,null,null,null,null,null,null,null,null,null,null,null,null,null,null,null,null,null,null,null,null,null,null,null,null,null,null,null,null,null,null,null,null,null,null,null,null,null,null,null,null,null,null,null,null,null,null,null,null,null,null,null,null,null,null,null,null,null,null,null,null,null,null,null,null,null,null,null,null,null,null,null,null,null,null,null,null,null,null,null,null,null,967.20000223897409,1.3908520082441193E-2,4.588418983933281E-2,1.2751819068655757E-2,null,null,null,null,null,null,null,null,null,null,null,null,null,null,null,null,null,null,null,null,null,null,null,null,null,null,null,null,null,null,null,null,null,null,null,null,null,null,null,null,null,null,null,null,null,null,null,null,null,null,null,null,null,null,null,null,null,null,null,null,null,null,null,null,null,null,null,null,null,null,null,null,null,null,1087.2458368790335,0.2957801872043706,947.99998599506921,0.68000001013278966,1076.4705844772793,-64235.29702899525,-83097.563023933501]
[null,null,null,null,null,null,null,null,null,null,null,null,null,null,null,null,null,null,null,null,null,null,null,null,null,null,null,null,null,null,null,null,null,null,null,null,null,null,null,null,null,null,null,null,null,null,null,null,null,null,null,null,null,null,null,null,null,null,null,null,null,null,null,null,null,null,null,null,null,null,null,null,null,null,null,null,null,null,null,null,null,null,null,null,null,null,null,null,null,null,null,null,null,null,null,null,null,null,null,null,null,null,null,null,null,null,null,null,null,null,null,null,null,null,null,null,null,null,null,null,null,null,null,null,null,null,null,null,null,null,963.00000226562838,1.2410214631051653E-2,3.8439775788966402E-2,1.1438708902472514E-2,null,null,null,null,null,null,null,null,null,null,null,null,null,null,null,null,null,null,null,null,null,null,null,null,null,null,null,null,null,null,null,null,null,null,null,null,null,null,null,null,null,null,null,null,null,null,null,null,null,null,null,null,null,null,null,null,null,null,null,null,null,null,null,null,null,null,null,null,null,null,null,null,null,null,1084.7130492228316,0.2979922125234985,944.99998582834382,0.68800001025199886,1074.9999961972469,-65000.002946007102,-85227.781424370783]
[null,null,null,null,null,null,null,null,null,null,null,null,null,null,null,null,null,null,null,null,null,null,null,null,null,null,null,null,null,null,null,null,null,null,null,null,null,null,null,null,null,null,null,null,null,null,null,null,null,null,null,null,null,null,null,null,null,null,null,null,null,null,null,null,null,null,null,null,null,null,null,null,null,null,null,null,null,null,null,null,null,null,null,null,null,null,null,null,null,null,null,null,null,null,null,null,null,null,null,null,null,null,null,null,null,null,null,null,null,null,null,null,null,null,null,null,null,null,null,null,null,null,null,null,null,null,null,null,null,null,958.8000022922829,1.1071503012474634E-2,3.2162455718112402E-2,1.0259410228929672E-2,null,null,null,null,null,null,null,null,null,null,null,null,null,null,null,null,null,null,null,null,null,null,null,null,null,null,null,null,null,null,null,null,null,null,null,null,null,null,null,null,null,null,null,null,null,null,null,null,null,null,null,null,null,null,null,null,null,null,null,null,null,null,null,null,null,null,null,null,null,null,null,null,null,null,1082.1802615666297,0.29905326464022408,941.99998566161844,0.69600001037120818,1073.5294079172147,-65764.708863018954,-87341.568499003493]
[null,null,null,null,null,null,null,null,null,null,null,null,null,null,null,null,null,null,null,null,null,null,null,null,null,null,null,null,null,null,null,null,null,null,null,null,null,null,null,null,null,null,null,null,null,null,null,null,null,null,null,null,null,null,null,null,null,null,null,null,null,null,null,null,null,null,null,null,null,null,null,null,null,null,null,null,null,null,null,null,null,null,null,null,null,null,null,null,null,null,null,null,null,null,null,null,null,null,null,null,null,null,null,null,null,null,null,null,null,null,null,null,null,null,null,null,null,null,null,null,null,null,null,null,null,null,null,null,null,null,954.60000231893741,9.8757564931328343E-3,2.6881581100769398E-2,9.200562357531139E-3,null,null,null,null,null,null,null,null,null,null,null,null,null,null,null,null,null,null,null,null,null,null,null,null,null,null,null,null,null,null,null,null,null,null,null,null,null,null,null,null,null,null,null,null,null,null,null,null,null,null,null,null,null,null,null,null,null,null,null,null,null,null,null,null,null,null,null,null,null,null,null,null,null,null,1079.6474739104276,0.2995554892776271,938.99998549489305,0.70400001049041749,1072.0588196371823,-66529.414780030798,-89435.320535572944]
[null,null,null,null,null,null,null,null,null,null,null,null,null,null,null,null,null,null,null,null,null,null,null,null,null,null,null,null,null,null,null,null,null,null,null,null,null,null,null,null,null,null,null,null,null,null,null,null,null,null,null,null,null,null,null,null,null,null,null,null,null,null,null,null,null,null,null,null,null,null,null,null,null,null,null,null,null,null,null,null,null,null,null,null,null,null,null,null,null,null,null,null,null,null,null,null,null,null,null,null,null,null,null,null,null,null,null,null,null,null,null,null,null,null,null,null,null,null,null,null,null,null,null,null,null,null,null,null,null,null,950.40000234559193,8.8080029821054045E-3,2.2447682254304106E-2,8.2500845829733393E-3,null,null,null,null,null,null,null,null,null,null,null,null,null,null,null,null,null,null,null,null,null,null,null,null,null,null,null,null,null,null,null,null,null,null,null,null,null,null,null,null,null,null,null,null,null,null,null,null,null,null,null,null,null,null,null,null,null,null,null,null,null,null,null,null,null,null,null,null,null,null,null,null,null,null,1077.1146862542257,0.29979171342843203,935.99998532816767,0.71200001060962681,1070.5882313571499,-67294.120697042643,-91505.49506606943]
[null,null,null,null,null,null,null,null,null,null,null,null,null,null,null,null,null,null,null,null,null,null,null,null,null,null,null,null,null,null,null,null,null,null,null,null,null,null,null,null,null,null,null,null,null,null,null,null,null,null,null,null,null,null,null,null,null,null,null,null,null,null,null,null,null,null,null,null,null,null,null,null,null,null,null,null,null,null,null,null,null,null,null,null,null,null,null,null,null,null,null,null,null,null,null,null,null,null,null,null,null,null,null,null,null,null,null,null,null,null,null,null,null,null,null,null,null,null,null,null,null,null,null,null,null,null,null,null,null,null,946.20000237224622,7.8547777126936683E-3,1.8731041978903195E-2,7.3970642619650461E-3,null,null,null,null,null,null,null,null,null,null,null,null,null,null,null,null,null,null,null,null,null,null,null,null,null,null,null,null,null,null,null,null,null,null,null,null,null,null,null,null,null,null,null,null,null,null,null,null,null,null,null,null,null,null,null,null,null,null,null,null,null,null,null,null,null,null,null,null,null,null,null,null,null,null,1074.5818985980236,0.29990249432265303,932.9999851614424,0.72000001072883602,1069.1176430771175,-68058.826614054487,-93548.630332370434]
[null,null,null,null,null,null,null,null,null,null,null,null,null,null,null,null,null,null,null,null,null,null,null,null,null,null,null,null,null,null,null,null,null,null,null,null,null,null,null,null,null,null,null,null,null,null,null,null,null,null,null,null,null,null,null,null,null,null,null,null,null,null,null,null,null,null,null,null,null,null,null,null,null,null,null,null,null,null,null,null,null,null,null,null,null,null,null,null,null,null,null,null,null,null,null,null,null,null,null,null,null,null,null,null,null,null,null,null,null,null,null,null,null,null,null,null,null,null,null,null,null,null,null,null,null,null,null,null,null,null,942.00000239890073,7.0039840357890015E-3,1.5619929507249044E-2,6.6316525029103748E-3,null,null,null,null,null,null,null,null,null,null,null,null,null,null,null,null,null,null,null,null,null,null,null,null,null,null,null,null,null,null,null,null,null,null,null,null,null,null,null,null,null,null,null,null,null,null,null,null,null,null,null,null,null,null,null,null,null,null,null,null,null,null,null,null,null,null,null,null,null,null,null,null,null,null,1072.0491109418217,0.29995437464163355,929.99998499471701,0.72800001084804533,1067.647054797085,-68823.532531066347,-95561.363983956951]
[null,null,null,null,null,null,null,null,null,null,null,null,null,null,null,null,null,null,null,null,null,null,null,null,null,null,null,null,null,null,null,null,null,null,null,null,null,null,null,null,null,null,null,null,null,null,null,null,null,null,null,null,null,null,null,null,null,null,null,null,null,null,null,null,null,null,null,null,null,null,null,null,null,null,null,null,null,null,null,null,null,null,null,null,null,null,null,null,null,null,null,null,null,null,null,null,null,null,null,null,null,null,null,null,null,null,null,null,null,null,null,null,null,null,null,null,null,null,null,null,null,null,null,null,null,null,null,null,null,null,937.80000242555525,6.2447644107758247E-3,1.3018698293152324E-2,5.9449674245058339E-3,null,null,null,null,null,null,null,null,null,null,null,null,null,null,null,null,null,null,null,null,null,null,null,null,null,null,null,null,null,null,null,null,null,null,null,null,null,null,null,null,null,null,null,null,null,null,null,null,null,null,null,null,null,null,null,null,null,null,null,null,null,null,null,null,null,null,null,null,null,null,null,null,null,null,1069.5163232856198,0.29997865517056099,926.99998482799163,0.73600001096725465,1066.1764665170526,-69588.238448078191,-97540.450801909319]
[null,null,null,null,null,null,null,null,null,null,null,null,null,null,null,null,null,null,null,null,null,null,null,null,null,null,null,null,null,null,null,null,null,null,null,null,null,null,null,null,null,null,null,null,null,null,null,null,null,null,null,null,null,null,null,null,null,null,null,null,null,null,null,null,null,null,null,null,null,null,null,null,null,null,null,null,null,null,null,null,null,null,null,null,null,null,null,null,null,null,null,null,null,null,null,null,null,null,null,null,null,null,null,null,null,null,null,null,null,null,null,null,null,null,null,null,null,null,null,null,null,null,null,null,null,null,null,null,null,null,933.60000245220976,5.5673814492768117E-3,1.0845884613963221E-2,5.3290048095558833E-3,null,null,null,null,null,null,null,null,null,null,null,null,null,null,null,null,null,null,null,null,null,null,null,null,null,null,null,null,null,null,null,null,null,null,null,null,null,null,null,null,null,null,null,null,null,null,null,null,null,null,null,null,null,null,null,null,null,null,null,null,null,null,null,null,null,null,null,null,null,null,null,null,null,null,1066.9835356294177,0.29999001525482749,923.99998466126624,0.74400001108646396,1064.7058782370202,-70352.944365090036,-99482.779260799303]
[null,null,null,null,null,null,null,null,null,null,null,null,null,null,null,null,null,null,null,null,null,null,null,null,null,null,null,null,null,null,null,null,null,null,null,null,null,null,null,null,null,null,null,null,null,null,null,null,null,null,null,null,null,null,null,null,null,null,null,null,null,null,null,null,null,null,null,null,null,null,null,null,null,null,null,null,null,null,null,null,null,null,null,null,null,null,null,null,null,null,null,null,null,null,null,null,null,null,null,null,null,null,null,null,null,null,null,null,null,null,null,null,null,null,null,null,null,null,null,null,null,null,null,null,null,null,null,null,null,null,929.40000247886405,4.9631087005840568E-3,9.0323936329555297E-3,4.7765558869310061E-3,null,null,null,null,null,null,null,null,null,null,null,null,null,null,null,null,null,null,null,null,null,null,null,null,null,null,null,null,null,null,null,null,null,null,null,null,null,null,null,null,null,null,null,null,null,null,null,null,null,null,null,null,null,null,null,null,null,null,null,null,null,null,null,null,null,null,null,null,null,null,null,null,null,null,1064.4507479732158,0.29999532951926122,920.99998449454085,0.75200001120567317,1063.2352899569878,-71117.65028210188,-101385.38676082154]
[null,null,null,null,null,null,null,null,null,null,null,null,null,null,null,null,null,null,null,null,null,null,null,null,null,null,null,null,null,null,null,null,null,null,null,null,null,null,null,null,null,null,null,null,null,null,null,null,null,null,null,null,null,null,null,null,null,null,null,null,null,null,null,null,null,null,null,null,null,null,null,null,null,null,null,null,null,null,null,null,null,null,null,null,null,null,null,null,null,null,null,null,null,null,null,null,null,null,null,null,null,null,null,null,null,null,null,null,null,null,null,null,null,null,null,null,null,null,null,null,null,null,null,null,null,null,null,null,null,null,925.20000250551857,4.4241307520156798E-3,7.5198230167927331E-3,4.281131910263164E-3,null,null,null,null,null,null,null,null,null,null,null,null,null,null,null,null,null,null,null,null,null,null,null,null,null,null,null,null,null,null,null,null,null,null,null,null,null,null,null,null,null,null,null,null,null,null,null,null,null,null,null,null,null,null,null,null,null,null,null,null,null,null,null,null,null,null,null,null,null,null,null,null,null,null,1061.9179603170137,0.29999781537463555,917.99998432781547,0.76000001132488249,1061.7647016769554,-71882.356199113739,-103245.4733859745]
[null,null,null,null,null,null,null,null,null,null,null,null,null,null,null,null,null,null,null,null,null,null,null,null,null,null,null,null,null,null,null,null,null,null,null,null,null,null,null,null,null,null,null,null,null,null,null,null,null,null,null,null,null,null,null,null,null,null,null,null,null,null,null,null,null,null,null,null,null,null,null,null,null,null,null,null,null,null,null,null,null,null,null,null,null,null,null,null,null,null,null,null,null,null,null,null,null,null,null,null,null,null,null,null,null,null,null,null,null,null,null,null,null,null,null,null,null,null,null,null,null,null,null,null,null,null,null,null,null,null,921.00000253217308,3.9434521417595599E-3,6.2589486598388982E-3,3.8368951605718838E-3,null,null,null,null,null,null,null,null,null,null,null,null,null,null,null,null,null,null,null,null,null,null,null,null,null,null,null,null,null,null,null,null,null,null,null,null,null,null,null,null,null,null,null,null,null,null,null,null,null,null,null,null,null,null,null,null,null,null,null,null,null,null,null,null,null,null,null,null,null,null,null,null,null,null,1059.3851726608118,0.29999897814788479,914.9999841610902,0.7680000114440918,1060.2941133969232,-72647.062116125584,-105068.39546345217]
[null,null,null,null,null,null,null,null,null,null,null,null,null,null,null,null,null,null,null,null,null,null,null,null,null,null,null,null,null,null,null,null,null,null,null,null,null,null,null,null,null,null,null,null,null,null,null,null,null,null,null,null,null,null,null,null,null,null,null,null,null,null,null,null,null,null,null,null,null,null,null,null,null,null,null,null,null,null,null,null,null,null,null,null,null,null,null,null,null,null,null,null,null,null,null,null,null,null,null,null,null,null,null,null,null,null,null,null,null,null,null,null,null,null,null,null,null,null,null,null,null,null,null,null,null,null,null,null,null,null,916.80000255882737,3.5148145370184863E-3,5.2083799308623776E-3,3.4385959764820762E-3,null,null,null,null,null,null,null,null,null,null,null,null,null,null,null,null,null,null,null,null,null,null,null,null,null,null,null,null,null,null,null,null,null,null,null,null,null,null,null,null,null,null,null,null,null,null,null,null,null,null,null,null,null,null,null,null,null,null,null,null,null,null,null,null,null,null,null,null,null,null,null,null,null,null,1056.8523850046099,0.2999995220338848,911.99998399436481,0.77600001156330112,1058.8235251168908,-73411.768033137429,-106851.33263245654]
[null,null,null,null,null,null,null,null,null,null,null,null,null,null,null,null,null,null,null,null,null,null,null,null,null,null,null,null,null,null,null,null,null,null,null,null,null,null,null,null,null,null,null,null,null,null,null,null,null,null,null,null,null,null,null,null,null,null,null,null,null,null,null,null,null,null,null,null,null,null,null,null,null,null,null,null,null,null,null,null,null,null,null,null,null,null,null,null,null,null,null,null,null,null,null,null,null,null,null,null,null,null,null,null,null,null,null,null,null,null,null,null,null,null,null,null,null,null,null,null,null,null,null,null,null,null,null,null,null,null,912.60000258548189,3.1326216091147091E-3,4.3333809119569513E-3,3.0815154058799928E-3,null,null,null,null,null,null,null,null,null,null,null,null,null,null,null,null,null,null,null,null,null,null,null,null,null,null,null,null,null,null,null,null,null,null,null,null,null,null,null,null,null,null,null,null,null,null,null,null,null,null,null,null,null,null,null,null,null,null,null,null,null,null,null,null,null,null,null,null,null,null,null,null,null,null,1054.3195973484078,0.29999977643427278,908.99998382763943,0.78400001168251032,1057.3529368368584,-74176.473950149273,-108591.63602073224]
[null,null,null,null,null,null,null,null,null,null,null,null,null,null,null,null,null,null,null,null,null,null,null,null,null,null,null,null,null,null,null,null,null,null,null,null,null,null,null,null,null,null,null,null,null,null,null,null,null,null,null,null,null,null,null,null,null,null,null,null,null,null,null,null,null,null,null,null,null,null,null,null,null,null,null,null,null,null,null,null,null,null,null,null,null,null,null,null,null,null,null,null,null,null,null,null,null,null,null,null,null,null,null,null,null,null,null,null,null,null,null,null,null,null,null,null,null,null,null,null,null,null,null,null,null,null,null,null,null,null,908.4000026121364,2.7918710337328546E-3,3.6048475671814858E-3,2.7614130733903427E-3,null,null,null,null,null,null,null,null,null,null,null,null,null,null,null,null,null,null,null,null,null,null,null,null,null,null,null,null,null,null,null,null,null,null,null,null,null,null,null,null,null,null,null,null,null,null,null,null,null,null,null,null,null,null,null,null,null,null,null,null,null,null,null,null,null,null,null,null,null,null,null,null,null,null,1051.7868096922059,0.29999989542860461,905.99998366091404,0.79200001180171964,1055.8823485568259,-74941.179867161132,-110286.83936201311]
[null,null,null,null,null,null,null,null,null,null,null,null,null,null,null,null,null,null,null,null,null,null,null,null,null,null,null,null,null,null,null,null,null,null,null,null,null,null,null,null,null,null,null,null,null,null,null,null,null,null,null,null,null,null,null,null,null,null,null,null,null,null,null,null,null,null,null,null,null,null,null,null,null,null,null,null,null,null,null,null,null,null,null,null,null,null,null,null,null,null,null,null,null,null,null,null,null,null,null,null,null,null,null,null,null,null,null,null,null,null,null,null,null,null,null,null,null,null,null,null,null,null,null,null,null,null,null,null,null,null,904.20000263879092,2.4880930539508584E-3,2.9984272955614908E-3,2.4744798662329182E-3,null,null,null,null,null,null,null,null,null,null,null,null,null,null,null,null,null,null,null,null,null,null,null,null,null,null,null,null,null,null,null,null,null,null,null,null,null,null,null,null,null,null,null,null,null,null,null,null,null,null,null,null,null,null,null,null,null,null,null,null,null,null,null,null,null,null,null,null,null,null,null,null,null,null,1049.2540220360038,0.29999995108744226,902.99998349418865,0.80000001192092896,1054.4117602767935,-75705.885784172977,-111934.66767900733]
[null,null,null,null,null,null,null,null,null,null,null,null,null,null,null,null,null,null,null,null,null,null,null,null,null,null,null,null,null,null,null,null,null,null,null,null,null,null,null,null,null,null,null,null,null,null,null,null,null,null,null,null,null,null,null,null,null,null,null,null,null,null,null,null,null,null,null,null,null,null,null,null,null,null,null,null,null,null,null,null,null,null,null,null,null,null,null,null,null,null,null,null,null,null,null,null,null,null,null,null,null,null,null,null,null,null,null,null,null,null,null,null,null,null,null,null,null,null,null,null,null,null,null,null,null,null,null,null,null,null,null,null,null,null,null,null,null,null,null,null,null,null,null,null,null,null,null,null,null,null,null,null,null,null,null,null,null,null,null,null,null,null,null,null,null,null,null,null,null,null,null,null,null,null,null,null,null,null,null,null,null,null,null,null,null,null,null,null,null,null,null,null,null,null,null,null,null,null,null,null,null,null,null,null,null,null,null,null,null,null,null,null,1052.9411719967611,-76470.591701184821,-113533.04422021259]
[null,null,null,null,null,null,null,null,null,null,null,null,null,null,null,null,null,null,null,null,null,null,null,null,null,null,null,null,null,null,null,null,null,null,null,null,null,null,null,null,null,null,null,null,null,null,null,null,null,null,null,null,null,null,null,null,null,null,null,null,null,null,null,null,null,null,null,null,null,null,null,null,null,null,null,null,null,null,null,null,null,null,null,null,null,null,null,null,null,null,null,null,null,null,null,null,null,null,null,null,null,null,null,null,null,null,null,null,null,null,null,null,null,null,null,null,null,null,null,null,null,null,null,null,null,null,null,null,null,null,null,null,null,null,null,null,null,null,null,null,null,null,null,null,null,null,null,null,null,null,null,null,null,null,null,null,null,null,null,null,null,null,null,null,null,null,null,null,null,null,null,null,null,null,null,null,null,null,null,null,null,null,null,null,null,null,null,null,null,null,null,null,null,null,null,null,null,null,null,null,null,null,null,null,null,null,null,null,null,null,null,null,1051.4705837167287,-77235.297618196666,-115080.09563962698]
[null,null,null,null,null,null,null,null,null,null,null,null,null,null,null,null,null,null,null,null,null,null,null,null,null,null,null,null,null,null,null,null,null,null,null,null,null,null,null,null,null,null,null,null,null,null,null,null,null,null,null,null,null,null,null,null,null,null,null,null,null,null,null,null,null,null,null,null,null,null,null,null,null,null,null,null,null,null,null,null,null,null,null,null,null,null,null,null,null,null,null,null,null,null,null,null,null,null,null,null,null,null,null,null,null,null,null,null,null,null,null,null,null,null,null,null,null,null,null,null,null,null,null,null,null,null,null,null,null,null,null,null,null,null,null,null,null,null,null,null,null,null,null,null,null,null,null,null,null,null,null,null,null,null,null,null,null,null,null,null,null,null,null,null,null,null,null,null,null,null,null,null,null,null,null,null,null,null,null,null,null,null,null,null,null,null,null,null,null,null,null,null,null,null,null,null,null,null,null,null,null,null,null,null,null,null,null,null,null,null,null,null,1049.9999954366963,-78000.003535208525,-116574.15543413568]
[null,null,null,null,null,null,null,null,null,null,null,null,null,null,null,null,null,null,null,null,null,null,null,null,null,null,null,null,null,null,null,null,null,null,null,null,null,null,null,null,null,null,null,null,null,null,null,null,null,null,null,null,null,null,null,null,null,null,null,null,null,null,null,null,null,null,null,null,null,null,null,null,null,null,null,null,null,null,null,null,null,null,null,null,null,null,null,null,null,null,null,null,null,null,null,null,null,null,null,null,null,null,null,null,null,null,null,null,null,null,null,null,null,null,null,null,null,null,null,null,null,null,null,null,null,null,null,null,null,null,null,null,null,null,null,null,null,null,null,null,null,null,null,null,null,null,null,null,null,null,null,null,null,null,null,null,null,null,null,null,null,null,null,null,null,null,null,null,null,null,null,null,null,null,null,null,null,null,null,null,null,null,null,null,null,null,null,null,null,null,null,null,null,null,null,null,null,null,null,null,null,null,null,null,null,null,null,null,null,null,null,null,1048.5294071566641,-78764.70945222037,-118013.76567742456]
[null,null,null,null,null,null,null,null,null,null,null,null,null,null,null,null,null,null,null,null,null,null,null,null,null,null,null,null,null,null,null,null,null,null,null,null,null,null,null,null,null,null,null,null,null,null,null,null,null,null,null,null,null,null,null,null,null,null,null,null,null,null,null,null,null,null,null,null,null,null,null,null,null,null,null,null,null,null,null,null,null,null,null,null,null,null,null,null,null,null,null,null,null,null,null,null,null,null,null,null,null,null,null,null,null,null,null,null,null,null,null,null,null,null,null,null,null,null,null,null,null,null,null,null,null,null,null,null,null,null,null,null,null,null,null,null,null,null,null,null,null,null,null,null,null,null,null,null,null,null,null,null,null,null,null,null,null,null,null,null,null,null,null,null,null,null,null,null,null,null,null,null,null,null,null,null,null,null,null,null,null,null,null,null,null,null,null,null,null,null,null,null,null,null,null,null,null,null,null,null,null,null,null,null,null,null,null,null,null,null,null,null,1047.0588188766317,-79529.415369232214,-119397.67711125528]
[null,null,null,null,null,null,null,null,null,null,null,null,null,null,null,null,null,null,null,null,null,null,null,null,null,null,null,null,null,null,null,null,null,null,null,null,null,null,null,null,null,null,null,null,null,null,null,null,null,null,null,null,null,null,null,null,null,null,null,null,null,null,null,null,null,null,null,null,null,null,null,null,null,null,null,null,null,null,null,null,null,null,null,null,null,null,null,null,null,null,null,null,null,null,null,null,null,null,null,null,null,null,null,null,null,null,null,null,null,null,null,null,null,null,null,null,null,null,null,null,null,null,null,null,null,null,null,null,null,null,null,null,null,null,null,null,null,null,null,null,null,null,null,null,null,null,null,null,null,null,null,null,null,null,null,null,null,null,null,null,null,null,null,null,null,null,null,null,null,null,null,null,null,null,null,null,null,null,null,null,null,null,null,null,null,null,null,null,null,null,null,null,null,null,null,null,null,null,null,null,null,null,null,null,null,null,null,null,null,null,null,null,1045.5882305965993,-80294.121286244059,-120724.84767448356]
[null,null,null,null,null,null,null,null,null,null,null,null,null,null,null,null,null,null,null,null,null,null,null,null,null,null,null,null,null,null,null,null,null,null,null,null,null,null,null,null,null,null,null,null,null,null,null,null,null,null,null,null,null,null,null,null,null,null,null,null,null,null,null,null,null,null,null,null,null,null,null,null,null,null,null,null,null,null,null,null,null,null,null,null,null,null,null,null,null,null,null,null,null,null,null,null,null,null,null,null,null,null,null,null,null,null,null,null,null,null,null,null,null,null,null,null,null,null,null,null,null,null,null,null,null,null,null,null,null,null,null,null,null,null,null,null,null,null,null,null,null,null,null,null,null,null,null,null,null,null,null,null,null,null,null,null,null,null,null,null,null,null,null,null,null,null,null,null,null,null,null,null,null,null,null,null,null,null,null,null,null,null,null,null,null,null,null,null,null,null,null,null,null,null,null,null,null,null,null,null,null,null,null,null,null,null,null,null,null,null,null,null,1044.1176423165668,-81058.827203255918,-121994.43956705013]
[null,null,null,null,null,null,null,null,null,null,null,null,null,null,null,null,null,null,null,null,null,null,null,null,null,null,null,null,null,null,null,null,null,null,null,null,null,null,null,null,null,null,null,null,null,null,null,null,null,null,null,null,null,null,null,null,null,null,null,null,null,null,null,null,null,null,null,null,null,null,null,null,null,null,null,null,null,null,null,null,null,null,null,null,null,null,null,null,null,null,null,null,null,null,null,null,null,null,null,null,null,null,null,null,null,null,null,null,null,null,null,null,null,null,null,null,null,null,null,null,null,null,null,null,null,null,null,null,null,null,null,null,null,null,null,null,null,null,null,null,null,null,null,null,null,null,null,null,null,null,null,null,null,null,null,null,null,null,null,null,null,null,null,null,null,null,null,null,null,null,null,null,null,null,null,null,null,null,null,null,null,null,null,null,null,null,null,null,null,null,null,null,null,null,null,null,null,null,null,null,null,null,null,null,null,null,null,null,null,null,null,null,1042.6470540365344,-81823.533120267763,-123205.81496015612]
[null,null,null,null,null,null,null,null,null,null,null,null,null,null,null,null,null,null,null,null,null,null,null,null,null,null,null,null,null,null,null,null,null,null,null,null,null,null,null,null,null,null,null,null,null,null,null,null,null,null,null,null,null,null,null,null,null,null,null,null,null,null,null,null,null,null,null,null,null,null,null,null,null,null,null,null,null,null,null,null,null,null,null,null,null,null,null,null,null,null,null,null,null,null,null,null,null,null,null,null,null,null,null,null,null,null,null,null,null,null,null,null,null,null,null,null,null,null,null,null,null,null,null,null,null,null,null,null,null,null,null,null,null,null,null,null,null,null,null,null,null,null,null,null,null,null,null,null,null,null,null,null,null,null,null,null,null,null,null,null,null,null,null,null,null,null,null,null,null,null,null,null,null,null,null,null,null,null,null,null,null,null,null,null,null,null,null,null,null,null,null,null,null,null,null,null,null,null,null,null,null,null,null,null,null,null,null,null,null,null,null,null,1041.176465756502,-82588.239037279607,-124358.53047487391]
[null,null,null,null,null,null,null,null,null,null,null,null,null,null,null,null,null,null,null,null,null,null,null,null,null,null,null,null,null,null,null,null,null,null,null,null,null,null,null,null,null,null,null,null,null,null,null,null,null,null,null,null,null,null,null,null,null,null,null,null,null,null,null,null,null,null,null,null,null,null,null,null,null,null,null,null,null,null,null,null,null,null,null,null,null,null,null,null,null,null,null,null,null,null,null,null,null,null,null,null,null,null,null,null,null,null,null,null,null,null,null,null,null,null,null,null,null,null,null,null,null,null,null,null,null,null,null,null,null,null,null,null,null,null,null,null,null,null,null,null,null,null,null,null,null,null,null,null,null,null,null,null,null,null,null,null,null,null,null,null,null,null,null,null,null,null,null,null,null,null,null,null,null,null,null,null,null,null,null,null,null,null,null,null,null,null,null,null,null,null,null,null,null,null,null,null,null,null,null,null,null,null,null,null,null,null,null,null,null,null,null,null,1039.7058774764696,-83352.944954291452,-125452.3305595454]
[null,null,null,null,null,null,null,null,null,null,null,null,null,null,null,null,null,null,null,null,null,null,null,null,null,null,null,null,null,null,null,null,null,null,null,null,null,null,null,null,null,null,null,null,null,null,null,null,null,null,null,null,null,null,null,null,null,null,null,null,null,null,null,null,null,null,null,null,null,null,null,null,null,null,null,null,null,null,null,null,null,null,null,null,null,null,null,null,null,null,null,null,null,null,null,null,null,null,null,null,null,null,null,null,null,null,null,null,null,null,null,null,null,null,null,null,null,null,null,null,null,null,null,null,null,null,null,null,null,null,null,null,null,null,null,null,null,null,null,null,null,null,null,null,null,null,null,null,null,null,null,null,null,null,null,null,null,null,null,null,null,null,null,null,null,null,null,null,null,null,null,null,null,null,null,null,null,null,null,null,null,null,null,null,null,null,null,null,null,null,null,null,null,null,null,null,null,null,null,null,null,null,null,null,null,null,null,null,null,null,null,null,1038.2352891964372,-84117.650871303311,-126487.13990156543]
[null,null,null,null,null,null,null,null,null,null,null,null,null,null,null,null,null,null,null,null,null,null,null,null,null,null,null,null,null,null,null,null,null,null,null,null,null,null,null,null,null,null,null,null,null,null,null,null,null,null,null,null,null,null,null,null,null,null,null,null,null,null,null,null,null,null,null,null,null,null,null,null,null,null,null,null,null,null,null,null,null,null,null,null,null,null,null,null,null,null,null,null,null,null,null,null,null,null,null,null,null,null,null,null,null,null,null,null,null,null,null,null,null,null,null,null,null,null,null,null,null,null,null,null,null,null,null,null,null,null,null,null,null,null,null,null,null,null,null,null,null,null,null,null,null,null,null,null,null,null,null,null,null,null,null,null,null,null,null,null,null,null,null,null,null,null,null,null,null,null,null,null,null,null,null,null,null,null,null,null,null,null,null,null,null,null,null,null,null,null,null,null,null,null,null,null,null,null,null,null,null,null,null,null,null,null,null,null,null,null,null,null,1036.764700916405,-84882.356788315155,-127463.05501168476]
[null,null,null,null,null,null,null,null,null,null,null,null,null,null,null,null,null,null,null,null,null,null,null,null,null,null,null,null,null,null,null,null,null,null,null,null,null,null,null,null,null,null,null,null,null,null,null,null,null,null,null,null,null,null,null,null,null,null,null,null,null,null,null,null,null,null,null,null,null,null,null,null,null,null,null,null,null,null,null,null,null,null,null,null,null,null,null,null,null,null,null,null,null,null,null,null,null,null,null,null,null,null,null,null,null,null,null,null,null,null,null,null,null,null,null,null,null,null,null,null,null,null,null,null,null,null,null,null,null,null,null,null,null,null,null,null,null,null,null,null,null,null,null,null,null,null,null,null,null,null,null,null,null,null,null,null,null,null,null,null,null,null,null,null,null,null,null,null,null,null,null,null,null,null,null,null,null,null,null,null,null,null,null,null,null,null,null,null,null,null,null,null,null,null,null,null,null,null,null,null,null,null,null,null,null,null,null,null,null,null,null,null,1035.2941126363726,-85647.062705327,-128380.33511899365]
[null,null,null,null,null,null,null,null,null,null,null,null,null,null,null,null,null,null,null,null,null,null,null,null,null,null,null,null,null,null,null,null,null,null,null,null,null,null,null,null,null,null,null,null,null,null,null,null,null,null,null,null,null,null,null,null,null,null,null,null,null,null,null,null,null,null,null,null,null,null,null,null,null,null,null,null,null,null,null,null,null,null,null,null,null,null,null,null,null,null,null,null,null,null,null,null,null,null,null,null,null,null,null,null,null,null,null,null,null,null,null,null,null,null,null,null,null,null,null,null,null,null,null,null,null,null,null,null,null,null,null,null,null,null,null,null,null,null,null,null,null,null,null,null,null,null,null,null,null,null,null,null,null,null,null,null,null,null,null,null,null,null,null,null,null,null,null,null,null,null,null,null,null,null,null,null,null,null,null,null,null,null,null,null,null,null,null,null,null,null,null,null,null,null,null,null,null,null,null,null,null,null,null,null,null,null,null,null,null,null,null,null,1033.8235243563402,-86411.768622338845,-129239.39251250849]
[null,null,null,null,null,null,null,null,null,null,null,null,null,null,null,null,null,null,null,null,null,null,null,null,null,null,null,null,null,null,null,null,null,null,null,null,null,null,null,null,null,null,null,null,null,null,null,null,null,null,null,null,null,null,null,null,null,null,null,null,null,null,null,null,null,null,null,null,null,null,null,null,null,null,null,null,null,null,null,null,null,null,null,null,null,null,null,null,null,null,null,null,null,null,null,null,null,null,null,null,null,null,null,null,null,null,null,null,null,null,null,null,null,null,null,null,null,null,null,null,null,null,null,null,null,null,null,null,null,null,null,null,null,null,null,null,null,null,null,null,null,null,null,null,null,null,null,null,null,null,null,null,null,null,null,null,null,null,null,null,null,null,null,null,null,null,null,null,null,null,null,null,null,null,null,null,null,null,null,null,null,null,null,null,null,null,null,null,null,null,null,null,null,null,null,null,null,null,null,null,null,null,null,null,null,null,null,null,null,null,null,null,1032.3529360763077,-87176.474539350704,-130040.78246104928]
[null,null,null,null,null,null,null,null,null,null,null,null,null,null,null,null,null,null,null,null,null,null,null,null,null,null,null,null,null,null,null,null,null,null,null,null,null,null,null,null,null,null,null,null,null,null,null,null,null,null,null,null,null,null,null,null,null,null,null,null,null,null,null,null,null,null,null,null,null,null,null,null,null,null,null,null,null,null,null,null,null,null,null,null,null,null,null,null,null,null,null,null,null,null,null,null,null,null,null,null,null,null,null,null,null,null,null,null,null,null,null,null,null,null,null,null,null,null,null,null,null,null,null,null,null,null,null,null,null,null,null,null,null,null,null,null,null,null,null,null,null,null,null,null,null,null,null,null,null,null,null,null,null,null,null,null,null,null,null,null,null,null,null,null,null,null,null,null,null,null,null,null,null,null,null,null,null,null,null,null,null,null,null,null,null,null,null,null,null,null,null,null,null,null,null,null,null,null,null,null,null,null,null,null,null,null,null,null,null,null,null,null,1030.8823477962753,-87941.180456362548,-130785.1928371566]
[null,null,null,null,null,null,null,null,null,null,null,null,null,null,null,null,null,null,null,null,null,null,null,null,null,null,null,null,null,null,null,null,null,null,null,null,null,null,null,null,null,null,null,null,null,null,null,null,null,null,null,null,null,null,null,null,null,null,null,null,null,null,null,null,null,null,null,null,null,null,null,null,null,null,null,null,null,null,null,null,null,null,null,null,null,null,null,null,null,null,null,null,null,null,null,null,null,null,null,null,null,null,null,null,null,null,null,null,null,null,null,null,null,null,null,null,null,null,null,null,null,null,null,null,null,null,null,null,null,null,null,null,null,null,null,null,null,null,null,null,null,null,null,null,null,null,null,null,null,null,null,null,null,null,null,null,null,null,null,null,null,null,null,null,null,null,null,null,null,null,null,null,null,null,null,null,null,null,null,null,null,null,null,null,null,null,null,null,null,null,null,null,null,null,null,null,null,null,null,null,null,null,null,null,null,null,null,null,null,null,null,null,1029.4117595162429,-88705.886373374393,-131473.43356345102]
[null,null,null,null,null,null,null,null,null,null,null,null,null,null,null,null,null,null,null,null,null,null,null,null,null,null,null,null,null,null,null,null,null,null,null,null,null,null,null,null,null,null,null,null,null,null,null,null,null,null,null,null,null,null,null,null,null,null,null,null,null,null,null,null,null,null,null,null,null,null,null,null,null,null,null,null,null,null,null,null,null,null,null,null,null,null,null,null,null,null,null,null,null,null,null,null,null,null,null,null,null,null,null,null,null,null,null,null,null,null,null,null,null,null,null,null,null,null,null,null,null,null,null,null,null,null,null,null,null,null,null,null,null,null,null,null,null,null,null,null,null,null,null,null,null,null,null,null,null,null,null,null,null,null,null,null,null,null,null,null,null,null,null,null,null,null,null,null,null,null,null,null,null,null,null,null,null,null,null,null,null,null,null,null,null,null,null,null,null,null,null,null,null,null,null,null,null,null,null,null,null,null,null,null,null,null,null,null,null,null,null,null,1027.9411712362105,-89470.592290386237,-132106.4259913807]
[null,null,null,null,null,null,null,null,null,null,null,null,null,null,null,null,null,null,null,null,null,null,null,null,null,null,null,null,null,null,null,null,null,null,null,null,null,null,null,null,null,null,null,null,null,null,null,null,null,null,null,null,null,null,null,null,null,null,null,null,null,null,null,null,null,null,null,null,null,null,null,null,null,null,null,null,null,null,null,null,null,null,null,null,null,null,null,null,null,null,null,null,null,null,null,null,null,null,null,null,null,null,null,null,null,null,null,null,null,null,null,null,null,null,null,null,null,null,null,null,null,null,null,null,null,null,null,null,null,null,null,null,null,null,null,null,null,null,null,null,null,null,null,null,null,null,null,null,null,null,null,null,null,null,null,null,null,null,null,null,null,null,null,null,null,null,null,null,null,null,null,null,null,null,null,null,null,null,null,null,null,null,null,null,null,null,null,null,null,null,null,null,null,null,null,null,null,null,null,null,null,null,null,null,null,null,null,null,null,null,null,null,1026.4705829561781,-90235.298207398097,-132685.19231302192]
[null,null,null,null,null,null,null,null,null,null,null,null,null,null,null,null,null,null,null,null,null,null,null,null,null,null,null,null,null,null,null,null,null,null,null,null,null,null,null,null,null,null,null,null,null,null,null,null,null,null,null,null,null,null,null,null,null,null,null,null,null,null,null,null,null,null,null,null,null,null,null,null,null,null,null,null,null,null,null,null,null,null,null,null,null,null,null,null,null,null,null,null,null,null,null,null,null,null,null,null,null,null,null,null,null,null,null,null,null,null,null,null,null,null,null,null,null,null,null,null,null,null,null,null,null,null,null,null,null,null,null,null,null,null,null,null,null,null,null,null,null,null,null,null,null,null,null,null,null,null,null,null,null,null,null,null,null,null,null,null,null,null,null,null,null,null,null,null,null,null,null,null,null,null,null,null,null,null,null,null,null,null,null,null,null,null,null,null,null,null,null,null,null,null,null,null,null,null,null,null,null,null,null,null,null,null,null,null,null,null,null,null,1024.9999946761457,-91000.004124409941,-133210.84509676008]
[null,null,null,null,null,null,null,null,null,null,null,null,null,null,null,null,null,null,null,null,null,null,null,null,null,null,null,null,null,null,null,null,null,null,null,null,null,null,null,null,null,null,null,null,null,null,null,null,null,null,null,null,null,null,null,null,null,null,null,null,null,null,null,null,null,null,null,null,null,null,null,null,null,null,null,null,null,null,null,null,null,null,null,null,null,null,null,null,null,null,null,null,null,null,null,null,null,null,null,null,null,null,null,null,null,null,null,null,null,null,null,null,null,null,null,null,null,null,null,null,null,null,null,null,null,null,null,null,null,null,null,null,null,null,null,null,null,null,null,null,null,null,null,null,null,null,null,null,null,null,null,null,null,null,null,null,null,null,null,null,null,null,null,null,null,null,null,null,null,null,null,null,null,null,null,null,null,null,null,null,null,null,null,null,null,null,null,null,null,null,null,null,null,null,null,null,null,null,null,null,null,null,null,null,null,null,null,null,null,null,null,null,1023.5294063961134,-91764.710041421786,-133684.57702753655]
[null,null,null,null,null,null,null,null,null,null,null,null,null,null,null,null,null,null,null,null,null,null,null,null,null,null,null,null,null,null,null,null,null,null,null,null,null,null,null,null,null,null,null,null,null,null,null,null,null,null,null,null,null,null,null,null,null,null,null,null,null,null,null,null,null,null,null,null,null,null,null,null,null,null,null,null,null,null,null,null,null,null,null,null,null,null,null,null,null,null,null,null,null,null,null,null,null,null,null,null,null,null,null,null,null,null,null,null,null,null,null,null,null,null,null,null,null,null,null,null,null,null,null,null,null,null,null,null,null,null,null,null,null,null,null,null,null,null,null,null,null,null,null,null,null,null,null,null,null,null,null,null,null,null,null,null,null,null,null,null,null,null,null,null,null,null,null,null,null,null,null,null,null,null,null,null,null,null,null,null,null,null,null,null,null,null,null,null,null,null,null,null,null,null,null,null,null,null,null,null,null,null,null,null,null,null,null,null,null,null,null,null,1022.0588181160809,-92529.41595843363,-134107.65092211994]
[null,null,null,null,null,null,null,null,null,null,null,null,null,null,null,null,null,null,null,null,null,null,null,null,null,null,null,null,null,null,null,null,null,null,null,null,null,null,null,null,null,null,null,null,null,null,null,null,null,null,null,null,null,null,null,null,null,null,null,null,null,null,null,null,null,null,null,null,null,null,null,null,null,null,null,null,null,null,null,null,null,null,null,null,null,null,null,null,null,null,null,null,null,null,null,null,null,null,null,null,null,null,null,null,null,null,null,null,null,null,null,null,null,null,null,null,null,null,null,null,null,null,null,null,null,null,null,null,null,null,null,null,null,null,null,null,null,null,null,null,null,null,null,null,null,null,null,null,null,null,null,null,null,null,null,null,null,null,null,null,null,null,null,null,null,null,null,null,null,null,null,null,null,null,null,null,null,null,null,null,null,null,null,null,null,null,null,null,null,null,null,null,null,null,null,null,null,null,null,null,null,null,null,null,null,null,null,null,null,null,null,null,1020.5882298360486,-93294.121875445489,-134481.39007974425]
[null,null,null,null,null,null,null,null,null,null,null,null,null,null,null,null,null,null,null,null,null,null,null,null,null,null,null,null,null,null,null,null,null,null,null,null,null,null,null,null,null,null,null,null,null,null,null,null,null,null,null,null,null,null,null,null,null,null,null,null,null,null,null,null,null,null,null,null,null,null,null,null,null,null,null,null,null,null,null,null,null,null,null,null,null,null,null,null,null,null,null,null,null,null,null,null,null,null,null,null,null,null,null,null,null,null,null,null,null,null,null,null,null,null,null,null,null,null,null,null,null,null,null,null,null,null,null,null,null,null,null,null,null,null,null,null,null,null,null,null,null,null,null,null,null,null,null,null,null,null,null,null,null,null,null,null,null,null,null,null,null,null,null,null,null,null,null,null,null,null,null,null,null,null,null,null,null,null,null,null,null,null,null,null,null,null,null,null,null,null,null,null,null,null,null,null,null,null,null,null,null,null,null,null,null,null,null,null,null,null,null,null,1019.1176415560162,-94058.827792457334,-134807.16901862153]
[null,null,null,null,null,null,null,null,null,null,null,null,null,null,null,null,null,null,null,null,null,null,null,null,null,null,null,null,null,null,null,null,null,null,null,null,null,null,null,null,null,null,null,null,null,null,null,null,null,null,null,null,null,null,null,null,null,null,null,null,null,null,null,null,null,null,null,null,null,null,null,null,null,null,null,null,null,null,null,null,null,null,null,null,null,null,null,null,null,null,null,null,null,null,null,null,null,null,null,null,null,null,null,null,null,null,null,null,null,null,null,null,null,null,null,null,null,null,null,null,null,null,null,null,null,null,null,null,null,null,null,null,null,null,null,null,null,null,null,null,null,null,null,null,null,null,null,null,null,null,null,null,null,null,null,null,null,null,null,null,null,null,null,null,null,null,null,null,null,null,null,null,null,null,null,null,null,null,null,null,null,null,null,null,null,null,null,null,null,null,null,null,null,null,null,null,null,null,null,null,null,null,null,null,null,null,null,null,null,null,null,null,1017.6470532759838,-94823.533709469179,-135086.40463941448]
[null,null,null,null,null,null,null,null,null,null,null,null,null,null,null,null,null,null,null,null,null,null,null,null,null,null,null,null,null,null,null,null,null,null,null,null,null,null,null,null,null,null,null,null,null,null,null,null,null,null,null,null,null,null,null,null,null,null,null,null,null,null,null,null,null,null,null,null,null,null,null,null,null,null,null,null,null,null,null,null,null,null,null,null,null,null,null,null,null,null,null,null,null,null,null,null,null,null,null,null,null,null,null,null,null,null,null,null,null,null,null,null,null,null,null,null,null,null,null,null,null,null,null,null,null,null,null,null,null,null,null,null,null,null,null,null,null,null,null,null,null,null,null,null,null,null,null,null,null,null,null,null,null,null,null,null,null,null,null,null,null,null,null,null,null,null,null,null,null,null,null,null,null,null,null,null,null,null,null,null,null,null,null,null,null,null,null,null,null,null,null,null,null,null,null,null,null,null,null,null,null,null,null,null,null,null,null,null,null,null,null,null,1016.1764649959514,-95588.239626481023,-135320.54784786122]
[null,null,null,null,null,null,null,null,null,null,null,null,null,null,null,null,null,null,null,null,null,null,null,null,null,null,null,null,null,null,null,null,null,null,null,null,null,null,null,null,null,null,null,null,null,null,null,null,null,null,null,null,null,null,null,null,null,null,null,null,null,null,null,null,null,null,null,null,null,null,null,null,null,null,null,null,null,null,null,null,null,null,null,null,null,null,null,null,null,null,null,null,null,null,null,null,null,null,null,null,null,null,null,null,null,null,null,null,null,null,null,null,null,null,null,null,null,null,null,null,null,null,null,null,null,null,null,null,null,null,null,null,null,null,null,null,null,null,null,null,null,null,null,null,null,null,null,null,null,null,null,null,null,null,null,null,null,null,null,null,null,null,null,null,null,null,null,null,null,null,null,null,null,null,null,null,null,null,null,null,null,null,null,null,null,null,null,null,null,null,null,null,null,null,null,null,null,null,null,null,null,null,null,null,null,null,null,null,null,null,null,null,1014.7058767159191,-96352.945543492882,-135511.07566045932]
[null,null,null,null,null,null,null,null,null,null,null,null,null,null,null,null,null,null,null,null,null,null,null,null,null,null,null,null,null,null,null,null,null,null,null,null,null,null,null,null,null,null,null,null,null,null,null,null,null,null,null,null,null,null,null,null,null,null,null,null,null,null,null,null,null,null,null,null,null,null,null,null,null,null,null,null,null,null,null,null,null,null,null,null,null,null,null,null,null,null,null,null,null,null,null,null,null,null,null,null,null,null,null,null,null,null,null,null,null,null,null,null,null,null,null,null,null,null,null,null,null,null,null,null,null,null,null,null,null,null,null,null,null,null,null,null,null,null,null,null,null,null,null,null,null,null,null,null,null,null,null,null,null,null,null,null,null,null,null,null,null,null,null,null,null,null,null,null,null,null,null,null,null,null,null,null,null,null,null,null,null,null,null,null,null,null,null,null,null,null,null,null,null,null,null,null,null,null,null,null,null,null,null,null,null,null,null,null,null,null,null,null,1013.2352884358867,-97117.651460504727,-135659.4838095007]
[null,null,null,null,null,null,null,null,null,null,null,null,null,null,null,null,null,null,null,null,null,null,null,null,null,null,null,null,null,null,null,null,null,null,null,null,null,null,null,null,null,null,null,null,null,null,null,null,null,null,null,null,null,null,null,null,null,null,null,null,null,null,null,null,null,null,null,null,null,null,null,null,null,null,null,null,null,null,null,null,null,null,null,null,null,null,null,null,null,null,null,null,null,null,null,null,null,null,null,null,null,null,null,null,null,null,null,null,null,null,null,null,null,null,null,null,null,null,null,null,null,null,null,null,null,null,null,null,null,null,null,null,null,null,null,null,null,null,null,null,null,null,null,null,null,null,null,null,null,null,null,null,null,null,null,null,null,null,null,null,null,null,null,null,null,null,null,null,null,null,null,null,null,null,null,null,null,null,null,null,null,null,null,null,null,null,null,null,null,null,null,null,null,null,null,null,null,null,null,null,null,null,null,null,null,null,null,null,null,null,null,null,1011.7647001558543,-97882.357377516571,-135767.27985683829]
[null,null,null,null,null,null,null,null,null,null,null,null,null,null,null,null,null,null,null,null,null,null,null,null,null,null,null,null,null,null,null,null,null,null,null,null,null,null,null,null,null,null,null,null,null,null,null,null,null,null,null,null,null,null,null,null,null,null,null,null,null,null,null,null,null,null,null,null,null,null,null,null,null,null,null,null,null,null,null,null,null,null,null,null,null,null,null,null,null,null,null,null,null,null,null,null,null,null,null,null,null,null,null,null,null,null,null,null,null,null,null,null,null,null,null,null,null,null,null,null,null,null,null,null,null,null,null,null,null,null,null,null,null,null,null,null,null,null,null,null,null,null,null,null,null,null,null,null,null,null,null,null,null,null,null,null,null,null,null,null,null,null,null,null,null,null,null,null,null,null,null,null,null,null,null,null,null,null,null,null,null,null,null,null,null,null,null,null,null,null,null,null,null,null,null,null,null,null,null,null,null,null,null,null,null,null,null,null,null,null,null,null,1010.2941118758218,-98647.063294528416,-135835.97681957856]
[null,null,null,null,null,null,null,null,null,null,null,null,null,null,null,null,null,null,null,null,null,null,null,null,null,null,null,null,null,null,null,null,null,null,null,null,null,null,null,null,null,null,null,null,null,null,null,null,null,null,null,null,null,null,null,null,null,null,null,null,null,null,null,null,null,null,null,null,null,null,null,null,null,null,null,null,null,null,null,null,null,null,null,null,null,null,null,null,null,null,null,null,null,null,null,null,null,null,null,null,null,null,null,null,null,null,null,null,null,null,null,null,null,null,null,null,null,null,null,null,null,null,null,null,null,null,null,null,null,null,null,null,null,null,null,null,null,null,null,null,null,null,null,null,null,null,null,null,null,null,null,null,null,null,null,null,null,null,null,null,null,null,null,null,null,null,null,null,null,null,null,null,null,null,null,null,null,null,null,null,null,null,null,null,null,null,null,null,null,null,null,null,null,null,null,null,null,null,null,null,null,null,null,null,null,null,null,null,null,null,null,null,1008.8235235957895,-99411.769211540275,-135867.08730543056]
[null,null,null,null,null,null,null,null,null,null,null,null,null,null,null,null,null,null,null,null,null,null,null,null,null,null,null,null,null,null,null,null,null,null,null,null,null,null,null,null,null,null,null,null,null,null,null,null,null,null,null,null,null,null,null,null,null,null,null,null,null,null,null,null,null,null,null,null,null,null,null,null,null,null,null,null,null,null,null,null,null,null,null,null,null,null,null,null,null,null,null,null,null,null,null,null,null,null,null,null,null,null,null,null,null,null,null,null,null,null,null,null,null,null,null,null,null,null,null,null,null,null,null,null,null,null,null,null,null,null,null,null,null,null,null,null,null,null,null,null,null,null,null,null,null,null,null,null,null,null,null,null,null,null,null,null,null,null,null,null,null,null,null,null,null,null,null,null,null,null,null,null,null,null,null,null,null,null,null,null,null,null,null,null,null,null,null,null,null,null,null,null,null,null,null,null,null,null,null,null,null,null,null,null,null,null,null,null,null,null,null,null,1007.3529353157571,-100176.47512855212,-135862.11815069022]
[null,null,null,null,null,null,null,null,null,null,null,null,null,null,null,null,null,null,null,null,null,null,null,null,null,null,null,null,null,null,null,null,null,null,null,null,null,null,null,null,null,null,null,null,null,null,null,null,null,null,null,null,null,null,null,null,null,null,null,null,null,null,null,null,null,null,null,null,null,null,null,null,null,null,null,null,null,null,null,null,null,null,null,null,null,null,null,null,null,null,null,null,null,null,null,null,null,null,null,null,null,null,null,null,null,null,null,null,null,null,null,null,null,null,null,null,null,null,null,null,null,null,null,null,null,null,null,null,null,null,null,null,null,null,null,null,null,null,null,null,null,null,null,null,null,null,null,null,null,null,null,null,null,null,null,null,null,null,null,null,null,null,null,null,null,null,null,null,null,null,null,null,null,null,null,null,null,null,null,null,null,null,null,null,null,null,null,null,null,null,null,null,null,null,null,null,null,null,null,null,null,null,null,null,null,null,null,null,null,null,null,null,1005.8823470357247,-100941.18104556396,-135822.56554977081]
[null,null,null,null,null,null,null,null,null,null,null,null,null,null,null,null,null,null,null,null,null,null,null,null,null,null,null,null,null,null,null,null,null,null,null,null,null,null,null,null,null,null,null,null,null,null,null,null,null,null,null,null,null,null,null,null,null,null,null,null,null,null,null,null,null,null,null,null,null,null,null,null,null,null,null,null,null,null,null,null,null,null,null,null,null,null,null,null,null,null,null,null,null,null,null,null,null,null,null,null,null,null,null,null,null,null,null,null,null,null,null,null,null,null,null,null,null,null,null,null,null,null,null,null,null,null,null,null,null,null,null,null,null,null,null,null,null,null,null,null,null,null,null,null,null,null,null,null,null,null,null,null,null,null,null,null,null,null,null,null,null,null,null,null,null,null,null,null,null,null,null,null,null,null,null,null,null,null,null,null,null,null,null,null,null,null,null,null,null,null,null,null,null,null,null,null,null,null,null,null,null,null,null,null,null,null,null,null,null,null,null,null,1004.4117587556923,-101705.88696257581,-135749.91066177687]
[null,null,null,null,null,null,null,null,null,null,null,null,null,null,null,null,null,null,null,null,null,null,null,null,null,null,null,null,null,null,null,null,null,null,null,null,null,null,null,null,null,null,null,null,null,null,null,null,null,null,null,null,null,null,null,null,null,null,null,null,null,null,null,null,null,null,null,null,null,null,null,null,null,null,null,null,null,null,null,null,null,null,null,null,null,null,null,null,null,null,null,null,null,null,null,null,null,null,null,null,null,null,null,null,null,null,null,null,null,null,null,null,null,null,null,null,null,null,null,null,null,null,null,null,null,null,null,null,null,null,null,null,null,null,null,null,null,null,null,null,null,null,null,null,null,null,null,null,null,null,null,null,null,null,null,null,null,null,null,null,null,null,null,null,null,null,null,null,null,null,null,null,null,null,null,null,null,null,null,null,null,null,null,null,null,null,null,null,null,null,null,null,null,null,null,null,null,null,null,null,null,null,null,null,null,null,null,null,null,null,null,null,1002.94117047566,-102470.59287958767,-135645.61567681536]
[null,null,null,null,null,null,null,null,null,null,null,null,null,null,null,null,null,null,null,null,null,null,null,null,null,null,null,null,null,null,null,null,null,null,null,null,null,null,null,null,null,null,null,null,null,null,null,null,null,null,null,null,null,null,null,null,null,null,null,null,null,null,null,null,null,null,null,null,null,null,null,null,null,null,null,null,null,null,null,null,null,null,null,null,null,null,null,null,null,null,null,null,null,null,null,null,null,null,null,null,null,null,null,null,null,null,null,null,null,null,null,null,null,null,null,null,null,null,null,null,null,null,null,null,null,null,null,null,null,null,null,null,null,null,null,null,null,null,null,null,null,null,null,null,null,null,null,null,null,null,null,null,null,null,null,null,null,null,null,null,null,null,null,null,null,null,null,null,null,null,null,null,null,null,null,null,null,null,null,null,null,null,null,null,null,null,null,null,null,null,null,null,null,null,null,null,null,null,null,null,null,null,null,null,null,null,null,null,null,null,null,null,1001.4705821956276,-103235.29879659951,-135511.12032249972]
[null,null,null,null,null,null,null,null,null,null,null,null,null,null,null,null,null,null,null,null,null,null,null,null,null,null,null,null,null,null,null,null,null,null,null,null,null,null,null,null,null,null,null,null,null,null,null,null,null,null,null,null,null,null,null,null,null,null,null,null,null,null,null,null,null,null,null,null,null,null,null,null,null,null,null,null,null,null,null,null,null,null,null,null,null,null,null,null,null,null,null,null,null,null,null,null,null,null,null,null,null,null,null,null,null,null,null,null,null,null,null,null,null,null,null,null,null,null,null,null,null,null,null,null,null,null,null,null,null,null,null,null,null,null,null,null,null,null,null,null,null,null,null,null,null,null,null,null,null,null,null,null,null,null,null,null,null,null,null,null,null,null,null,null,null,null,null,null,null,null,null,null,null,null,null,null,null,null,null,null,null,null,null,null,null,null,null,null,null,null,null,null,null,null,null,null,null,null,null,null,null,null,null,null,null,null,null,null,null,null,null,null,999.99999391559516,-104000.00471361136,-135347.83878938467]
[null,null,null,null,null,null,null,null,null,null,null,null,null,null,null,null,null,null,null,null,null,null,null,null,null,null,null,null,null,null,null,null,null,null,null,null,null,null,null,null,null,null,null,null,null,null,null,null,null,null,null,null,null,null,null,null,null,null,null,null,null,null,null,null,null,null,null,null,null,null,null,null,null,null,null,null,null,null,null,null,null,null,null,null,null,null,null,null,null,null,null,null,null,null,null,null,null,null,null,null,null,null,null,null,null,null,null,null,null,null,null,null,null,null,null,null,null,null,null,null,null,null,null,null,null,null,null,null,null,null,null,null,null,null,null,null,null,null,null,null,null,null,null,null,null,null,null,null,null,null,null,null,null,null,null,null,null,null,null,null,null,null,null,null,null,null,null,null,null,null,null,null,null,null,null,null,null,null,null,null,null,null,null,null,null,null,null,null,null,null,null,null,null,null,null,null,null,null,null,null,null,null,null,null,null,null,null,null,null,null,null,null,998.52940563556274,-104764.7106306232,-135157.15705281633]
[null,null,null,null,null,null,null,null,null,null,null,null,null,null,null,null,null,null,null,null,null,null,null,null,null,null,null,null,null,null,null,null,null,null,null,null,null,null,null,null,null,null,null,null,null,null,null,null,null,null,null,null,null,null,null,null,null,null,null,null,null,null,null,null,null,null,null,null,null,null,null,null,null,null,null,null,null,null,null,null,null,null,null,null,null,null,null,null,null,null,null,null,null,null,null,null,null,null,null,null,null,null,null,null,null,null,null,null,null,null,null,null,null,null,null,null,null,null,null,null,null,null,null,null,null,null,null,null,null,null,null,null,null,null,null,null,null,null,null,null,null,null,null,null,null,null,null,null,null,null,null,null,null,null,null,null,null,null,null,null,null,null,null,null,null,null,null,null,null,null,null,null,null,null,null,null,null,null,null,null,null,null,null,null,null,null,null,null,null,null,null,null,null,null,null,null,null,null,null,null,null,null,null,null,null,null,null,null,null,null,null,null,997.05881735553044,-105529.41654763506,-134940.43056784978]
[null,null,null,null,null,null,null,null,null,null,null,null,null,null,null,null,null,null,null,null,null,null,null,null,null,null,null,null,null,null,null,null,null,null,null,null,null,null,null,null,null,null,null,null,null,null,null,null,null,null,null,null,null,null,null,null,null,null,null,null,null,null,null,null,null,null,null,null,null,null,null,null,null,null,null,null,null,null,null,null,null,null,null,null,null,null,null,null,null,null,null,null,null,null,null,null,null,null,null,null,null,null,null,null,null,null,null,null,null,null,null,null,null,null,null,null,null,null,null,null,null,null,null,null,null,null,null,null,null,null,null,null,null,null,null,null,null,null,null,null,null,null,null,null,null,null,null,null,null,null,null,null,null,null,null,null,null,null,null,null,null,null,null,null,null,null,null,null,null,null,null,null,null,null,null,null,null,null,null,null,null,null,null,null,null,null,null,null,null,null,null,null,null,null,null,null,null,null,null,null,null,null,null,null,null,null,null,null,null,null,null,null,995.58822907549802,-106294.12246464691,-134698.98231341984]
[null,null,null,null,null,null,null,null,null,null,null,null,null,null,null,null,null,null,null,null,null,null,null,null,null,null,null,null,null,null,null,null,null,null,null,null,null,null,null,null,null,null,null,null,null,null,null,null,null,null,null,null,null,null,null,null,null,null,null,null,null,null,null,null,null,null,null,null,null,null,null,null,null,null,null,null,null,null,null,null,null,null,null,null,null,null,null,null,null,null,null,null,null,null,null,null,null,null,null,null,null,null,null,null,null,null,null,null,null,null,null,null,null,null,null,null,null,null,null,null,null,null,null,null,null,null,null,null,null,null,null,null,null,null,null,null,null,null,null,null,null,null,null,null,null,null,null,null,null,null,null,null,null,null,null,null,null,null,null,null,null,null,null,null,null,null,null,null,null,null,null,null,null,null,null,null,null,null,null,null,null,null,null,null,null,null,null,null,null,null,null,null,null,null,null,null,null,null,null,null,null,null,null,null,null,null,null,null,null,null,null,null,994.1176407954656,-107058.82838165875,-134434.10116180853]
[null,null,null,null,null,null,null,null,null,null,null,null,null,null,null,null,null,null,null,null,null,null,null,null,null,null,null,null,null,null,null,null,null,null,null,null,null,null,null,null,null,null,null,null,null,null,null,null,null,null,null,null,null,null,null,null,null,null,null,null,null,null,null,null,null,null,null,null,null,null,null,null,null,null,null,null,null,null,null,null,null,null,null,null,null,null,null,null,null,null,null,null,null,null,null,null,null,null,null,null,null,null,null,null,null,null,null,null,null,null,null,null,null,null,null,null,null,null,null,null,null,null,null,null,null,null,null,null,null,null,null,null,null,null,null,null,null,null,null,null,null,null,null,null,null,null,null,null,null,null,null,null,null,null,null,null,null,null,null,null,null,null,null,null,null,null,null,null,null,null,null,null,null,null,null,null,null,null,null,null,null,null,null,null,null,null,null,null,null,null,null,null,null,null,null,null,null,null,null,null,null,null,null,null,null,null,null,null,null,null,null,null,992.64705251543319,-107823.53429867059,-134147.04054958286]
[null,null,null,null,null,null,null,null,null,null,null,null,null,null,null,null,null,null,null,null,null,null,null,null,null,null,null,null,null,null,null,null,null,null,null,null,null,null,null,null,null,null,null,null,null,null,null,null,null,null,null,null,null,null,null,null,null,null,null,null,null,null,null,null,null,null,null,null,null,null,null,null,null,null,null,null,null,null,null,null,null,null,null,null,null,null,null,null,null,null,null,null,null,null,null,null,null,null,null,null,null,null,null,null,null,null,null,null,null,null,null,null,null,null,null,null,null,null,null,null,null,null,null,null,null,null,null,null,null,null,null,null,null,null,null,null,null,null,null,null,null,null,null,null,null,null,null,null,null,null,null,null,null,null,null,null,null,null,null,null,null,null,null,null,null,null,null,null,null,null,null,null,null,null,null,null,null,null,null,null,null,null,null,null,null,null,null,null,null,null,null,null,null,null,null,null,null,null,null,null,null,null,null,null,null,null,null,null,null,null,null,null,991.17646423540077,-108588.24021568245,-133839.01742654436]
[null,null,null,null,null,null,null,null,null,null,null,null,null,null,null,null,null,null,null,null,null,null,null,null,null,null,null,null,null,null,null,null,null,null,null,null,null,null,null,null,null,null,null,null,null,null,null,null,null,null,null,null,null,null,null,null,null,null,null,null,null,null,null,null,null,null,null,null,null,null,null,null,null,null,null,null,null,null,null,null,null,null,null,null,null,null,null,null,null,null,null,null,null,null,null,null,null,null,null,null,null,null,null,null,null,null,null,null,null,null,null,null,null,null,null,null,null,null,null,null,null,null,null,null,null,null,null,null,null,null,null,null,null,null,null,null,null,null,null,null,null,null,null,null,null,null,null,null,null,null,null,null,null,null,null,null,null,null,null,null,null,null,null,null,null,null,null,null,null,null,null,null,null,null,null,null,null,null,null,null,null,null,null,null,null,null,null,null,null,null,null,null,null,null,null,null,null,null,null,null,null,null,null,null,null,null,null,null,null,null,null,null,989.70587595536847,-109352.9461326943,-133511.21145979079]
[null,null,null,null,null,null,null,null,null,null,null,null,null,null,null,null,null,null,null,null,null,null,null,null,null,null,null,null,null,null,null,null,null,null,null,null,null,null,null,null,null,null,null,null,null,null,null,null,null,null,null,null,null,null,null,null,null,null,null,null,null,null,null,null,null,null,null,null,null,null,null,null,null,null,null,null,null,null,null,null,null,null,null,null,null,null,null,null,null,null,null,null,null,null,null,null,null,null,null,null,null,null,null,null,null,null,null,null,null,null,null,null,null,null,null,null,null,null,null,null,null,null,null,null,null,null,null,null,null,null,null,null,null,null,null,null,null,null,null,null,null,null,null,null,null,null,null,null,null,null,null,null,null,null,null,null,null,null,null,null,null,null,null,null,null,null,null,null,null,null,null,null,null,null,null,null,null,null,null,null,null,null,null,null,null,null,null,null,null,null,null,null,null,null,null,null,null,null,null,null,null,null,null,null,null,null,null,null,null,null,null,null,988.23528767533605,-110117.65204970614,-133164.76447070984]
[null,null,null,null,null,null,null,null,null,null,null,null,null,null,null,null,null,null,null,null,null,null,null,null,null,null,null,null,null,null,null,null,null,null,null,null,null,null,null,null,null,null,null,null,null,null,null,null,null,null,null,null,null,null,null,null,null,null,null,null,null,null,null,null,null,null,null,null,null,null,null,null,null,null,null,null,null,null,null,null,null,null,null,null,null,null,null,null,null,null,null,null,null,null,null,null,null,null,null,null,null,null,null,null,null,null,null,null,null,null,null,null,null,null,null,null,null,null,null,null,null,null,null,null,null,null,null,null,null,null,null,null,null,null,null,null,null,null,null,null,null,null,null,null,null,null,null,null,null,null,null,null,null,null,null,null,null,null,null,null,null,null,null,null,null,null,null,null,null,null,null,null,null,null,null,null,null,null,null,null,null,null,null,null,null,null,null,null,null,null,null,null,null,null,null,null,null,null,null,null,null,null,null,null,null,null,null,null,null,null,null,null,986.76469939530364,-110882.35796671799,-132800.78008356947]
[null,null,null,null,null,null,null,null,null,null,null,null,null,null,null,null,null,null,null,null,null,null,null,null,null,null,null,null,null,null,null,null,null,null,null,null,null,null,null,null,null,null,null,null,null,null,null,null,null,null,null,null,null,null,null,null,null,null,null,null,null,null,null,null,null,null,null,null,null,null,null,null,null,null,null,null,null,null,null,null,null,null,null,null,null,null,null,null,null,null,null,null,null,null,null,null,null,null,null,null,null,null,null,null,null,null,null,null,null,null,null,null,null,null,null,null,null,null,null,null,null,null,null,null,null,null,null,null,null,null,null,null,null,null,null,null,null,null,null,null,null,null,null,null,null,null,null,null,null,null,null,null,null,null,null,null,null,null,null,null,null,null,null,null,null,null,null,null,null,null,null,null,null,null,null,null,null,null,null,null,null,null,null,null,null,null,null,null,null,null,null,null,null,null,null,null,null,null,null,null,null,null,null,null,null,null,null,null,null,null,null,null,985.29411111527122,-111647.06388372985,-132420.3235653115]
[null,null,null,null,null,null,null,null,null,null,null,null,null,null,null,null,null,null,null,null,null,null,null,null,null,null,null,null,null,null,null,null,null,null,null,null,null,null,null,null,null,null,null,null,null,null,null,null,null,null,null,null,null,null,null,null,null,null,null,null,null,null,null,null,null,null,null,null,null,null,null,null,null,null,null,null,null,null,null,null,null,null,null,null,null,null,null,null,null,null,null,null,null,null,null,null,null,null,null,null,null,null,null,null,null,null,null,null,null,null,null,null,null,null,null,null,null,null,null,null,null,null,null,null,null,null,null,null,null,null,null,null,null,null,null,null,null,null,null,null,null,null,null,null,null,null,null,null,null,null,null,null,null,null,null,null,null,null,null,null,null,null,null,null,null,null,null,null,null,null,null,null,null,null,null,null,null,null,null,null,null,null,null,null,null,null,null,null,null,null,null,null,null,null,null,null,null,null,null,null,null,null,null,null,null,null,null,null,null,null,null,null,983.82352283523892,-112411.76980074169,-132024.42183716712]
[null,null,null,null,null,null,null,null,null,null,null,null,null,null,null,null,null,null,null,null,null,null,null,null,null,null,null,null,null,null,null,null,null,null,null,null,null,null,null,null,null,null,null,null,null,null,null,null,null,null,null,null,null,null,null,null,null,null,null,null,null,null,null,null,null,null,null,null,null,null,null,null,null,null,null,null,null,null,null,null,null,null,null,null,null,null,null,null,null,null,null,null,null,null,null,null,null,null,null,null,null,null,null,null,null,null,null,null,null,null,null,null,null,null,null,null,null,null,null,null,null,null,null,null,null,null,null,null,null,null,null,null,null,null,null,null,null,null,null,null,null,null,null,null,null,null,null,null,null,null,null,null,null,null,null,null,null,null,null,null,null,null,null,null,null,null,null,null,null,null,null,null,null,null,null,null,null,null,null,null,null,null,null,null,null,null,null,null,null,null,null,null,null,null,null,null,null,null,null,null,null,null,null,null,null,null,null,null,null,null,null,null,982.3529345552065,-113176.47571775354,-131614.06363977515]
[null,null,null,null,null,null,null,null,null,null,null,null,null,null,null,null,null,null,null,null,null,null,null,null,null,null,null,null,null,null,null,null,null,null,null,null,null,null,null,null,null,null,null,null,null,null,null,null,null,null,null,null,null,null,null,null,null,null,null,null,null,null,null,null,null,null,null,null,null,null,null,null,null,null,null,null,null,null,null,null,null,null,null,null,null,null,null,null,null,null,null,null,null,null,null,null,null,null,null,null,null,null,null,null,null,null,null,null,null,null,null,null,null,null,null,null,null,null,null,null,null,null,null,null,null,null,null,null,null,null,null,null,null,null,null,null,null,null,null,null,null,null,null,null,null,null,null,null,null,null,null,null,null,null,null,null,null,null,null,null,null,null,null,null,null,null,null,null,null,null,null,null,null,null,null,null,null,null,null,null,null,null,null,null,null,null,null,null,null,null,null,null,null,null,null,null,null,null,null,null,null,null,null,null,null,null,null,null,null,null,null,null,980.88234627517409,-113941.18163476538,-131190.1998345732]
[null,null,null,null,null,null,null,null,null,null,null,null,null,null,null,null,null,null,null,null,null,null,null,null,null,null,null,null,null,null,null,null,null,null,null,null,null,null,null,null,null,null,null,null,null,null,null,null,null,null,null,null,null,null,null,null,null,null,null,null,null,null,null,null,null,null,null,null,null,null,null,null,null,null,null,null,null,null,null,null,null,null,null,null,null,null,null,null,null,null,null,null,null,null,null,null,null,null,null,null,null,null,null,null,null,null,null,null,null,null,null,null,null,null,null,null,null,null,null,null,null,null,null,null,null,null,null,null,null,null,null,null,null,null,null,null,null,null,null,null,null,null,null,null,null,null,null,null,null,null,null,null,null,null,null,null,null,null,null,null,null,null,null,null,null,null,null,null,null,null,null,null,null,null,null,null,null,null,null,null,null,null,null,null,null,null,null,null,null,null,null,null,null,null,null,null,null,null,null,null,null,null,null,null,null,null,null,null,null,null,null,null,979.41175799514167,-114705.88755177724,-130753.74382533267]
[null,null,null,null,null,null,null,null,null,null,null,null,null,null,null,null,null,null,null,null,null,null,null,null,null,null,null,null,null,null,null,null,null,null,null,null,null,null,null,null,null,null,null,null,null,null,null,null,null,null,null,null,null,null,null,null,null,null,null,null,null,null,null,null,null,null,null,null,null,null,null,null,null,null,null,null,null,null,null,null,null,null,null,null,null,null,null,null,null,null,null,null,null,null,null,null,null,null,null,null,null,null,null,null,null,null,null,null,null,null,null,null,null,null,null,null,null,null,null,null,null,null,null,null,null,null,null,null,null,null,null,null,null,null,null,null,null,null,null,null,null,null,null,null,null,null,null,null,null,null,null,null,null,null,null,null,null,null,null,null,null,null,null,null,null,null,null,null,null,null,null,null,null,null,null,null,null,null,null,null,null,null,null,null,null,null,null,null,null,null,null,null,null,null,null,null,null,null,null,null,null,null,null,null,null,null,null,null,null,null,null,null,977.94116971510937,-115470.59346878908,-130305.57208480964]
[null,null,null,null,null,null,null,null,null,null,null,null,null,null,null,null,null,null,null,null,null,null,null,null,null,null,null,null,null,null,null,null,null,null,null,null,null,null,null,null,null,null,null,null,null,null,null,null,null,null,null,null,null,null,null,null,null,null,null,null,null,null,null,null,null,null,null,null,null,null,null,null,null,null,null,null,null,null,null,null,null,null,null,null,null,null,null,null,null,null,null,null,null,null,null,null,null,null,null,null,null,null,null,null,null,null,null,null,null,null,null,null,null,null,null,null,null,null,null,null,null,null,null,null,null,null,null,null,null,null,null,null,null,null,null,null,null,null,null,null,null,null,null,null,null,null,null,null,null,null,null,null,null,null,null,null,null,null,null,null,null,null,null,null,null,null,null,null,null,null,null,null,null,null,null,null,null,null,null,null,null,null,null,null,null,null,null,null,null,null,null,null,null,null,null,null,null,null,null,null,null,null,null,null,null,null,null,null,null,null,null,null,976.47058143507695,-116235.29938580093,-129846.52477256651]
[null,null,null,null,null,null,null,null,null,null,null,null,null,null,null,null,null,null,null,null,null,null,null,null,null,null,null,null,null,null,null,null,null,null,null,null,null,null,null,null,null,null,null,null,null,null,null,null,null,null,null,null,null,null,null,null,null,null,null,null,null,null,null,null,null,null,null,null,null,null,null,null,null,null,null,null,null,null,null,null,null,null,null,null,null,null,null,null,null,null,null,null,null,null,null,null,null,null,null,null,null,null,null,null,null,null,null,null,null,null,null,null,null,null,null,null,null,null,null,null,null,null,null,null,null,null,null,null,null,null,null,null,null,null,null,null,null,null,null,null,null,null,null,null,null,null,null,null,null,null,null,null,null,null,null,null,null,null,null,null,null,null,null,null,null,null,null,null,null,null,null,null,null,null,null,null,null,null,null,null,null,null,null,null,null,null,null,null,null,null,null,null,null,null,null,null,null,null,null,null,null,null,null,null,null,null,null,null,null,null,null,null,974.99999315504454,-117000.00530281277,-129377.40643108104]
[null,null,null,null,null,null,null,null,null,null,null,null,null,null,null,null,null,null,null,null,null,null,null,null,null,null,null,null,null,null,null,null,null,null,null,null,null,null,null,null,null,null,null,null,null,null,null,null,null,null,null,null,null,null,null,null,null,null,null,null,null,null,null,null,null,null,null,null,null,null,null,null,null,null,null,null,null,null,null,null,null,null,null,null,null,null,null,null,null,null,null,null,null,null,null,null,null,null,null,null,null,null,null,null,null,null,null,null,null,null,null,null,null,null,null,null,null,null,null,null,null,null,null,null,null,null,null,null,null,null,null,null,null,null,null,null,null,null,null,null,null,null,null,null,null,null,null,null,null,null,null,null,null,null,null,null,null,null,null,null,null,null,null,null,null,null,null,null,null,null,null,null,null,null,null,null,null,null,null,null,null,null,null,null,null,null,null,null,null,null,null,null,null,null,null,null,null,null,null,null,null,null,null,null,null,null,null,null,null,null,null,null,973.52940487501212,-117764.71121982463,-128898.98674828785]
[null,null,null,null,null,null,null,null,null,null,null,null,null,null,null,null,null,null,null,null,null,null,null,null,null,null,null,null,null,null,null,null,null,null,null,null,null,null,null,null,null,null,null,null,null,null,null,null,null,null,null,null,null,null,null,null,null,null,null,null,null,null,null,null,null,null,null,null,null,null,null,null,null,null,null,null,null,null,null,null,null,null,null,null,null,null,null,null,null,null,null,null,null,null,null,null,null,null,null,null,null,null,null,null,null,null,null,null,null,null,null,null,null,null,null,null,null,null,null,null,null,null,null,null,null,null,null,null,null,null,null,null,null,null,null,null,null,null,null,null,null,null,null,null,null,null,null,null,null,null,null,null,null,null,null,null,null,null,null,null,null,null,null,null,null,null,null,null,null,null,null,null,null,null,null,null,null,null,null,null,null,null,null,null,null,null,null,null,null,null,null,null,null,null,null,null,null,null,null,null,null,null,null,null,null,null,null,null,null,null,null,null,972.05881659497982,-118529.41713683648,-128412.00137568789]
[null,null,null,null,null,null,null,null,null,null,null,null,null,null,null,null,null,null,null,null,null,null,null,null,null,null,null,null,null,null,null,null,null,null,null,null,null,null,null,null,null,null,null,null,null,null,null,null,null,null,null,null,null,null,null,null,null,null,null,null,null,null,null,null,null,null,null,null,null,null,null,null,null,null,null,null,null,null,null,null,null,null,null,null,null,null,null,null,null,null,null,null,null,null,null,null,null,null,null,null,null,null,null,null,null,null,null,null,null,null,null,null,null,null,null,null,null,null,null,null,null,null,null,null,null,null,null,null,null,null,null,null,null,null,null,null,null,null,null,null,null,null,null,null,null,null,null,null,null,null,null,null,null,null,null,null,null,null,null,null,null,null,null,null,null,null,null,null,null,null,null,null,null,null,null,null,null,null,null,null,null,null,null,null,null,null,null,null,null,null,null,null,null,null,null,null,null,null,null,null,null,null,null,null,null,null,null,null,null,null,null,null,970.5882283149474,-119294.12305384832,-127917.15279210928]
[null,null,null,null,null,null,null,null,null,null,null,null,null,null,null,null,null,null,null,null,null,null,null,null,null,null,null,null,null,null,null,null,null,null,null,null,null,null,null,null,null,null,null,null,null,null,null,null,null,null,null,null,null,null,null,null,null,null,null,null,null,null,null,null,null,null,null,null,null,null,null,null,null,null,null,null,null,null,null,null,null,null,null,null,null,null,null,null,null,null,null,null,null,null,null,null,null,null,null,null,null,null,null,null,null,null,null,null,null,null,null,null,null,null,null,null,null,null,null,null,null,null,null,null,null,null,null,null,null,null,null,null,null,null,null,null,null,null,null,null,null,null,null,null,null,null,null,null,null,null,null,null,null,null,null,null,null,null,null,null,null,null,null,null,null,null,null,null,null,null,null,null,null,null,null,null,null,null,null,null,null,null,null,null,null,null,null,null,null,null,null,null,null,null,null,null,null,null,null,null,null,null,null,null,null,null,null,null,null,null,null,null,969.11764003491498,-120058.82897086017,-127415.11120410408]
[null,null,null,null,null,null,null,null,null,null,null,null,null,null,null,null,null,null,null,null,null,null,null,null,null,null,null,null,null,null,null,null,null,null,null,null,null,null,null,null,null,null,null,null,null,null,null,null,null,null,null,null,null,null,null,null,null,null,null,null,null,null,null,null,null,null,null,null,null,null,null,null,null,null,null,null,null,null,null,null,null,null,null,null,null,null,null,null,null,null,null,null,null,null,null,null,null,null,null,null,null,null,null,null,null,null,null,null,null,null,null,null,null,null,null,null,null,null,null,null,null,null,null,null,null,null,null,null,null,null,null,null,null,null,null,null,null,null,null,null,null,null,null,null,null,null,null,null,null,null,null,null,null,null,null,null,null,null,null,null,null,null,null,null,null,null,null,null,null,null,null,null,null,null,null,null,null,null,null,null,null,null,null,null,null,null,null,null,null,null,null,null,null,null,null,null,null,null,null,null,null,null,null,null,null,null,null,null,null,null,null,null,967.64705175488257,-120823.53488787203,-126906.5154748194]
[null,null,null,null,null,null,null,null,null,null,null,null,null,null,null,null,null,null,null,null,null,null,null,null,null,null,null,null,null,null,null,null,null,null,null,null,null,null,null,null,null,null,null,null,null,null,null,null,null,null,null,null,null,null,null,null,null,null,null,null,null,null,null,null,null,null,null,null,null,null,null,null,null,null,null,null,null,null,null,null,null,null,null,null,null,null,null,null,null,null,null,null,null,null,null,null,null,null,null,null,null,null,null,null,null,null,null,null,null,null,null,null,null,null,null,null,null,null,null,null,null,null,null,null,null,null,null,null,null,null,null,null,null,null,null,null,null,null,null,null,null,null,null,null,null,null,null,null,null,null,null,null,null,null,null,null,null,null,null,null,null,null,null,null,null,null,null,null,null,null,null,null,null,null,null,null,null,null,null,null,null,null,null,null,null,null,null,null,null,null,null,null,null,null,null,null,null,null,null,null,null,null,null,null,null,null,null,null,null,null,null,null,966.17646347485027,-121588.24080488387,-126391.97407398402]
[null,null,null,null,null,null,null,null,null,null,null,null,null,null,null,null,null,null,null,null,null,null,null,null,null,null,null,null,null,null,null,null,null,null,null,null,null,null,null,null,null,null,null,null,null,null,null,null,null,null,null,null,null,null,null,null,null,null,null,null,null,null,null,null,null,null,null,null,null,null,null,null,null,null,null,null,null,null,null,null,null,null,null,null,null,null,null,null,null,null,null,null,null,null,null,null,null,null,null,null,null,null,null,null,null,null,null,null,null,null,null,null,null,null,null,null,null,null,null,null,null,null,null,null,null,null,null,null,null,null,null,null,null,null,null,null,null,null,null,null,null,null,null,null,null,null,null,null,null,null,null,null,null,null,null,null,null,null,null,null,null,null,null,null,null,null,null,null,null,null,null,null,null,null,null,null,null,null,null,null,null,null,null,null,null,null,null,null,null,null,null,null,null,null,null,null,null,null,null,null,null,null,null,null,null,null,null,null,null,null,null,null,964.70587519481785,-122352.94672189571,-125872.06604240496]
[null,null,null,null,null,null,null,null,null,null,null,null,null,null,null,null,null,null,null,null,null,null,null,null,null,null,null,null,null,null,null,null,null,null,null,null,null,null,null,null,null,null,null,null,null,null,null,null,null,null,null,null,null,null,null,null,null,null,null,null,null,null,null,null,null,null,null,null,null,null,null,null,null,null,null,null,null,null,null,null,null,null,null,null,null,null,null,null,null,null,null,null,null,null,null,null,null,null,null,null,null,null,null,null,null,null,null,null,null,null,null,null,null,null,null,null,null,null,null,null,null,null,null,null,null,null,null,null,null,null,null,null,null,null,null,null,null,null,null,null,null,null,null,null,null,null,null,null,null,null,null,null,null,null,null,null,null,null,null,null,null,null,null,null,null,null,null,null,null,null,null,null,null,null,null,null,null,null,null,null,null,null,null,null,null,null,null,null,null,null,null,null,null,null,null,null,null,null,null,null,null,null,null,null,null,null,null,null,null,null,null,null,963.23528691478543,-123117.65263890756,-125347.34196507242]
[null,null,null,null,null,null,null,null,null,null,null,null,null,null,null,null,null,null,null,null,null,null,null,null,null,null,null,null,null,null,null,null,null,null,null,null,null,null,null,null,null,null,null,null,null,null,null,null,null,null,null,null,null,null,null,null,null,null,null,null,null,null,null,null,null,null,null,null,null,null,null,null,null,null,null,null,null,null,null,null,null,null,null,null,null,null,null,null,null,null,null,null,null,null,null,null,null,null,null,null,null,null,null,null,null,null,null,null,null,null,null,null,null,null,null,null,null,null,null,null,null,null,null,null,null,null,null,null,null,null,null,null,null,null,null,null,null,null,null,null,null,null,null,null,null,null,null,null,null,null,null,null,null,null,null,null,null,null,null,null,null,null,null,null,null,null,null,null,null,null,null,null,null,null,null,null,null,null,null,null,null,null,null,null,null,null,null,null,null,null,null,null,null,null,null,null,null,null,null,null,null,null,null,null,null,null,null,null,null,null,null,null,961.76469863475302,-123882.35855591942,-124818.32494762445]
[null,null,null,null,null,null,null,null,null,null,null,null,null,null,null,null,null,null,null,null,null,null,null,null,null,null,null,null,null,null,null,null,null,null,null,null,null,null,null,null,null,null,null,null,null,null,null,null,null,null,null,null,null,null,null,null,null,null,null,null,null,null,null,null,null,null,null,null,null,null,null,null,null,null,null,null,null,null,null,null,null,null,null,null,null,null,null,null,null,null,null,null,null,null,null,null,null,null,null,null,null,null,null,null,null,null,null,null,null,null,null,null,null,null,null,null,null,null,null,null,null,null,null,null,null,null,null,null,null,null,null,null,null,null,null,null,null,null,null,null,null,null,null,null,null,null,null,null,null,null,null,null,null,null,null,null,null,null,null,null,null,null,null,null,null,null,null,null,null,null,null,null,null,null,null,null,null,null,null,null,null,null,null,null,null,null,null,null,null,null,null,null,null,null,null,null,null,null,null,null,null,null,null,null,null,null,null,null,null,null,null,null,960.29411035472071,-124647.06447293126,-124285.51159152911]
[null,null,null,null,null,null,null,null,null,null,null,null,null,null,null,null,null,null,null,null,null,null,null,null,null,null,null,null,null,null,null,null,null,null,null,null,null,null,null,null,null,null,null,null,null,null,null,null,null,null,null,null,null,null,null,null,null,null,null,null,null,null,null,null,null,null,null,null,null,null,null,null,null,null,null,null,null,null,null,null,null,null,null,null,null,null,null,null,null,null,null,null,null,null,null,null,null,null,null,null,null,null,null,null,null,null,null,null,null,null,null,null,null,null,null,null,null,null,null,null,null,null,null,null,null,null,null,null,null,null,null,null,null,null,null,null,null,null,null,null,null,null,null,null,null,null,null,null,null,null,null,null,null,null,null,null,null,null,null,null,null,null,null,null,null,null,null,null,null,null,null,null,null,null,null,null,null,null,null,null,null,null,null,null,null,null,null,null,null,null,null,null,null,null,null,null,null,null,null,null,null,null,null,null,null,null,null,null,null,null,null,null,958.8235220746883,-125411.77038994311,-123749.37296390113]
[null,null,null,null,null,null,null,null,null,null,null,null,null,null,null,null,null,null,null,null,null,null,null,null,null,null,null,null,null,null,null,null,null,null,null,null,null,null,null,null,null,null,null,null,null,null,null,null,null,null,null,null,null,null,null,null,null,null,null,null,null,null,null,null,null,null,null,null,null,null,null,null,null,null,null,null,null,null,null,null,null,null,null,null,null,null,null,null,null,null,null,null,null,null,null,null,null,null,null,null,null,null,null,null,null,null,null,null,null,null,null,null,null,null,null,null,null,null,null,null,null,null,null,null,null,null,null,null,null,null,null,null,null,null,null,null,null,null,null,null,null,null,null,null,null,null,null,null,null,null,null,null,null,null,null,null,null,null,null,null,null,null,null,null,null,null,null,null,null,null,null,null,null,null,null,null,null,null,null,null,null,null,null,null,null,null,null,null,null,null,null,null,null,null,null,null,null,null,null,null,null,null,null,null,null,null,null,null,null,null,null,null,957.35293379465588,-126176.47630695495,-123210.35555838462]
[null,null,null,null,null,null,null,null,null,null,null,null,null,null,null,null,null,null,null,null,null,null,null,null,null,null,null,null,null,null,null,null,null,null,null,null,null,null,null,null,null,null,null,null,null,null,null,null,null,null,null,null,null,null,null,null,null,null,null,null,null,null,null,null,null,null,null,null,null,null,null,null,null,null,null,null,null,null,null,null,null,null,null,null,null,null,null,null,null,null,null,null,null,null,null,null,null,null,null,null,null,null,null,null,null,null,null,null,null,null,null,null,null,null,null,null,null,null,null,null,null,null,null,null,null,null,null,null,null,null,null,null,null,null,null,null,null,null,null,null,null,null,null,null,null,null,null,null,null,null,null,null,null,null,null,null,null,null,null,null,null,null,null,null,null,null,null,null,null,null,null,null,null,null,null,null,null,null,null,null,null,null,null,null,null,null,null,null,null,null,null,null,null,null,null,null,null,null,null,null,null,null,null,null,null,null,null,null,null,null,null,null,955.88234551462347,-126941.18222396681,-122668.88224400458]
[null,null,null,null,null,null,null,null,null,null,null,null,null,null,null,null,null,null,null,null,null,null,null,null,null,null,null,null,null,null,null,null,null,null,null,null,null,null,null,null,null,null,null,null,null,null,null,null,null,null,null,null,null,null,null,null,null,null,null,null,null,null,null,null,null,null,null,null,null,null,null,null,null,null,null,null,null,null,null,null,null,null,null,null,null,null,null,null,null,null,null,null,null,null,null,null,null,null,null,null,null,null,null,null,null,null,null,null,null,null,null,null,null,null,null,null,null,null,null,null,null,null,null,null,null,null,null,null,null,null,null,null,null,null,null,null,null,null,null,null,null,null,null,null,null,null,null,null,null,null,null,null,null,null,null,null,null,null,null,null,null,null,null,null,null,null,null,null,null,null,null,null,null,null,null,null,null,null,null,null,null,null,null,null,null,null,null,null,null,null,null,null,null,null,null,null,null,null,null,null,null,null,null,null,null,null,null,null,null,null,null,null,954.41175723459105,-127705.88814097866,-122125.35319932183]
[null,null,null,null,null,null,null,null,null,null,null,null,null,null,null,null,null,null,null,null,null,null,null,null,null,null,null,null,null,null,null,null,null,null,null,null,null,null,null,null,null,null,null,null,null,null,null,null,null,null,null,null,null,null,null,null,null,null,null,null,null,null,null,null,null,null,null,null,null,null,null,null,null,null,null,null,null,null,null,null,null,null,null,null,null,null,null,null,null,null,null,null,null,null,null,null,null,null,null,null,null,null,null,null,null,null,null,null,null,null,null,null,null,null,null,null,null,null,null,null,null,null,null,null,null,null,null,null,null,null,null,null,null,null,null,null,null,null,null,null,null,null,null,null,null,null,null,null,null,null,null,null,null,null,null,null,null,null,null,null,null,null,null,null,null,null,null,null,null,null,null,null,null,null,null,null,null,null,null,null,null,null,null,null,null,null,null,null,null,null,null,null,null,null,null,null,null,null,null,null,null,null,null,null,null,null,null,null,null,null,null,null,952.94116895455875,-128470.5940579905,-121580.14682961788]
[null,null,null,null,null,null,null,null,null,null,null,null,null,null,null,null,null,null,null,null,null,null,null,null,null,null,null,null,null,null,null,null,null,null,null,null,null,null,null,null,null,null,null,null,null,null,null,null,null,null,null,null,null,null,null,null,null,null,null,null,null,null,null,null,null,null,null,null,null,null,null,null,null,null,null,null,null,null,null,null,null,null,null,null,null,null,null,null,null,null,null,null,null,null,null,null,null,null,null,null,null,null,null,null,null,null,null,null,null,null,null,null,null,null,null,null,null,null,null,null,null,null,null,null,null,null,null,null,null,null,null,null,null,null,null,null,null,null,null,null,null,null,null,null,null,null,null,null,null,null,null,null,null,null,null,null,null,null,null,null,null,null,null,null,null,null,null,null,null,null,null,null,null,null,null,null,null,null,null,null,null,null,null,null,null,null,null,null,null,null,null,null,null,null,null,null,null,null,null,null,null,null,null,null,null,null,null,null,null,null,null,null,951.47058067452633,-129235.29997500234,-121033.62066519313]
[null,null,null,null,null,null,null,null,null,null,null,null,null,null,null,null,null,null,null,null,null,null,null,null,null,null,null,null,null,null,null,null,null,null,null,null,null,null,null,null,null,null,null,null,null,null,null,null,null,null,null,null,null,null,null,null,null,null,null,null,null,null,null,null,null,null,null,null,null,null,null,null,null,null,null,null,null,null,null,null,null,null,null,null,null,null,null,null,null,null,null,null,null,null,null,null,null,null,null,null,null,null,null,null,null,null,null,null,null,null,null,null,null,null,null,null,null,null,null,null,null,null,null,null,null,null,null,null,null,null,null,null,null,null,null,null,null,null,null,null,null,null,null,null,null,null,null,null,null,null,null,null,null,null,null,null,null,null,null,null,null,null,null,null,null,null,null,null,null,null,null,null,null,null,null,null,null,null,null,null,null,null,null,null,null,null,null,null,null,null,null,null,null,null,null,null,null,null,null,null,null,null,null,null,null,null,null,null,null,null,null,null,949.99999239449392,-130000.0058920142,-120486.11223918427]
[null,null,null,null,null,null,null,null,null,null,null,null,null,null,null,null,null,null,null,null,null,null,null,null,null,null,null,null,null,null,null,null,null,null,null,null,null,null,null,null,null,null,null,null,null,null,null,null,null,null,null,null,null,null,null,null,null,null,null,null,null,null,null,null,null,null,null,null,null,null,null,null,null,null,null,null,null,null,null,null,null,null,null,null,null,null,null,null,null,null,null,null,null,null,null,null,null,null,null,null,null,null,null,null,null,null,null,null,null,null,null,null,null,null,null,null,null,null,null,null,null,null,null,null,null,null,null,null,null,null,null,null,null,null,null,null,null,null,null,null,null,null,null,null,null,null,null,null,null,null,null,null,null,null,null,null,null,null,null,null,null,null,null,null,null,null,null,null,null,null,null,null,null,null,null,null,null,null,null,null,null,null,null,null,null,null,null,null,null,null,null,null,null,null,null,null,null,null,null,null,null,null,null,null,null,null,null,null,null,null,null,null,948.5294041144615,-130764.71180902605,-119937.93994359735]
[null,null,null,null,null,null,null,null,null,null,null,null,null,null,null,null,null,null,null,null,null,null,null,null,null,null,null,null,null,null,null,null,null,null,null,null,null,null,null,null,null,null,null,null,null,null,null,null,null,null,null,null,null,null,null,null,null,null,null,null,null,null,null,null,null,null,null,null,null,null,null,null,null,null,null,null,null,null,null,null,null,null,null,null,null,null,null,null,null,null,null,null,null,null,null,null,null,null,null,null,null,null,null,null,null,null,null,null,null,null,null,null,null,null,null,null,null,null,null,null,null,null,null,null,null,null,null,null,null,null,null,null,null,null,null,null,null,null,null,null,null,null,null,null,null,null,null,null,null,null,null,null,null,null,null,null,null,null,null,null,null,null,null,null,null,null,null,null,null,null,null,null,null,null,null,null,null,null,null,null,null,null,null,null,null,null,null,null,null,null,null,null,null,null,null,null,null,null,null,null,null,null,null,null,null,null,null,null,null,null,null,null,947.0588158344292,-131529.41772603791,-119389.40386251501]
[null,null,null,null,null,null,null,null,null,null,null,null,null,null,null,null,null,null,null,null,null,null,null,null,null,null,null,null,null,null,null,null,null,null,null,null,null,null,null,null,null,null,null,null,null,null,null,null,null,null,null,null,null,null,null,null,null,null,null,null,null,null,null,null,null,null,null,null,null,null,null,null,null,null,null,null,null,null,null,null,null,null,null,null,null,null,null,null,null,null,null,null,null,null,null,null,null,null,null,null,null,null,null,null,null,null,null,null,null,null,null,null,null,null,null,null,null,null,null,null,null,null,null,null,null,null,null,null,null,null,null,null,null,null,null,null,null,null,null,null,null,null,null,null,null,null,null,null,null,null,null,null,null,null,null,null,null,null,null,null,null,null,null,null,null,null,null,null,null,null,null,null,null,null,null,null,null,null,null,null,null,null,null,null,null,null,null,null,null,null,null,null,null,null,null,null,null,null,null,null,null,null,null,null,null,null,null,null,null,null,null,null,945.58822755439678,-132294.12364304974,-118840.78658167001]
[null,null,null,null,null,null,null,null,null,null,null,null,null,null,null,null,null,null,null,null,null,null,null,null,null,null,null,null,null,null,null,null,null,null,null,null,null,null,null,null,null,null,null,null,null,null,null,null,null,null,null,null,null,null,null,null,null,null,null,null,null,null,null,null,null,null,null,null,null,null,null,null,null,null,null,null,null,null,null,null,null,null,null,null,null,null,null,null,null,null,null,null,null,null,null,null,null,null,null,null,null,null,null,null,null,null,null,null,null,null,null,null,null,null,null,null,null,null,null,null,null,null,null,null,null,null,null,null,null,null,null,null,null,null,null,null,null,null,null,null,null,null,null,null,null,null,null,null,null,null,null,null,null,null,null,null,null,null,null,null,null,null,null,null,null,null,null,null,null,null,null,null,null,null,null,null,null,null,null,null,null,null,null,null,null,null,null,null,null,null,null,null,null,null,null,null,null,null,null,null,null,null,null,null,null,null,null,null,null,null,null,null,944.11763927436436,-133058.8295600616,-118292.35397378658]
[null,null,null,null,null,null,null,null,null,null,null,null,null,null,null,null,null,null,null,null,null,null,null,null,null,null,null,null,null,null,null,null,null,null,null,null,null,null,null,null,null,null,null,null,null,null,null,null,null,null,null,null,null,null,null,null,null,null,null,null,null,null,null,null,null,null,null,null,null,null,null,null,null,null,null,null,null,null,null,null,null,null,null,null,null,null,null,null,null,null,null,null,null,null,null,null,null,null,null,null,null,null,null,null,null,null,null,null,null,null,null,null,null,null,null,null,null,null,null,null,null,null,null,null,null,null,null,null,null,null,null,null,null,null,null,null,null,null,null,null,null,null,null,null,null,null,null,null,null,null,null,null,null,null,null,null,null,null,null,null,null,null,null,null,null,null,null,null,null,null,null,null,null,null,null,null,null,null,null,null,null,null,null,null,null,null,null,null,null,null,null,null,null,null,null,null,null,null,null,null,null,null,null,null,null,null,null,null,null,null,null,null,942.64705099433195,-133823.53547707343,-117744.35595927642]
[null,null,null,null,null,null,null,null,null,null,null,null,null,null,null,null,null,null,null,null,null,null,null,null,null,null,null,null,null,null,null,null,null,null,null,null,null,null,null,null,null,null,null,null,null,null,null,null,null,null,null,null,null,null,null,null,null,null,null,null,null,null,null,null,null,null,null,null,null,null,null,null,null,null,null,null,null,null,null,null,null,null,null,null,null,null,null,null,null,null,null,null,null,null,null,null,null,null,null,null,null,null,null,null,null,null,null,null,null,null,null,null,null,null,null,null,null,null,null,null,null,null,null,null,null,null,null,null,null,null,null,null,null,null,null,null,null,null,null,null,null,null,null,null,null,null,null,null,null,null,null,null,null,null,null,null,null,null,null,null,null,null,null,null,null,null,null,null,null,null,null,null,null,null,null,null,null,null,null,null,null,null,null,null,null,null,null,null,null,null,null,null,null,null,null,null,null,null,null,null,null,null,null,null,null,null,null,null,null,null,null,null,941.17646271429965,-134588.24139408529,-117197.02724204121]
[null,null,null,null,null,null,null,null,null,null,null,null,null,null,null,null,null,null,null,null,null,null,null,null,null,null,null,null,null,null,null,null,null,null,null,null,null,null,null,null,null,null,null,null,null,null,null,null,null,null,null,null,null,null,null,null,null,null,null,null,null,null,null,null,null,null,null,null,null,null,null,null,null,null,null,null,null,null,null,null,null,null,null,null,null,null,null,null,null,null,null,null,null,null,null,null,null,null,null,null,null,null,null,null,null,null,null,null,null,null,null,null,null,null,null,null,null,null,null,null,null,null,null,null,null,null,null,null,null,null,null,null,null,null,null,null,null,null,null,null,null,null,null,null,null,null,null,null,null,null,null,null,null,null,null,null,null,null,null,null,null,null,null,null,null,null,null,null,null,null,null,null,null,null,null,null,null,null,null,null,null,null,null,null,null,null,null,null,null,null,null,null,null,null,null,null,null,null,null,null,null,null,null,null,null,null,null,null,null,null,null,null,939.70587443426723,-135352.94731109714,-116650.58802027746]
[null,null,null,null,null,null,null,null,null,null,null,null,null,null,null,null,null,null,null,null,null,null,null,null,null,null,null,null,null,null,null,null,null,null,null,null,null,null,null,null,null,null,null,null,null,null,null,null,null,null,null,null,null,null,null,null,null,null,null,null,null,null,null,null,null,null,null,null,null,null,null,null,null,null,null,null,null,null,null,null,null,null,null,null,null,null,null,null,null,null,null,null,null,null,null,null,null,null,null,null,null,null,null,null,null,null,null,null,null,null,null,null,null,null,null,null,null,null,null,null,null,null,null,null,null,null,null,null,null,null,null,null,null,null,null,null,null,null,null,null,null,null,null,null,null,null,null,null,null,null,null,null,null,null,null,null,null,null,null,null,null,null,null,null,null,null,null,null,null,null,null,null,null,null,null,null,null,null,null,null,null,null,null,null,null,null,null,null,null,null,null,null,null,null,null,null,null,null,null,null,null,null,null,null,null,null,null,null,null,null,null,null,938.23528615423481,-136117.65322810897,-116105.24467230764]
[null,null,null,null,null,null,null,null,null,null,null,null,null,null,null,null,null,null,null,null,null,null,null,null,null,null,null,null,null,null,null,null,null,null,null,null,null,null,null,null,null,null,null,null,null,null,null,null,null,null,null,null,null,null,null,null,null,null,null,null,null,null,null,null,null,null,null,null,null,null,null,null,null,null,null,null,null,null,null,null,null,null,null,null,null,null,null,null,null,null,null,null,null,null,null,null,null,null,null,null,null,null,null,null,null,null,null,null,null,null,null,null,null,null,null,null,null,null,null,null,null,null,null,null,null,null,null,null,null,null,null,null,null,null,null,null,null,null,null,null,null,null,null,null,null,null,null,null,null,null,null,null,null,null,null,null,null,null,null,null,null,null,null,null,null,null,null,null,null,null,null,null,null,null,null,null,null,null,null,null,null,null,null,null,null,null,null,null,null,null,null,null,null,null,null,null,null,null,null,null,null,null,null,null,null,null,null,null,null,null,null,null,936.7646978742024,-136882.35914512083,-115561.1904175711]
[null,null,null,null,null,null,null,null,null,null,null,null,null,null,null,null,null,null,null,null,null,null,null,null,null,null,null,null,null,null,null,null,null,null,null,null,null,null,null,null,null,null,null,null,null,null,null,null,null,null,null,null,null,null,null,null,null,null,null,null,null,null,null,null,null,null,null,null,null,null,null,null,null,null,null,null,null,null,null,null,null,null,null,null,null,null,null,null,null,null,null,null,null,null,null,null,null,null,null,null,null,null,null,null,null,null,null,null,null,null,null,null,null,null,null,null,null,null,null,null,null,null,null,null,null,null,null,null,null,null,null,null,null,null,null,null,null,null,null,null,null,null,null,null,null,null,null,null,null,null,null,null,null,null,null,null,null,null,null,null,null,null,null,null,null,null,null,null,null,null,null,null,null,null,null,null,null,null,null,null,null,null,null,null,null,null,null,null,null,null,null,null,null,null,null,null,null,null,null,null,null,null,null,null,null,null,null,null,null,null,null,null,935.2941095941701,-137647.06506213269,-115018.6059530053]
[null,null,null,null,null,null,null,null,null,null,null,null,null,null,null,null,null,null,null,null,null,null,null,null,null,null,null,null,null,null,null,null,null,null,null,null,null,null,null,null,null,null,null,null,null,null,null,null,null,null,null,null,null,null,null,null,null,null,null,null,null,null,null,null,null,null,null,null,null,null,null,null,null,null,null,null,null,null,null,null,null,null,null,null,null,null,null,null,null,null,null,null,null,null,null,null,null,null,null,null,null,null,null,null,null,null,null,null,null,null,null,null,null,null,null,null,null,null,null,null,null,null,null,null,null,null,null,null,null,null,null,null,null,null,null,null,null,null,null,null,null,null,null,null,null,null,null,null,null,null,null,null,null,null,null,null,null,null,null,null,null,null,null,null,null,null,null,null,null,null,null,null,null,null,null,null,null,null,null,null,null,null,null,null,null,null,null,null,null,null,null,null,null,null,null,null,null,null,null,null,null,null,null,null,null,null,null,null,null,null,null,null,933.82352131413768,-138411.77097914452,-114477.66006512982]
[null,null,null,null,null,null,null,null,null,null,null,null,null,null,null,null,null,null,null,null,null,null,null,null,null,null,null,null,null,null,null,null,null,null,null,null,null,null,null,null,null,null,null,null,null,null,null,null,null,null,null,null,null,null,null,null,null,null,null,null,null,null,null,null,null,null,null,null,null,null,null,null,null,null,null,null,null,null,null,null,null,null,null,null,null,null,null,null,null,null,null,null,null,null,null,null,null,null,null,null,null,null,null,null,null,null,null,null,null,null,null,null,null,null,null,null,null,null,null,null,null,null,null,null,null,null,null,null,null,null,null,null,null,null,null,null,null,null,null,null,null,null,null,null,null,null,null,null,null,null,null,null,null,null,null,null,null,null,null,null,null,null,null,null,null,null,null,null,null,null,null,null,null,null,null,null,null,null,null,null,null,null,null,null,null,null,null,null,null,null,null,null,null,null,null,null,null,null,null,null,null,null,null,null,null,null,null,null,null,null,null,null,932.35293303410526,-139176.47689615638,-113938.5102182163]
[null,null,null,null,null,null,null,null,null,null,null,null,null,null,null,null,null,null,null,null,null,null,null,null,null,null,null,null,null,null,null,null,null,null,null,null,null,null,null,null,null,null,null,null,null,null,null,null,null,null,null,null,null,null,null,null,null,null,null,null,null,null,null,null,null,null,null,null,null,null,null,null,null,null,null,null,null,null,null,null,null,null,null,null,null,null,null,null,null,null,null,null,null,null,null,null,null,null,null,null,null,null,null,null,null,null,null,null,null,null,null,null,null,null,null,null,null,null,null,null,null,null,null,null,null,null,null,null,null,null,null,null,null,null,null,null,null,null,null,null,null,null,null,null,null,null,null,null,null,null,null,null,null,null,null,null,null,null,null,null,null,null,null,null,null,null,null,null,null,null,null,null,null,null,null,null,null,null,null,null,null,null,null,null,null,null,null,null,null,null,null,null,null,null,null,null,null,null,null,null,null,null,null,null,null,null,null,null,null,null,null,null,930.88234475407285,-139941.18281316821,-113401.30311898691]
[null,null,null,null,null,null,null,null,null,null,null,null,null,null,null,null,null,null,null,null,null,null,null,null,null,null,null,null,null,null,null,null,null,null,null,null,null,null,null,null,null,null,null,null,null,null,null,null,null,null,null,null,null,null,null,null,null,null,null,null,null,null,null,null,null,null,null,null,null,null,null,null,null,null,null,null,null,null,null,null,null,null,null,null,null,null,null,null,null,null,null,null,null,null,null,null,null,null,null,null,null,null,null,null,null,null,null,null,null,null,null,null,null,null,null,null,null,null,null,null,null,null,null,null,null,null,null,null,null,null,null,null,null,null,null,null,null,null,null,null,null,null,null,null,null,null,null,null,null,null,null,null,null,null,null,null,null,null,null,null,null,null,null,null,null,null,null,null,null,null,null,null,null,null,null,null,null,null,null,null,null,null,null,null,null,null,null,null,null,null,null,null,null,null,null,null,null,null,null,null,null,null,null,null,null,null,null,null,null,null,null,null,929.41175647404054,-140705.88873018007,-112866.17525833426]
[null,null,null,null,null,null,null,null,null,null,null,null,null,null,null,null,null,null,null,null,null,null,null,null,null,null,null,null,null,null,null,null,null,null,null,null,null,null,null,null,null,null,null,null,null,null,null,null,null,null,null,null,null,null,null,null,null,null,null,null,null,null,null,null,null,null,null,null,null,null,null,null,null,null,null,null,null,null,null,null,null,null,null,null,null,null,null,null,null,null,null,null,null,null,null,null,null,null,null,null,null,null,null,null,null,null,null,null,null,null,null,null,null,null,null,null,null,null,null,null,null,null,null,null,null,null,null,null,null,null,null,null,null,null,null,null,null,null,null,null,null,null,null,null,null,null,null,null,null,null,null,null,null,null,null,null,null,null,null,null,null,null,null,null,null,null,null,null,null,null,null,null,null,null,null,null,null,null,null,null,null,null,null,null,null,null,null,null,null,null,null,null,null,null,null,null,null,null,null,null,null,null,null,null,null,null,null,null,null,null,null,null,927.94116819400813,-141470.59464719193,-112333.25343059565]
[null,null,null,null,null,null,null,null,null,null,null,null,null,null,null,null,null,null,null,null,null,null,null,null,null,null,null,null,null,null,null,null,null,null,null,null,null,null,null,null,null,null,null,null,null,null,null,null,null,null,null,null,null,null,null,null,null,null,null,null,null,null,null,null,null,null,null,null,null,null,null,null,null,null,null,null,null,null,null,null,null,null,null,null,null,null,null,null,null,null,null,null,null,null,null,null,null,null,null,null,null,null,null,null,null,null,null,null,null,null,null,null,null,null,null,null,null,null,null,null,null,null,null,null,null,null,null,null,null,null,null,null,null,null,null,null,null,null,null,null,null,null,null,null,null,null,null,null,null,null,null,null,null,null,null,null,null,null,null,null,null,null,null,null,null,null,null,null,null,null,null,null,null,null,null,null,null,null,null,null,null,null,null,null,null,null,null,null,null,null,null,null,null,null,null,null,null,null,null,null,null,null,null,null,null,null,null,null,null,null,null,null,926.47057991397571,-142235.30056420376,-111802.65523094891]
[null,null,null,null,null,null,null,null,null,null,null,null,null,null,null,null,null,null,null,null,null,null,null,null,null,null,null,null,null,null,null,null,null,null,null,null,null,null,null,null,null,null,null,null,null,null,null,null,null,null,null,null,null,null,null,null,null,null,null,null,null,null,null,null,null,null,null,null,null,null,null,null,null,null,null,null,null,null,null,null,null,null,null,null,null,null,null,null,null,null,null,null,null,null,null,null,null,null,null,null,null,null,null,null,null,null,null,null,null,null,null,null,null,null,null,null,null,null,null,null,null,null,null,null,null,null,null,null,null,null,null,null,null,null,null,null,null,null,null,null,null,null,null,null,null,null,null,null,null,null,null,null,null,null,null,null,null,null,null,null,null,null,null,null,null,null,null,null,null,null,null,null,null,null,null,null,null,null,null,null,null,null,null,null,null,null,null,null,null,null,null,null,null,null,null,null,null,null,null,null,null,null,null,null,null,null,null,null,null,null,null,null,924.9999916339433,-143000.00648121562,-111274.48953152199]
[null,null,null,null,null,null,null,null,null,null,null,null,null,null,null,null,null,null,null,null,null,null,null,null,null,null,null,null,null,null,null,null,null,null,null,null,null,null,null,null,null,null,null,null,null,null,null,null,null,null,null,null,null,null,null,null,null,null,null,null,null,null,null,null,null,null,null,null,null,null,null,null,null,null,null,null,null,null,null,null,null,null,null,null,null,null,null,null,null,null,null,null,null,null,null,null,null,null,null,null,null,null,null,null,null,null,null,null,null,null,null,null,null,null,null,null,null,null,null,null,null,null,null,null,null,null,null,null,null,null,null,null,null,null,null,null,null,null,null,null,null,null,null,null,null,null,null,null,null,null,null,null,null,null,null,null,null,null,null,null,null,null,null,null,null,null,null,null,null,null,null,null,null,null,null,null,null,null,null,null,null,null,null,null,null,null,null,null,null,null,null,null,null,null,null,null,null,null,null,null,null,null,null,null,null,null,null,null,null,null,null,null,923.52940335391088,-143764.71239822748,-110748.85693682964]
[null,null,null,null,null,null,null,null,null,null,null,null,null,null,null,null,null,null,null,null,null,null,null,null,null,null,null,null,null,null,null,null,null,null,null,null,null,null,null,null,null,null,null,null,null,null,null,null,null,null,null,null,null,null,null,null,null,null,null,null,null,null,null,null,null,null,null,null,null,null,null,null,null,null,null,null,null,null,null,null,null,null,null,null,null,null,null,null,null,null,null,null,null,null,null,null,null,null,null,null,null,null,null,null,null,null,null,null,null,null,null,null,null,null,null,null,null,null,null,null,null,null,null,null,null,null,null,null,null,null,null,null,null,null,null,null,null,null,null,null,null,null,null,null,null,null,null,null,null,null,null,null,null,null,null,null,null,null,null,null,null,null,null,null,null,null,null,null,null,null,null,null,null,null,null,null,null,null,null,null,null,null,null,null,null,null,null,null,null,null,null,null,null,null,null,null,null,null,null,null,null,null,null,null,null,null,null,null,null,null,null,null,922.05881507387858,-144529.41831523931,-110225.85021916375]
[null,null,null,null,null,null,null,null,null,null,null,null,null,null,null,null,null,null,null,null,null,null,null,null,null,null,null,null,null,null,null,null,null,null,null,null,null,null,null,null,null,null,null,null,null,null,null,null,null,null,null,null,null,null,null,null,null,null,null,null,null,null,null,null,null,null,null,null,null,null,null,null,null,null,null,null,null,null,null,null,null,null,null,null,null,null,null,null,null,null,null,null,null,null,null,null,null,null,null,null,null,null,null,null,null,null,null,null,null,null,null,null,null,null,null,null,null,null,null,null,null,null,null,null,null,null,null,null,null,null,null,null,null,null,null,null,null,null,null,null,null,null,null,null,null,null,null,null,null,null,null,null,null,null,null,null,null,null,null,null,null,null,null,null,null,null,null,null,null,null,null,null,null,null,null,null,null,null,null,null,null,null,null,null,null,null,null,null,null,null,null,null,null,null,null,null,null,null,null,null,null,null,null,null,null,null,null,null,null,null,null,null,920.58822679384616,-145294.12423225117,-109705.55473457449]
[null,null,null,null,null,null,null,null,null,null,null,null,null,null,null,null,null,null,null,null,null,null,null,null,null,null,null,null,null,null,null,null,null,null,null,null,null,null,null,null,null,null,null,null,null,null,null,null,null,null,null,null,null,null,null,null,null,null,null,null,null,null,null,null,null,null,null,null,null,null,null,null,null,null,null,null,null,null,null,null,null,null,null,null,null,null,null,null,null,null,null,null,null,null,null,null,null,null,null,null,null,null,null,null,null,null,null,null,null,null,null,null,null,null,null,null,null,null,null,null,null,null,null,null,null,null,null,null,null,null,null,null,null,null,null,null,null,null,null,null,null,null,null,null,null,null,null,null,null,null,null,null,null,null,null,null,null,null,null,null,null,null,null,null,null,null,null,null,null,null,null,null,null,null,null,null,null,null,null,null,null,null,null,null,null,null,null,null,null,null,null,null,null,null,null,null,null,null,null,null,null,null,null,null,null,null,null,null,null,null,null,null,919.11763851381374,-146058.830149263,-109188.04882008402]
[null,null,null,null,null,null,null,null,null,null,null,null,null,null,null,null,null,null,null,null,null,null,null,null,null,null,null,null,null,null,null,null,null,null,null,null,null,null,null,null,null,null,null,null,null,null,null,null,null,null,null,null,null,null,null,null,null,null,null,null,null,null,null,null,null,null,null,null,null,null,null,null,null,null,null,null,null,null,null,null,null,null,null,null,null,null,null,null,null,null,null,null,null,null,null,null,null,null,null,null,null,null,null,null,null,null,null,null,null,null,null,null,null,null,null,null,null,null,null,null,null,null,null,null,null,null,null,null,null,null,null,null,null,null,null,null,null,null,null,null,null,null,null,null,null,null,null,null,null,null,null,null,null,null,null,null,null,null,null,null,null,null,null,null,null,null,null,null,null,null,null,null,null,null,null,null,null,null,null,null,null,null,null,null,null,null,null,null,null,null,null,null,null,null,null,null,null,null,null,null,null,null,null,null,null,null,null,null,null,null,null,null,917.64705023378133,-146823.53606627486,-108673.40417277672]
[null,null,null,null,null,null,null,null,null,null,null,null,null,null,null,null,null,null,null,null,null,null,null,null,null,null,null,null,null,null,null,null,null,null,null,null,null,null,null,null,null,null,null,null,null,null,null,null,null,null,null,null,null,null,null,null,null,null,null,null,null,null,null,null,null,null,null,null,null,null,null,null,null,null,null,null,null,null,null,null,null,null,null,null,null,null,null,null,null,null,null,null,null,null,null,null,null,null,null,null,null,null,null,null,null,null,null,null,null,null,null,null,null,null,null,null,null,null,null,null,null,null,null,null,null,null,null,null,null,null,null,null,null,null,null,null,null,null,null,null,null,null,null,null,null,null,null,null,null,null,null,null,null,null,null,null,null,null,null,null,null,null,null,null,null,null,null,null,null,null,null,null,null,null,null,null,null,null,null,null,null,null,null,null,null,null,null,null,null,null,null,null,null,null,null,null,null,null,null,null,null,null,null,null,null,null,null,null,null,null,null,null,916.17646195374903,-147588.24198328672,-108161.68621140759]
[null,null,null,null,null,null,null,null,null,null,null,null,null,null,null,null,null,null,null,null,null,null,null,null,null,null,null,null,null,null,null,null,null,null,null,null,null,null,null,null,null,null,null,null,null,null,null,null,null,null,null,null,null,null,null,null,null,null,null,null,null,null,null,null,null,null,null,null,null,null,null,null,null,null,null,null,null,null,null,null,null,null,null,null,null,null,null,null,null,null,null,null,null,null,null,null,null,null,null,null,null,null,null,null,null,null,null,null,null,null,null,null,null,null,null,null,null,null,null,null,null,null,null,null,null,null,null,null,null,null,null,null,null,null,null,null,null,null,null,null,null,null,null,null,null,null,null,null,null,null,null,null,null,null,null,null,null,null,null,null,null,null,null,null,null,null,null,null,null,null,null,null,null,null,null,null,null,null,null,null,null,null,null,null,null,null,null,null,null,null,null,null,null,null,null,null,null,null,null,null,null,null,null,null,null,null,null,null,null,null,null,null,914.70587367371661,-148352.94790029855,-107652.95442116678]
[null,null,null,null,null,null,null,null,null,null,null,null,null,null,null,null,null,null,null,null,null,null,null,null,null,null,null,null,null,null,null,null,null,null,null,null,null,null,null,null,null,null,null,null,null,null,null,null,null,null,null,null,null,null,null,null,null,null,null,null,null,null,null,null,null,null,null,null,null,null,null,null,null,null,null,null,null,null,null,null,null,null,null,null,null,null,null,null,null,null,null,null,null,null,null,null,null,null,null,null,null,null,null,null,null,null,null,null,null,null,null,null,null,null,null,null,null,null,null,null,null,null,null,null,null,null,null,null,null,null,null,null,null,null,null,null,null,null,null,null,null,null,null,null,null,null,null,null,null,null,null,null,null,null,null,null,null,null,null,null,null,null,null,null,null,null,null,null,null,null,null,null,null,null,null,null,null,null,null,null,null,null,null,null,null,null,null,null,null,null,null,null,null,null,null,null,null,null,null,null,null,null,null,null,null,null,null,null,null,null,null,null,913.23528539368419,-149117.65381731041,-107147.26268223078]
[null,null,null,null,null,null,null,null,null,null,null,null,null,null,null,null,null,null,null,null,null,null,null,null,null,null,null,null,null,null,null,null,null,null,null,null,null,null,null,null,null,null,null,null,null,null,null,null,null,null,null,null,null,null,null,null,null,null,null,null,null,null,null,null,null,null,null,null,null,null,null,null,null,null,null,null,null,null,null,null,null,null,null,null,null,null,null,null,null,null,null,null,null,null,null,null,null,null,null,null,null,null,null,null,null,null,null,null,null,null,null,null,null,null,null,null,null,null,null,null,null,null,null,null,null,null,null,null,null,null,null,null,null,null,null,null,null,null,null,null,null,null,null,null,null,null,null,null,null,null,null,null,null,null,null,null,null,null,null,null,null,null,null,null,null,null,null,null,null,null,null,null,null,null,null,null,null,null,null,null,null,null,null,null,null,null,null,null,null,null,null,null,null,null,null,null,null,null,null,null,null,null,null,null,null,null,null,null,null,null,null,null,911.76469711365178,-149882.35973432226,-106644.65958272222]
[null,null,null,null,null,null,null,null,null,null,null,null,null,null,null,null,null,null,null,null,null,null,null,null,null,null,null,null,null,null,null,null,null,null,null,null,null,null,null,null,null,null,null,null,null,null,null,null,null,null,null,null,null,null,null,null,null,null,null,null,null,null,null,null,null,null,null,null,null,null,null,null,null,null,null,null,null,null,null,null,null,null,null,null,null,null,null,null,null,null,null,null,null,null,null,null,null,null,null,null,null,null,null,null,null,null,null,null,null,null,null,null,null,null,null,null,null,null,null,null,null,null,null,null,null,null,null,null,null,null,null,null,null,null,null,null,null,null,null,null,null,null,null,null,null,null,null,null,null,null,null,null,null,null,null,null,null,null,null,null,null,null,null,null,null,null,null,null,null,null,null,null,null,null,null,null,null,null,null,null,null,null,null,null,null,null,null,null,null,null,null,null,null,null,null,null,null,null,null,null,null,null,null,null,null,null,null,null,null,null,null,null,910.29410883361948,-150647.06565133409,-106145.1887166894]
[null,null,null,null,null,null,null,null,null,null,null,null,null,null,null,null,null,null,null,null,null,null,null,null,null,null,null,null,null,null,null,null,null,null,null,null,null,null,null,null,null,null,null,null,null,null,null,null,null,null,null,null,null,null,null,null,null,null,null,null,null,null,null,null,null,null,null,null,null,null,null,null,null,null,null,null,null,null,null,null,null,null,null,null,null,null,null,null,null,null,null,null,null,null,null,null,null,null,null,null,null,null,null,null,null,null,null,null,null,null,null,null,null,null,null,null,null,null,null,null,null,null,null,null,null,null,null,null,null,null,null,null,null,null,null,null,null,null,null,null,null,null,null,null,null,null,null,null,null,null,null,null,null,null,null,null,null,null,null,null,null,null,null,null,null,null,null,null,null,null,null,null,null,null,null,null,null,null,null,null,null,null,null,null,null,null,null,null,null,null,null,null,null,null,null,null,null,null,null,null,null,null,null,null,null,null,null,null,null,null,null,null,908.82352055358706,-151411.77156834595,-105648.888967705]
[null,null,null,null,null,null,null,null,null,null,null,null,null,null,null,null,null,null,null,null,null,null,null,null,null,null,null,null,null,null,null,null,null,null,null,null,null,null,null,null,null,null,null,null,null,null,null,null,null,null,null,null,null,null,null,null,null,null,null,null,null,null,null,null,null,null,null,null,null,null,null,null,null,null,null,null,null,null,null,null,null,null,null,null,null,null,null,null,null,null,null,null,null,null,null,null,null,null,null,null,null,null,null,null,null,null,null,null,null,null,null,null,null,null,null,null,null,null,null,null,null,null,null,null,null,null,null,null,null,null,null,null,null,null,null,null,null,null,null,null,null,null,null,null,null,null,null,null,null,null,null,null,null,null,null,null,null,null,null,null,null,null,null,null,null,null,null,null,null,null,null,null,null,null,null,null,null,null,null,null,null,null,null,null,null,null,null,null,null,null,null,null,null,null,null,null,null,null,null,null,null,null,null,null,null,null,null,null,null,null,null,null,907.35293227355464,-152176.47748535778,-105155.79477866944]
[null,null,null,null,null,null,null,null,null,null,null,null,null,null,null,null,null,null,null,null,null,null,null,null,null,null,null,null,null,null,null,null,null,null,null,null,null,null,null,null,null,null,null,null,null,null,null,null,null,null,null,null,null,null,null,null,null,null,null,null,null,null,null,null,null,null,null,null,null,null,null,null,null,null,null,null,null,null,null,null,null,null,null,null,null,null,null,null,null,null,null,null,null,null,null,null,null,null,null,null,null,null,null,null,null,null,null,null,null,null,null,null,null,null,null,null,null,null,null,null,null,null,null,null,null,null,null,null,null,null,null,null,null,null,null,null,null,null,null,null,null,null,null,null,null,null,null,null,null,null,null,null,null,null,null,null,null,null,null,null,null,null,null,null,null,null,null,null,null,null,null,null,null,null,null,null,null,null,null,null,null,null,null,null,null,null,null,null,null,null,null,null,null,null,null,null,null,null,null,null,null,null,null,null,null,null,null,null,null,null,null,null,905.88234399352223,-152941.18340236964,-104665.93640839073]
[null,null,null,null,null,null,null,null,null,null,null,null,null,null,null,null,null,null,null,null,null,null,null,null,null,null,null,null,null,null,null,null,null,null,null,null,null,null,null,null,null,null,null,null,null,null,null,null,null,null,null,null,null,null,null,null,null,null,null,null,null,null,null,null,null,null,null,null,null,null,null,null,null,null,null,null,null,null,null,null,null,null,null,null,null,null,null,null,null,null,null,null,null,null,null,null,null,null,null,null,null,null,null,null,null,null,null,null,null,null,null,null,null,null,null,null,null,null,null,null,null,null,null,null,null,null,null,null,null,null,null,null,null,null,null,null,null,null,null,null,null,null,null,null,null,null,null,null,null,null,null,null,null,null,null,null,null,null,null,null,null,null,null,null,null,null,null,null,null,null,null,null,null,null,null,null,null,null,null,null,null,null,null,null,null,null,null,null,null,null,null,null,null,null,null,null,null,null,null,null,null,null,null,null,null,null,null,null,null,null,null,null,904.41175571348992,-153705.8893193815,-104179.34017549748]
[null,null,null,null,null,null,null,null,null,null,null,null,null,null,null,null,null,null,null,null,null,null,null,null,null,null,null,null,null,null,null,null,null,null,null,null,null,null,null,null,null,null,null,null,null,null,null,null,null,null,null,null,null,null,null,null,null,null,null,null,null,null,null,null,null,null,null,null,null,null,null,null,null,null,null,null,null,null,null,null,null,null,null,null,null,null,null,null,null,null,null,null,null,null,null,null,null,null,null,null,null,null,null,null,null,null,null,null,null,null,null,null,null,null,null,null,null,null,null,null,null,null,null,null,null,null,null,null,null,null,null,null,null,null,null,null,null,null,null,null,null,null,null,null,null,null,null,null,null,null,null,null,null,null,null,null,null,null,null,null,null,null,null,null,null,null,null,null,null,null,null,null,null,null,null,null,null,null,null,null,null,null,null,null,null,null,null,null,null,null,null,null,null,null,null,null,null,null,null,null,null,null,null,null,null,null,null,null,null,null,null,null,902.94116743345751,-154470.59523639333,-103696.02869022588]
[null,null,null,null,null,null,null,null,null,null,null,null,null,null,null,null,null,null,null,null,null,null,null,null,null,null,null,null,null,null,null,null,null,null,null,null,null,null,null,null,null,null,null,null,null,null,null,null,null,null,null,null,null,null,null,null,null,null,null,null,null,null,null,null,null,null,null,null,null,null,null,null,null,null,null,null,null,null,null,null,null,null,null,null,null,null,null,null,null,null,null,null,null,null,null,null,null,null,null,null,null,null,null,null,null,null,null,null,null,null,null,null,null,null,null,null,null,null,null,null,null,null,null,null,null,null,null,null,null,null,null,null,null,null,null,null,null,null,null,null,null,null,null,null,null,null,null,null,null,null,null,null,null,null,null,null,null,null,null,null,null,null,null,null,null,null,null,null,null,null,null,null,null,null,null,null,null,null,null,null,null,null,null,null,null,null,null,null,null,null,null,null,null,null,null,null,null,null,null,null,null,null,null,null,null,null,null,null,null,null,null,null,901.47057915342509,-155235.30115340519,-103216.02107460558]

{"sheet":"RKVarMap","index":2,"n_rows":58,"n_cols":14,"rows_kept":58,"cut":false,"hidden":true,"merged":[]}
["RKAdmin  - Admin use only / Not yet updated with 04 or 05 variables",null,null,null,null,null,null,null,null,null,null,null,"Solids used in charting"]
["AFC",null,null,null,null,"std val","in 0","in 123","in 456","RKPage","Range"]
["ElemLabel",null,null,null,null,"Sr/Nd","no","yes","yes","1,2","Elem1-6",null,"iMen",5]
["ConMagma","cm0",null,null,null,"400/100","no","yes","yes","1,2","Elem1-6",null,"Men",6]
["Dmo","dm",null,null,null,"1.5/0.25","no","yes","yes","1,2","Elem1-6",null,"iMc",11]
["EnthMagma",null,null,null,null,"0/0","no","yes","yes","1,2","Elem1-6",null,"Mc",12]
[null,null,null,null,null,null,null,null,null,null,null,null,"Ms",13]
["ConAssim","cao",null,null,null,"200/200","no","yes","yes","1,2","Elem1-6",null,"iCen",14]
[null,null,null,null,null,null,"no","yes","yes","1,2","Elem1-6",null,"Cav,en",15]
["ConRM",null,null,null,null,null,"no","yes","yes","1,2","Elem1-6",null,"Mtr,en",16]
["Dao","da",null,null,null,"1/0.25","no","yes","yes","1,2","Elem1-6",null,"iCc",17]
[null,null,null,null,null,null,"no","yes","yes","1,2","Elem1-6",null,"Cav,c",23]
["Dro",null,null,null,null,null,null,"yes","yes","1,2","Elem1-6",null,"Cav,s",24]
["EnthAssim",null,null,null,null,"0/0","no","yes","yes","1,2","Elem1-6",null,"iCa",25]
[null,null,null,null,null,null,"no","yes","yes","1,2","Elem1-6",null,"Cav,a",26]
["EnthRM",null,null,null,null,null,"no","yes","yes","1,2","Elem1-6",null,"Mtr,a",27]
["IsotLabel",null,null,null,null,"87Sr/86Sr 143Nd/144Nd","no","yes","no",1,"Elem1-3"]
["IsotRatioMagma","epsm",null,null,null,"0.7035/0.513","no","yes","no",1,"Elem1-3"]
["IsotRatioAssim","epsa",null,null,null,"0.715/0.5122","no","yes","no",1,"Elem1-3"]
["IsotRatioRM","epsr",null,null,null,"0.715/0.5122","no","yes","no",1,"Elem1-3"]
[]
["AssimO18O16","(dela)",null,null,null,null,"yes",null,null,3]
["ConAssimOxy","Caox",null,null,null,null,"yes",null,null,3,"Oxy2"]
["ConRMOxy","CRMox",null,null,null,null,"yes",null,null,3]
["ConMagmaOxy","Cmox",null,null,null,null,"yes",null,null,3,"CFCOxy"]
["MagmaO18O16",null,null,null,null,null,"yes",null,null,3]
["liquid T magma","tlm",null,null,null,1200,null,null,null,4]
["Initial T magma","tmo",null,null,null,1200,null,null,null,4]
["liquid T assimilant","tla",null,null,null,1100,null,null,null,4]
["Initial T assim","ta0",null,null,null,600,null,null,null,4,"Therm2"]
[null,"tlr",null,null,null,1200,null,null,null,4]
[null,"tro",null,null,null,1200,null,null,null,4]
["solidus","ts",null,null,null,900,null,null,null,4,"CFCTherm"]
[null,"cpm",null,null,null,1484,null,null,null,4]
[null,"cpa",null,null,null,1388,null,null,null,4]
[null,"cpr",null,null,null,1480,null,null,null,4]
[null,"hm",null,null,null,396000,null,null,null,4]
[null,"ha",null,null,null,354000,null,null,null,4]
[null,"hr",null,null,null,396000,null,null,null,4]
[]
["Magma T Half","ThalfM",null,null,null,null,null,null,null,5]
["Magma Sigma","SigmaM",null,null,null,null,null,null,null,5,"Erf2"]
["Assim T Half","ThalfA",null,null,null,null,null,null,null,5,"CFCErf"]
["Assim Sigma","SigmaA",null,null,null,null,null,null,null,5]
["k","U0",null,"Unew",null,"0/0","yes","no","no",6]
["l","V0","Mm","Vnew",null,"1/1","yes","no","no",6]
["m","W0","Cm","Wnew",null,"-/1","no","yes","yes",6]
["n","X0",null,"Xnew",null,null,"no","yes","no",6,"ratio isot in magma"]
["p","Y0",null,"YNew",null,null,"P1no/P2yes","no","no",6,"MagmaO18O16"]
["q","Z0","Mr","ZNew",null,null,"yes","no","no",null,"Recharge Magma"]
[null,"T0",null,null,null,1,null,null,null,6]
[null,"Tfinal",null,null,null,null,null,null,null,6]
[null,"deltaT",null,null,null,null,null,null,null,6]
[]
[null,null,"fa","Func_fa(Unew)"]
[null,null,"Ma*","fa*Mao"]
[null,null,"fm","Func_fm(Temp+dT)"]
[null,null,"Mcm","1-fm"]

{"sheet":"RKCharts","index":3,"n_rows":72,"n_cols":2,"rows_kept":72,"cut":false,"hidden":false,"merged":[]}
["Charted data from worksheet 'RK07ATest'.      More charts >>>>"]
[]
[]
[]
[]
[]
[]
[]
[]
[]
[]
[]
[]
[]
[]
[]
[]
[]
[]
[]
[]
[]
[]
[]
[]
[]
[]
[]
[]
[]
[]
[]
[]
[]
[]
[]
[]
[]
[]
[]
[]
[]
[]
[]
[]
[]
[]
[]
[]
[null,"Norm T magma"]
[null,"T magma (deg C)"]
[null,"Norm T assim"]
[null,"T assim (deg C)"]
[null,"Mm"]
[null,"fa"]
[null,"Ma*"]
[null,"X Ma*"]
[null,"fm"]
[null,"Mc"]
[null,"Men"]
[null,"Ms"]
[null,"fr"]
[null,"Mr"]
[null,"Sr"]
[null,"87Sr/86Sr"]
[null,"87Sr/86Sr"]
[null,"Th"]
[null,"87Sr/86Sr"]
[null,"Th"]
[null,"Nd"]
[null,"143Nd/144Nd"]
[null,"Th"]

{"sheet":"Equilibration","index":4,"n_rows":279,"n_cols":11,"rows_kept":279,"cut":false,"hidden":false,"merged":[]}
["Equilibration Parameters for EC-RAXFC simulation"]
[]
[]
["tlm",1300,"degC",null,"Magma a",450,null,"Mro",0.3]
["tmo",1300,"degC",null,"Magma b",-11]
["tla",1150,"degC",null,"Assimilant a",400]
["tao",600,"degC",null,"Assimilant b",-11]
["tlr",1320,"degC",null,"Recharge Magma a",450]
["tro",1320,"degC",null,"Recharge Magma b",-11]
["ts",900,"degC"]
["cpm",1484,"J/kg K"]
["cpa",1370,"J/kg K"]
["cpr",1484,"J/kg K"]
["hm",396000,"J/kg"]
["ha",270000,"J/kg"]
["hr",396000,"J/kg"]
["X",1,"Normalized fraction of Wallrock melt"]
[null,null,"   mixed into Magma body"]
[]
[]
[]
[]
["Norm Teq","Teq deg C","Mm","Mao","Ma*","  Intermediate",null,"Ms","fa","fm","fr"]
[]
[1,1300,1.299640767804894,1.0859842242676098E-2,1.0859743547328861E-2,7.459700000781444E-3,3.7592876625821901E-3,1.1218987663363635E-2,0.99999091189862321,0.99254029999921856,0.98746904162266158]
[0.999,1298.4268400000001,1.3018062987388985,1.3508702095387676E-2,1.3508570528090933E-2,7.786935161774533E-3,3.9153485483467056E-3,1.1702283710121239E-2,0.99999026055235996,0.99221306483822547,0.9869488386907842]
[0.998,1296.8536799999999,1.3039671921476763,1.6173555524312187E-2,1.6173386713221868E-2,8.1284076105538894E-3,4.0777988759205918E-3,1.2206206486474481E-2,0.99998956252445137,0.99187159238944611,0.98640733762038857]
[0.997,1295.28052,1.3061229488216202,1.8854766745141582E-2,1.8854555844569697E-2,8.4847262495495457E-3,4.2468926943287676E-3,1.2731618943878312E-2,0.99998881446932031,0.99151527375045045,0.98584369158142526]
[0.996,1293.7073599999999,1.308273048740354,2.1552713771842431E-2,2.1552455415187046E-2,8.8565250801002637E-3,4.4228935156617952E-3,1.3279418595762059E-2,0.99998801280163052,0.99114347491989974,0.98525702220029399]
[0.995,1292.1342,1.3104169503489427,2.4267788945397863E-2,2.4267477193593661E-2,9.2444641523333759E-3,4.6060746132464752E-3,1.3850538765579852E-2,0.99998715367910507,0.99075553584766662,0.98464641856594159]
[0.99399999999999999,1290.56104,1.3125540898172694,2.700039947896157E-2,2.7000027764033031E-2,9.6492305432569481E-3,4.7967193244355553E-3,1.4445949867692504E-2,0.9999862329841146,0.99035076945674305,0.98401093622056313]
[0.99299999999999999,1288.9878799999999,1.314683880282949,2.9750968019523968E-2,2.9750529082784524E-2,1.0071539363151749E-2,4.9951213576125975E-3,1.5066660720764347E-2,0.99998524630394692,0.98992846063684825,0.98334959613625228]
[0.99199999999999999,1287.41472,1.3168057110782694,3.2519933226159606E-2,3.2519419050557614E-2,1.051213479026869E-2,5.2015851029484084E-3,1.5713719893217098E-2,0.99998418890966312,0.98948786520973131,0.98266138367914668]
[0.99099999999999999,1285.8415600000001,1.3189189469417519,3.5307750364871243E-2,3.5307152100937364E-2,1.0971791133729591E-2,5.4164259463848601E-3,1.6388217080114453E-2,0.99998305573343815,0.98902820886627041,0.9819452475628152]
[0.99,1284.2683999999999,1.3210229272150344,3.8114891919978987E-2,3.811419980477878E-2,1.1451313924422557E-2,5.6399705862507001E-3,1.7091284510673259E-2,0.99998184134427925,0.98854868607557744,0.98120009879287196]
[0.98899999999999999,1282.69524,1.3231169650259176,4.094184822194806E-2,4.0941051490388326E-2,1.1951541033557334E-2,5.8725573518423292E-3,1.7824098385399664E-2,0.9999805399220032,0.98804845896644267,0.98042480960504041]
[0.98799999999999999,1281.1220799999999,1.32520034645855,4.3789128091478668E-2,4.3788214879255487E-2,1.2473343818410809E-2,6.1145365232235663E-3,1.8587880341634375E-2,0.99997914522935294,0.98752665618158919,0.97961821239915425]
[0.98699999999999999,1279.54892,1.3272723297118778,4.6657259499586566E-2,4.6656216736996541E-2,1.3017628294636929E-2,6.3662706514108361E-3,1.9383898946047765E-2,0.99997765058211285,0.98698237170536307,0.9787790986718734]
[0.98599999999999999,1277.97576,1.3293321442476578,4.9546790243337545E-2,4.9545603539101646E-2,1.3585336334349774E-2,6.628134878023227E-3,2.0213471212373001E-2,0.99997604881708635,0.98641466366565023,0.97790621795118393]
[0.98499999999999999,1276.4025999999999,1.3313789899295005,5.2458288636780599E-2,5.2456942150950536E-2,1.4177446889004242E-2,6.900517253374653E-3,2.1077964142378895E-2,0.99997433225777943,0.98582255311099576,0.97699827673609085]
[0.98399999999999999,1274.82944,1.3334120361546165,5.539234421652893E-2,5.5390820521459522E-2,1.4794977235887963E-2,7.1838190518839651E-3,2.1978796287771926E-2,0.99997249267762611,0.98520502276411204,0.97605393744525115]
[0.98299999999999998,1273.2562800000001,1.3354304209801313,5.8349568461326475E-2,5.8347848389602525E-2,1.5438984246831766E-2,7.4784550835683278E-3,2.2917439330400094E-2,0.99997052126057984,0.98456101575316823,0.97507181737866255]
[0.98199999999999998,1271.6831199999999,1.3374332502460788,6.1330595524790775E-2,6.1328658002893666E-2,1.6110565677479705E-2,7.7848540002640153E-3,2.389541967774372E-2,0.99996840855888436,0.9838894343225203,0.97405048769692759]
[0.98099999999999998,1270.10996,1.3394195966974063,6.4336082980400874E-2,6.4333904846786485E-2,1.6810861475213268E-2,8.1034585950959682E-3,2.4914320070309234E-2,0.99996614444782017,0.98318913852478673,0.97298847242302178]
[0.98,1268.5367999999999,1.3413884991075971,6.7366712577644233E-2,6.7364268383779805E-2,1.7541055103527325E-2,8.4347260935844475E-3,2.5975781197111775E-2,0.99996371807720896,0.98245894489647267,0.97188424747193813]
[0.97899999999999998,1266.9636399999999,1.3433389614067854,7.0423191008056316E-2,7.0420452800828606E-2,1.8302374880336814E-2,8.7791284346352121E-3,2.7081503314972027E-2,0.99996111781944952,0.98169762511966319,0.97073623971405332]
[0.97799999999999998,1265.39048,1.3452699518175444,7.3506250679731905E-2,7.3503187763490185E-2,1.9096095327360785E-2,9.1371525395139985E-3,2.8233247866874783E-2,0.99995833121383015,0.98090390467263922,0.96954282607854603]
[0.97699999999999998,1263.8173199999999,1.3471804020018299,7.6616650498669558E-2,7.6613229175005182E-2,1.9923538527355289E-2,9.5093005667491026E-3,2.9432839094104393E-2,0.99995534490685634,0.98007646147264471,0.96830233270372179]
[0.97599999999999998,1262.24416,1.3490692062229168,7.9755176655115972E-2,7.9751359938302568E-2,2.0786075485570876E-2,9.8960901507438841E-3,3.0682165636314762E-2,0.99995214458830795,0.97921392451442912,0.96701303414163797]
[0.97499999999999998,1260.671,1.3509352205265126,8.2922643412852201E-2,8.2918390718676321E-2,2.1685127491381739E-2,1.0298054621710981E-2,3.1983182113092722E-2,0.99994871492271764,0.97831487250861826,0.96567315262498976]
[0.97399999999999998,1259.0978399999999,1.3527772619456051,8.6119893899111316E-2,8.6115160704611241E-2,2.2622167475572219E-2,1.0715743204362974E-2,3.333791067993519E-2,0.99994503947594715,0.97737783252442778,0.96428085740480796]
[0.97299999999999998,1257.52468,1.3545941077340171,8.9347800892566429E-2,8.9342538363964649E-2,2.3598721358267793E-2,1.114972119260863E-2,3.4748442550876425E-2,0.99994110063651032,0.97640127864173221,0.96283426416813822]
[0.97199999999999998,1255.9515199999998,1.3563844946340522,9.2607267606556895E-2,9.2601422192417251E-2,2.4616369381976644E-2,1.1600570097317197E-2,3.6216939479293844E-2,0.99993687953126453,0.97538363061802336,0.96133143454549341]
[0.97099999999999997,1254.3783599999999,1.3581471181840528,9.5899228464405448E-2,9.5892741450768773E-2,2.5676747423631352E-2,1.2068887764013705E-2,3.7745635187645059E-2,0.99993235593507324,0.97432325257636865,0.95977037571853596]
[0.97,1252.8052,1.3598806320721719,9.9224649863392758E-2,9.9217456887340363E-2,2.6781548278927647E-2,1.2555288457169666E-2,3.9336836736097315E-2,0.99992750817400422,0.97321845172107235,0.95814904013910884]
[0.96899999999999997,1251.2320399999999,1.3615836475431329,0.10258453092359687,0.10257656144135958,2.7932522911608526E-2,1.3060402907547286E-2,4.0992925819155812E-2,0.99992231302160728,0.97206747708839147,0.95646532537142159]
[0.96799999999999997,1249.65888,1.3632547328652489,0.10597990421746994,0.10597108092283633,2.9131481659667391E-2,1.3584878318848864E-2,4.2716359978516256E-2,0.99991674558777188,0.97086851834033261,0.9547170740698856]
[0.96699999999999997,1248.08572,1.3648924128655247,0.10941183647565354,0.10940207466403434,3.0380295389727086E-2,1.4129378329711471E-2,4.4509673719438557E-2,0.99991077919964011,0.96961970461027291,0.95290207410579852]
[0.96599999999999997,1246.5125599999999,1.3664951685411635,0.11288142926412997,0.11287063613720123,3.1680896590088325E-2,1.4694582926878261E-2,4.6375479516966585E-2,0.99990438527400738,0.96831910340991167,0.95101805885677326]
[0.96499999999999997,1244.9394,1.3680614367563946,0.11638981962741257,0.11637789353278478,3.3035280392150757E-2,1.5281188305168449E-2,4.8316468697319204E-2,0.99989753318059982,0.96696471960784924,0.94906270767350465]
[0.96399999999999997,1243.3662399999998,1.369589610034081,0.11993818069205263,0.11992501029189528,3.4445505509079433E-2,1.5889906669663601E-2,5.033541217874303E-2,0.99989019009558633,0.96555449449092057,0.94703364653914845]
[0.96299999999999997,1241.7930799999999,1.3710780364521573,0.12352772222427839,0.12351318558626125,3.5913695079706875E-2,1.6521465975325975E-2,5.2435161055032847E-2,0.99988232084462181,0.96408630492029312,0.94492844893726025]
[0.96199999999999997,1240.21992,1.3725250196555252,0.12715969113515055,0.12714365473844411,3.7442037404771478E-2,1.7176609599076319E-2,5.4618647003847796E-2,0.99987388773468011,0.96255796259522852,0.94274463694486932]
[0.96099999999999997,1238.6467599999999,1.3739288189946335,0.13083537192611941,0.13081768957452031,3.9032786561641775E-2,1.7856095939173956E-2,5.6888882500815731E-2,0.99986485037387984,0.96096721343835823,0.94047968256787839]
[0.96,1237.0735999999999,1.3752876498025388,0.13455608706739869,0.13453659870090603,4.0688262882718429E-2,1.8560697936577594E-2,5.9248960819296023E-2,0.99985516547844555,0.95931173711728157,0.93813100933652749]
[0.95899999999999996,1235.50044,1.3765996838228409,0.13832319730107775,0.13830172769644042,4.2410853281712235E-2,1.9291202512816203E-2,6.1702055794528435E-2,0.99984478666589371,0.95758914671828776,0.93569599417915761]
[0.95799999999999996,1233.9272799999999,1.3778630498014341,0.14213810186037662,0.14211445921024921,4.4203011410976267E-2,2.0048409918767898E-2,6.4251421329744166E-2,0.99983366423346043,0.95579698858902373,0.93317196959294768]
[0.95699999999999996,1232.35412,1.3790758342555727,0.14600223859595959,0.14597621295534477,4.6067257632055658E-2,2.0833132988645382E-2,6.6900390620701036E-2,0.99982174492072795,0.95393274236794434,0.93055622613062972]
[0.95599999999999996,1230.7809599999998,1.3802360824342608,0.14991708399971754,0.14988844558732248,4.8006178780577669E-2,2.1646196293412981E-2,6.9652375073990649E-2,0.99980897165532434,0.95199382121942233,0.92784601522243182]
[0.95499999999999996,1229.2077999999999,1.3813417994844488,0.15388415311591341,0.15385265045690452,5.0022427705567307E-2,2.2488435187817197E-2,7.2510862893384501E-2,0.99979528328050027,0.94997757229443269,0.92503855235264298]
[0.95399999999999996,1227.63464,1.3823909518379602,0.15790499932912933,0.15787035722452211,5.2118722562268016E-2,2.3360694745222954E-2,7.547941730749097E-2,0.99978061426329501,0.94788127743773198,0.92213102061015872]
[0.95299999999999996,1226.0614799999998,1.3833814688344328,0.16198121401794921,0.1619431313245103,5.4297845836522529E-2,2.4263828574483934E-2,7.8561674411006463E-2,0.99976489438192073,0.94570215416347747,0.9191205746322465]
[0.95199999999999996,1224.4883199999999,1.384311244595871,0.16611442606289087,0.16607257326594843,5.6562643077825991E-2,2.519869751318049E-2,8.1761340591006482E-2,0.99974804839089304,0.94343735692217401,0.91600434496041916]
[0.95099999999999996,1222.91516,1.3851781401686112,0.17030630119668308,0.17026031775662911,5.8916021317235612E-2,2.6166168191711293E-2,8.5082189508946901E-2,0.99972999566233989,0.94108397868276439,0.91277944282679591]
[0.95,1221.3419999999999,1.3859799859486286,0.17455854118459643,0.17450803263610709,6.1360947145467803E-2,2.716711146293967E-2,8.852805860840747E-2,0.99971064980179958,0.9386390528545322,0.90944296538861435]
[0.94899999999999995,1219.76884,1.3867145844061153,0.17887288282223074,0.17881741760332198,6.3900444425749381E-2,2.8202400692386352E-2,9.210284511813574E-2,0.99968991823671849,0.93609955557425062,0.90599200142758773]
[0.94799999999999995,1218.1956799999998,1.3873797131251342,0.18325109673790124,0.18319020272385761,6.6537591615329017E-2,2.9272909904323425E-2,9.5810501519652438E-2,0.99966770177571862,0.93346240838467098,0.90242363752959154]
[0.94699999999999995,1216.6225199999999,1.3879731281738779,0.18769498598655299,0.18762814670150971,6.9275518668994396E-2,3.0379511779566534E-2,9.965503044856093E-2,0.99964389413658572,0.9307244813310056,0.89873496475868919]
[0.94599999999999995,1215.04936,1.3884925678206195,0.19220638442206811,0.19213303489857106,7.2117403497577781E-2,3.1523075501302802E-2,0.10364047899888058,0.99961838144077464,0.92788259650242222,0.89492308583770541]
[0.94499999999999995,1213.4761999999998,1.3889357566098157,0.19678715483478226,0.19670667708898712,7.5066467954185034E-2,3.2704464445915363E-2,0.1077709324001004,0.99959104167209123,0.92493353204581497,0.89098512284547748]
[0.94399999999999995,1211.9030399999999,1.389300409811985,0.20143918684116191,0.20135090492844071,7.8125973320886333E-2,3.3924533716498402E-2,0.11205050703738473,0.99956174409703702,0.92187402667911367,0.88691822543847132]
[0.94299999999999995,1210.32988,1.3895842382599233,0.20616439451281945,0.20606756912540636,8.129921526881656E-2,3.5184127517595414E-2,0.11648334278641198,0.99953034864413948,0.91870078473118344,0.88271957960165381]
[0.94199999999999995,1208.7567199999999,1.3897849535825046,0.21096471373240533,0.2108585362973143,8.4589518265107744E-2,3.6484076370630919E-2,0.12107359463573866,0.99949670523940937,0.91541048173489226,0.87838641693038655]
[0.94099999999999995,1207.1835599999999,1.3899002738457298,0.2158420992644641,0.21572568549622786,8.800022940085106E-2,3.7825194170576067E-2,0.12582542357142712,0.99946065309486454,0.91199977059914894,0.87391602444154015]
[0.94,1205.6103999999998,1.3899279296088227,0.22079852153005267,0.22067090438884732,9.1534711615393172E-2,3.9208275085560344E-2,0.13074298670095352,0.9994220199468683,0.90846528838460683,0.86930575490812156]
[0.93899999999999995,1204.0372399999999,1.3898656704009698,0.22583596307479334,0.22569608507620009,9.5196336293725148E-2,4.063409030243418E-2,0.13583042659615932,0.99938062124079452,0.90480366370627485,0.86455303770739811]
[0.93799999999999994,1202.46408,1.3897112716217968,0.23095641472118217,0.2308031195391789,9.8988475215601945E-2,4.2103384622709177E-2,0.14109185983831113,0.99933625925831793,0.90101152478439805,0.85965539016776316]
[0.93699999999999994,1200.8909199999998,1.3894625418658066,0.23616187139726555,0.23599389469700613,0.10291449183730828,4.3616872914820103E-2,0.14653136475212838,0.99928872218336695,0.89708550816269172,0.8546104293945288]
[0.93599999999999994,1199.3177599999999,1.3891173306677631,0.24145432763539945,0.24127028706690723,0.10697773188976933,4.5175236430303863E-2,0.15215296832007319,0.99923778310252476,0.89302226811023067,0.84941588454932893]
[0.93499999999999994,1197.7446,1.3886735366624048,0.24683577273663085,0.24663415701467514,0.11118151327996373,4.6779118993235523E-2,0.15796063227319926,0.99918319893538765,0.88881848672003627,0.84406960955199861]
[0.93399999999999994,1196.1714399999998,1.3881291161478782,0.25230818559831869,0.25208734258743098,0.11552911528637777,4.8429123074104102E-2,0.16395823836048187,0.999124709290093,0.88447088471362223,0.83856959616765425]
[0.93299999999999994,1194.5982799999999,1.3874820920378708,0.25787352920501289,0.25763165292180529,0.12002376704361495,5.0125805761248539E-2,0.17014957280486348,0.999062035238928,0.87997623295638505,0.83291398743523981]
[0.93199999999999994,1193.0251199999998,1.3867305631826661,0.26353374478527103,0.2632688612229106,0.12466863531619155,5.1869674644981885E-2,0.17653830996117342,0.99899487800859721,0.87533136468380845,0.82710109138711241]
[0.93099999999999994,1191.4519599999999,1.3858727140341403,0.26929074564003475,0.26900069731187409,0.12946681156707407,5.3661183631588699E-2,0.18312799519866277,0.99892291757939433,0.87053318843292593,0.82112939500238358]
[0.92999999999999994,1189.8788,1.3849068246241794,0.27514641065148782,0.27482883974241856,0.13442129833267569,5.5500728706492461E-2,0.18992202703916816,0.99884581118715188,0.86557870166732431,0.81499757832969422]
[0.92899999999999994,1188.3056399999998,1.3838312808200746,0.28110257748483336,0.28075490748988507,0.13953499492274291,5.7388643667996599E-2,0.1969236385907395,0.99876319172147376,0.86046500507725709,0.80870452870807708]
[0.92799999999999994,1186.7324799999999,1.3826445848141922,0.28716103549930921,0.28678045121932022,0.14481068247094386,5.9325195855113116E-2,0.20413587832605698,0.99867466601334942,0.85518931752905614,0.80224935500752759]
[0.92699999999999994,1185.15932,1.3813453657986645,0.29332351838889065,0.29290694414270108,0.15025100836990313,6.1310581895062326E-2,0.21156159026496546,0.998579813004843,0.84974899163009687,0.79563140180400405]
[0.92599999999999993,1183.5861599999998,1.3799323907690195,0.29959169657750251,0.29913577247901607,0.15585847013291287,6.3344923498012684E-2,0.21920339363092556,0.99847818179310421,0.84414152986708713,0.78885026339696107]
[0.92499999999999993,1182.0129999999999,1.3784045753936531,0.30596716939822916,0.30546822553483088,0.16163539873357813,6.5428263328528649E-2,0.22706366206210676,0.99836928954050985,0.83836460126642187,0.7819057975711895]
[0.92399999999999993,1180.4398399999998,1.3767609948788646,0.3124514570908607,0.31190548542701318,0.16758394148413314,6.7560560984944437E-2,0.23514450246907759,0.99825261924226283,0.83241605851586686,0.77479813899890315]
[0.92299999999999993,1178.8666799999999,1.3750008947519428,0.31904599265711098,0.31844861647344991,0.17370604452299587,6.9741689119440162E-2,0.24344773364243605,0.99812761734229616,0.82629395547700413,0.76752771217281823]
[0.92199999999999993,1177.2935199999999,1.3731237014775526,0.32575211361805678,0.32509855428192141,0.18000343499233296,7.1971429732964748E-2,0.25197486472529773,0.99799369118782866,0.81999656500766704,0.76009524375640936]
[0.92099999999999993,1175.7203599999998,1.3711290328155514,0.33257105372353107,0.33185609457155812,0.18647760299670846,7.4249470680227178E-2,0.26072707367693565,0.99785020631240107,0.81352239700329154,0.7525017742339386]
[0.91999999999999993,1174.1471999999999,1.3690167078214435,0.33950393466850365,0.33872188176563756,0.19312978344434295,7.6575402420779953E-2,0.26970518586512293,0.99769648353669393,0.80687021655565705,0.74474866874017676]
[0.91899999999999993,1172.57404,1.3667867563840854,0.34655175787669296,0.34569639739868807,0.19996093788285374,7.8948715052677823E-2,0.27890965293553155,0.99753179587590135,0.80003906211714626,0.73683762694820709]
[0.91799999999999993,1171.0008799999998,1.3644394281891006,0.35371539641672278,0.3527799483848772,0.20697173645143829,8.1368795665267377E-2,0.28834053211670568,0.99735536524188084,0.79302826354856171,0.72877069189345978]
[0.91699999999999993,1169.4277199999999,1.361975200990877,0.36099558712105656,0.3599726551984983,0.21416254008120628,8.3834926047344049E-2,0.29799746612855033,0.99716635892777483,0.78583745991879372,0.72055025761318825]
[0.91599999999999993,1167.8545599999998,1.3593947880711306,0.36839292298255349,0.36727444002083731,0.22153338308448467,8.6346280786151197E-2,0.30787966387063587,0.99696388586224516,0.77846661691551533,0.71217907548313863]
[0.91499999999999992,1166.2813999999998,1.3566991447579697,0.37590784590767218,0.37468501491071593,0.229083956282224,8.8901925791451231E-2,0.31798588207367523,0.99674699261995026,0.770916043717776,0.70366025913731256]
[0.91399999999999992,1164.7082399999999,1.3538894738763179,0.38354063990916709,0.38220387005860534,0.23681359082601183,9.1500817277204591E-2,0.32831440810321644,0.99651465917437498,0.76318640917398817,0.69499728786237025]
[0.91299999999999992,1163.1350799999998,1.3509672299985676,0.39129142482423823,0.38983026218607342,0.24472124287727059,9.4141801231164224E-2,0.33886304410843482,0.99626579437864982,0.75527875712272941,0.68619400836564903]
[0.91199999999999992,1161.5619199999999,1.3479341223636006,0.39916015064664462,0.39756320315358534,0.25280547931092401,9.6823613399989711E-2,0.34962909271091369,0.99599923115954292,0.74719452068907599,0.67725463482478288]
[0.91099999999999992,1159.98876,1.3447921163329013,0.40714659256304392,0.40540144884011498,0.26106446461386312,9.9544879814279452E-2,0.36060934442814258,0.99571372140942405,0.73893553538613688,0.6681837471375951]
[0.90999999999999992,1158.4155999999998,1.3415434332545637,0.41525034678467831,0.41334348835753282,0.269495949149687,0.10230411787421101,0.37180006702389801,0.99540793056065946,0.730504050850313,0.65898628730329745]
[0.90899999999999992,1156.8424399999999,1.3381905486095889,0.42347082726551571,0.42138753366136161,0.27809725896036397,0.10509973801233767,0.38319699697270165,0.99508043182665828,0.72190274103963603,0.6496675538798351]
[0.90799999999999992,1155.2692799999998,1.3347361883200899,0.43180726339689574,0.42953150961704561,0.28686528727238247,0.10793004594550215,0.39479533321788463,0.99472970009363104,0.71313471272761753,0.64023319447750793]
[0.90699999999999992,1153.6961199999998,1.3311833231059405,0.44025869876654911,0.43777304457731969,0.29579648786945956,0.11079324552284857,0.40658973339230814,0.99435410544710789,0.70420351213054044,0.63068919626559761]
[0.90599999999999992,1152.1229599999999,1.3275351607849559,0.44882399106666354,0.44610946152168757,0.30488687048602914,0.11368744217163143,0.41857431265766054,0.99395190631738584,0.69511312951397086,0.62104187448633819]
[0.90499999999999992,1150.5497999999998,1.3237951364220035,0.45750181323117017,0.45453776980316557,0.31413199836516259,0.11661064693692835,0.43074264530209094,0.99352124222837357,0.68586800163483741,0.61129785898920752]
[0.90399999999999991,1148.9766399999999,1.3199669002443535,0.46629065587687196,0.46305465754058289,0.32352698811154945,0.11956078110560886,0.44308776921715831,0.99306012613483818,0.67647301188845055,0.60146407881769848]
[0.90299999999999991,1147.4034799999999,1.3160543032540915,0.47518883111626087,0.47165648468669635,0.33306651195451509,0.12253568139901871,0.4556021933535338,0.99256643633381125,0.66693348804548491,0.59154774490037199]
[0.90199999999999991,1145.8303199999998,1.3120613804834422,0.48419447780192332,0.48033927679327065,0.34274480251784945,0.12553310571290788,0.46827790823075732,0.99203790793700508,0.65725519748215055,0.5815563309177646]
[0.90099999999999991,1144.2571599999999,1.3079923318552005,0.4933055682534685,0.48909871948425848,0.35255566017272033,0.12855073937726658,0.48110639954998691,0.99147212389249073,0.64744433982727967,0.57149755243626887]
[0.89999999999999991,1142.6839999999997,1.3038515006280138,0.50251991650789407,0.4979301536373098,0.36249246302720783,0.13158620190301709,0.4940786649302249,0.99086650554573164,0.63750753697279217,0.56137934441916193]
[0.89899999999999991,1141.1108399999998,1.299643349424858,0.5118351881233183,0.50682857126216652,0.37254817958123165,0.13463705417700569,0.50718523375823732,0.99021830273235245,0.62745182041876835,0.55120983724329986]
[0.89799999999999991,1139.5376799999999,1.2953724338623447,0.52124891155434017,0.51578861205239679,0.38271538404936456,0.13770080606161636,0.52041619011098095,0.98952458339786076,0.61728461595063544,0.54099733136707284]
[0.89699999999999991,1137.9645199999998,1.2910433738184457,0.53075849110480766,0.52480456057433278,0.39298627432624367,0.14077492435057223,0.53376119867681593,0.98878222274300054,0.60701372567375633,0.53075027081106818]
[0.89599999999999991,1136.3913599999998,1.2866608223963909,0.54036122145090826,0.53387034404448208,0.40335269254073924,0.143856841028281,0.54720953356902025,0.98798789189757596,0.59664730745926076,0.52047721562692018]
[0.89499999999999991,1134.8181999999999,1.282229432662731,0.55005430371423669,0.54297953063417725,0.41380614811594019,0.14694396177643501,0.56075010989237517,0.98713804613056,0.58619385188405981,0.51018681354197726]
[0.89399999999999991,1133.2450399999998,1.2777538222576017,0.55983486305104579,0.55212532822810567,0.42433784322286716,0.1500336746685656,0.57437151789143281,0.98622891261018675,0.57566215677713284,0.49988777097745585]
[0.8929999999999999,1131.6718799999999,1.2732385359947445,0.56969996771052034,0.56130058355200385,0.43493870048722361,0.15312335899096477,0.58806205947818835,0.98525647773463731,0.56506129951277639,0.48958882364536876]
[0.8919999999999999,1130.0987199999997,1.2686880065876822,0.57964664950173339,0.57049778157444897,0.44559939278085925,0.1562103941268364,0.60180978690769571,0.98421647406200174,0.55440060721914075,0.47929870693468907]
[0.8909999999999999,1128.5255599999998,1.2641065136564005,0.58967192559608017,0.57970904507860499,0.45631037490339021,0.1592921684397432,0.61560254334313336,0.98310436687755809,0.54368962509660979,0.46902612629986212]
[0.8899999999999999,1126.9523999999999,1.2594981411856625,0.59977282157980272,0.5889261342925074,0.46706191693532606,0.1623660880924479,0.62942800502777396,0.98191534044719608,0.53293808306467394,0.45877972786466836]
[0.8889999999999999,1125.3792399999998,1.2548667336217485,0.60994639565957065,0.59814044646106224,0.47784413902222156,0.16542958573802102,0.64327372476024258,0.98064428401820147,0.52215586097777844,0.44856806945186606]
[0.8879999999999999,1123.8060799999998,1.2502158508086838,0.62018976391338543,0.60734301523997769,0.48864704733055142,0.16848012902167148,0.65712717635222284,0.97928577764272495,0.51135295266944858,0.43839959224375685]
[0.8869999999999999,1122.2329199999999,1.2455487219779893,0.63050012646923437,0.61652450979151141,0.49946057090038176,0.17151522883406936,0.67097579973445109,0.97783407791528032,0.50053942909961824,0.42828259327111079]
[0.8859999999999999,1120.6597599999998,1.2408681990177195,0.64087479448500873,0.62567523346452059,0.51027459910779804,0.17453244725993189,0.68480704636772993,0.97628310373369864,0.48972540089220196,0.41822519891788057]
[0.8849999999999999,1119.0865999999999,1.2361767092570339,0.65131121779537726,0.63478512194726655,0.52107901944184554,0.17752940516931612,0.69860842461116168,0.97462642221325479,0.47892098055815441,0.40823533961689451]
[0.8839999999999999,1117.5134399999997,1.2314762080120727,0.6618070130843996,0.64384374079090567,0.53186375529646612,0.18050378940329592,0.71236754469976205,0.97285723490632892,0.46813624470353388,0.39832072589759981]
[0.8829999999999999,1115.9402799999998,1.2267681311477134,0.67235999243663036,0.65284028221486401,0.54261880347765046,0.18345335951042918,0.72607216298807964,0.97096836450511126,0.4573811965223496,0.38848882593117368]
[0.8819999999999999,1114.3671199999999,1.2220533479180782,0.68296819211436199,0.66176356112273826,0.55333427112998779,0.1863759539956012,0.73971022512558893,0.96895224223257381,0.44666572887001216,0.37874684470104508]
[0.88099999999999989,1112.7939599999997,1.2173321143569842,0.69362990140403735,0.67060201027892397,0.56400041179457117,0.18926949604829768,0.75326990784286885,0.96680089615730147,0.43599958820542889,0.36910170490865352]
[0.87999999999999989,1111.2207999999998,1.2126040274982013,0.70434369137084929,0.67934367462232736,0.57460766032195509,0.19213199872309977,0.76673965904505481,0.96450594070081763,0.42539233967804491,0.35956002970513201]
[0.87899999999999989,1109.6476399999999,1.207867980714898,0.71510844335668822,0.68797620472419885,0.58514666637916102,0.19496156955106894,0.78010823593022993,0.96205856764166864,0.41485333362083898,0.35012812732002491]
[0.87799999999999989,1108.0744799999998,1.2031221204785987,0.7259233770526794,0.69648684943250572,0.59560832630823612,0.19775641456659976,0.79336474087483588,0.95944953895865859,0.40439167369176388,0.34081197763844606]
[0.87699999999999989,1106.5013199999999,1.1983638048508056,0.73678807797337309,0.70486244778549279,0.60598381311539729,0.20051484174021894,0.80649865485561623,0.95666918189597239,0.39401618688460271,0.3316172207584156]
[0.87599999999999989,1104.9281599999997,1.1935895640356751,0.74770252415479455,0.71308942032207445,0.61626460439375264,0.20323526381357571,0.81949986820732834,0.95370738667513943,0.38373539560624736,0.32254914754089253]
[0.87499999999999989,1103.3549999999998,1.1887950633404216,0.7586671118926982,0.7211537599664446,0.62644250800853263,0.20591620053841936,0.83235870854695193,0.95055360732236505,0.37355749199146737,0.3136126921465166]
[0.87399999999999989,1101.7818399999999,1.1839750689116912,0.76968268033035991,0.72904102271880344,0.63650968540136388,0.20855628032667728,0.84506596572804116,0.94719686612395582,0.36349031459863612,0.30481242653534801]
[0.87299999999999989,1100.2086799999997,1.1791234166416271,0.78075053469650868,0.73673631844298604,0.64645867239860022,0.21115424132368768,0.85761291372228787,0.94362576226651995,0.35354132760139978,0.29615255688942566]
[0.87199999999999989,1098.6355199999998,1.1742329846668398,0.79187246798356192,0.74422430210500123,0.6562823974378631,0.21370893192122739,0.86999132935909052,0.93982848526115215,0.34371760256213696,0.28763692190267415]
[0.87099999999999989,1097.0623599999999,1.1692956699172212,0.80305078084379189,0.75148916588346981,0.66597419715605377,0.21621931073112383,0.88219350788717765,0.93579283379048017,0.33402580284394623,0.27926899286886431]
[0.86999999999999988,1095.4891999999998,1.1643023692094978,0.81428829946628745,0.75851463264323049,0.67552782931075006,0.21868444604391152,0.89421227535466152,0.93150624065258836,0.32447217068924999,0.271051875486091]
[0.86899999999999988,1093.9160399999998,1.1592429654222673,0.82558839118063265,0.76528395133627503,0.68493748303473234,0.22110351480020418,0.90604099783493652,0.92695580450432535,0.31506251696526766,0.26298831328553268]
[0.86799999999999988,1092.3428799999997,1.1541063193345897,0.83695497751404824,0.7717798949687209,0.6941977864499056,0.22347580110515455,0.91767358755506012,0.92212832912600318,0.30580221355009446,0.25508069258325194]
[0.86699999999999988,1090.7697199999998,1.1488802677582051,0.84839254440749423,0.77798476184755938,0.70330381169172229,0.22580069431856095,0.92910450601028327,0.91701037093730398,0.29669618830827776,0.24733104884650711]
[0.86599999999999988,1089.1965599999999,1.1435516286429044,0.85990614927342623,0.78388038089511014,0.71225107741823224,0.22807768675490256,0.94032876417313482,0.91158829548718345,0.28774892258176771,0.23974107436030026]
[0.86499999999999988,1087.6233999999997,1.138106213884106,0.87150142455377844,0.78944812189054836,0.72103554889858512,0.23030637102878609,0.95134191992737116,0.90584834361545352,0.27896445110141493,0.23231212707588828]
[0.86399999999999988,1086.0502399999998,1.1325288506092304,0.88318457741230127,0.79466891156461605,0.72965363579426024,0.23248643708205438,0.96214007287631464,0.89977670793682463,0.27034636420573971,0.22504524052042083]
[0.86299999999999988,1084.4770799999999,1.1268034117626586,0.89496238517137128,0.79952325653305434,0.73810218776220227,0.23461766892912231,0.97271985669132455,0.89335962022577986,0.26189781223779768,0.21794113464581957]
[0.86199999999999988,1082.9039199999997,1.1209128568451265,0.9068421860810143,0.80399127410354543,0.74637848802233964,0.23669994115700838,0.98307842917934796,0.88658345017897022,0.25362151197766042,0.21100022749533948]
[0.86099999999999988,1081.3307599999998,1.1148392836888041,0.91883186498869829,0.80805273202669681,0.75448024504274858,0.23873321521607294,0.99321346025882151,0.8794348158970694,0.24551975495725137,0.2042226475677745]
[0.85999999999999988,1079.7575999999997,1.1085639921603758,0.93093983346399667,0.81168709828001895,0.762405582503899,0.24071753553667308,1.003123118040572,0.87190070625698524,0.237594417496101,0.19760824676194]
[0.85899999999999987,1078.1844399999998,1.1020675606767922,0.9431750039244885,0.8148736019707683,0.7701530277090689,0.2426530255058362,1.012806053214905,0.86396861513519063,0.22984697229093112,0.19115661378776114]
[0.85799999999999987,1076.6112799999999,1.0953299363872984,0.95554675731057392,0.81759130641448075,0.77772149861139883,0.24453988333671259,1.0222613819481114,0.85562668719176593,0.22227850138860114,0.18486708793476314]
[0.85699999999999987,1075.0381199999997,1.0883305398159833,0.96806490386934829,0.81981919538609116,0.78511028962905838,0.24637837786197847,1.0314886674910368,0.8468638746320416,0.21488971037094159,0.17873877309406097]
[0.85599999999999987,1073.4649599999998,1.0810483846662264,0.98073963663417385,0.82153627344497526,0.79231905641906009,0.24816884428061753,1.0404879006996777,0.83767010402926834,0.20768094358093986,0.17277055193575314]
[0.85499999999999987,1071.8917999999999,1.0734622133569849,0.99358147722952062,0.82272168109906296,0.79934779977739101,0.24991167988561608,1.049259479663007,0.82803645192050168,0.20065220022260905,0.16696110014993829]
[0.85399999999999987,1070.3186399999997,1.0655506486861395,1.0066012136926248,0.8233548253918832,0.80619684882857123,0.25160733979810151,1.0578041886266727,0.81795532748413946,0.19380315117142874,0.16130890066625153]
[0.85299999999999987,1068.7454799999998,1.0572923617938099,1.0198098300871872,0.82341552626607895,0.81286684366180251,0.25325633273139542,1.066123176393198,0.80742066017904757,0.18713315633819744,0.1558122577736889]
[0.85199999999999987,1067.1723199999997,1.0486662563254305,1.0332184277916323,0.82288417877448716,0.81935871756364198,0.25485921680634371,1.0742179343699858,0.79642808978280921,0.18064128243635805,0.15046931106950423]
[0.85099999999999987,1065.5991599999998,1.0396516683686277,1.0468381384770771,0.82174193087372915,0.82567367898886546,0.25641659543716511,1.0820902744260306,0.78497515582417143,0.17432632101113457,0.14527804917304848]
[0.84999999999999987,1064.0259999999998,1.0302285813592849,1.0606800289492559,0.81997087614550834,0.83181319340218496,0.25792911330496743,1.0897423067071523,0.77306148297880006,0.16818680659781501,0.14023632314738096]
[0.84899999999999987,1062.4528399999997,1.0203778547229505,1.0747549982139024,0.81755426034979461,0.83777896511376404,0.25939745243400897,1.097176417547773,0.76068895860773789,0.16222103488623599,0.13534185957839767]
[0.84799999999999986,1060.8796799999998,1.0100814645426328,1.0890736673357062,0.81447670022691343,0.84357291922142719,0.26082232838378222,1.1043952476052095,0.74786189828594174,0.15642708077857276,0.13059227326788497]
[0.84699999999999986,1059.3065199999999,0.99932275403106297,1.1036462628942321,0.81072441244032811,0.84919718376212694,0.26220448656806705,1.1114016703301939,0.73458719491720315,0.15080281623787303,0.12598507950334234]
[0.84599999999999986,1057.7333599999997,0.98808669104614899,1.1184824950920034,0.80628545000025231,0.85465407216478351,0.26354469871024877,1.1181987708750323,0.72087444688522317,0.14534592783521652,0.12151770587358759]
[0.84499999999999986,1056.1601999999998,0.9763601293374502,1.1335914318346625,0.80114994294526121,0.85994606608628077,0.26484375944245914,1.1247898255287399,0.70673606067102945,0.14005393391371926,0.117187503604953]
[0.84399999999999986,1054.5870399999997,0.96413206966783616,1.1489813703729828,0.79531033950357966,0.86507579870221529,0.26610248305445716,1.1311782817566725,0.69218732349455392,0.13492420129778476,0.11299175839835023]
[0.84299999999999986,1053.0138799999997,0.95139391644012838,1.1646597083620565,0.78876164342990396,0.87004603851407125,0.26732170039663328,1.1373677389107044,0.67724644182908622,0.12995396148592878,0.10892770075258765]
[0.84199999999999986,1051.4407199999998,0.93813972499811982,1.1806328164435822,0.78150164274234035,0.87485967372502726,0.26850225594012217,1.1433619296651494,0.66193454210129121,0.12514032627497271,0.10499251576399496]
[0.84099999999999986,1049.8675599999997,0.92436643439224797,1.1969059146799423,0.77353112469451391,0.87951969722749013,0.26964500499570482,1.149164702223195,0.64627563052970571,0.12048030277250993,0.10118335239674871]
[0.83999999999999986,1048.2943999999998,0.91007408012987245,1.2134829553510624,0.76485407153788609,0.88402919223692855,0.2707508110920141,1.1547800033289426,0.63029650986454333,0.11597080776307148,9.7497332222187025E-2]
[0.83899999999999986,1046.7212399999999,0.89526598129611634,1.2303665147530192,0.75547783148626835,0.88839131859858245,0.27182054351249846,1.1602118621110808,0.61402665175581539,0.11160868140141753,9.393155762893024E-2]
[0.83799999999999986,1045.1480799999997,0.87994889645867402,1.2475576966980582,0.74541325931358426,0.89260929978618797,0.27285507498965117,1.1654643747758391,0.59749802456951528,0.107390700213812,9.0483119508783141E-2]
[0.83699999999999986,1043.5749199999998,0.86413314297963839,1.2650560503975876,0.73467482121796568,0.89668641060507304,0.27385527955418332,1.1705416901592565,0.58074487765745142,0.10331358939492701,8.714910442615792E-2]
[0.83599999999999985,1042.0017599999996,0.8478326747643532,1.2828595053031755,0.72328065898529248,0.90062596560577757,0.27482203053609061,1.1754479961418682,0.56380348432181671,9.9374034394222419E-2,8.3926601281184232E-2]
[0.83499999999999985,1040.4285999999997,0.83106511408864336,1.3009643252792489,0.71125260909038934,0.90443130820874251,0.27575619871393248,1.180187506922675,0.54671184695069996,9.5568691791257529E-2,8.0812707478779749E-2]
[0.83399999999999985,1038.8554399999998,0.81385173395878851,1.3193650841830735,0.69861617318162572,0.9081058005356506,0.27665865060811551,1.1847644511437661,0.52950936898121415,9.189419946434936E-2,7.7804534617703786E-2]
[0.83299999999999985,1037.2822799999997,0.79621738846087231,1.338054664534529,0.68540043739203493,0.91165281393856745,0.27753024691352418,1.1891830608520917,0.51223649941870364,8.8347186061432589E-2,7.4899213715121954E-2]
[0.83199999999999985,1035.7091199999998,0.77819038972309618,1.357024280478103,0.67163793908284453,0.91507572021419437,0.27837184106648305,1.1934475612806774,0.49493435655124385,8.4924279785805662E-2,7.2093899983398893E-2]
[0.83099999999999985,1034.1359599999998,0.75980233141181985,1.3762635256847602,0.65736448091887423,0.91837788348723426,0.27918427794074907,1.1975621614279834,0.47764433820318125,8.1622116512765755E-2,6.9385777176789815E-2]
[0.82999999999999985,1032.5627999999997,0.74108786006480076,1.3957604462295263,0.64261889355492563,0.9215626527440397,0.27996839266701401,1.2015310454110537,0.46040772633361321,7.8437347255960244E-2,6.6772061526433141E-2]
[0.82899999999999985,1030.9896399999998,0.72208439698060167,1.4155016378339098,0.62744274962530577,0.9246333549953879,0.28072500957024515,1.2053583645656332,0.4432652939811913,7.5366645004612126E-2,6.425000528254686E-2]
[0.82799999999999985,1029.4164799999996,0.70283181477383505,1.4354723662056916,0.61188003311732231,0.92759328904531757,0.28145494121909864,1.2090482302644161,0.42625692247540264,7.2406710954682374E-2,6.1816899883051467E-2]
[0.82699999999999985,1027.8433199999997,0.68337207401191002,1.4556567085693566,0.59597676951401812,0.93044571984144897,0.28215898758158803,1.2126047074230371,0.40942123648078665,6.9554280158551002E-2,5.947007876800782E-2]
[0.82599999999999985,1026.2701599999998,0.66374882651161093,1.4760377138864427,0.57978062325296864,0.93319387338108917,0.28283793528119755,1.2160318086622868,0.39279526383265123,6.6806126618910874E-2,5.7206919859239272E-2]
[0.82499999999999984,1024.6969999999997,0.64400699284050367,1.4965975787421382,0.56334047001384058,0.93584093214660269,0.28349255694766318,1.2193334890942658,0.37641412629259868,6.4159067853397297E-2,5.502484772439481E-2]
[0.82399999999999984,1023.1238399999997,0.62419232229389965,1.5173178354464754,0.54670595207272643,0.93839003104303442,0.2841236106567212,1.2225136416997557,0.36031076634109199,6.1609968956965529E-2,5.2921335444454154E-2]
[0.82299999999999984,1021.5506799999998,0.60435094407036227,1.5381795485839276,0.52992702541339043,0.94084425381072945,0.28473183945322766,1.2255760932639572,0.34451571398231734,5.915574618927058E-2,5.0893906203328822E-2]
[0.82199999999999984,1019.9775199999997,0.58452891852844591,1.5591635160574195,0.51305350744537626,0.9432066298856806,0.2853179709521787,1.2285246008378592,0.32905689631752644,5.6793370114319383E-2,4.8940134617794576E-2]
[0.82099999999999984,1018.4043599999998,0.56477179727015314,1.5802504706185627,0.49613463404208336,0.94548013168054523,0.28588271701231388,1.2313628486928592,0.31395949140130913,5.4519868319454767E-2,4.7057647825480636E-2]
[0.81999999999999984,1016.8311999999996,0.54512420037363529,1.6014212779550099,0.47921863418950206,0.94766767225964454,0.28642677347715118,1.2340944457367957,0.29924582668306793,5.2332327740355476E-2,4.524412634808582E-2]
[0.81899999999999984,1015.2580399999997,0.5256294184139545,1.6226571276113393,0.46235232985328623,0.94977210338177886,0.28695081997848182,1.2367229233602606,0.28493532119992598,5.02278966182211E-2,4.3497304746396112E-2]
[0.81799999999999984,1013.6848799999998,0.50632904600304407,1.643939713339281,0.44558076776502625,0.95179621388536273,0.28745551979754835,1.2392517336829112,0.27104446966606371,4.8203786114637243E-2,4.1814972083024274E-2]
[0.81699999999999984,1012.1117199999997,0.48726265249545375,1.6652513998879264,0.42894688874497455,0.95374272839112428,0.28794151977932547,1.2416842481704498,0.25758686572720685,4.625727160887573E-2,4.0194972208140306E-2]
[0.81599999999999984,1010.5385599999997,0.46846749429721563,1.6865753737337259,0.41249123897028916,0.95561430629847111,0.28840945029553139,1.2440237565940024,0.24457326093711404,4.438569370152888E-2,3.8635203882766866E-2]
[0.81499999999999984,1008.9653999999998,0.44997827193704859,1.7078957757892963,0.3962517263208587,0.9574135410525334,0.28885992525220561,1.246273466304739,0.23201165547571706,4.2586458947466585E-2,3.7133620753520225E-2]
[0.81399999999999983,1007.3922399999997,0.43182693376693237,1.7291978146948264,0.3802634236437501,0.95914295965984908,0.2892935421378976,1.2484365017977468,0.21990741626680813,4.0857040340150939E-2,3.5688231191981626E-2]
[0.81299999999999983,1005.8190799999998,0.41404252690373489,1.7504678598625221,0.36455841952318924,0.96080502243166144,0.28971088210872181,1.2505159045403833,0.20826341795948247,3.9194977568338528E-2,3.4297098011179562E-2]
[0.81199999999999983,1004.2459199999996,0.39665109485016004,1.771693513991053,0.34916571597079549,0.96240212293482053,0.29011251010674388,1.2525146330415644,0.19708020219831249,3.7597877065179454E-2,3.2958338070970254E-2]
[0.81099999999999983,1002.6727599999997,0.37967562017863382,1.7928636652745396,0.33411117139736923,0.9639365881313009,0.29049897500836341,1.2544355631396642,0.18635615070385572,3.6063411868699081E-2,3.1670121783427499E-2]
[0.80999999999999983,1001.0995999999998,0.36313600975304872,1.8139685199844939,0.31941748632008399,0.96541067868839925,0.29087080979956498,1.2562814884879643,0.17608766789558972,3.4589321311600786E-2,3.0430672528673583E-2]
[0.80899999999999983,999.52643999999964,0.34704911921901443,1.8349996164918552,0.30510422851587193,0.96682658944268696,0.2912285317750995,1.2580551212177864,0.16626936909075163,3.3173410557313036E-2,2.9238265990940596E-2]
[0.80799999999999983,997.95327999999972,0.33142881292141346,1.8559498221135382,0.29118789376115484,0.96818645000181824,0.29157264275885209,1.2597590927606703,0.15689427068106443,3.1813549998181756E-2,2.8091229424011037E-2]
[0.80699999999999983,996.38011999999981,0.31628605500890117,1.8768133144105899,0.27768199790009124,0.9694923254692841,0.29190362934283498,1.261395954812119,0.14795397910276273,3.0507674530715949E-2,2.6987940854575527E-2]
[0.80599999999999983,994.80695999999966,0.30162902725105911,1.8975855487339339,0.26459719575072005,0.97074621727817045,0.29222196314241933,1.2629681804205899,0.13943887585319084,2.9253782721829498E-2,2.5926828231459042E-2]
[0.80499999999999983,993.23379999999975,0.28746326901161262,1.9182632139126898,0.25194142227720018,0.97195006412092355,0.29252810106559296,1.2644781651865165,0.13133829625148999,2.8049935879076462E-2,2.4906368528096468E-2]
[0.80399999999999983,991.6606399999996,0.27379183487297321,1.9388441780151267,0.23972005150926609,0.9731057429630311,0.29282248559419083,1.265928228557222,0.12364070007661844,2.6894257036968957E-2,2.3925086805096359E-2]
[0.80299999999999983,990.08747999999969,0.26061546557278775,1.9593274260911815,0.22793606885646195,0.97421507012940156,0.29310554507520159,1.267320615204603,0.11633383263112372,2.5784929870598397E-2,2.2981555239219662E-2]
[0.80199999999999982,988.51431999999977,0.24793276817007301,1.9797129917373237,0.21659025272261076,0.97527980245306511,0.29337769402040165,1.2686574964734667,0.10940487516452528,2.4720197546934938E-2,2.2074392124600179E-2]
[0.80099999999999982,986.94115999999963,0.23574040168532051,2.0000018842180887,0.20568136165370846,0.97630163847661089,0.29363933341270598,1.2699409718893169,0.10284058393980998,2.3698361523389062E-2,2.1202260851574461E-2]
[0.79999999999999982,985.36799999999971,0.22403326483423006,2.0201960127436052,0.19520632362860849,0.97728221969754714,0.29389085101776025,1.2711730707153075,9.6627417536331542E-2,2.2717780302452834E-2,2.0363868868041694E-2]
[0.79899999999999982,983.79483999999979,0.21280468287946444,2.0402981093472565,0.18516042450744105,0.97822313184948295,0.29413262169942267,1.2723557535489056,9.0751652250797121E-2,2.1776868150517093E-2,1.9557966627857245E-2]
[0.79799999999999982,982.22167999999965,0.20204659104190761,2.0603116516402511,0.17553749307059943,0.9791259062117188,0.29436500773790197,1.2734909139496207,8.5199485685018034E-2,2.0874093788281235E-2,1.878334653037339E-2]
[0.79699999999999982,980.64851999999973,0.19174971232779744,2.0802407865474919,0.16633008049677317,0.97999202094047577,0.29458835914942888,1.2745803800899047,7.995712879604952E-2,2.0007979059524186E-2,1.8038841854867763E-2]
[0.79599999999999982,979.07535999999959,0.18190372802915897,2.1000902559575234,0.15752963253027413,0.98082290241560111,0.29480301400644293,1.275625916422044,7.5010886833742033E-2,1.9177097584398842E-2,1.7323325693252858E-2]
[0.79499999999999982,977.50219999999968,0.17249743953309979,2.1198653250530435,0.14912665296669789,0.98161992659715303,0.29500929875737403,1.2766292253545271,7.0347229705720299E-2,1.8380073402847006E-2,1.6635709884139274E-2]
[0.79399999999999982,975.92903999999976,0.1635189204239397,2.1395717139317938,0.14111085743500668,0.98238442038680784,0.29520752854518811,1.277591948931996,6.5952852393852998E-2,1.7615579613192173E-2,1.5974943951015591E-2]
[0.79299999999999982,974.35587999999962,0.15495565817679632,2.1592155329825036,0.13347131676934429,0.98311766298952441,0.29539800752395251,1.2785156705134768,6.1814726103318479E-2,1.6882337010475628E-2,1.5340014047030625E-2]
[0.79199999999999982,972.7827199999997,0.14679468501942827,2.1788032223493801,0.12619658954262192,0.98382088727136718,0.29558102917275542,1.2794019164441226,5.7920140859047155E-2,1.6179112728632802E-2,1.4729941908596547E-2]
[0.79099999999999981,971.20955999999978,0.13902269778029133,2.1983414957020644,0.11927484357557334,0.98449528110982509,0.29575687660638583,1.2802521577162109,5.425674027841685E-2,1.55047188901749E-2,1.4143783819786846E-2]
[0.78999999999999981,969.63639999999964,0.1316261667454145,2.2178372884262751,0.11269396644009476,0.98514198873335745,0.29592582288225172,1.2810678116156091,5.0812549247045861E-2,1.485801126664249E-2,1.3580629589278461E-2]
[0.78899999999999981,968.06323999999972,0.12459143371633351,2.2372977102636451,0.10644166514575397,0.98576211204727704,0.29608813130307238,1.2818502433503494,4.7575995209511383E-2,1.4237887952722988E-2,1.3039601541374636E-2]
[0.78799999999999981,966.49007999999958,0.11790479959835576,2.2567300023566745,0.10050555533579128,0.98635671194341912,0.29624405571494533,1.2826007676583644,4.4535923761741369E-2,1.3643288056580827E-2,1.2519853522451238E-2]
[0.78699999999999981,964.91691999999966,0.11155260195565722,2.2761414985952579,9.487324042652806E-2,0.98692680959136503,0.29639384080043479,1.2833206503917998,4.1681609199199596E-2,1.3073190408634987E-2,1.202056992399269E-2]
[0.78599999999999981,963.34375999999975,0.10552128305011771,2.2955395911143053,8.9532381204852435E-2,0.98747338770927817,0.29653772236638548,1.2840111100756637,3.90027606369409E-2,1.2526612290721809E-2,1.1540964723214822E-2]
[0.78499999999999981,961.7705999999996,9.9797448937793382E-2,2.3149316997556117,8.4470756455750862E-2,0.98799739181268209,0.29667592762620432,1.2846733194388864,3.6489524276102171E-2,1.2002608187317881E-2,1.1080280542124687E-2]
[0.78399999999999981,960.19743999999969,9.4367920233499172E-2,2.3343252452807786,7.967631522872029E-2,0.98849973143975123,0.29680867547639883,1.28530840691615,3.4132482347864347E-2,1.1500268560248765E-2,1.0637787725726027E-2]
[0.78299999999999981,958.62427999999977,8.9219775173354346E-2,2.3537276261038778,7.5137221371538068E-2,0.98898128135191532,0.29693617676719736,1.2859174581191126,3.1922649221699712E-2,1.1018718648084694E-2,1.0212783439952395E-2]
[0.78199999999999981,957.05111999999963,8.4340385610193996E-2,2.3731461983016557,7.0841890965154072E-2,0.98944288270877867,0.29705863456711035,1.2865015172758891,2.9851465120797081E-2,1.055711729122133E-2,9.8045907897958695E-3]
[0.78099999999999981,955.47795999999971,7.9717446570076136E-2,2.3925882586542873,6.6779023287017653E-2,0.98988534421654562,0.2971762444213249,1.2870615886378705,2.7910787844699008E-2,1.0114655783454439E-2,9.4125579579920349E-3]
[0.7799999999999998,953.90479999999957,7.5338999982180618E-2,2.4120610304698467,6.2937625914416803E-2,0.99030944324931225,0.29728919460385295,1.2875986378531652,2.6092882858008429E-2,9.6905567506877961E-3,9.0360573645260883E-3]
[0.7789999999999998,952.33163999999965,7.1193453171326054E-2,2.4315716519497066,5.9307034556514024E-2,0.99071592694273791,0.297397666363379,1.288113593306117,2.4390412064953907E-2,9.2840730572620479E-3,8.674484847140191E-3]
[0.7779999999999998,950.75847999999974,6.7269592673888351E-2,2.4511271668595298,5.5876928175487992E-2,0.99110551325975049,0.29750183416277809,1.2886073474225286,2.2796421552897017E-2,8.8944867402495371E-3,8.3272588629405581E-3]
[0.7769999999999998,949.18531999999959,6.3556593905811601E-2,2.4707345172800448,5.2637339925238787E-2,0.9914788920280615,0.29760186591229465,1.289080757940356,2.1304328553755587E-2,8.521107971938495E-3,7.9938197111352177E-3]
[0.7759999999999998,947.61215999999968,6.0044027176856848E-2,2.4904005382233314,4.9578664401704726E-2,0.99183672594938499,0.29769792319639182,1.2895346491457769,1.9907907840830488E-2,8.1632740506149895E-3,7.6736287768678201E-3]
[0.7749999999999998,946.03899999999976,5.672186050943806E-2,2.5101319539129752,4.6691661663158891E-2,0.99217965158034938,0.29779016149430043,1.2899698130746498,1.860127774971055E-2,7.8203484196506801E-3,7.3661677960564264E-3]
[0.7739999999999998,944.46583999999962,5.3580459684226235E-2,2.5299353755397145,4.3967458442789355E-2,0.99250828028518423,0.29787873039430784,1.2903870106794921,1.7378885985737766E-2,7.4917197148157404E-3,7.0709381410966315E-3]
[0.7729999999999998,942.8926799999997,5.0610585898849328E-2,2.5498173003180051,4.1397546940108762E-2,0.99282319916034489,0.29796377380184341,1.2907869729621884,1.6235495356842152E-2,7.1768008396550544E-3,6.787460127242257E-3]
[0.7719999999999998,941.31951999999956,4.7803391391078726E-2,2.5697841116826927,3.8973781542884348E-2,0.99312497193130489,0.29804543014142976,1.2911704020727346,1.5166169549302859E-2,6.8750280686951607E-3,6.51527233943706E-3]
[0.7709999999999998,939.74635999999964,4.515041334429442E-2,2.5898420804784328,3.6688373797751701E-2,0.99341413982181126,0.29812383255257502,1.2915379723743863,1.4166259045020266E-2,6.5858601781887778E-3,6.2539309793375811E-3]
[0.7699999999999998,938.17319999999972,4.2643566361016239E-2,2.6099973670078271,3.4533885915737673E-2,0.9936912223959532,0.29819910907969721,1.2918903314756505,1.323138726202175E-2,6.3087776040468019E-3,6.0030092322344011E-3]
[0.76899999999999979,936.60003999999958,4.0275133760173464E-2,2.6302560238167523,3.2503223068854586E-2,0.99395671837343713,0.29827138285617294,1.2922281012296102,1.2357436985046539E-2,6.0432816265628356E-3,5.7620966535549926E-3]
[0.76799999999999979,935.02687999999966,3.803775792560174E-2,2.6506239991074585,3.0589624705794505E-2,0.99421110641850718,0.29834077228261452,1.2925518787011216,1.154053713996965E-2,5.7888935814928138E-3,5.5307985746072116E-3]
[0.76699999999999979,933.45371999999975,3.592442990712847E-2,2.6711071406813409,2.8786655088664855E-2,0.99445484590298239,0.2984073911994829,1.2928622371024652,1.0777049954395318E-2,5.545154097017559E-3,5.3087355272033341E-3]
[0.76599999999999979,931.8805599999996,3.3928478451534939E-2,2.6917112003238128,2.7088193228666953E-2,0.99468837764391238,0.29847134905414857,1.293159726698061,1.0063558536817859E-2,5.3116223560875963E-3,5.0955426867892893E-3]
[0.76499999999999979,930.30739999999969,3.2043558618614625E-2,2.7124418385535973,2.5488422376580298E-2,0.99491212461637624,0.29853275106251842,1.2934448756788948,9.396854898157718E-3,5.087875383623798E-3,4.8908693336894076E-3]
[0.76399999999999979,928.73423999999955,3.0263640117452688E-2,2.7333046296678587,2.3981819203844092E-2,0.99512649264197262,0.29859169836534771,1.2937181910073203,8.7739284321039172E-3,4.8735073580273552E-3,4.6943783320663015E-3]
[0.76299999999999979,927.16107999999963,2.8582995479847929E-2,2.7543050670228197,2.256314279184132E-2,0.99533187105356247,0.2986482881793599,1.2939801592329223,8.1919548644007849E-3,4.6681289464375209E-3,4.5057456261880504E-3]
[0.76199999999999979,925.58791999999971,2.6996188171356E-2,2.7754485684972883,2.1227423530564761E-2,0.99552863333683883,0.29870261394329894,1.2942312472801378,7.6482856758747038E-3,4.4713666631612074E-3,4.3246597535869001E-3]
[0.76099999999999979,924.01475999999957,2.5498060725699143E-2,2.7967404820932904,1.9969952013119217E-2,0.99571713774930892,0.29875476545904006,1.2944719032083489,7.1404379995144221E-3,4.2828622506910288E-3,4.1508213746908398E-3]
[0.75999999999999979,922.44159999999965,2.4083722975093726E-2,2.8181860916343746,1.8786267999328789E-2,0.99589772791727904,0.29880482902788497,1.294702556945164,6.6660849881754643E-3,4.1022720827209374E-3,3.9839428185056668E-3]
[0.75899999999999979,920.86843999999974,2.2748540437314294E-2,2.8397906225278273,1.7672149509989538E-2,0.99607073341143504,0.2988528875821691,1.2949236209936041,6.2230466463963291E-3,3.9292665885649111E-3,3.8237476439240692E-3]
[0.75799999999999979,919.29527999999959,2.1488122909917313E-2,2.8615592475620235,1.662360210291252E-2,0.99623647030161644,0.29889902081230779,1.2951354911139243,5.8092811173053333E-3,3.7635296983836142E-3,3.6699702162390903E-3]
[0.75699999999999978,917.72211999999968,2.0298313312862436E-2,2.8834970927147965,1.5636848372716859E-2,0.99639524169137617,0.29894330528940721,1.2953385469807834,5.4228764135825268E-3,3.6047583086238144E-3,3.5223552984400539E-3]
[0.75599999999999978,916.14895999999953,1.9175176812701505E-2,2.9056092429527745,1.4708317708261398E-2,0.99654733823292196,0.29898581458356688,1.2955331528164888,5.0620425798598876E-3,3.4526617670780375E-3,3.3806576568716361E-3]
[0.75499999999999978,914.57579999999962,1.8114990254451551E-2,2.927900748005114,1.3834636334543239E-2,0.99669303862302305,0.29902661937799752,1.2957196580010206,4.7251042727350931E-3,3.3069613769768987E-3,3.2446416808409031E-3]
[0.75399999999999978,913.0026399999997,1.7114231921107927E-2,2.9503766280985033,1.3012617659726123E-2,0.99683261008046908,0.29906578757907809,1.2958983976595473,4.4104937436793158E-3,3.1673899195309484E-3,3.1140810157603881E-3]
[0.75299999999999978,911.42947999999956,1.6169571635430407E-2,2.9730418796428997,1.2239252942628173E-2,0.99696630880565296,0.29910338442247375,1.2960696932281266,4.1167442095024452E-3,3.0336911943470253E-3,2.988758209421453E-3]
[0.75199999999999978,909.85631999999964,1.5277861214028641E-2,2.9959014808601263,1.1511702291383446E-2,0.9970943804228487,0.29913947257543505,1.2962338529982838,3.8424835946469188E-3,2.9056195771512737E-3,2.8684643709972024E-3]
[0.75099999999999978,908.28315999999973,1.4436125279827367E-2,3.0189603973496282,1.0827286000034866E-2,0.99721706040573999,0.29917411223539647,1.2963911726411363,3.5864286293852137E-3,2.7829395942600226E-3,2.7529988423805854E-3]
[0.74999999999999978,906.70999999999958,1.3641552435629558E-2,3.0422235875875159,1.0183476226441331E-2,0.99733457448675,0.29920736122499064,1.2965419357117407,3.3473792879624704E-3,2.6654255132499464E-3,2.6421688814705778E-3]
[0.74899999999999978,905.13683999999967,1.2891486798641242E-2,3.0656960083568285,9.5778890120156637E-3,0.99744713905071114,0.29923927508359216,1.2966864141343033,3.1242135508240693E-3,2.55286094928881E-3,2.5357893570260135E-3]
[0.74799999999999978,903.56367999999952,1.2183419893426301E-2,3.0893826201083527,9.00827664140115E-3,0.99755496151340084,0.29926990715550295,1.2968248686689039,2.9158824752776031E-3,2.4450384865991265E-3,2.4336824547142285E-3]
[0.74699999999999978,901.99051999999961,1.1514982898768121E-2,3.1132883922525649,8.4725203381886237E-3,0.99765824068546094,0.29929930867488852,1.2969575493603496,2.7214055592384365E-3,2.3417593145390507E-3,2.3356773939900047E-3]
[0.74599999999999977,900.41735999999969,1.0883939242264759E-2,3.1374183083844756,7.9686232911126281E-3,0.99775716712220419,0.29932752884757263,1.2970846959697768,2.5398663830759134E-3,2.2428328777957958E-3,2.2416101554475348E-3]

{"sheet":"RKHelp","index":9,"n_rows":36,"n_cols":1,"rows_kept":36,"cut":false,"hidden":true,"merged":[]}
["RKHelp  -  Admin use only"]
[]
["See RKPageMap for an editable, programmatically referenced list of where to locate the textual copy for each help context"]
[]
[]
[]
[]
[]
[]
[]
[]
[]
[]
[]
[]
[]
[]
[]
[]
["Energy Constrained Recharge Assimilation Fractional Crystallization (EC-RAXFC)"]
["Help Topic"]
["For code documentation, see ecraxfc.help.pdf.  This file contains information about how to open the code and run simulations.  It also defines input and output parameters and provides a range of values for some input.  If you have questions about running the code, please email "]
["ecrafc@geology.cwu.edu"]
["In order to fully appreciate the code and its output, we recommend you read the following references. The theoretical foundation and assumptions of the model, input and output parameters, and methods of non-dimensionalizing variables are described in detail.  "]
[]
["Spera, FJ and Bohrson WA, 2001, Energy-Constrained Open-System Magmatic Processes I: General Model and Energy-Constrained Assimilation and Fractional Crystallization (EC-AFC) Formulation, Journal of Petrology 42: 999-1018."]
["Bohrson WA and Spera, FJ, 2001, Energy-Constrained Open-System Magmatic Processes II: Application of Energy-Constrained Assimilation Fractional Crystallization (EC-AFC) Model to Magmatic Systems, Journal of Petrology 42: 1019-1041."]
["Spera FJ and Bohrson WA, 2002, Energy-Constrained Open-System Magmatic Processes III: Energy-Constrained Recharge, Assimilation and Fractional Crystallization (EC-RAFC), Geochemistry, Geophysics, Geosystems (G3) 3: doi:10.1029/2002GC00315."]
["Bohrson WA and Spera FJ, 2003, Energy-Constrained Open-System Magmatic Processes IV: Geochemical, Thermal and Mass Consequences of Energy-Constrained Recharge, Assimilation and Fractional Crystallization (EC-RAFC), Geochemistry, Geophysics, Geosystems (G3) 4: doi: 10.1029/2002GC00316."]
["*Spera FJ and Bohrson WA, 2004, Open-System Magma Chamber Evolution: an Energy-Constrained Geochemical Model Incorporating the Effects of Concurrent Eruption, Recharge, Variable Assimilation and Fractional Crystallization (EC-E’RAcFC), Journal of Petrology 45:2459-2480. "]
[]
["*This paper describes implementation of Ac, but also describes eruption.  In the version of the code available to the user, the eruption function has been set to 0, and is therefore not functional.  Users interested in applying the eruption function should contact Wendy Bohrson (bohrson@geology.cwu.edu) or Frank Spera (spera@geol.ucsb.edu). "]
[]
["We also recommend that you read Fowler et al. (2004).  This paper, which describes the results of EC modeling of the Skye Igneous Center, is an excellent example of how the EC approach can be used to model a complex magmatic system.  "]
[]
["Fowler SJ, Bohrson WA, Spera FJ, 2004, Magmatic Evolution of the Skye Igneous Center, Western Scotland, Special Issue, Journal of Petrology 45: 2481-2505. "]

{"sheet":"RKPageMap","index":10,"n_rows":17,"n_cols":8,"rows_kept":17,"cut":false,"hidden":true,"merged":[]}
["RKPageMap  -  Admin use only"]
["This sheet is used by the code to move between RK Pages. Reference by the Page Titles in Col A "]
["Page Title (Don’t change these here !!!)","top Left","RKPage(j)","RK1 or 2","HelpRange","Next","Back"]
["Home","A1","n/a","n/a","A20","n/a","n/a"]
["Isotopes","AA1",1,2,"A20","BA1","A1"]
["Trace Elements","BA1",2,2,"A20","CA1","AA1"]
["Oxygen","CA1",3,2,"A20","HA1","BA1"]
["Thermal","DA1",4,1,"A20","EA1","A1"]
["Melting","EA1",5,1,"A20","GA1","DA1"]
["RK1 Setup","FA51",16,1,"A20","A1","AA51"]
["RK2 Setup","FA1",26,2,"A20","A1","HA1"]
["Recharge RK1","GA1",17,1,"A20","AA51","EA1"]
["Recharge RK2","HA1",27,2,"A20","FA1","CA1"]
["Eruption RK1","HA51",18,1,"A20","GA1","EA1","Disabled in RK06"]
["Mixing Fraction","AA51",9,1,"A20","FA51","GA1"]
[]
["must populate this sheet as a contiguous block, beginning in row 4, don't leave blanks"]

{"sheet":"RKSyncNames","index":11,"n_rows":343,"n_cols":14,"rows_kept":343,"cut":false,"hidden":true,"merged":[]}
["AssimO18O16",null,"RKSyncNames -  Admin use only",null,null,null,null,null,null,null,null,"AssimO18O16","$CH$7","12"]
["ChartSheet",null,"only the named ranges in col A on this sheet ",null,null,null,null,null,null,null,null,"ChartSheet","$FD$26","RKCharts"]
["comboEpisodeCountLinkEM",null,"are brought in when RK is resynced to an older version",null,null,null,null,null,null,null,null,"comboEpisodeCountLinkEM","$H$42","20"]
["comboEpisodeCountLinkRM",null,null,null,null,null,null,null,null,null,null,"comboEpisodeCountLinkRM","$H$41","4"]
["ComboTempLink",null,null,null,null,null,null,null,null,null,null,"ComboTempLink","$A$41","1"]
["ConAssim1",null,null,null,null,null,null,null,null,null,null,"ConAssim1","$AF$13","300"]
["ConAssim2",null,null,null,null,null,null,null,null,null,null,"ConAssim2","$AH$13","26"]
["ConAssim3",null,null,null,null,null,null,null,null,null,null,"ConAssim3","$AJ$13",""]
["ConAssim4",null,null,null,null,null,null,null,null,null,null,"ConAssim4","$BF$13","15"]
["ConAssim5",null,null,null,null,null,null,null,null,null,null,"ConAssim5","$BH$13",""]
["ConAssim6",null,null,null,null,null,null,null,null,null,null,"ConAssim6","$BJ$13",""]
["ConAssimOxy",null,null,null,null,null,null,null,null,null,null,"ConAssimOxy","$CH$15","0.5"]
["ConMagma1",null,null,null,null,null,null,null,null,null,null,"ConMagma1","$AF$8","700"]
["ConMagma2",null,null,null,null,null,null,null,null,null,null,"ConMagma2","$AH$8","35"]
["ConMagma3",null,null,null,null,null,null,null,null,null,null,"ConMagma3","$AJ$8",""]
["ConMagma4",null,null,null,null,null,null,null,null,null,null,"ConMagma4","$BF$8","10"]
["ConMagma5",null,null,null,null,null,null,null,null,null,null,"ConMagma5","$BH$8",""]
["ConMagma6",null,null,null,null,null,null,null,null,null,null,"ConMagma6","$BJ$8",""]
["ConMagmaOxy",null,null,null,null,null,null,null,null,null,null,"ConMagmaOxy","$CH$13","0.47"]
["conRM1",null,null,null,null,null,null,null,null,null,null,"conRM1","$AF$18","1000"]
["conRM2",null,null,null,null,null,null,null,null,null,null,"conRM2","$AH$18","15"]
["conRM3",null,null,null,null,null,null,null,null,null,null,"conRM3","$AJ$18",""]
["conRM4",null,null,null,null,null,null,null,null,null,null,"conRM4","$BF$18","5"]
["conRM5",null,null,null,null,null,null,null,null,null,null,"conRM5","$BH$18",""]
["conRM6",null,null,null,null,null,null,null,null,null,null,"conRM6","$BJ$18",""]
["conRMOxy",null,null,null,null,null,null,null,null,null,null,"conRMOxy","$CH$17","0.47"]
["cpa",null,null,null,null,null,null,null,null,null,null,"cpa","$DD$16","1300"]
["cpm",null,null,null,null,null,null,null,null,null,null,"cpm","$DD$15","1300"]
["cpr",null,null,null,null,null,null,null,null,null,null,"cpr","$DD$17","1300"]
["Dao1",null,null,null,null,null,null,null,null,null,null,"Dao1","$AF$14","1.5"]
["Dao2",null,null,null,null,null,null,null,null,null,null,"Dao2","$AH$14","0.25"]
["Dao3",null,null,null,null,null,null,null,null,null,null,"Dao3","$AJ$14",""]
["Dao4",null,null,null,null,null,null,null,null,null,null,"Dao4","$BF$14","0.1"]
["Dao5",null,null,null,null,null,null,null,null,null,null,"Dao5","$BH$14",""]
["Dao6",null,null,null,null,null,null,null,null,null,null,"Dao6","$BJ$14",""]
["deltaT",null,null,null,null,null,null,null,null,null,null,"deltaT","$FD$21","-0.004"]
["Dmo1",null,null,null,null,null,null,null,null,null,null,"Dmo1","$AF$9","1.5"]
["Dmo2",null,null,null,null,null,null,null,null,null,null,"Dmo2","$AH$9","0.25"]
["Dmo3",null,null,null,null,null,null,null,null,null,null,"Dmo3","$AJ$9",""]
["Dmo4",null,null,null,null,null,null,null,null,null,null,"Dmo4","$BF$9","0.1"]
["Dmo5",null,null,null,null,null,null,null,null,null,null,"Dmo5","$BH$9",""]
["Dmo6",null,null,null,null,null,null,null,null,null,null,"Dmo6","$BJ$9",""]
["Dro1",null,null,null,null,null,null,null,null,null,null,"Dro1","$AF$19","1.5"]
["Dro2",null,null,null,null,null,null,null,null,null,null,"Dro2","$AH$19","0.25"]
["Dro3",null,null,null,null,null,null,null,null,null,null,"Dro3","$AJ$19",""]
["Dro4",null,null,null,null,null,null,null,null,null,null,"Dro4","$BF$19","0.1"]
["Dro5",null,null,null,null,null,null,null,null,null,null,"Dro5","$BH$19",""]
["Dro6",null,null,null,null,null,null,null,null,null,null,"Dro6","$BJ$19",""]
["ElemLabel1",null,null,null,null,null,null,null,null,null,null,"Elem1","$AB$5:$AB$25,$AF$5:$AF$25"]
["ElemLabel2",null,null,null,null,null,null,null,null,null,null,"Elem2","$AH$5:$AH$25"]
["ElemLabel3",null,null,null,null,null,null,null,null,null,null,"Elem3","$AJ$5:$AJ$25"]
["ElemLabel4",null,null,null,null,null,null,null,null,null,null,"Elem4","$BF$5:$BF$20"]
["ElemLabel5",null,null,null,null,null,null,null,null,null,null,"Elem5","$BH$5:$BH$20"]
["ElemLabel6",null,null,null,null,null,null,null,null,null,null,"Elem6","$BJ$5:$BJ$20"]
["EMDelta1",null,null,null,null,null,null,null,null,null,null,"ElemLabel1","$AF$5","Sr"]
["EMDelta10",null,null,null,null,null,null,null,null,null,null,"ElemLabel2","$AH$5","nd"]
["EMDelta11",null,null,null,null,null,null,null,null,null,null,"ElemLabel3","$AJ$5",""]
["EMDelta12",null,null,null,null,null,null,null,null,null,null,"ElemLabel4","$BF$5","Th"]
["EMDelta13",null,null,null,null,null,null,null,null,null,null,"ElemLabel5","$BH$5",""]
["EMDelta14",null,null,null,null,null,null,null,null,null,null,"ElemLabel6","$BJ$5",""]
["EMDelta15",null,null,null,null,null,null,null,null,null,null,"EMDelta1","$HC$65","0.015"]
["EMDelta16",null,null,null,null,null,null,null,null,null,null,"EMDelta10","$HC$74","0.015"]
["EMDelta17",null,null,null,null,null,null,null,null,null,null,"EMDelta11","$HC$75","0.015"]
["EMDelta18",null,null,null,null,null,null,null,null,null,null,"EMDelta12","$HC$76","0.015"]
["EMDelta19",null,null,null,null,null,null,null,null,null,null,"EMDelta13","$HC$77","0.015"]
["EMDelta2",null,null,null,null,null,null,null,null,null,null,"EMDelta14","$HC$78","0.015"]
["EMDelta20",null,null,null,null,null,null,null,null,null,null,"EMDelta15","$HC$79","0.015"]
["EMDelta3",null,null,null,null,null,null,null,null,null,null,"EMDelta16","$HC$80","0.015"]
["EMDelta4",null,null,null,null,null,null,null,null,null,null,"EMDelta17","$HC$81","0.015"]
["EMDelta5",null,null,null,null,null,null,null,null,null,null,"EMDelta18","$HC$82","0.015"]
["EMDelta6",null,null,null,null,null,null,null,null,null,null,"EMDelta19","$HC$83","0.015"]
["EMDelta7",null,null,null,null,null,null,null,null,null,null,"EMDelta2","$HC$66","0.015"]
["EMDelta8",null,null,null,null,null,null,null,null,null,null,"EMDelta20","$HC$84","0.015"]
["EMDelta9",null,null,null,null,null,null,null,null,null,null,"EMDelta3","$HC$67","0.015"]
["EMgi1",null,null,null,null,null,null,null,null,null,null,"EMDelta4","$HC$68","0.015"]
["EMgi10",null,null,null,null,null,null,null,null,null,null,"EMDelta5","$HC$69","0.015"]
["EMgi11",null,null,null,null,null,null,null,null,null,null,"EMDelta6","$HC$70","0.015"]
["EMgi12",null,null,null,null,null,null,null,null,null,null,"EMDelta7","$HC$71","0.015"]
["EMgi13",null,null,null,null,null,null,null,null,null,null,"EMDelta8","$HC$72","0.015"]
["EMgi14",null,null,null,null,null,null,null,null,null,null,"EMDelta9","$HC$73","0.015"]
["EMgi15",null,null,null,null,null,null,null,null,null,null,"EMDeltaSum","$HF$59","=SUM(HC65:HC84)"]
["EMgi16",null,null,null,null,null,null,null,null,null,null,"EMgi1","$HF$65","1"]
["EMgi17",null,null,null,null,null,null,null,null,null,null,"EMgi10","$HF$74","1"]
["EMgi18",null,null,null,null,null,null,null,null,null,null,"EMgi11","$HF$75","1"]
["EMgi19",null,null,null,null,null,null,null,null,null,null,"EMgi12","$HF$76","1"]
["EMgi2",null,null,null,null,null,null,null,null,null,null,"EMgi13","$HF$77","1"]
["EMgi20",null,null,null,null,null,null,null,null,null,null,"EMgi14","$HF$78","1"]
["EMgi3",null,null,null,null,null,null,null,null,null,null,"EMgi15","$HF$79","1"]
["EMgi4",null,null,null,null,null,null,null,null,null,null,"EMgi16","$HF$80","1"]
["EMgi5",null,null,null,null,null,null,null,null,null,null,"EMgi17","$HF$81","1"]
["EMgi6",null,null,null,null,null,null,null,null,null,null,"EMgi18","$HF$82","1"]
["EMgi7",null,null,null,null,null,null,null,null,null,null,"EMgi19","$HF$83","1"]
["EMgi8",null,null,null,null,null,null,null,null,null,null,"EMgi2","$HF$66","1"]
["EMgi9",null,null,null,null,null,null,null,null,null,null,"EMgi20","$HF$84","1"]
["EMIntegrationMesh",null,null,null,null,null,null,null,null,null,null,"EMgi3","$HF$67","1"]
["EMLinearityLink",null,null,null,null,null,null,null,null,null,null,"EMgi4","$HF$68","1"]
["EMmei1",null,null,null,null,null,null,null,null,null,null,"EMgi5","$HF$69","1"]
["EMmei10",null,null,null,null,null,null,null,null,null,null,"EMgi6","$HF$70","1"]
["EMmei11",null,null,null,null,null,null,null,null,null,null,"EMgi7","$HF$71","1"]
["EMmei12",null,null,null,null,null,null,null,null,null,null,"EMgi8","$HF$72","1"]
["EMmei13",null,null,null,null,null,null,null,null,null,null,"EMgi9","$HF$73","1"]
["EMmei14",null,null,null,null,null,null,null,null,null,null,"EMIntegrationMesh","$G$40","5000"]
["EMmei15",null,null,null,null,null,null,null,null,null,null,"EMLinearityLink","$G$36","2"]
["EMmei16",null,null,null,null,null,null,null,null,null,null,"EMmei1","$HE$65","0.2"]
["EMmei17",null,null,null,null,null,null,null,null,null,null,"EMmei10","$HE$74","0.2"]
["EMmei18",null,null,null,null,null,null,null,null,null,null,"EMmei11","$HE$75","0.2"]
["EMmei19",null,null,null,null,null,null,null,null,null,null,"EMmei12","$HE$76","0.2"]
["EMmei2",null,null,null,null,null,null,null,null,null,null,"EMmei13","$HE$77","0.2"]
["EMmei20",null,null,null,null,null,null,null,null,null,null,"EMmei14","$HE$78","0.2"]
["EMmei3",null,null,null,null,null,null,null,null,null,null,"EMmei15","$HE$79","0.2"]
["EMmei4",null,null,null,null,null,null,null,null,null,null,"EMmei16","$HE$80","0.2"]
["EMmei5",null,null,null,null,null,null,null,null,null,null,"EMmei17","$HE$81","0.2"]
["EMmei6",null,null,null,null,null,null,null,null,null,null,"EMmei18","$HE$82","0.2"]
["EMmei7",null,null,null,null,null,null,null,null,null,null,"EMmei19","$HE$83","0.2"]
["EMmei8",null,null,null,null,null,null,null,null,null,null,"EMmei2","$HE$66","0.2"]
["EMmei9",null,null,null,null,null,null,null,null,null,null,"EMmei20","$HE$84","0.2"]
["EMTei1",null,null,null,null,null,null,null,null,null,null,"EMmei3","$HE$67","0.2"]
["EMTei10",null,null,null,null,null,null,null,null,null,null,"EMmei4","$HE$68","0.2"]
["EMTei11",null,null,null,null,null,null,null,null,null,null,"EMmei5","$HE$69","0.2"]
["EMTei12",null,null,null,null,null,null,null,null,null,null,"EMmei6","$HE$70","0.2"]
["EMTei13",null,null,null,null,null,null,null,null,null,null,"EMmei7","$HE$71","0.2"]
["EMTei14",null,null,null,null,null,null,null,null,null,null,"EMmei8","$HE$72","0.2"]
["EMTei15",null,null,null,null,null,null,null,null,null,null,"EMmei9","$HE$73","0.2"]
["EMTei16",null,null,null,null,null,null,null,null,null,null,"EMTei1","$HD$65","1200"]
["EMTei17",null,null,null,null,null,null,null,null,null,null,"EMTei10","$HD$74","1150"]
["EMTei18",null,null,null,null,null,null,null,null,null,null,"EMTei11","$HD$75","1145"]
["EMTei19",null,null,null,null,null,null,null,null,null,null,"EMTei12","$HD$76","1140"]
["EMTei2",null,null,null,null,null,null,null,null,null,null,"EMTei13","$HD$77","1135"]
["EMTei20",null,null,null,null,null,null,null,null,null,null,"EMTei14","$HD$78","1130"]
["EMTei3",null,null,null,null,null,null,null,null,null,null,"EMTei15","$HD$79","1125"]
["EMTei4",null,null,null,null,null,null,null,null,null,null,"EMTei16","$HD$80","1120"]
["EMTei5",null,null,null,null,null,null,null,null,null,null,"EMTei17","$HD$81","1115"]
["EMTei6",null,null,null,null,null,null,null,null,null,null,"EMTei18","$HD$82","1110"]
["EMTei7",null,null,null,null,null,null,null,null,null,null,"EMTei19","$HD$83","1105"]
["EMTei8",null,null,null,null,null,null,null,null,null,null,"EMTei2","$HD$66","1190"]
["EMTei9",null,null,null,null,null,null,null,null,null,null,"EMTei20","$HD$84","1100"]
["EnthAssim1",null,null,null,null,null,null,null,null,null,null,"EMTei3","$HD$67","1185"]
["EnthAssim2",null,null,null,null,null,null,null,null,null,null,"EMTei4","$HD$68","1180"]
["EnthAssim3",null,null,null,null,null,null,null,null,null,null,"EMTei5","$HD$69","1175"]
["EnthAssim4",null,null,null,null,null,null,null,null,null,null,"EMTei6","$HD$70","1170"]
["EnthAssim5",null,null,null,null,null,null,null,null,null,null,"EMTei7","$HD$71","1165"]
["EnthAssim6",null,null,null,null,null,null,null,null,null,null,"EMTei8","$HD$72","1160"]
["EnthMagma1",null,null,null,null,null,null,null,null,null,null,"EMTei9","$HD$73","1155"]
["EnthMagma2",null,null,null,null,null,null,null,null,null,null,"EMTempCoolest","$HF$57","=MIN(HD65:HD84)"]
["EnthMagma3",null,null,null,null,null,null,null,null,null,null,"EMThermalsRpt","$HI$65","Tmo = 1500, Tla = 1050, Tlm = 1500."]
["EnthMagma4",null,null,null,null,null,null,null,null,null,null,"EnthAssim1","$AF$15","0"]
["EnthMagma5",null,null,null,null,null,null,null,null,null,null,"EnthAssim2","$AH$15","0"]
["EnthMagma6",null,null,null,null,null,null,null,null,null,null,"EnthAssim3","$AJ$15",""]
["EnthRM1",null,null,null,null,null,null,null,null,null,null,"EnthAssim4","$BF$15","0"]
["EnthRM2",null,null,null,null,null,null,null,null,null,null,"EnthAssim5","$BH$15",""]
["EnthRM3",null,null,null,null,null,null,null,null,null,null,"EnthAssim6","$BJ$15",""]
["EnthRM4",null,null,null,null,null,null,null,null,null,null,"EnthMagma1","$AF$10","0"]
["EnthRM5",null,null,null,null,null,null,null,null,null,null,"EnthMagma2","$AH$10","0"]
["EnthRM6",null,null,null,null,null,null,null,null,null,null,"EnthMagma3","$AJ$10",""]
["ha",null,null,null,null,null,null,null,null,null,null,"EnthMagma4","$BF$10","0"]
["hm",null,null,null,null,null,null,null,null,null,null,"EnthMagma5","$BH$10",""]
["hr",null,null,null,null,null,null,null,null,null,null,"EnthMagma6","$BJ$10",""]
["IsotLabel1",null,null,null,null,null,null,null,null,null,null,"EnthRM1","$AF$20","0"]
["IsotLabel2",null,null,null,null,null,null,null,null,null,null,"EnthRM2","$AH$20","0"]
["IsotLabel3",null,null,null,null,null,null,null,null,null,null,"EnthRM3","$AJ$20",""]
["IsotRatioAssim1",null,null,null,null,null,null,null,null,null,null,"EnthRM4","$BF$20","0"]
["IsotRatioAssim2",null,null,null,null,null,null,null,null,null,null,"EnthRM5","$BH$20",""]
["IsotRatioAssim3",null,null,null,null,null,null,null,null,null,null,"EnthRM6","$BJ$20",""]
["IsotRatioMagma1",null,null,null,null,null,null,null,null,null,null,"Erf","$EH$5:$EH$16"]
["IsotRatioMagma2",null,null,null,null,null,null,null,null,null,null,"Erf2","$EH$5:$EH$12,$EB$5:$EB$12"]
["IsotRatioMagma3",null,null,null,null,null,null,null,null,null,null,"Erf2A","$EB$5:$EB$9,$EH$5:$EH$9"]
["IsotRatioRM1",null,null,null,null,null,null,null,null,null,null,"EruptionLinear","$HE$54,$HF$54","Meo"]
["IsotRatioRM2",null,null,null,null,null,null,null,null,null,null,"ha","$DD$20","300000"]
["IsotRatioRM3",null,null,null,null,null,null,null,null,null,null,"hm","$DD$19","300000"]
["LastSheetTopLeft",null,null,null,null,null,null,null,null,null,null,"hr","$DD$21","300000"]
["LinearityLink",null,null,null,null,null,null,null,null,null,null,"IsotLabel1","$AF$22","87Sr/86Sr"]
["LogAa",null,null,null,null,null,null,null,null,null,null,"IsotLabel2","$AH$22","143Nd/144Nd"]
["LogAb",null,null,null,null,null,null,null,null,null,null,"IsotLabel3","$AJ$22",""]
["LogMa",null,null,null,null,null,null,null,null,null,null,"IsotRatioAssim1","$AF$24","0.722"]
["LogMb",null,null,null,null,null,null,null,null,null,null,"IsotRatioAssim2","$AH$24","0.5188"]
["LogRMA",null,null,null,null,null,null,null,null,null,null,"IsotRatioAssim3","$AJ$24",""]
["LogRMB",null,null,null,null,null,null,null,null,null,null,"IsotRatioMagma1","$AF$23","0.7035"]
["MagmaO18O16",null,null,null,null,null,null,null,null,null,null,"IsotRatioMagma2","$AH$23","0.513"]
["Main Menu'!Print_Area",null,null,null,null,null,null,null,null,null,null,"IsotRatioMagma3","$AJ$23",""]
["Meo",null,null,null,null,null,null,null,null,null,null,"IsotRatioRM1","$AF$25","0.702"]
["Mro",null,null,null,null,null,null,null,null,null,null,"IsotRatioRM2","$AH$25","0.5135"]
["OxygenLink",null,null,null,null,null,null,null,null,null,null,"IsotRatioRM3","$AJ$25",""]
["P1deltaT",null,null,null,null,null,null,null,null,null,null,"IterationCount","$FD$22","=ABS((TFinal-TZero)/deltaT)"]
["P1U0",null,null,null,null,null,null,null,null,null,null,"LastSheetTopLeft","$G$38","HA51"]
["P1V0",null,null,null,null,null,null,null,null,null,null,"lbl18O","$CB$7","18O/16O in assimilant"]
["ReqFracMeltTHigh",null,null,null,null,null,null,null,null,null,null,"lblAssim0","$AC$12","in assimilant"]
["ReqFracMeltTLow",null,null,null,null,null,null,null,null,null,null,"lblAssim1","$BC$12","in assimilant"]
["ResultsSheet",null,null,null,null,null,null,null,null,null,null,"lblConcO","$CB$16",""]
["RKPageMap!Print_Area",null,null,null,null,null,null,null,null,null,null,"lblRatio","$AB$24","ratio assimilant"]
["RMd1",null,null,null,null,null,null,null,null,null,null,"LinearityLink","$G$35","1"]
["RMd10",null,null,null,null,null,null,null,null,null,null,"LogAa","$EH$19","400"]
["RMd11",null,null,null,null,null,null,null,null,null,null,"LogAb","$EH$20","-11"]
["RMd12",null,null,null,null,null,null,null,null,null,null,"Logist2","$EB$16:$EB$23,$EH$16:$EH$23"]
["RMd13",null,null,null,null,null,null,null,null,null,null,"LogMa","$EH$16","450"]
["RMd14",null,null,null,null,null,null,null,null,null,null,"LogMb","$EH$17","-10.5"]
["RMd15",null,null,null,null,null,null,null,null,null,null,"LogRMA","$EH$22","450"]
["RMd16",null,null,null,null,null,null,null,null,null,null,"LogRMB","$EH$23","-10.5"]
["RMd17",null,null,null,null,null,null,null,null,null,null,"MagmaO18O16","$CH$5","6.2"]
["RMd18",null,null,null,null,null,null,null,null,null,null,"Main Menu'!Print_Area","$A$1:$Z$25"]
["RMd19",null,null,null,null,null,null,null,null,null,null,"Meo","$HF$54","0.3"]
["RMd2",null,null,null,null,null,null,null,null,null,null,"Mro","$GH$6","0.5"]
["RMd20",null,null,null,null,null,null,null,null,null,null,"Oxy2","$CH$5:$CH$17,$CB$5:$CB$17"]
["RMd3",null,null,null,null,null,null,null,null,null,null,"OxygenLink","$G$34","2"]
["RMd4",null,null,null,null,null,null,null,null,null,null,"P1deltaT","$FD$62","-0.004"]
["RMd5",null,null,null,null,null,null,null,null,null,null,"P1TFinal","$FD$61","=IF(ISNUMBER(ts/tlm),(ts+273.16)/(tlm+273.16),\"\")"]
["RMd6",null,null,null,null,null,null,null,null,null,null,"P1TZero","$FD$60","=IF(ISNUMBER(tmo/tlm),(tmo+273.16)/(tlm+273.16),\"\")"]
["RMd7",null,null,null,null,null,null,null,null,null,null,"P1U0","$FD$54","0"]
["RMd8",null,null,null,null,null,null,null,null,null,null,"P1V0","$FD$55","1"]
["RMd9",null,null,null,null,null,null,null,null,null,null,"RechargeLinear","$GE$6,$GH$6","Mro"]
["RMdelta1",null,null,null,null,null,null,null,null,null,null,"ReqFracAssimTHigh","$EH$128","0.85"]
["RMdelta10",null,null,null,null,null,null,null,null,null,null,"ReqFracMeltTHigh","$EH$126","0.85"]
["RMdelta11",null,null,null,null,null,null,null,null,null,null,"ReqFracMeltTLow","$EH$127","0.15"]
["RMdelta12",null,null,null,null,null,null,null,null,null,null,"ResultsSheet","$FD$24","Fred"]
["RMdelta13",null,null,null,null,null,null,null,null,null,null,"RKPageMap!Print_Area","$A$3:$G$14"]
["RMdelta14",null,null,null,null,null,null,null,null,null,null,"RKVarMap!Print_Area","$A$1:$L$53"]
["RMdelta15",null,null,null,null,null,null,null,null,null,null,"RMd1","$HF$12","2"]
["RMdelta16",null,null,null,null,null,null,null,null,null,null,"RMd10","$HF$21",""]
["RMdelta17",null,null,null,null,null,null,null,null,null,null,"RMd11","$HF$22",""]
["RMdelta18",null,null,null,null,null,null,null,null,null,null,"RMd12","$HF$23",""]
["RMdelta19",null,null,null,null,null,null,null,null,null,null,"RMd13","$HF$24",""]
["RMdelta2",null,null,null,null,null,null,null,null,null,null,"RMd14","$HF$25",""]
["RMdelta20",null,null,null,null,null,null,null,null,null,null,"RMd15","$HF$26",""]
["RMdelta3",null,null,null,null,null,null,null,null,null,null,"RMd16","$HF$27",""]
["RMdelta4",null,null,null,null,null,null,null,null,null,null,"RMd17","$HF$28",""]
["RMdelta5",null,null,null,null,null,null,null,null,null,null,"RMd18","$HF$29",""]
["RMdelta6",null,null,null,null,null,null,null,null,null,null,"RMd19","$HF$30",""]
["RMdelta7",null,null,null,null,null,null,null,null,null,null,"RMd2","$HF$13","2"]
["RMdelta8",null,null,null,null,null,null,null,null,null,null,"RMd20","$HF$31",""]
["RMdelta9",null,null,null,null,null,null,null,null,null,null,"RMd3","$HF$14","1"]
["RMLinearityLink",null,null,null,null,null,null,null,null,null,null,"RMd4","$HF$15","1"]
["RMmDot1",null,null,null,null,null,null,null,null,null,null,"RMd5","$HF$16",""]
["RMmDot10",null,null,null,null,null,null,null,null,null,null,"RMd6","$HF$17",""]
["RMmDot11",null,null,null,null,null,null,null,null,null,null,"RMd7","$HF$18",""]
["RMmDot12",null,null,null,null,null,null,null,null,null,null,"RMd8","$HF$19",""]
["RMmDot13",null,null,null,null,null,null,null,null,null,null,"RMd9","$HF$20",""]
["RMmDot14",null,null,null,null,null,null,null,null,null,null,"RMdelta1","$HC$12","0.45"]
["RMmDot15",null,null,null,null,null,null,null,null,null,null,"RMdelta10","$HC$21",""]
["RMmDot16",null,null,null,null,null,null,null,null,null,null,"RMdelta11","$HC$22",""]
["RMmDot17",null,null,null,null,null,null,null,null,null,null,"RMdelta12","$HC$23",""]
["RMmDot18",null,null,null,null,null,null,null,null,null,null,"RMdelta13","$HC$24",""]
["RMmDot19",null,null,null,null,null,null,null,null,null,null,"RMdelta14","$HC$25",""]
["RMmDot2",null,null,null,null,null,null,null,null,null,null,"RMdelta15","$HC$26",""]
["RMmDot20",null,null,null,null,null,null,null,null,null,null,"RMdelta16","$HC$27",""]
["RMmDot3",null,null,null,null,null,null,null,null,null,null,"RMdelta17","$HC$28",""]
["RMmDot4",null,null,null,null,null,null,null,null,null,null,"RMdelta18","$HC$29",""]
["RMmDot5",null,null,null,null,null,null,null,null,null,null,"RMdelta19","$HC$30",""]
["RMmDot6",null,null,null,null,null,null,null,null,null,null,"RMdelta2","$HC$13","0.01"]
["RMmDot7",null,null,null,null,null,null,null,null,null,null,"RMdelta20","$HC$31",""]
["RMmDot8",null,null,null,null,null,null,null,null,null,null,"RMdelta3","$HC$14","0.03"]
["RMmDot9",null,null,null,null,null,null,null,null,null,null,"RMdelta4","$HC$15","0.01"]
["RMO18O16",null,null,null,null,null,null,null,null,null,null,"RMdelta5","$HC$16",""]
["RMTri1",null,null,null,null,null,null,null,null,null,null,"RMdelta6","$HC$17",""]
["RMTri10",null,null,null,null,null,null,null,null,null,null,"RMdelta7","$HC$18",""]
["RMTri11",null,null,null,null,null,null,null,null,null,null,"RMdelta8","$HC$19",""]
["RMTri12",null,null,null,null,null,null,null,null,null,null,"RMdelta9","$HC$20",""]
["RMTri13",null,null,null,null,null,null,null,null,null,null,"RMdeltaSum","$HF$6","=SUM(HC12:HC15)"]
["RMTri14",null,null,null,null,null,null,null,null,null,null,"RMLinearityLink","$G$39","2"]
["RMTri15",null,null,null,null,null,null,null,null,null,null,"RMmDot1","$HE$12","0.2"]
["RMTri16",null,null,null,null,null,null,null,null,null,null,"RMmDot10","$HE$21",""]
["RMTri17",null,null,null,null,null,null,null,null,null,null,"RMmDot11","$HE$22",""]
["RMTri18",null,null,null,null,null,null,null,null,null,null,"RMmDot12","$HE$23",""]
["RMTri19",null,null,null,null,null,null,null,null,null,null,"RMmDot13","$HE$24",""]
["RMTri2",null,null,null,null,null,null,null,null,null,null,"RMmDot14","$HE$25",""]
["RMTri20",null,null,null,null,null,null,null,null,null,null,"RMmDot15","$HE$26",""]
["RMTri3",null,null,null,null,null,null,null,null,null,null,"RMmDot16","$HE$27",""]
["RMTri4",null,null,null,null,null,null,null,null,null,null,"RMmDot17","$HE$28",""]
["RMTri5",null,null,null,null,null,null,null,null,null,null,"RMmDot18","$HE$29",""]
["RMTri6",null,null,null,null,null,null,null,null,null,null,"RMmDot19","$HE$30",""]
["RMTri7",null,null,null,null,null,null,null,null,null,null,"RMmDot2","$HE$13","0.2"]
["RMTri8",null,null,null,null,null,null,null,null,null,null,"RMmDot20","$HE$31",""]
["RMTri9",null,null,null,null,null,null,null,null,null,null,"RMmDot3","$HE$14","0.3"]
["SigmaA",null,null,null,null,null,null,null,null,null,null,"RMmDot4","$HE$15","0.3"]
["SigmaM",null,null,null,null,null,null,null,null,null,null,"RMmDot5","$HE$16",""]
["SigmaRM",null,null,null,null,null,null,null,null,null,null,"RMmDot6","$HE$17",""]
["tao",null,null,null,null,null,null,null,null,null,null,"RMmDot7","$HE$18",""]
["TFinal",null,null,null,null,null,null,null,null,null,null,"RMmDot8","$HE$19",""]
["THalfA",null,null,null,null,null,null,null,null,null,null,"RMmDot9","$HE$20",""]
["THalfM",null,null,null,null,null,null,null,null,null,null,"RMO18O16","$CH$9","7"]
["THalfRM",null,null,null,null,null,null,null,null,null,null,"RMThermalRpt","$HI$14","Tmo = 1500, Tla = 1050, Tlm = 1500, Teq = 1067.35."]
["tla",null,null,null,null,null,null,null,null,null,null,"RMTri1","$HD$12","1190"]
["tlm",null,null,null,null,null,null,null,null,null,null,"RMTri10","$HD$21",""]
["tlr",null,null,null,null,null,null,null,null,null,null,"RMTri11","$HD$22",""]
["tmo",null,null,null,null,null,null,null,null,null,null,"RMTri12","$HD$23",""]
["ts",null,null,null,null,null,null,null,null,null,null,"RMTri13","$HD$24",""]
["V0",null,null,null,null,null,null,null,null,null,null,"RMTri14","$HD$25",""]
["Z0",null,null,null,null,null,null,null,null,null,null,"RMTri15","$HD$26",""]
["chi",null,null,null,null,null,null,null,null,null,null,"RMTri16","$HD$27",""]
[null,null,null,null,null,null,null,null,null,null,null,"RMTri17","$HD$28",""]
[null,null,null,null,null,null,null,null,null,null,null,"RMTri18","$HD$29",""]
[null,null,null,null,null,null,null,null,null,null,null,"RMTri19","$HD$30",""]
[null,null,null,null,null,null,null,null,null,null,null,"RMTri2","$HD$13","1130"]
[null,null,null,null,null,null,null,null,null,null,null,"RMTri20","$HD$31",""]
[null,null,null,null,null,null,null,null,null,null,null,"RMTri3","$HD$14","1120"]
[null,null,null,null,null,null,null,null,null,null,null,"RMTri4","$HD$15","1110"]
[null,null,null,null,null,null,null,null,null,null,null,"RMTri5","$HD$16",""]
[null,null,null,null,null,null,null,null,null,null,null,"RMTri6","$HD$17",""]
[null,null,null,null,null,null,null,null,null,null,null,"RMTri7","$HD$18",""]
[null,null,null,null,null,null,null,null,null,null,null,"RMTri8","$HD$19",""]
[null,null,null,null,null,null,null,null,null,null,null,"RMTri9","$HD$20",""]
[null,null,null,null,null,null,null,null,null,null,null,"setupst1","$P$8",""]
[null,null,null,null,null,null,null,null,null,null,null,"setupst2","$P$9",""]
[null,null,null,null,null,null,null,null,null,null,null,"setupst3","$P$10",""]
[null,null,null,null,null,null,null,null,null,null,null,"setupst4","$P$11",""]
[null,null,null,null,null,null,null,null,null,null,null,"SigmaA","$EH$9","1.2"]
[null,null,null,null,null,null,null,null,null,null,null,"SigmaM","$EH$6","1.2"]
[null,null,null,null,null,null,null,null,null,null,null,"SigmaRM","$EH$12","1.2"]
[null,null,null,null,null,null,null,null,null,null,null,"tao","$DD$7","600"]
[null,null,null,null,null,null,null,null,null,null,null,"TFinal","$FD$20","0.756"]
[null,null,null,null,null,null,null,null,null,null,null,"THalfA","$EH$8","1200"]
[null,null,null,null,null,null,null,null,null,null,null,"THalfM","$EH$5","1200"]
[null,null,null,null,null,null,null,null,null,null,null,"THalfRM","$EH$11","1200"]
[null,null,null,null,null,null,null,null,null,null,null,"Therm2","$DB$3:$DB$21,$DD$3:$DD$21,$DE$3:$DE$21"]
[null,null,null,null,null,null,null,null,null,null,null,"Thermals","$DD$3:$DD$21"]
[null,null,null,null,null,null,null,null,null,null,null,"tla","$DD$6","1050"]
[null,null,null,null,null,null,null,null,null,null,null,"tlm","$DD$3","1500"]
[null,null,null,null,null,null,null,null,null,null,null,"tlr","$DD$9","1200"]
[null,null,null,null,null,null,null,null,null,null,null,"tmo","$DD$4","1500"]
[null,null,null,null,null,null,null,null,null,null,null,"tro","$DD$10","=tlr"]
[null,null,null,null,null,null,null,null,null,null,null,"ts","$DD$12","950"]
[null,null,null,null,null,null,null,null,null,null,null,"TZero","$FD$19","=IF(ISNUMBER(tmo/tlm),(tmo+273.16)/(tlm+273.16),\"\")"]
[null,null,null,null,null,null,null,null,null,null,null,"U0","$FD$5","=IF(ISNUMBER(tao/tlm),(tao+273.16)/(tlm+273.16),\"\")"]
[null,null,null,null,null,null,null,null,null,null,null,"V0","$FD$6","1"]
[null,null,null,null,null,null,null,null,null,null,null,"W0Elem1","$FD$8","=IF(ISBLANK(ElemLabel1),\"\",1)"]
[null,null,null,null,null,null,null,null,null,null,null,"W0Elem2","$FE$8","=IF(ISBLANK(ElemLabel2),\"\",1)"]
[null,null,null,null,null,null,null,null,null,null,null,"W0Elem3","$FF$8","=IF(ISBLANK(ElemLabel3),\"\",1)"]
[null,null,null,null,null,null,null,null,null,null,null,"W0Elem4","$FG$8","=IF(ISBLANK(ElemLabel4),\"\",1)"]
[null,null,null,null,null,null,null,null,null,null,null,"W0Elem5","$FH$8","=IF(ISBLANK(ElemLabel5),\"\",1)"]
[null,null,null,null,null,null,null,null,null,null,null,"W0Elem6","$FI$8","=IF(ISBLANK(ElemLabel6),\"\",1)"]
[null,null,null,null,null,null,null,null,null,null,null,"W0ElemLabel1","$FD$7","=IF(ISBLANK(ElemLabel1),\"\",ElemLabel1)"]
[null,null,null,null,null,null,null,null,null,null,null,"W0ElemLabel2","$FE$7","=IF(ISBLANK(ElemLabel2),\"\",ElemLabel2)"]
[null,null,null,null,null,null,null,null,null,null,null,"W0ElemLabel3","$FF$7","=IF(ISBLANK(ElemLabel3),\"\",ElemLabel3)"]
[null,null,null,null,null,null,null,null,null,null,null,"W0ElemLabel4","$FG$7","=IF(ISBLANK(ElemLabel4),\"\",ElemLabel4)"]
[null,null,null,null,null,null,null,null,null,null,null,"W0ElemLabel5","$FH$7","=IF(ISBLANK(ElemLabel5),\"\",ElemLabel5)"]
[null,null,null,null,null,null,null,null,null,null,null,"W0ElemLabel6","$FI$7","=IF(ISBLANK(ElemLabel6),\"\",ElemLabel6)"]
[null,null,null,null,null,null,null,null,null,null,null,"X0Isot1","$FD$11","=IF(ISNUMBER(IsotRatioMagma1),IsotRatioMagma1,\"\")"]
[null,null,null,null,null,null,null,null,null,null,null,"X0Isot2","$FE$11","=IF(ISNUMBER(IsotRatioMagma2),IsotRatioMagma2,\"\")"]
[null,null,null,null,null,null,null,null,null,null,null,"X0Isot3","$FF$11","=IF(ISNUMBER(IsotRatioMagma3),IsotRatioMagma3,\"\")"]
[null,null,null,null,null,null,null,null,null,null,null,"X0IsotLabel1","$FD$10","=IF(ISBLANK(IsotLabel1),\"\",IsotLabel1)"]
[null,null,null,null,null,null,null,null,null,null,null,"X0IsotLabel2","$FE$10","=IF(ISBLANK(IsotLabel2),\"\",IsotLabel2)"]
[null,null,null,null,null,null,null,null,null,null,null,"X0IsotLabel3","$FF$10","=IF(ISBLANK(IsotLabel3),\"\",IsotLabel3)"]
[null,null,null,null,null,null,null,null,null,null,null,"Y0","$FD$13","=IF(ISNUMBER(MagmaO18O16),MagmaO18O16,\"\")"]
[null,null,null,null,null,null,null,null,null,null,null,"Z0","$FD$15","0"]
[null,null,null,null,null,null,null,null,null,null,null,"chi","$AF$56","0.333"]